Workbook

Sheet Manuel d'utilisation
B2: Données de base
B3: Projet : | C3: =CONCATENATE("BOF_SL_",C6,": ",C7) -> BOF_SL_6000: Rue de la Station, 666 à 4308 Manage
C5: Une fois complétés, les champs en jaune ci-dessous seront automatiquement importés dans les différents onglets
B6: N° de dossier BOFAS | C6: 6000
B7: Adresse | C7: Rue de la Station, 666 à 4308 Manage
B8: Coordonnées X -Y | C8: x= …... ; y = …...
B9: Usage / affectation | C9: IV
B10: Teneur moy. en mat. org. (%) | C10: 3
B11: Teneur moyenne en argile (%) | C11: 7
B13: Explications des tableaux standard
B15: Dans l'étude de sol, si d'application et pour autant qu'elles soient connues, les données doivent être reprises conformément aux tableaux standard présentés dans les onglets ci-après. L'EAAS ne peut s'écarter des tableaux standard qu'avec l'accord préalable de BOFAS.
B16: Les différents onglets peuvent contenir certaines données pertinentes à reprendre tout au long du projet (EDS, PA, TA). Les différents onglets qui seront reportés (ou corrigés) à la phase suivante sont : l'(hydro)géologie, la granulométrie, les données des forages/piézomètres, les observations de terrain les plus importantes ainsi que les résultats d'analyses.
B17: Les analyses réalisées doivent être groupées par zone ou par source potentielle. Si elle est distincte de la pollution propre à la SS (TE = TankstationEIGEN = PROPRE à la SS), la pollution étrangère à la SS (TV = TankstationVREEMD = ETRANGER à la SS) sera reprise dans une zone séparée.
B18: Accompagnés des figures, les tableaux standard donnent une image claire de la situation actuelle en matière de contamination.
B20: Rappels concernant les types d'usage en Wallonie
B23: Types d'usage selon le Décret Sols (DS) en Wallonie
B29: Types d'usage selon l'Arrêté stations-service (RGPT) en Wallonie

Sheet (Hydro)géologie
B2: (Hydro)géologie
B3: Projet: | C3: ='Manuel d''utilisation'!C3 -> BOF_SL_6000: Rue de la Station, 666 à 4308 Manage
B5: Sur base du contexte géologique
B7: Profondeur (m-ns) | C7: Stratigraphie | D7: Lithologie | E7: Eau souterraine | F7: Valeur K sur base de la littérature (compléter une des deux colonnes)
F8: m/s | G8: m/j
E9: aquifère exploitable | F9: =+IF(G9<>"",G9/(24*60*60),"") ->  | G9: =+IF(F9<>"",F9*(24*60*60),"") -> 0
E10: horizon discontinu non exploitable | G10: 0
E11: eau de rétention | G11: 0
E12: aquiclude | G12: 0
E13: aquitard | G13: 0
E14: aquifère non exploitable | G14: 0
E15: etc… | G15: 0
B18: Sur base des forages
B20: Profondeur (m-ns) | C20: Texture, couleur, hétérogénéité | D20: Remarques * | E20: % matière organique | F20: % argile | G20: Valeur K calculée (voir onglet 'Granulométrie') (compléter une des deux colonnes)
G21: m/s | H21: m/j
D22: glauconite | G22: =+IF(H22<>"",H22/(24*60*60),"") ->  | H22: =+IF(G22<>"",G22*(24*60*60),"") -> 0
D23: 5 cm de tourbe | H23: =+IF(G23<>"",G23*(24*60*60),"") -> 0
D24: venues d'eau importantes | H24: 0
D25: 10 % de cailloux | H25: 0
H26: 0
C27: * couche de tourbe, d'argile, de gravier, teneur élevée en glauconite, venues d'eau importantes, % de cailloux, ... ou toute autre couche remarquable qui perturbe la continuité du sous-sol
B29: Tableau récapitulatif (hydro)géologie
C31: Caractère vulnérable/exploitable
C32: Zone de protection de captage (et type de zone)
C33: Eaux de surface (distance - m)
C34: Profondeur de la nappe (m-ns)
C35: Direction d'écoulement des eaux souterraines
C36: Topographie/aval/point bas
C37: Distance par rapport aux eaux de surface
C38: Captage important dans le cadre de l'EC/AR
C39: Direction (N, NE, S, ..) | D39: distance (m) | E39: profondeur | F39: débit (m3/j)
C43: Paquet 'épuration' : analyse sur… | D43: piézo … (cm-ns) | E43: piézo … (cm-ns) | F43: piézo … (cm-ns) | G43: piézo … cm-ns)
C44: Fe (mg/l)
C45: Mn (mg/l)
C46: Ca (mg/l)
C47: Mg (mg/l)

Sheet Granulométrie
B2: Granulométrie / triangle textural belge / perméabilité
B3: Projet: | D3: ='Manuel d''utilisation'!C3 -> BOF_SL_6000: Rue de la Station, 666 à 4308 Manage
C4: Forage / échantillon | F4: Rapport du laboratoire | P4: Calcul (sur base du rapport du laboratoire) | X4: Remarques
B5: Code | C5: Forage et profondeur (m-ns) (encoder du moins profond au plus profond) | D5: Texture selon le log de forage | E5: Fraction gravier (>2000 µm) estimée ou en % | F5: % MS | G5: Pourcentage cumulatif passant sur le tamis (en % de matière sèche (MS) ou en % de fraction minérale) | P5: Détermination de la texture | S5: Texture normalisée (sur base de 100% de fraction minerale) | X5: Remarques vis-à-vis du triangle textural belge | Y5: Texture | Z5: Permeabilité
G6: < 2 µm | H6: < 16 µm | I6: < 50 µm | J6: < 63 µm | K6: < 125 µm | L6: < 250 µm | M6: < 500 µm | N6: < 1000 µm | O6: < 2000 µm | P6: % fraction sable (50-2000 µm) | Q6: % fraction limon (2-50 µm) | R6: % fraction argile (<2 µm) | S6: % fraction sable | T6: % fraction limon | U6: % fraction argile | V6: x | W6: y | Z6: Méthode de determination de la valeur K | AA6: Valeur K calculée (cfr. Directive) (compléter une des deux colonnes)
AA7: m/s | AB7: m/j
B8: 0 | D8: reference fraction sable | G8: 0 | H8: 0 | I8: 0 | J8: 100 | K8: 100 | L8: 100 | M8: 100 | N8: 100 | O8: 100 | P8: =O8-I8 -> 100 | Q8: =I8-G8 -> 0 | R8: =G8 -> 0 | S8: =P8/(SUM($P8:$R8))*100 -> 100 | T8: =Q8/(SUM($P8:$R8))*100 -> 0 | U8: 0 | V8: =(100-S8+T8)*0.5 -> 0 | W8: =(U8) -> 0 | Y8: =IF(AND($U8>=35,$T8<=55),"U", IF(AND($U8>=17.5,($T8+$S8/2)<=70),"E", IF(AND($S8<=15,($T8+$S8/2)>70),"A", IF(AND($S8>82.5,$U8<8),"Z", IF(AND($S8>67.5,$U8<17.5),"S", IF(AND($S8>50,$U8<12.5),"P","L")))))) -> Z
B9: 0 | D9: reference fractionlimon | G9: 0 | H9: 100 | I9: 100 | J9: 100 | K9: 100 | L9: 100 | M9: 100 | N9: 100 | O9: 100 | P9: =O9-I9 -> 0 | Q9: =I9-G9 -> 100 | R9: =G9 -> 0 | S9: 0 | T9: 100 | U9: 0 | V9: =(100-S9+T9)*0.5 -> 100 | W9: =(U9)*SIN(60*PI()/180) -> 0 | Y9: =IF(AND($U9>=35,$T9<=55),"U", IF(AND($U9>=17.5,($T9+$S9/2)<=70),"E", IF(AND($S9<=15,($T9+$S9/2)>70),"A", IF(AND($S9>82.5,$U9<8),"Z", IF(AND($S9>67.5,$U9<17.5),"S", IF(AND($S9>50,$U9<12.5),"P","L")))))) -> A
B10: 0 | D10: reference fraction argile | G10: 100 | H10: 100 | I10: 100 | J10: 100 | K10: 100 | L10: 100 | M10: 100 | N10: 100 | O10: 100 | P10: =O10-I10 -> 0 | Q10: 0 | R10: =G10 -> 100 | S10: 0 | T10: 0 | U10: 100 | V10: 50 | W10: 86.60254038 | Y10: U
B11: a | C11: H1 7,5 -8 | D11: exemple à supprimer | E11: non | F11: 92 | G11: 4.8 | H11: 5.8 | I11: 7.2 | J11: 8 | K11: 14 | L11: 75 | M11: 94 | N11: 95 | O11: 95 | P11: =IF(ISTEXT(C11),O11-I11,"") -> 87.8 | Q11: =IF(ISTEXT(C11),I11-G11,"") -> 2.4 | R11: =IF(ISTEXT(C11),G11,"") -> 4.8 | S11: =IF(ISTEXT(C11),+P11/(SUM($P11:$R11))*100,"") -> 92.42105263 | T11: =IF(ISTEXT(C11),+Q11/(SUM($P11:$R11))*100,"") -> 2.526315789 | U11: =IF(ISTEXT(C11),+R11/(SUM($P11:$R11))*100,"") -> 5.052631579 | V11: 5.052631579 | W11: 4.375707303 | X11: % gravier trop elevé => G | Y11: Z | Z11: Kozeny | AA11: =+IF(AB11<>"",AB11/(24*60*60),"") ->  | AB11: =+IF(AA11<>"",AA11*(24*60*60),"") -> 0
B12: b | C12: KB1 10-12 | D12: exemple à supprimer | E12: 20 | F12: 94 | G12: 6.3 | H12: 8.5 | I12: 12 | J12: 12 | K12: 18 | L12: 79 | M12: 79 | N12: 100 | O12: 100 | P12: =IF(ISTEXT(C12),O12-I12,"") -> 88 | Q12: =IF(ISTEXT(C12),I12-G12,"") -> 5.7 | R12: =IF(ISTEXT(C12),G12,"") -> 6.3 | S12: =IF(ISTEXT(C12),+P12/(SUM($P12:$R12))*100,"") -> 88 | T12: =IF(ISTEXT(C12),+Q12/(SUM($P12:$R12))*100,"") -> 5.7 | U12: =IF(ISTEXT(C12),+R12/(SUM($P12:$R12))*100,"") -> 6.3 | V12: 8.85 | W12: 5.455960044 | X12: % gravier trop elevé => G | Y12: Z | Z12: Rawls | AB12: 0
B13: c | C13: KB1 14-14,2 | D13: exemple à supprimer | F13: 70 | G13: 30 | H13: 30 | I13: 67 | J13: 68 | K13: 70 | L13: 76 | M13: 97 | N13: 100 | O13: 100 | P13: 33 | Q13: 37 | R13: 30 | S13: 33 | T13: 37 | U13: 30 | V13: 52 | W13: 25.98076211 | X13: % ms trop bas | Y13: E | AB13: 0
B14: d | C14: KB1 16-16,5 | D14: exemple à supprimer | E14: 1 | F14: 88 | G14: 20 | H14: 26 | I14: 35.2 | J14: 37.4 | K14: 38 | L14: 40 | M14: 40 | N14: 40 | O14: 40 | P14: 4.8 | Q14: 15.2 | R14: 20 | S14: 12 | T14: 38 | U14: 50 | V14: 63 | W14: 43.30127019 | Y14: U | AB14: 0
B15: e | C15: B4 18-19 | D15: exemple à supprimer | E15: 10 | F15: 95 | G15: 15 | H15: 20 | I15: 35.2 | J15: 37.4 | K15: 57.6 | L15: 60 | M15: 60 | N15: 60 | O15: 60 | P15: 24.8 | Q15: 20.2 | R15: 15 | S15: 41.33333333 | T15: 33.66666667 | U15: 25 | V15: 46.16666667 | W15: 21.65063509 | Y15: E | AB15: 0
B16: f | V16: =(100-S16+T16)*0.5 ->  | W16: =(U16)*SIN(60*PI()/180) ->  | AB16: 0
B17: g | AB17: 0
B18: h | AB18: 0
B19: i | AB19: 0
B20: j | AB20: 0
B21: k | AB21: 0
B22: l | AB22: 0
B23: m | AB23: 0
B24: n | AB24: 0
B25: o | AB25: 0
Y28: Texture
X29: argile lourde | Y29: U | Z29: argile>=35 et limon<=55
X30: argile | Y30: E | Z30: argile>=17,5 et (limon+sable/2)<=70
X31: limon | Y31: A | Z31: sable<=15 et (limon+sable/2)>70
X32: limon sableux | Y32: L | Z32: le reste après ZSP et après A
X33: limon sableux léger | Y33: P | Z33: sable>50 et argile<12,5
X34: sable limoneux | Y34: S | Z34: sable>67,5 et argile<17,5
X35: sable | Y35: Z | Z35: sable>82,5 et argile<8
A61: Note
A62: GENERALITES | Z62: Kozeny
A63: Lors de son interprétation, l'EAAS doit tenir compte des effets du prétraitement en laboratoire sur l'applicabilité du triangle textural. | Z63: Rawls
Z64: Autre
A65: GRAVIER
A66: Les sols contenant plus de 5% de gravier (fraction >2000 µm) peuvent éventuellement recevoir le code "G" (gravier) ; à proprement parler, ils ne font toutefois pas partie du triangle textural.
A67: A partir d'une teneur en gravier de 30%, l'applicabilité du triangle textural belge devient très problématique.
A68: Pour l'évaluation à l'aide de S-Risk, en cas de présence de gravier, la classification selon le triangle textural belge peut néanmoins être conservée à titre indicatif, puisque la fraction minérale (<2000 µm) est déterminante vis-à-vis du comportement du polluant.
A69: Pour l'évaluation à l'aide de S-Risk Wallonie, on peut considérer qu'il convient de maintenir le type de sol "G" (limon caillouteux), dès lors que la matrice sera souvent limoneuse.
A71: TOURBE
A72: La tourbe et les sols tourbeux sont souvent caractérisés par de faibles teneurs en matière sèche (MS) et des teneurs élevées en matière organique (MO) ; ils ne font pas non plus partie du triangle textural et obtiennent le code "V" (Veen = tourbe en néérlandais).
A73: Le triangle textural de la tourbe (Stiboka) permet de décider si le sol répond à la définition d'un "sol minéral", et si la classification selon le triangle textural belge peut être appliquée de manière pertinente.
A74: En pratique, à partir d'une teneur en MO de 15 à 30%, l'interprétation sur base du triangle textural belge peut devenir problématique.

Sheet Sol Wal DS TE
B2: Perceptions de chantier et comparaison des résultats d'analyse (DS) pour la partie fixe du sol
B3: Projet: | C3: ='Manuel d''utilisation'!C3 -> BOF_SL_6000: Rue de la Station, 666 à 4308 Manage
B4: Type usage DS | C4: =K8 -> II | G4: MO(%): | J4: ='Manuel d''utilisation'!C10 -> 3 | P4: <2µm (%): | Q4: ='Manuel d''utilisation'!C11 -> 7 | R4: ='Manuel d''utilisation'!AU11 -> 0
B5: Identification du forage | K5: Caractéristiques organoleptiques | P5: Echantillon | Q5: MS | R5: Résultats d'analyse en mg/kg ms | BK5: Impact gravier | BM5: Résultats d'analyse en mg/kg ms après réévaluation sur base du facteur correctif (gravier)
R6: HM somme | T6: Hydrocarbures pétroliers (fractions globales/combinées) | Z6: Hydrocarbures pétroliers (analyse 'split' aliphatique/aromatique) | AP6: Hydrocarbures pétroliers calculés sur base de la répartition standard diesel | BD6: Hydrocarbures aromatiques non halogénés | BK6: Facteur correctif | BM6: HM somme | BO6: Hydrocarbures pétroliers (fractions globales/combinées) | BU6: Hydrocarbures pétroliers (analyse 'split' aliphatique/aromatique) | CJ6: Hydrocarbures pétroliers calculés sur base de la répartition standard diesel | CY6: Hydrocarbures aromatiques non halogénés
B7: Parcelle cadastrale | C7: Code du forage | D7: X (Lambert) | E7: Y (Lambert) | F7: Refus de forage(6) | G7: Date du forage | H7: Phase d'étude(6) | I7: Terrain naturel (TN) / Remblai (R)(6) | J7: Profondeur du forage (cm-ns) | K7: Profondeur: de (cm-ns) à (cm-ns) | L7: Caractérisation(1) (6) | M7: Odeur/PID(2) | N7: Couleur suspecte(6) | O7: Test huile/eau(2) | P7: Profondeur de l'échantillon (cm-ns) | Q7: Matière sèche (%) | R7: Huile minérale EC 5-35 | S7: Huile minérale EC 10-40 | T7: Fraction EC 5-8 | U7: Fraction EC 8-10 | V7: Fraction EC 10-12 | W7: Fraction EC 12-16 | X7: Fraction EC 16-21 | Y7: Fraction EC 21-35 | Z7: Ali EC 5-6 | AA7: Ali EC 6-8 | AB7: Ali EC 8-10 | AC7: Ali EC 10-12 | AD7: Ali EC 12-16 | AE7: Ali EC 16-21 | AF7: Ali EC 21-35 | AG7: Aro EC 6-7 | AH7: Aro EC 7-8 | AI7: Aro EC 8-10 | AJ7: Aro EC 10-12 | AK7: Aro EC 12-16 | AL7: Aro EC 16-21 | AM7: Aro EC 21-35 | AO7: Nature TPH(7) (6) | AP7: Ali EC 5-6 | AQ7: Ali EC 6-8 | AR7: Ali EC 8-10 | AS7: Ali EC 10-12 | AT7: Ali EC 12-16 | AU7: Ali EC 16-21 | AV7: Ali EC 21-35 | AW7: Aro EC 6-7 | AX7: Aro EC 7-8 | AY7: Aro EC 8-10 | AZ7: Aro EC 10-12 | BA7: Aro EC 12-16 | BB7: Aro EC 16-21 | BC7: Aro EC 21-35 | BD7: Benzène | BE7: Toluène | BF7: Ethylbenzène | BG7: Xylènes (somme) | BH7: MTBE | BI7: Naphtalène | BK7: Pourcentage de cailloux | BL7: Pourcentage de fractionsfines | BM7: Huile minérale EC 5-35 | BN7: Huile minérale EC 10-40 | BO7: Fraction EC 5-8 | BP7: Fraction EC 8-10 | BQ7: Fraction EC 10-12 | BR7: Fraction EC 12-16 | BS7: Fraction EC 16-21 | BT7: Fraction EC 21-35 | BU7: Ali EC 5-6 | BV7: Ali EC 6-8 | BW7: Ali EC 8-10 | BX7: Ali EC 10-12 | BY7: Ali EC 12-16 | BZ7: Ali EC 16-21 | CA7: Ali EC 21-35 | CB7: Aro EC 6-7 | CC7: Aro EC 7-8 | CD7: Aro EC 8-10 | CE7: Aro EC 10-12 | CF7: Aro EC 12-16 | CG7: Aro EC 16-21 | CH7: Aro EC 21-35 | CJ7: Ali EC 5-6 | CK7: Ali EC 6-8 | CL7: Ali EC 8-10 | CM7: Ali EC 10-12 | CN7: Ali EC 12-16 | CO7: Ali EC 16-21 | CP7: Ali EC 21-35 | CQ7: Aro EC 6-7 | CR7: Aro EC 7-8 | CS7: Aro EC 8-10 | CT7: Aro EC 10-12 | CU7: Aro EC 12-16 | CV7: Aro EC 16-21 | CW7: Aro EC 21-35 | CY7: Benzène | CZ7: Toluène | DA7: Ethylbenzène | DB7: Xylènes (somme) | DC7: MTBE | DD7: Naphtalène
B8: NORMES: Concentrations en gras et rouge si dépassement de la norme | I8: usage DS(6) | K8: II | P8: VS(3) | R8: =INDEX(R$52:R$56,MATCH($K$8,$P$52:$P$56,0)) -> - | S8: - | T8: 6 | U8: 21 | V8: 75 | W8: 75 | X8: 650 | Y8: 650 | Z8: - | AA8: - | AB8: - | AC8: - | AD8: - | AE8: - | AF8: - | AG8: - | AH8: - | AI8: - | AJ8: - | AK8: - | AL8: - | AM8: - | AP8: =INDEX(AP$52:AP$56,MATCH($K$8,$P$52:$P$56,0)) -> - | AQ8: - | AR8: - | AS8: - | AT8: - | AU8: - | AV8: - | AW8: - | AX8: - | AY8: - | AZ8: - | BA8: - | BB8: - | BC8: - | BD8: 0.1 | BE8: 4 | BF8: 0.3 | BG8: 1 | BH8: 1.5 | BI8: 2.5 | BM8: =R8 -> - | BN8: - | BO8: 6 | BP8: 21 | BQ8: 75 | BR8: 75 | BS8: 650 | BT8: 650 | BU8: - | BV8: - | BW8: - | BX8: - | BY8: - | BZ8: - | CA8: - | CB8: - | CC8: - | CD8: - | CE8: - | CF8: - | CG8: - | CH8: - | CJ8: =AP8 -> - | CK8: - | CL8: - | CM8: - | CN8: - | CO8: - | CP8: - | CQ8: - | CR8: - | CS8: - | CT8: - | CU8: - | CV8: - | CW8: - | CY8: =BD8 -> 0.1 | CZ8: 4 | DA8: 0.3 | DB8: 1 | DC8: 1.5 | DD8: 2.5
B9: Zone suspecte investiguée:
B10: 1076Z | C10: C1 | G10: 28/12/2004 | H10: EO | I10: R | J10: 420 | K10: 80-150 | L10: Ess | M10: * | P10: 80-100 | Q10: 0.95 | R10: 100 | S10: 100 | Z10: <12.5 | AA10: 100 | AB10: 1000 | AO10: DI | AQ10: =IF(($AO10<>"DI"),"np",IF($R10<>"",IFERROR(0.00098*($R10),"<"),IF($S10<>"",IFERROR(0.001002*($S10),"<"),""))) -> 0.098 | AR10: =IF(($AO10<>"DI"),"np",IF($R10<>"",IFERROR(0.00879*($R10),"<"),IF($S10<>"",IFERROR(0.00901804*($S10),"<"),""))) -> 0.879 | AS10: =IF(($AO10<>"DI"),"np",IF($R10<>"",IFERROR(0.08203*($R10),"<"),IF($S10<>"",IFERROR(0.08416834*($S10),"<"),""))) -> 8.203 | AT10: =IF(($AO10<>"DI"),"np",IF($R10<>"",IFERROR(0.47363*($R10),"<"),IF($S10<>"",IFERROR(0.4859719*($S10),"<"),""))) -> 47.363 | AU10: =IF(($AO10<>"DI"),"np",IF($R10<>"",IFERROR(0.22461*($R10),"<"),IF($S10<>"",IFERROR(0.2304609*($S10),"<"),""))) -> 22.461 | AY10: =IF(($AO10<>"DI"),"np",IF($R10<>"",IFERROR(0.01563*($R10),"<"),IF($S10<>"",IFERROR(0.01603206*($S10),"<"),""))) -> 1.563 | AZ10: =IF(($AO10<>"DI"),"np",IF($R10<>"",IFERROR(0.01367*($R10),"<"),IF($S10<>"",IFERROR(0.01402806*($S10),"<"),""))) -> 1.367 | BA10: =IF(($AO10<>"DI"),"np",IF($R10<>"",IFERROR(0.1123*($R10),"<"),IF($S10<>"",IFERROR(0.1152305*($S10),"<"),""))) -> 11.23 | BB10: =IF(($AO10<>"DI"),"np",IF($R10<>"",IFERROR(0.06836*($R10),"<"),IF($S10<>"",IFERROR(0.07014028*($S10),"<"),""))) -> 6.836 | BD10: 0.55 | BE10: 4.3 | BF10: 3 | BG10: 3.2 | BI10: 1 | BL10: 0.1 | BM10: =IFERROR($BL10*R10,"<") -> 10 | BN10: =IFERROR($BL10*S10,"<") -> 10 | BO10: =IFERROR($BL10*T10,"<") -> 0 | BP10: =IFERROR($BL10*U10,"<") -> 0 | BQ10: =IFERROR($BL10*V10,"<") -> 0 | BR10: =IFERROR($BL10*W10,"<") -> 0 | BS10: =IFERROR($BL10*X10,"<") -> 0 | BT10: =IFERROR($BL10*Y10,"<") -> 0 | BU10: =IFERROR($BL10*Z10,"<") -> < | BV10: =IFERROR($BL10*AA10,"<") -> 10 | BW10: =IFERROR($BL10*AB10,"<") -> 100 | BX10: =IFERROR($BL10*AC10,"<") -> 0 | BY10: =IFERROR($BL10*AD10,"<") -> 0 | BZ10: =IFERROR($BL10*AE10,"<") -> 0 | CA10: =IFERROR($BL10*AF10,"<") -> 0 | CB10: =IFERROR($BL10*AG10,"<") -> 0 | CC10: =IFERROR($BL10*AH10,"<") -> 0 | CD10: =IFERROR($BL10*AI10,"<") -> 0 | CE10: =IFERROR($BL10*AJ10,"<") -> 0 | CF10: =IFERROR($BL10*AK10,"<") -> 0 | CG10: =IFERROR($BL10*AL10,"<") -> 0 | CH10: =IFERROR($BL10*AM10,"<") -> 0 | CJ10: =IFERROR($BL10*AP10,"<") -> 0 | CK10: =IF(($AO10="DI"),IFERROR($BL10*AQ10,"<"),"np") -> 0.0098 | CL10: =IF(($AO10="DI"),IFERROR($BL10*AR10,"<"),"np") -> 0.0879 | CM10: =IF(($AO10="DI"),IFERROR($BL10*AS10,"<"),"np") -> 0.8203 | CN10: =IF(($AO10="DI"),IFERROR($BL10*AT10,"<"),"np") -> 4.7363 | CO10: =IF(($AO10="DI"),IFERROR($BL10*AU10,"<"),"np") -> 2.2461 | CP10: =$BL10*AV10 -> 0 | CQ10: =$BL10*AW10 -> 0 | CR10: =$BL10*AX10 -> 0 | CS10: =IF(($AO10="DI"),IFERROR($BL10*AY10,"<"),"np") -> 0.1563 | CT10: =IF(($AO10="DI"),IFERROR($BL10*AZ10,"<"),"np") -> 0.1367 | CU10: =IF(($AO10="DI"),IFERROR($BL10*BA10,"<"),"np") -> 1.123 | CV10: =IF(($AO10="DI"),IFERROR($BL10*BB10,"<"),"np") -> 0.6836 | CW10: =$BL10*BC10 -> 0 | CY10: =IFERROR($BL10*BD10,"<") -> 0.055 | CZ10: =IFERROR($BL10*BE10,"<") -> 0.43 | DA10: =IFERROR($BL10*BF10,"<") -> 0.3 | DB10: =IFERROR($BL10*BG10,"<") -> 0.32 | DC10: =IFERROR($BL10*BH10,"<") -> 0 | DD10: =IFERROR($BL10*BI10,"<") -> 0.1
K11: 200-250 | L11: Ess | M11: ** | P11: 200-220 | Q11: 0.95 | S11: 100 | AO11: DI | AQ11: =IF(($AO11<>"DI"),"np",IF($R11<>"",IFERROR(0.00098*($R11),"<"),IF($S11<>"",IFERROR(0.001002*($S11),"<"),""))) -> 0.1002 | AR11: =IF(($AO11<>"DI"),"np",IF($R11<>"",IFERROR(0.00879*($R11),"<"),IF($S11<>"",IFERROR(0.00901804*($S11),"<"),""))) -> 0.901804 | AS11: =IF(($AO11<>"DI"),"np",IF($R11<>"",IFERROR(0.08203*($R11),"<"),IF($S11<>"",IFERROR(0.08416834*($S11),"<"),""))) -> 8.416834 | AT11: =IF(($AO11<>"DI"),"np",IF($R11<>"",IFERROR(0.47363*($R11),"<"),IF($S11<>"",IFERROR(0.4859719*($S11),"<"),""))) -> 48.59719 | AU11: =IF(($AO11<>"DI"),"np",IF($R11<>"",IFERROR(0.22461*($R11),"<"),IF($S11<>"",IFERROR(0.2304609*($S11),"<"),""))) -> 23.04609 | AY11: =IF(($AO11<>"DI"),"np",IF($R11<>"",IFERROR(0.01563*($R11),"<"),IF($S11<>"",IFERROR(0.01603206*($S11),"<"),""))) -> 1.603206 | AZ11: =IF(($AO11<>"DI"),"np",IF($R11<>"",IFERROR(0.01367*($R11),"<"),IF($S11<>"",IFERROR(0.01402806*($S11),"<"),""))) -> 1.402806 | BA11: =IF(($AO11<>"DI"),"np",IF($R11<>"",IFERROR(0.1123*($R11),"<"),IF($S11<>"",IFERROR(0.1152305*($S11),"<"),""))) -> 11.52305 | BB11: =IF(($AO11<>"DI"),"np",IF($R11<>"",IFERROR(0.06836*($R11),"<"),IF($S11<>"",IFERROR(0.07014028*($S11),"<"),""))) -> 7.014028 | BD11: 2 | BE11: 10 | BF11: 20 | BG11: 300 | BI11: 2 | BL11: 0.2 | BM11: 0 | BN11: 20 | BO11: 0 | BP11: 0 | BQ11: 0 | BR11: 0 | BS11: 0 | BT11: 0 | BU11: 0 | BV11: 0 | BW11: 0 | BX11: 0 | BY11: 0 | BZ11: 0 | CA11: 0 | CB11: 0 | CC11: 0 | CD11: 0 | CE11: 0 | CF11: 0 | CG11: 0 | CH11: 0 | CJ11: 0 | CK11: 0.02004 | CL11: 0.1803608 | CM11: 1.6833668 | CN11: 9.719438 | CO11: 4.609218 | CP11: 0 | CQ11: 0 | CR11: 0 | CS11: 0.3206412 | CT11: 0.2805612 | CU11: 2.30461 | CV11: 1.4028056 | CW11: 0 | CY11: 0.4 | CZ11: 2 | DA11: 4 | DB11: 60 | DC11: 0 | DD11: 0.4
K12: 250-400 | P12: 250-270 | Q12: 0.95 | S12: 100 | AO12: autre ou ? | AQ12: np | AR12: np | AS12: np | AT12: np | AU12: np | AY12: np | AZ12: np | BA12: np | BB12: np | BD12: -0.2 | BE12: -0.2 | BF12: -0.2 | BG12: -0.2 | BI12: -0.2 | BL12: 0.2 | BM12: 0 | BN12: 20 | BO12: 0 | BP12: 0 | BQ12: 0 | BR12: 0 | BS12: 0 | BT12: 0 | BU12: 0 | BV12: 0 | BW12: 0 | BX12: 0 | BY12: 0 | BZ12: 0 | CA12: 0 | CB12: 0 | CC12: 0 | CD12: 0 | CE12: 0 | CF12: 0 | CG12: 0 | CH12: 0 | CJ12: 0 | CK12: np | CL12: np | CM12: np | CN12: np | CO12: np | CP12: 0 | CQ12: 0 | CR12: 0 | CS12: np | CT12: np | CU12: np | CV12: np | CW12: 0 | CY12: -0.04 | CZ12: -0.04 | DA12: -0.04 | DB12: -0.04 | DC12: 0 | DD12: -0.04
C13: C2 | G13: 2004-12-28 | H13: EO | J13: 350 | S13: 100 | AO13: autre ou ? | AQ13: np | AR13: np | AS13: np | AT13: np | AU13: np | AY13: np | AZ13: np | BA13: np | BB13: np | BL13: 0.2 | BM13: 0 | BN13: 20 | BO13: 0 | BP13: 0 | BQ13: 0 | BR13: 0 | BS13: 0 | BT13: 0 | BU13: 0 | BV13: 0 | BW13: 0 | BX13: 0 | BY13: 0 | BZ13: 0 | CA13: 0 | CB13: 0 | CC13: 0 | CD13: 0 | CE13: 0 | CF13: 0 | CG13: 0 | CH13: 0 | CJ13: 0 | CK13: np | CL13: np | CM13: np | CN13: np | CO13: np | CP13: 0 | CQ13: 0 | CR13: 0 | CS13: np | CT13: np | CU13: np | CV13: np | CW13: 0 | CY13: 0 | CZ13: 0 | DA13: 0 | DB13: 0 | DC13: 0 | DD13: 0
B14: 456f | C14: p4 | G14: 2004-12-28 | H14: EO | J14: 400 | K14: 150-250 | L14: DI | M14: * | O14: * | Q14: 0.98 | S14: 100 | AO14: DI | AQ14: 0.1002 | AR14: 0.901804 | AS14: 8.416834 | AT14: 48.59719 | AU14: 23.04609 | AY14: 1.603206 | AZ14: 1.402806 | BA14: 11.52305 | BB14: 7.014028 | BD14: -0.05 | BE14: -0.05 | BF14: -0.05 | BG14: -0.05 | BL14: 0.2 | BM14: 0 | BN14: 20 | BO14: 0 | BP14: 0 | BQ14: 0 | BR14: 0 | BS14: 0 | BT14: 0 | BU14: 0 | BV14: 0 | BW14: 0 | BX14: 0 | BY14: 0 | BZ14: 0 | CA14: 0 | CB14: 0 | CC14: 0 | CD14: 0 | CE14: 0 | CF14: 0 | CG14: 0 | CH14: 0 | CJ14: 0 | CK14: 0.02004 | CL14: 0.1803608 | CM14: 1.6833668 | CN14: 9.719438 | CO14: 4.609218 | CP14: 0 | CQ14: 0 | CR14: 0 | CS14: 0.3206412 | CT14: 0.2805612 | CU14: 2.30461 | CV14: 1.4028056 | CW14: 0 | CY14: -0.01 | CZ14: -0.01 | DA14: -0.01 | DB14: -0.01 | DC14: 0 | DD14: 0
K15: 300-330 | Q15: 0.98 | S15: 100 | AO15: DI | AQ15: 0.1002 | AR15: 0.901804 | AS15: 8.416834 | AT15: 48.59719 | AU15: 23.04609 | AY15: 1.603206 | AZ15: 1.402806 | BA15: 11.52305 | BB15: 7.014028 | BD15: -0.05 | BE15: -0.05 | BF15: -0.05 | BG15: -0.05 | BL15: 0.2 | BM15: 0 | BN15: 20 | BO15: 0 | BP15: 0 | BQ15: 0 | BR15: 0 | BS15: 0 | BT15: 0 | BU15: 0 | BV15: 0 | BW15: 0 | BX15: 0 | BY15: 0 | BZ15: 0 | CA15: 0 | CB15: 0 | CC15: 0 | CD15: 0 | CE15: 0 | CF15: 0 | CG15: 0 | CH15: 0 | CJ15: 0 | CK15: 0.02004 | CL15: 0.1803608 | CM15: 1.6833668 | CN15: 9.719438 | CO15: 4.609218 | CP15: 0 | CQ15: 0 | CR15: 0 | CS15: 0.3206412 | CT15: 0.2805612 | CU15: 2.30461 | CV15: 1.4028056 | CW15: 0 | CY15: -0.01 | CZ15: -0.01 | DA15: -0.01 | DB15: -0.01 | DC15: 0 | DD15: 0
B16: 1076z | C16: B1 | G16: 2019-07-28 | H16: EO | I16: R | J16: 400 | K16: 200-250 | L16: Ess | M16: ** | P16: 200-220 | Q16: 0.95 | S16: 100 | T16: -12 | U16: 300 | V16: 400 | W16: 50 | X16: -12 | Y16: -12 | AO16: DI | AQ16: 0.1002 | AR16: 0.901804 | AS16: 8.416834 | AT16: 48.59719 | AU16: 23.04609 | AY16: 1.603206 | AZ16: 1.402806 | BA16: 11.52305 | BB16: 7.014028 | BD16: 0.7 | BE16: 10 | BF16: 20 | BG16: 300 | BI16: 0.5 | BL16: 0.2 | BM16: 0 | BN16: 20 | BO16: -2.4 | BP16: 60 | BQ16: 80 | BR16: 10 | BS16: -2.4 | BT16: -2.4 | BU16: 0 | BV16: 0 | BW16: 0 | BX16: 0 | BY16: 0 | BZ16: 0 | CA16: 0 | CB16: 0 | CC16: 0 | CD16: 0 | CE16: 0 | CF16: 0 | CG16: 0 | CH16: 0 | CJ16: 0 | CK16: 0.02004 | CL16: 0.1803608 | CM16: 1.6833668 | CN16: 9.719438 | CO16: 4.609218 | CP16: 0 | CQ16: 0 | CR16: 0 | CS16: 0.3206412 | CT16: 0.2805612 | CU16: 2.30461 | CV16: 1.4028056 | CW16: 0 | CY16: 0.14 | CZ16: 2 | DA16: 4 | DB16: 60 | DC16: 0 | DD16: 0.1
AO17: autre ou ? | AQ17: np | AR17: np | AS17: np | AT17: np | AU17: np | AY17: np | AZ17: np | BA17: np | BB17: np | BL17: 0.2 | BM17: 0 | BN17: 0 | BO17: 0 | BP17: 0 | BQ17: 0 | BR17: 0 | BS17: 0 | BT17: 0 | BU17: 0 | BV17: 0 | BW17: 0 | BX17: 0 | BY17: 0 | BZ17: 0 | CA17: 0 | CB17: 0 | CC17: 0 | CD17: 0 | CE17: 0 | CF17: 0 | CG17: 0 | CH17: 0 | CJ17: 0 | CK17: np | CL17: np | CM17: np | CN17: np | CO17: np | CP17: 0 | CQ17: 0 | CR17: 0 | CS17: np | CT17: np | CU17: np | CV17: np | CW17: 0 | CY17: 0 | CZ17: 0 | DA17: 0 | DB17: 0 | DC17: 0 | DD17: 0
AO18: DI | BL18: 0.2 | BM18: 0 | BN18: 0 | BO18: 0 | BP18: 0 | BQ18: 0 | BR18: 0 | BS18: 0 | BT18: 0 | BU18: 0 | BV18: 0 | BW18: 0 | BX18: 0 | BY18: 0 | BZ18: 0 | CA18: 0 | CB18: 0 | CC18: 0 | CD18: 0 | CE18: 0 | CF18: 0 | CG18: 0 | CH18: 0 | CJ18: 0 | CK18: < | CL18: < | CM18: < | CN18: < | CO18: < | CP18: 0 | CQ18: 0 | CR18: 0 | CS18: < | CT18: < | CU18: < | CV18: < | CW18: 0 | CY18: 0 | CZ18: 0 | DA18: 0 | DB18: 0 | DC18: 0 | DD18: 0
AQ19: np | AR19: np | AS19: np | AT19: np | AU19: np | AY19: np | AZ19: np | BA19: np | BB19: np | BL19: 0.2 | BM19: 0 | BN19: 0 | BO19: 0 | BP19: 0 | BQ19: 0 | BR19: 0 | BS19: 0 | BT19: 0 | BU19: 0 | BV19: 0 | BW19: 0 | BX19: 0 | BY19: 0 | BZ19: 0 | CA19: 0 | CB19: 0 | CC19: 0 | CD19: 0 | CE19: 0 | CF19: 0 | CG19: 0 | CH19: 0 | CJ19: 0 | CK19: np | CL19: np | CM19: np | CN19: np | CO19: np | CP19: 0 | CQ19: 0 | CR19: 0 | CS19: np | CT19: np | CU19: np | CV19: np | CW19: 0 | CY19: 0 | CZ19: 0 | DA19: 0 | DB19: 0 | DC19: 0 | DD19: 0
B20: Autre zone suspecte:
S21: 100 | AO21: DI | AQ21: 0.1002 | AR21: 0.901804 | AS21: 8.416834 | AT21: 48.59719 | AU21: 23.04609 | AY21: 1.603206 | AZ21: 1.402806 | BA21: 11.52305 | BB21: 7.014028 | BL21: 0.5 | BM21: =IFERROR($BL21*R21,"<") -> 0 | BN21: 50 | BO21: 0 | BP21: 0 | BQ21: 0 | BR21: 0 | BS21: 0 | BT21: 0 | BU21: 0 | BV21: 0 | BW21: 0 | BX21: 0 | BY21: 0 | BZ21: 0 | CA21: 0 | CB21: 0 | CC21: 0 | CD21: 0 | CE21: 0 | CF21: 0 | CG21: 0 | CH21: 0 | CJ21: =IFERROR($BL21*AP21,"<") -> 0 | CK21: =IF(($AO21="DI"),IFERROR($BL21*AQ21,"<"),"np") -> 0.0501 | CL21: 0.450902 | CM21: 4.208417 | CN21: 24.298595 | CO21: 11.523045 | CP21: =$BL21*AV21 -> 0 | CQ21: 0 | CR21: 0 | CS21: =IF(($AO21="DI"),IFERROR($BL21*AY21,"<"),"np") -> 0.801603 | CT21: 0.701403 | CU21: 5.761525 | CV21: 3.507014 | CW21: =$BL21*BC21 -> 0 | CY21: =IFERROR($BL21*BD21,"<") -> 0 | CZ21: 0 | DA21: 0 | DB21: 0 | DC21: 0 | DD21: 0
S22: 100 | AO22: DI | AQ22: 0.1002 | AR22: 0.901804 | AS22: 8.416834 | AT22: 48.59719 | AU22: 23.04609 | AY22: 1.603206 | AZ22: 1.402806 | BA22: 11.52305 | BB22: 7.014028 | BL22: 0.5 | BM22: =IFERROR($BL22*R22,"<") -> 0 | BN22: =IFERROR($BL22*S22,"<") -> 50 | BO22: =IFERROR($BL22*T22,"<") -> 0 | BP22: =IFERROR($BL22*U22,"<") -> 0 | BQ22: =IFERROR($BL22*V22,"<") -> 0 | BR22: =IFERROR($BL22*W22,"<") -> 0 | BS22: =IFERROR($BL22*X22,"<") -> 0 | BT22: =IFERROR($BL22*Y22,"<") -> 0 | BU22: =IFERROR($BL22*Z22,"<") -> 0 | BV22: =IFERROR($BL22*AA22,"<") -> 0 | BW22: =IFERROR($BL22*AB22,"<") -> 0 | BX22: =IFERROR($BL22*AC22,"<") -> 0 | BY22: =IFERROR($BL22*AD22,"<") -> 0 | BZ22: =IFERROR($BL22*AE22,"<") -> 0 | CA22: =IFERROR($BL22*AF22,"<") -> 0 | CB22: =IFERROR($BL22*AG22,"<") -> 0 | CC22: =IFERROR($BL22*AH22,"<") -> 0 | CD22: =IFERROR($BL22*AI22,"<") -> 0 | CE22: =IFERROR($BL22*AJ22,"<") -> 0 | CF22: =IFERROR($BL22*AK22,"<") -> 0 | CG22: =IFERROR($BL22*AL22,"<") -> 0 | CH22: =IFERROR($BL22*AM22,"<") -> 0 | CJ22: =IFERROR($BL22*AP22,"<") -> 0 | CK22: 0.0501 | CL22: 0.450902 | CM22: 4.208417 | CN22: 24.298595 | CO22: 11.523045 | CP22: 0 | CQ22: 0 | CR22: 0 | CS22: 0.801603 | CT22: 0.701403 | CU22: 5.761525 | CV22: 3.507014 | CW22: =$BL22*BC22 -> 0 | CY22: =IFERROR($BL22*BD22,"<") -> 0 | CZ22: =IFERROR($BL22*BE22,"<") -> 0 | DA22: =IFERROR($BL22*BF22,"<") -> 0 | DB22: =IFERROR($BL22*BG22,"<") -> 0 | DC22: =IFERROR($BL22*BH22,"<") -> 0 | DD22: =IFERROR($BL22*BI22,"<") -> 0
B23: Autre zone suspecte:
AQ24: np | AR24: np | AS24: np | AT24: np | AU24: np | AY24: np | AZ24: np | BA24: np | BB24: np | BL24: 0.5 | BM24: =IFERROR($BL24*R24,"<") -> 0 | BN24: 0 | BO24: 0 | BP24: 0 | BQ24: 0 | BR24: 0 | BS24: 0 | BU24: =IFERROR($BL24*Z24,"<") -> 0 | BV24: 0 | BW24: 0 | BX24: 0 | BY24: 0 | BZ24: 0 | CA24: 0 | CB24: 0 | CC24: 0 | CD24: 0 | CE24: 0 | CF24: 0 | CG24: 0 | CH24: 0 | CJ24: =IFERROR($BL24*AP24,"<") -> 0 | CK24: =IF(($AO24="DI"),IFERROR($BL24*AQ24,"<"),"np") -> np | CL24: np | CM24: np | CN24: np | CO24: np | CP24: =$BL24*AV24 -> 0 | CQ24: 0 | CR24: 0 | CS24: =IF(($AO24="DI"),IFERROR($BL24*AY24,"<"),"np") -> np | CT24: np | CU24: np | CV24: np | CW24: =$BL24*BC24 -> 0 | CY24: =IFERROR($BL24*BD24,"<") -> 0 | CZ24: 0 | DA24: 0 | DB24: 0 | DC24: 0 | DD24: 0
AQ25: np | AR25: np | AS25: np | AT25: np | AU25: np | AY25: np | AZ25: np | BA25: np | BB25: np | BL25: 0.5 | BM25: =IFERROR($BL25*R25,"<") -> 0 | BN25: =IFERROR($BL25*S25,"<") -> 0 | BO25: =IFERROR($BL25*T25,"<") -> 0 | BP25: =IFERROR($BL25*U25,"<") -> 0 | BQ25: =IFERROR($BL25*V25,"<") -> 0 | BR25: =IFERROR($BL25*W25,"<") -> 0 | BS25: =IFERROR($BL25*X25,"<") -> 0 | BU25: =IFERROR($BL25*Z25,"<") -> 0 | BV25: =IFERROR($BL25*AA25,"<") -> 0 | BW25: =IFERROR($BL25*AB25,"<") -> 0 | BX25: =IFERROR($BL25*AC25,"<") -> 0 | BY25: =IFERROR($BL25*AD25,"<") -> 0 | BZ25: =IFERROR($BL25*AE25,"<") -> 0 | CA25: =IFERROR($BL25*AF25,"<") -> 0 | CB25: =IFERROR($BL25*AG25,"<") -> 0 | CC25: =IFERROR($BL25*AH25,"<") -> 0 | CD25: =IFERROR($BL25*AI25,"<") -> 0 | CE25: =IFERROR($BL25*AJ25,"<") -> 0 | CF25: =IFERROR($BL25*AK25,"<") -> 0 | CG25: =IFERROR($BL25*AL25,"<") -> 0 | CH25: =IFERROR($BL25*AM25,"<") -> 0 | CJ25: =IFERROR($BL25*AP25,"<") -> 0 | CK25: np | CL25: np | CM25: np | CN25: np | CO25: np | CP25: 0 | CQ25: 0 | CR25: 0 | CS25: np | CT25: np | CU25: np | CV25: np | CW25: =$BL25*BC25 -> 0 | CY25: =IFERROR($BL25*BD25,"<") -> 0 | CZ25: =IFERROR($BL25*BE25,"<") -> 0 | DA25: =IFERROR($BL25*BF25,"<") -> 0 | DB25: =IFERROR($BL25*BG25,"<") -> 0 | DC25: =IFERROR($BL25*BH25,"<") -> 0 | DD25: =IFERROR($BL25*BI25,"<") -> 0
B26: Légende | CY26: =$BL26*BD26 -> 0 | CZ26: 0 | DA26: 0 | DB26: 0 | DC26: 0 | DD26: 0
H27: usage DS(6) | K27: IV | P27: VSH(3) | R27: =INDEX(R$61:R$65,MATCH($K$27,$P$61:$P$65,0)) -> - | S27: - | T27: 6 | U27: 1330.42 | V27: 34559.43 | W27: 34592.86 | X27: 48464.75 | Y27: 48464.75 | Z27: 411.7 | AA27: - | AB27: 50010 | AC27: 50150 | AD27: 50170 | AE27: - | AF27: - | AG27: 0.7 | AH27: 125 | AI27: 406.7 | AJ27: 20030 | AK27: 20060 | AL27: 15050 | AM27: 15050 | AO27: "(7)" | AP27: =Z27 -> 411.7 | AQ27: - | AR27: 50010 | AS27: 50150 | AT27: 50170 | AU27: - | AV27: - | AW27: 0.7 | AX27: 125 | AY27: 406.7 | AZ27: 20030 | BA27: 20060 | BB27: 15050 | BC27: 15050 | BD27: =INDEX(BD$61:BD$65,MATCH($K$27,$P$61:$P$65,0)) -> 0.7 | BE27: 125 | BF27: 3.21 | BG27: 74.94 | BH27: 43.48 | BI27: 29.56 | BO27: =T27 -> 6 | BP27: 1330.42 | BQ27: 34559.43 | BR27: 34592.86 | BS27: 48464.75 | BT27: 48464.75 | BU27: =Z27 -> 411.7 | BV27: - | BW27: 50010 | BX27: 50150 | BY27: 50170 | BZ27: - | CA27: - | CB27: 0.7 | CC27: 125 | CD27: 406.7 | CE27: 20030 | CF27: 20060 | CG27: 15050 | CH27: 15050 | CJ27: =BU27 -> 411.7 | CK27: =BV27 -> - | CL27: 50010 | CM27: 50150 | CN27: 50170 | CO27: - | CP27: - | CQ27: 0.7 | CR27: 125 | CS27: 406.7 | CT27: 20030 | CU27: 20060 | CV27: 15050 | CW27: 15050 | CY27: =BD27 -> 0.7 | CZ27: 125 | DA27: 3.21 | DB27: 74.94 | DC27: 43.48 | DD27: 29.56
H28: usage DS(6) | K28: III | P28: VSN(3) | R28: =INDEX(R$125:R$129,MATCH($K$28,$P$125:$P$129,0)) -> - | S28: - | T28: 6 | U28: 149 | V28: 577 | W28: 5393 | X28: 302208 | Y28: 1000000 | Z28: - | AA28: - | AB28: - | AC28: - | AD28: - | AE28: - | AF28: - | AG28: - | AH28: - | AI28: - | AJ28: - | AK28: - | AL28: - | AM28: - | AP28: =INDEX(AP$125:AP$129,MATCH($K$28,$P$125:$P$129,0)) -> - | AQ28: - | AR28: - | AS28: - | AT28: - | AU28: - | AV28: - | AW28: - | AX28: - | AY28: - | AZ28: - | BA28: - | BB28: - | BC28: - | BD28: 0.2 | BE28: 7.1 | BF28: 6 | BG28: 7.9 | BH28: 1.5 | BI28: 2.5 | BO28: 6 | BP28: 149 | BQ28: 577 | BR28: 5393 | BS28: 302208 | BT28: 1000000 | BU28: - | BV28: - | BW28: - | BX28: - | BY28: - | BZ28: - | CA28: - | CB28: - | CC28: - | CD28: - | CE28: - | CF28: - | CG28: - | CH28: - | CJ28: - | CK28: =BV28 -> - | CL28: - | CM28: - | CN28: - | CO28: - | CP28: - | CQ28: - | CR28: - | CS28: - | CT28: - | CU28: - | CV28: - | CW28: - | CY28: 0.2 | CZ28: 7.1 | DA28: 6 | DB28: 7.9 | DC28: 1.5 | DD28: 2.5
P29: VSN-aj(3) (5) | AP29: =Z29 -> 0 | AQ29: 0 | AR29: 0 | AS29: 0 | AT29: 0 | AU29: 0 | AV29: 0 | AW29: 0 | AX29: 0 | AY29: 0 | AZ29: 0 | BA29: 0 | BB29: 0 | BC29: 0 | BO29: 0 | BP29: 0 | BQ29: 0 | BR29: 0 | BS29: 0 | BT29: 0 | BU29: 0 | BV29: 0 | BW29: 0 | BX29: 0 | BY29: 0 | BZ29: 0 | CA29: 0 | CB29: 0 | CC29: 0 | CD29: 0 | CE29: 0 | CF29: 0 | CG29: 0 | CH29: 0 | CJ29: 0 | CK29: =BV29 -> 0 | CL29: 0 | CM29: 0 | CN29: 0 | CO29: 0 | CP29: 0 | CQ29: 0 | CR29: 0 | CS29: 0 | CT29: 0 | CU29: 0 | CV29: 0 | CW29: 0 | CY29: 0 | CZ29: 0 | DA29: 0 | DB29: 0 | DC29: 0 | DD29: 0
H30: usage DS(6) | K30: III | P30: VLN(3) | R30: =INDEX(R$135:R$139,MATCH($K$30,$P$135:$P$139,0)) -> - | S30: - | T30: 12 | U30: 298 | V30: 1154 | W30: 10786 | X30: 604416 | Y30: 1000000 | Z30: - | AA30: - | AB30: - | AC30: - | AD30: - | AE30: - | AF30: - | AG30: - | AH30: - | AI30: - | AJ30: - | AK30: - | AL30: - | AM30: - | AP30: =INDEX(AP$135:AP$139,MATCH($K$30,$P$135:$P$139,0)) -> - | AQ30: - | AR30: - | AS30: - | AT30: - | AU30: - | AV30: - | AW30: - | AX30: - | AY30: - | AZ30: - | BA30: - | BB30: - | BC30: - | BD30: 1 | BE30: 59 | BF30: 30 | BG30: 34 | BH30: 6.18 | BI30: 17 | BO30: 12 | BP30: 298 | BQ30: 1154 | BR30: 10786 | BS30: 604416 | BT30: 1000000 | BU30: - | BV30: - | BW30: - | BX30: - | BY30: - | BZ30: - | CA30: - | CB30: - | CC30: - | CD30: - | CE30: - | CF30: - | CG30: - | CH30: - | CJ30: - | CK30: - | CL30: - | CM30: - | CN30: - | CO30: - | CP30: - | CQ30: - | CR30: - | CS30: - | CT30: - | CU30: - | CV30: - | CW30: - | CY30: 1 | CZ30: 59 | DA30: 30 | DB30: 34 | DC30: 6.18 | DD30: 17
P31: VLN-aj(3) (5) | AP31: =Z31 -> 0 | AQ31: 0 | AR31: 0 | AS31: 0 | AT31: 0 | AU31: 0 | AV31: 0 | AW31: 0 | AX31: 0 | AY31: 0 | AZ31: 0 | BA31: 0 | BB31: 0 | BC31: 0 | BO31: 0 | BP31: 0 | BQ31: 0 | BR31: 0 | BS31: 0 | BT31: 0 | BU31: 0 | BV31: 0 | BW31: 0 | BX31: 0 | BY31: 0 | BZ31: 0 | CA31: 0 | CB31: 0 | CC31: 0 | CD31: 0 | CE31: 0 | CF31: 0 | CG31: 0 | CH31: 0 | CJ31: 0 | CK31: 0 | CL31: 0 | CM31: 0 | CN31: 0 | CO31: 0 | CP31: 0 | CQ31: 0 | CR31: 0 | CS31: 0 | CT31: 0 | CU31: 0 | CV31: 0 | CW31: 0 | CY31: 0 | CZ31: 0 | DA31: 0 | DB31: 0 | DC31: 0 | DD31: 0
H32: MCS applicable (6) | K32: LIMON MCS-1 | P32: BOF-SRA(3) | R32: =INDEX(R$85:R$119,MATCH($K$32,$P$85:$P$119,0)) -> 4000 | S32: =INDEX(S$85:S$119,MATCH($K$32,$P$85:$P$119,0)) -> 3900 | U32: =INDEX(U$85:U$119,MATCH($K$32,$P$85:$P$119,0)) -> 100 | V32: =INDEX(V$85:V$119,MATCH($K$32,$P$85:$P$119,0)) -> 390 | Z32: =INDEX(Z$85:Z$119,MATCH($K$32,$P$85:$P$119,0)) -> - | AA32: 4 | AB32: 36 | AC32: 336 | AD32: 1940 | AE32: 920 | AF32: - | AG32: - | AH32: - | AI32: 64 | AJ32: 56 | AK32: 460 | AL32: 280 | AM32: - | AO32: "(7)" | AP32: - | AQ32: 4 | AR32: 36 | AS32: 336 | AT32: 1940 | AU32: 920 | AV32: - | AW32: - | AX32: - | AY32: 64 | AZ32: 56 | BA32: 460 | BB32: 280 | BC32: - | BD32: =INDEX(BD$85:BD$119,MATCH($K$32,$P$85:$P$119,0)) -> 0.162 | BE32: 19 | BF32: 0.7 | BG32: 11.1 | BH32: 10 | BI32: 6 | BM32: =R32 -> 4000 | BN32: =S32 -> 3900 | BO32: 0 | BP32: 100 | BQ32: 390 | BR32: 0 | BS32: 0 | BT32: 0 | BU32: - | BV32: 4 | BW32: 36 | BX32: 336 | BY32: 1940 | BZ32: 920 | CA32: - | CB32: - | CC32: - | CD32: 64 | CE32: 56 | CF32: 460 | CG32: 280 | CH32: - | CJ32: - | CK32: 4 | CL32: 36 | CM32: 336 | CN32: 1940 | CO32: 920 | CP32: - | CQ32: - | CR32: - | CS32: 64 | CT32: 56 | CU32: 460 | CV32: 280 | CW32: - | CY32: 0.162 | CZ32: 19 | DA32: 0.7 | DB32: 11.1 | DC32: 10 | DD32: 6
H33: usage DS(6) | K33: III | P33: VSE(3) | R33: =INDEX(R$75:R$77,MATCH($K$33,$P$75:$P$77,0)) -> - | S33: - | T33: 105 | U33: 105 | V33: 75 | W33: 75 | X33: 650 | Y33: 650 | Z33: - | AA33: - | AB33: - | AC33: - | AD33: - | AE33: - | AF33: - | AG33: - | AH33: - | AI33: - | AJ33: - | AK33: - | AL33: - | AM33: - | AP33: =INDEX(AP$75:AP$77,MATCH($K$33,$P$75:$P$77,0)) -> - | AQ33: - | AR33: - | AS33: - | AT33: - | AU33: - | AV33: - | AW33: - | AX33: - | AY33: - | AZ33: - | BA33: - | BB33: - | BC33: - | BD33: 14 | BE33: 8.5 | BF33: 12 | BG33: 2 | BH33: 8 | BI33: 7.2 | BO33: 105 | BP33: 105 | BQ33: 75 | BR33: 75 | BS33: 650 | BT33: 650 | BU33: - | BV33: - | BW33: - | BX33: - | BY33: - | BZ33: - | CA33: - | CB33: - | CC33: - | CD33: - | CE33: - | CF33: - | CG33: - | CH33: - | CJ33: - | CK33: - | CL33: - | CM33: - | CN33: - | CO33: - | CP33: - | CQ33: - | CR33: - | CS33: - | CT33: - | CU33: - | CV33: - | CW33: - | CY33: 14 | CZ33: 8.5 | DA33: 12 | DB33: 2 | DC33: 8 | DD33: 7.2
B34: (1) ESS = essence; DI = diesel; HA = hydrocarbures aromatiques ; MC = mazout de chauffage ; AU = autre
B35: (2) Blanc (vide) = néant ; * = léger ; ** = moyen ; *** = fort ou valeur PID mesurée - il n'est pas nécessaire d'indiquer en même temps les perceptions organoleptiques et la réaction huile/eau qui n'est pas strictement nécessaire
B36: (3) A adapter conformément à la législation et aux paramètres spécifiques au site
B37: (4) Voir le GRER (partie D) pour l'applicabilité et les dérogations
B38: (5) A calculer selon le GRER (partie C - annexe C2)
B39: (6) Liste déroulante
B40: (7) Dans le cas de diesel ("DI"), il convient de procéder à l'évaluation (vis-a-vis des VSH ou du BOF_SRA) sur base de la "répartition standard diesel" ; dans les autres cas (polluant autre que "DI"), il n'y a pas lieu de procéder à cette évaluation
AO41: DI
H42: EO | I42: TN | L42: Ess | N42: oui | AO42: autre ou ?
F43: Oui | H43: EC | I43: R | L43: DI | N43: non
H44: PA | I44: non défini | L44: HA
H45: EF | L45: MC
H46: MON | L46: AU
H47: EI
H48: autre/non défini
O50: VS (DS) | P50: usage | R50: conc. en mg/kg ms
R51: Huile minérale EC5-35 | S51: Huile minérale EC10-40 | T51: Fraction EC 5-8 | U51: Fraction EC >8-10 | V51: Fraction EC >10-12 | W51: Fraction EC >12-16 | X51: Fraction EC >16-21 | Y51: Fraction EC >21-35 | Z51: ALI EC 5-6 | AA51: ALI EC >6-8 | AB51: ALI EC >8-10 | AC51: ALI EC >10-12 | AD51: ALI EC >12-16 | AE51: ALI EC >16-21 | AF51: ALI EC >21-35 | AG51: Arom EC 6-7 | AH51: Arom EC >7-8 | AI51: Arom EC >8-10 | AJ51: Arom EC >10-12 | AK51: Arom EC >12-16 | AL51: Arom EC >16-21 | AM51: Arom EC >21-35 | AP51: ALI EC 5-6 | AQ51: ALI EC >6-8 | AR51: ALI EC >8-10 | AS51: ALI EC >10-12 | AT51: ALI EC >12-16 | AU51: ALI EC >16-21 | AV51: ALI EC >21-35 | AW51: Arom EC 6-7 | AX51: Arom EC >7-8 | AY51: Arom EC >8-10 | AZ51: Arom EC >10-12 | BA51: Arom EC >12-16 | BB51: Arom EC >16-21 | BC51: Arom EC >21-35 | BD51: Benzène | BE51: Toluène | BF51: Ethylbenzène | BG51: Xylènes (somme) | BH51: MTBE | BI51: Naphtalène
P52: I | R52: - | S52: - | T52: 6 | U52: 21 | V52: 75 | W52: 75 | X52: 650 | Y52: 650 | Z52: - | AA52: - | AB52: - | AC52: - | AD52: - | AE52: - | AF52: - | AG52: - | AH52: - | AI52: - | AJ52: - | AK52: - | AL52: - | AM52: - | AP52: =Z52 -> - | AQ52: =AA52 -> - | AR52: - | AS52: - | AT52: - | AU52: - | AV52: - | AW52: - | AX52: - | AY52: - | AZ52: - | BA52: - | BB52: - | BC52: - | BD52: 0.1 | BE52: 4 | BF52: 0.3 | BG52: 1 | BH52: 1.5 | BI52: 2.5
P53: II | R53: - | S53: - | T53: 6 | U53: 21 | V53: 75 | W53: 75 | X53: 650 | Y53: 650 | Z53: - | AA53: - | AB53: - | AC53: - | AD53: - | AE53: - | AF53: - | AG53: - | AH53: - | AI53: - | AJ53: - | AK53: - | AL53: - | AM53: - | AP53: =Z53 -> - | AQ53: - | AR53: - | AS53: - | AT53: - | AU53: - | AV53: - | AW53: - | AX53: - | AY53: - | AZ53: - | BA53: - | BB53: - | BC53: - | BD53: 0.1 | BE53: 4 | BF53: 0.3 | BG53: 1 | BH53: 1.5 | BI53: 2.5
P54: III | R54: - | S54: - | T54: 6 | U54: 21 | V54: 75 | W54: 75 | X54: 650 | Y54: 650 | Z54: - | AA54: - | AB54: - | AC54: - | AD54: - | AE54: - | AF54: - | AG54: - | AH54: - | AI54: - | AJ54: - | AK54: - | AL54: - | AM54: - | AP54: =Z54 -> - | AQ54: - | AR54: - | AS54: - | AT54: - | AU54: - | AV54: - | AW54: - | AX54: - | AY54: - | AZ54: - | BA54: - | BB54: - | BC54: - | BD54: 0.1 | BE54: 7 | BF54: 0.3 | BG54: 2 | BH54: 1.5 | BI54: 2.5
P55: IV | R55: - | S55: - | T55: 6 | U55: 150 | V55: 580 | W55: 750 | X55: 1250 | Y55: 2100 | Z55: - | AA55: - | AB55: - | AC55: - | AD55: - | AE55: - | AF55: - | AG55: - | AH55: - | AI55: - | AJ55: - | AK55: - | AL55: - | AM55: - | AP55: =Z55 -> - | AQ55: - | AR55: - | AS55: - | AT55: - | AU55: - | AV55: - | AW55: - | AX55: - | AY55: - | AZ55: - | BA55: - | BB55: - | BC55: - | BD55: 0.2 | BE55: 7 | BF55: 3 | BG55: 8 | BH55: 1.5 | BI55: 2.5
P56: V | R56: - | S56: - | T56: 9 | U56: 600 | V56: 600 | W56: 920 | X56: 2700 | Y56: 5300 | Z56: - | AA56: - | AB56: - | AC56: - | AD56: - | AE56: - | AF56: - | AG56: - | AH56: - | AI56: - | AJ56: - | AK56: - | AL56: - | AM56: - | AP56: =Z56 -> - | AQ56: - | AR56: - | AS56: - | AT56: - | AU56: - | AV56: - | AW56: - | AX56: - | AY56: - | AZ56: - | BA56: - | BB56: - | BC56: - | BD56: 0.2 | BE56: 22 | BF56: 3 | BG56: 30 | BH56: 2 | BI56: 6.3
O59: VSH (GRER04) | P59: usage | R59: conc. en mg/kg ms
R60: Huile minérale EC5-35 | S60: Huile minérale EC10-40 | T60: Fraction EC 5-8 | U60: Fraction EC >8-10 | V60: Fraction EC >10-12 | W60: Fraction EC >12-16 | X60: Fraction EC >16-21 | Y60: Fraction EC >21-35 | Z60: ALI EC 5-6 | AA60: ALI EC >6-8 | AB60: ALI EC >8-10 | AC60: ALI EC >10-12 | AD60: ALI EC >12-16 | AE60: ALI EC >16-21 | AF60: ALI EC >21-35 | AG60: Arom EC 6-7 | AH60: Arom EC >7-8 | AI60: Arom EC >8-10 | AJ60: Arom EC >10-12 | AK60: Arom EC >12-16 | AL60: Arom EC >16-21 | AM60: Arom EC >21-35 | AP60: ALI EC 5-6 | AQ60: ALI EC >6-8 | AR60: ALI EC >8-10 | AS60: ALI EC >10-12 | AT60: ALI EC >12-16 | AU60: ALI EC >16-21 | AV60: ALI EC >21-35 | AW60: Arom EC 6-7 | AX60: Arom EC >7-8 | AY60: Arom EC >8-10 | AZ60: Arom EC >10-12 | BA60: Arom EC >12-16 | BB60: Arom EC >16-21 | BC60: Arom EC >21-35 | BD60: Benzène | BE60: Toluène | BF60: Ethylbenzène | BG60: Xylènes (somme) | BH60: MTBE | BI60: Naphtalène
P61: I | R61: - | S61: - | T61: 953.96 | U61: 38941.65 | V61: 34559.43 | W61: 34592.86 | X61: 48464.75 | Y61: 48464.75 | Z61: - | AA61: - | AB61: 50010 | AC61: 50150 | AD61: 50170 | AE61: - | AF61: - | AG61: 143.6 | AH61: 50050 | AI61: 25680 | AJ61: 20030 | AK61: 20060 | AL61: 15050 | AM61: 15050 | AP61: =Z61 -> - | AQ61: =AA61 -> - | AR61: =AB61 -> 50010 | AS61: =AC61 -> 50150 | AT61: =AD61 -> 50170 | AU61: =AE61 -> - | AV61: =AF61 -> - | AW61: =AG61 -> 143.6 | AX61: =AH61 -> 50050 | AY61: =AI61 -> 25680 | AZ61: =AJ61 -> 20030 | BA61: =AK61 -> 20060 | BB61: =AL61 -> 15050 | BC61: =AM61 -> 15050 | BD61: 143.6 | BE61: 50050 | BF61: 1930 | BG61: 125600 | BH61: 7378 | BI61: 278100
P62: II | R62: - | S62: - | T62: 6 | U62: 24 | V62: 111.69 | W62: 1002.14 | X62: 7890.64 | Y62: 5538.72 | Z62: 36.31 | AA62: 90.83 | AB62: 21.78 | AC62: 111.6 | AD62: 8191 | AE62: 178000 | AF62: 9753 | AG62: 0.1 | AH62: 9.16 | AI62: 29.86 | AJ62: 111.9 | AK62: 328.8 | AL62: 2443 | AM62: 2758 | AP62: 36.31 | AQ62: 90.83 | AR62: 21.78 | AS62: 111.6 | AT62: 8191 | AU62: 178000 | AV62: 9753 | AW62: 0.1 | AX62: 9.16 | AY62: 29.86 | AZ62: 111.9 | BA62: 328.8 | BB62: 2443 | BC62: 2758 | BD62: 0.1 | BE62: 9.16 | BF62: 0.32 | BG62: 6.36 | BH62: 1.51 | BI62: 3.72
P63: III | R63: - | S63: - | T63: 6 | U63: 24.03 | V63: 116.43 | W63: 1726.81 | X63: 8582.4 | Y63: 9369.03 | Z63: 36.34 | AA63: 90.87 | AB63: 21.8 | AC63: 111.8 | AD63: 8757 | AE63: 194000 | AF63: 194100 | AG63: 0.1 | AH63: 9.75 | AI63: 31.57 | AJ63: 128.9 | AK63: 601 | AL63: 2657 | AM63: 2909 | AP63: 36.34 | AQ63: 90.87 | AR63: 21.8 | AS63: 111.8 | AT63: 8757 | AU63: 194000 | AV63: 194100 | AW63: 0.1 | AX63: 9.75 | AY63: 31.57 | AZ63: 128.9 | BA63: 601 | BB63: 2657 | BC63: 2909 | BD63: 0.1 | BE63: 9.75 | BF63: 0.35 | BG63: 6.45 | BH63: 2.24 | BI63: 3.72
P64: IV | R64: - | S64: - | T64: 6 | U64: 1330.42 | V64: 34559.43 | W64: 34592.86 | X64: 48464.75 | Y64: 48464.75 | Z64: 411.7 | AA64: - | AB64: 50010 | AC64: 50150 | AD64: 50170 | AE64: - | AF64: - | AG64: 0.7 | AH64: 125 | AI64: 406.7 | AJ64: 20030 | AK64: 20060 | AL64: 15050 | AM64: 15050 | AP64: 411.7 | AQ64: - | AR64: 50010 | AS64: 50150 | AT64: 50170 | AU64: - | AV64: - | AW64: 0.7 | AX64: 125 | AY64: 406.7 | AZ64: 20030 | BA64: 20060 | BB64: 15050 | BC64: 15050 | BD64: 0.7 | BE64: 125 | BF64: 3.21 | BG64: 74.94 | BH64: 43.48 | BI64: 29.56
P65: V | R65: - | S65: - | T65: 9 | U65: 1357.03 | V65: 199867.7 | W65: 208645.78 | X65: 250568.98 | Y65: 250636.97 | Z65: 422.5 | AA65: - | AB65: 195100 | AC65: 300800 | AD65: 304200 | AE65: - | AF65: - | AG65: 0.7 | AH65: 126.1 | AI65: 409.1 | AJ65: 112100 | AK65: 120400 | AL65: 91160 | AM65: 91190 | AP65: 422.5 | AQ65: - | AR65: 195100 | AS65: 300800 | AT65: 304200 | AU65: - | AV65: - | AW65: 0.7 | AX65: 126.1 | AY65: 409.1 | AZ65: 112100 | BA65: 120400 | BB65: 91160 | BC65: 91190 | BD65: 0.7 | BE65: 126.1 | BF65: 3.21 | BG65: 76.63 | BH65: 43.48 | BI65: 29.56
P66: CSAT | Z66: 626.12 | AA66: 341.22 | AB66: 187.83 | AC66: 114.41 | AD66: 50.74 | AE66: 20.98 | AF66: 2.15 | AG66: 2373.06 | AH66: 1066.04 | AI66: 1391.47 | AJ66: 841.71 | AK66: 388.02 | AL66: 137.17 | AM66: 11.05 | AP66: 626.12 | AQ66: 341.22 | AR66: 187.83 | AS66: 114.41 | AT66: 50.74 | AU66: 20.98 | AV66: 2.15 | AW66: 2373.06 | AX66: 1066.04 | AY66: 1391.47 | AZ66: 841.71 | BA66: 388.02 | BB66: 137.17 | BC66: 11.05 | BD66: 2373.06 | BE66: 1066.04 | BF66: 486 | BG66: 544.61 | BH66: 13645.95 | BI66: 597.25
R68: en gras, les valeurs dépassent la CSAT (conc. À saturation)
R69: le tiret "-" signifie que les concentrations dépassent le kg de polluant par kg de sol
R70: valeurs surlignées en gris = VS (DS) car VSH<VS
O73: VSE (GRER04) | P73: usage | R73: conc. en mg/kg ms
R74: Huile minérale EC5-35 | S74: Huile minérale EC10-40 | T74: Fraction EC 5-8 | U74: Fraction EC >8-10 | V74: Fraction EC >10-12 | W74: Fraction EC >12-16 | X74: Fraction EC >16-21 | Y74: Fraction EC >21-35 | Z74: ALI EC 5-6 | AA74: ALI EC >6-8 | AB74: ALI EC >8-10 | AC74: ALI EC >10-12 | AD74: ALI EC >12-16 | AE74: ALI EC >16-21 | AF74: ALI EC >21-35 | AG74: Arom EC 6-7 | AH74: Arom EC >7-8 | AI74: Arom EC >8-10 | AJ74: Arom EC >10-12 | AK74: Arom EC >12-16 | AL74: Arom EC >16-21 | AM74: Arom EC >21-35 | AP74: ALI EC 5-6 | AQ74: ALI EC >6-8 | AR74: ALI EC >8-10 | AS74: ALI EC >10-12 | AT74: ALI EC >12-16 | AU74: ALI EC >16-21 | AV74: ALI EC >21-35 | AW74: Arom EC 6-7 | AX74: Arom EC >7-8 | AY74: Arom EC >8-10 | AZ74: Arom EC >10-12 | BA74: Arom EC >12-16 | BB74: Arom EC >16-21 | BC74: Arom EC >21-35 | BD74: Benzène | BE74: Toluène | BF74: Ethylbenzène | BG74: Xylènes (somme) | BH74: MTBE | BI74: Naphtalène
P75: I | R75: - | S75: - | T75: 105 | U75: 105 | V75: 75 | W75: 75 | X75: 650 | Y75: 650 | Z75: - | AA75: - | AB75: - | AC75: - | AD75: - | AE75: - | AF75: - | AG75: - | AH75: - | AI75: - | AJ75: - | AK75: - | AL75: - | AM75: - | AP75: =Z75 -> - | AQ75: =AA75 -> - | AR75: =AB75 -> - | AS75: =AC75 -> - | AT75: =AD75 -> - | AU75: =AE75 -> - | AV75: =AF75 -> - | AW75: =AG75 -> - | AX75: =AH75 -> - | AY75: =AI75 -> - | AZ75: =AJ75 -> - | BA75: =AK75 -> - | BB75: =AL75 -> - | BC75: =AM75 -> - | BD75: 11 | BE75: 6 | BF75: 7.8 | BG75: 1.9 | BH75: 6.7 | BI75: 3.7
P76: II | R76: - | S76: - | T76: 105 | U76: 105 | V76: 75 | W76: 75 | X76: 650 | Y76: 650 | Z76: - | AA76: - | AB76: - | AC76: - | AD76: - | AE76: - | AF76: - | AG76: - | AH76: - | AI76: - | AJ76: - | AK76: - | AL76: - | AM76: - | AP76: - | AQ76: - | AR76: - | AS76: - | AT76: - | AU76: - | AV76: - | AW76: - | AX76: - | AY76: - | AZ76: - | BA76: - | BB76: - | BC76: - | BD76: 6.4 | BE76: 3.6 | BF76: 4.7 | BG76: 1.1 | BH76: 4 | BI76: 3.7
P77: III | R77: - | S77: - | T77: 105 | U77: 105 | V77: 75 | W77: 75 | X77: 650 | Y77: 650 | Z77: - | AA77: - | AB77: - | AC77: - | AD77: - | AE77: - | AF77: - | AG77: - | AH77: - | AI77: - | AJ77: - | AK77: - | AL77: - | AM77: - | AP77: - | AQ77: - | AR77: - | AS77: - | AT77: - | AU77: - | AV77: - | AW77: - | AX77: - | AY77: - | AZ77: - | BA77: - | BB77: - | BC77: - | BD77: 14 | BE77: 8.5 | BF77: 12 | BG77: 2 | BH77: 8 | BI77: 7.2
O83: BOF_SRA | P83: MCS
R84: Huile minérale EC5-35 | S84: Huile minérale EC10-40 | T84: Fraction EC 5-8 | U84: Fraction EC >8-10 | V84: Fraction EC >10-12 | W84: Fraction EC >12-16 | X84: Fraction EC >16-21 | Y84: Fraction EC >21-35 | Z84: ALI EC 5-6 | AA84: ALI EC >6-8 | AB84: ALI EC >8-10 | AC84: ALI EC >10-12 | AD84: ALI EC >12-16 | AE84: ALI EC >16-21 | AF84: ALI EC >21-35 | AG84: Arom EC 6-7 | AH84: Arom EC >7-8 | AI84: Arom EC >8-10 | AJ84: Arom EC >10-12 | AK84: Arom EC >12-16 | AL84: Arom EC >16-21 | AM84: Arom EC >21-35 | AP84: ALI EC 5-6 | AQ84: ALI EC >6-8 | AR84: ALI EC >8-10 | AS84: ALI EC >10-12 | AT84: ALI EC >12-16 | AU84: ALI EC >16-21 | AV84: ALI EC >21-35 | AW84: Arom EC 6-7 | AX84: Arom EC >7-8 | AY84: Arom EC >8-10 | AZ84: Arom EC >10-12 | BA84: Arom EC >12-16 | BB84: Arom EC >16-21 | BC84: Arom EC >21-35 | BD84: Benzène | BE84: Toluène | BF84: Ethylbenzène | BG84: Xylènes (somme) | BH84: MTBE | BI84: Naphtalène
P85: LIMON MCS-1 | R85: 4000 | S85: 3900 | T85: - | U85: 100 | V85: 390 | W85: - | X85: - | Y85: - | Z85: - | AA85: 4 | AB85: 36 | AC85: 336 | AD85: 1940 | AE85: 920 | AF85: - | AG85: - | AH85: - | AI85: 64 | AJ85: 56 | AK85: 460 | AL85: 280 | AM85: - | AP85: =Z85 -> - | AQ85: =AA85 -> 4 | AR85: 36 | AS85: 336 | AT85: 1940 | AU85: 920 | AV85: - | AW85: - | AX85: - | AY85: 64 | AZ85: 56 | BA85: 460 | BB85: 280 | BC85: - | BD85: 0.162 | BE85: 19 | BF85: 0.7 | BG85: 11.1 | BH85: 10 | BI85: 6
P86: LIMON MCS-2 | R86: 7800 | S86: 7600 | T86: - | U86: 190 | V86: 740 | W86: - | X86: - | Y86: - | Z86: - | AA86: 7.625 | AB86: 68.625 | AC86: 640.5 | AD86: 3698.125 | AE86: 1753.75 | AF86: - | AG86: - | AH86: - | AI86: 122 | AJ86: 106.75 | AK86: 876.875 | AL86: 533.75 | AM86: - | AP86: =Z86 -> - | AQ86: =AA86 -> 7.625 | AR86: =AB86 -> 68.625 | AS86: =AC86 -> 640.5 | AT86: =AD86 -> 3698.125 | AU86: =AE86 -> 1753.75 | AV86: =AF86 -> - | AW86: =AG86 -> - | AX86: =AH86 -> - | AY86: =AI86 -> 122 | AZ86: =AJ86 -> 106.75 | BA86: =AK86 -> 876.875 | BB86: =AL86 -> 533.75 | BC86: =AM86 -> - | BD86: 0.31 | BE86: 36.1 | BF86: 1.33 | BG86: 21.09 | BH86: 19 | BI86: 11.4
P87: LIMON MCS-3 | R87: 2800 | S87: 2800 | T87: - | U87: 70 | V87: 270 | W87: - | X87: - | Y87: - | Z87: - | AA87: 2.8 | AB87: 25.3 | AC87: 236.3 | AD87: 1364 | AE87: 646.9 | AF87: - | AG87: - | AH87: - | AI87: 45 | AJ87: 39.4 | AK87: 323.4 | AL87: 196.9 | AM87: - | AP87: - | AQ87: 2.8 | AR87: 25.3 | AS87: 236.3 | AT87: 1364 | AU87: 646.9 | AV87: - | AW87: - | AX87: - | AY87: 45 | AZ87: 39.4 | BA87: 323.4 | BB87: 196.9 | BC87: - | BD87: 0.12 | BE87: 14 | BF87: 0.535 | BG87: 8.35 | BH87: 7.5 | BI87: 4.5
P88: LIMON MCS-4 | R88: 20000 | S88: 19000 | T88: - | U88: 490 | V88: 1900 | W88: - | X88: - | Y88: - | Z88: - | AA88: 19.9 | AB88: 179.3 | AC88: 1673 | AD88: 9662 | AE88: 4582 | AF88: - | AG88: - | AH88: - | AI88: 318.8 | AJ88: 278.9 | AK88: 2291 | AL88: 1395 | AM88: - | AP88: - | AQ88: 19.9 | AR88: 179.3 | AS88: 1673 | AT88: 9662 | AU88: 4582 | AV88: - | AW88: - | AX88: - | AY88: 318.8 | AZ88: 278.9 | BA88: 2291 | BB88: 1395 | BC88: - | BD88: 0.85 | BE88: 10 | BF88: 3.65 | BG88: 57 | BH88: 50 | BI88: 32
P89: LIMON MCS-5 | R89: 20000 | S89: 19000 | T89: - | U89: 490 | V89: 1900 | W89: - | X89: - | Y89: - | Z89: - | AA89: 19.8 | AB89: 178.2 | AC89: 1663 | AD89: 9603 | AE89: 4554 | AF89: - | AG89: - | AH89: - | AI89: 316.8 | AJ89: 277.2 | AK89: 2277 | AL89: 1386 | AM89: - | AP89: - | AQ89: 19.8 | AR89: 178.2 | AS89: 1663 | AT89: 9603 | AU89: 4554 | AV89: - | AW89: - | AX89: - | AY89: 316.8 | AZ89: 277.2 | BA89: 2277 | BB89: 1386 | BC89: - | BD89: 0.81 | BE89: 94.5 | BF89: 3.7 | BG89: 55.5 | BH89: 47 | BI89: 29.5
P90: LIMON MCS-6 | R90: 20000 | S90: 20000 | T90: - | U90: 1000 | V90: 20000 | W90: - | X90: - | Y90: - | Z90: - | AA90: 360 | AB90: 3240 | AC90: 30240 | AD90: 174600 | AE90: 82800 | AF90: - | AG90: - | AH90: - | AI90: 5760 | AJ90: 5040 | AK90: 41400 | AL90: 25200 | AM90: - | AP90: - | AQ90: 360 | AR90: 3240 | AS90: 30240 | AT90: 174600 | AU90: 82800 | AV90: - | AW90: - | AX90: - | AY90: 5760 | AZ90: 5040 | BA90: 41400 | BB90: 25200 | BC90: - | BD90: 14 | BE90: 3000 | BF90: 63 | BG90: 4000 | BH90: 800 | BI90: 540
P91: LIMON MCS-7 | R91: 20000 | S91: 20000 | T91: - | U91: 1000 | V91: 20000 | W91: - | X91: - | Y91: - | Z91: - | AA91: 360 | AB91: 3240 | AC91: 30240 | AD91: 174600 | AE91: 82800 | AF91: - | AG91: - | AH91: - | AI91: 5760 | AJ91: 5040 | AK91: 41400 | AL91: 25200 | AM91: - | AP91: - | AQ91: 360 | AR91: 3240 | AS91: 30240 | AT91: 174600 | AU91: 82800 | AV91: - | AW91: - | AX91: - | AY91: 5760 | AZ91: 5040 | BA91: 41400 | BB91: 25200 | BC91: - | BD91: 7 | BE91: 840 | BF91: 32 | BG91: 475 | BH91: 440 | BI91: 260
P92: LIMON SABLEUX MCS-1 | R92: 3200 | S92: 3100 | T92: - | U92: 80 | V92: 310 | W92: - | X92: - | Y92: - | Z92: - | AA92: 3.2 | AB92: 28.7 | AC92: 267.8 | AD92: 1546 | AE92: 733.1 | AF92: - | AG92: - | AH92: - | AI92: 51 | AJ92: 44.6 | AK92: 366.6 | AL92: 223.1 | AM92: - | AP92: - | AQ92: 3.2 | AR92: 28.7 | AS92: 267.8 | AT92: 1546 | AU92: 733.1 | AV92: - | AW92: - | AX92: - | AY92: 51 | AZ92: 44.6 | BA92: 366.6 | BB92: 223.1 | BC92: - | BD92: 0.12 | BE92: 13.5 | BF92: 0.5 | BG92: 7.68 | BH92: 7.7 | BI92: 4.5
P93: LIMON SABLEUX MCS-2 | R93: 5400 | S93: 5300 | T93: - | U93: 130 | V93: 520 | W93: - | X93: - | Y93: - | Z93: - | AA93: 5.3 | AB93: 48.1 | AC93: 448.9 | AD93: 2592 | AE93: 1229 | AF93: - | AG93: - | AH93: - | AI93: 85.5 | AJ93: 74.8 | AK93: 614.5 | AL93: 374.1 | AM93: - | AP93: - | AQ93: 5.3 | AR93: 48.1 | AS93: 448.9 | AT93: 2592 | AU93: 1229 | AV93: - | AW93: - | AX93: - | AY93: 85.5 | AZ93: 74.8 | BA93: 614.5 | BB93: 374.1 | BC93: - | BD93: 0.31 | BE93: 36.1 | BF93: 1.33 | BG93: 21.09 | BH93: 19 | BI93: 11.4
P94: LIMON SABLEUX MCS-3 | R94: 1500 | S94: 1400 | T94: - | U94: 37 | V94: 140 | W94: - | X94: - | Y94: - | Z94: - | AA94: 1.456 | AB94: 13.16 | AC94: 122.9 | AD94: 709.3 | AE94: 336.4 | AF94: - | AG94: - | AH94: - | AI94: 23.4 | AJ94: 20.49 | AK94: 168.2 | AL94: 102.4 | AM94: - | AP94: - | AQ94: 1.456 | AR94: 13.16 | AS94: 122.9 | AT94: 709.3 | AU94: 336.4 | AV94: - | AW94: - | AX94: - | AY94: 23.4 | AZ94: 20.49 | BA94: 168.2 | BB94: 102.4 | BC94: - | BD94: 0.099 | BE94: 1.1 | BF94: 0.445 | BG94: 6.68 | BH94: 6.2 | BI94: 3.8
P95: LIMON SABLEUX MCS-4 | R95: 14000 | S95: 13000 | T95: - | U95: 340 | V95: 1300 | W95: - | X95: - | Y95: - | Z95: - | AA95: 13.78 | AB95: 125.1 | AC95: 1167 | AD95: 6739 | AE95: 3195 | AF95: - | AG95: - | AH95: - | AI95: 222.3 | AJ95: 194.5 | AK95: 1598 | AL95: 972.7 | AM95: - | AP95: - | AQ95: 13.78 | AR95: 125.1 | AS95: 1167 | AT95: 6739 | AU95: 3195 | AV95: - | AW95: - | AX95: - | AY95: 222.3 | AZ95: 194.5 | BA95: 1598 | BB95: 972.7 | BC95: - | BD95: 0.585 | BE95: 69 | BF95: 2.65 | BG95: 40.2 | BH95: 36.25 | BI95: 22.5
P96: LIMON SABLEUX MCS-5 | R96: 15000 | S96: 14000 | T96: - | U96: 370 | V96: 1400 | W96: - | X96: - | Y96: - | Z96: - | AA96: 14.85 | AB96: 133.7 | AC96: 1247 | AD96: 7202 | AE96: 3415 | AF96: - | AG96: - | AH96: - | AI96: 237.6 | AJ96: 207.9 | AK96: 1708 | AL96: 1040 | AM96: - | AP96: - | AQ96: 14.85 | AR96: 133.7 | AS96: 1247 | AT96: 7202 | AU96: 3415 | AV96: - | AW96: - | AX96: - | AY96: 237.6 | AZ96: 207.9 | BA96: 1708 | BB96: 1040 | BC96: - | BD96: 0.61 | BE96: 72.5 | BF96: 2.76 | BG96: 42 | BH96: 36 | BI96: 22.75
P97: LIMON SABLEUX MCS-6 | R97: 20000 | S97: 20000 | T97: - | U97: 1000 | V97: 20000 | W97: - | X97: - | Y97: - | Z97: - | AA97: 360 | AB97: 3240 | AC97: 30240 | AD97: 174600 | AE97: 82800 | AF97: - | AG97: - | AH97: - | AI97: 5760 | AJ97: 5040 | AK97: 41400 | AL97: 25200 | AM97: - | AP97: - | AQ97: 360 | AR97: 3240 | AS97: 30240 | AT97: 174600 | AU97: 82800 | AV97: - | AW97: - | AX97: - | AY97: 5760 | AZ97: 5040 | BA97: 41400 | BB97: 25200 | BC97: - | BD97: 8.9 | BE97: 1200 | BF97: 40 | BG97: 3800 | BH97: 550 | BI97: 340
P98: LIMON SABLEUX MCS-7 | R98: 20000 | S98: 20000 | T98: - | U98: 1000 | V98: 20000 | W98: - | X98: - | Y98: - | Z98: - | AA98: 360 | AB98: 3240 | AC98: 30240 | AD98: 174600 | AE98: 82800 | AF98: - | AG98: - | AH98: - | AI98: 5760 | AJ98: 5040 | AK98: 41400 | AL98: 25200 | AM98: - | AP98: - | AQ98: 360 | AR98: 3240 | AS98: 30240 | AT98: 174600 | AU98: 82800 | AV98: - | AW98: - | AX98: - | AY98: 5760 | AZ98: 5040 | BA98: 41400 | BB98: 25200 | BC98: - | BD98: 4.65 | BE98: 550 | BF98: 20 | BG98: 290 | BH98: 290 | BI98: 160
P99: ARGILE MCS-1 | R99: 9000 | S99: 8700 | T99: - | U99: 220 | V99: 860 | W99: - | X99: - | Y99: - | Z99: - | AA99: 8.8 | AB99: 79.2 | AC99: 739.2 | AD99: 4268 | AE99: 2024 | AF99: - | AG99: - | AH99: - | AI99: 140.8 | AJ99: 123.2 | AK99: 1012 | AL99: 616 | AM99: - | AP99: - | AQ99: 8.8 | AR99: 79.2 | AS99: 739.2 | AT99: 4268 | AU99: 2024 | AV99: - | AW99: - | AX99: - | AY99: 140.8 | AZ99: 123.2 | BA99: 1012 | BB99: 616 | BC99: - | BD99: 0.33 | BE99: 37.5 | BF99: 1.5 | BG99: 22 | BH99: 16 | BI99: 12
P100: ARGILE MCS-2 | R100: 17000 | S100: 16000 | T100: - | U100: 420 | V100: 1600 | W100: - | X100: - | Y100: - | Z100: - | AA100: 16.8 | AB100: 151.3 | AC100: 1412 | AD100: 8154 | AE100: 3867 | AF100: - | AG100: - | AH100: - | AI100: 269 | AJ100: 235.4 | AK100: 1933 | AL100: 1177 | AM100: - | AP100: - | AQ100: 16.8 | AR100: 151.3 | AS100: 1412 | AT100: 8154 | AU100: 3867 | AV100: - | AW100: - | AX100: - | AY100: 269 | AZ100: 235.4 | BA100: 1933 | BB100: 1177 | BC100: - | BD100: 0.66 | BE100: 75 | BF100: 3 | BG100: 44 | BH100: 32 | BI100: 24
P101: ARGILE MCS-3 | R101: 20000 | S101: 5900 | T101: - | U101: 140 | V101: 580 | W101: - | X101: - | Y101: - | Z101: - | AA101: 5.94 | AB101: 53.46 | AC101: 499 | AD101: 2881 | AE101: 1366 | AF101: - | AG101: - | AH101: - | AI101: 95.04 | AJ101: 83.16 | AK101: 683.1 | AL101: 415.8 | AM101: - | AP101: - | AQ101: 5.94 | AR101: 53.46 | AS101: 499 | AT101: 2881 | AU101: 1366 | AV101: - | AW101: - | AX101: - | AY101: 95.04 | AZ101: 83.16 | BA101: 683.1 | BB101: 415.8 | BC101: - | BD101: 0.2295 | BE101: 28 | BF101: 1.075 | BG101: 16.25 | BH101: 11.5 | BI101: 8.8
P102: ARGILE MCS-4 | R102: 20000 | S102: 20000 | T102: - | U102: 1000 | V102: 4600 | W102: - | X102: - | Y102: - | Z102: - | AA102: 47.08 | AB102: 423.7 | AC102: 3955 | AD102: 22830 | AE102: 10830 | AF102: - | AG102: - | AH102: - | AI102: 753.3 | AJ102: 659.1 | AK102: 5414 | AL102: 3296 | AM102: - | AP102: - | AQ102: 47.08 | AR102: 423.7 | AS102: 3955 | AT102: 22830 | AU102: 10830 | AV102: - | AW102: - | AX102: - | AY102: 753.3 | AZ102: 659.1 | BA102: 5414 | BB102: 3296 | BC102: - | BD102: 1.87 | BE102: 227 | BF102: 8.905 | BG102: 132.5 | BH102: 95 | BI102: 75
P103: ARGILE MCS-5 | R103: 20000 | S103: 20000 | T103: - | U103: 1000 | V103: 4200 | W103: - | X103: - | Y103: - | Z103: - | AA103: 43.56 | AB103: 392 | AC103: 3659 | AD103: 21130 | AE103: 10020 | AF103: - | AG103: - | AH103: - | AI103: 697 | AJ103: 609.8 | AK103: 5009 | AL103: 3049 | AM103: - | AP103: - | AQ103: 43.56 | AR103: 392 | AS103: 3659 | AT103: 21130 | AU103: 10020 | AV103: - | AW103: - | AX103: - | AY103: 697 | AZ103: 609.8 | BA103: 5009 | BB103: 3049 | BC103: - | BD103: 0.33 | BE103: 37.5 | BF103: 1.5 | BG103: 22 | BH103: 16 | BI103: 12
P104: ARGILE MCS-6 | R104: 20000 | S104: 20000 | T104: - | U104: 1000 | V104: 20000 | W104: - | X104: - | Y104: - | Z104: - | AA104: 360 | AB104: 3240 | AC104: 30240 | AD104: 174600 | AE104: 82800 | AF104: - | AG104: - | AH104: - | AI104: 5760 | AJ104: 5040 | AK104: 41400 | AL104: 25200 | AM104: - | AP104: - | AQ104: 360 | AR104: 3240 | AS104: 30240 | AT104: 174600 | AU104: 82800 | AV104: - | AW104: - | AX104: - | AY104: 5760 | AZ104: 5040 | BA104: 41400 | BB104: 25200 | BC104: - | BD104: 31.5 | BE104: 6000 | BF104: 127.5 | BG104: 8000 | BH104: 1650 | BI104: 1050
P105: ARGILE MCS-7 | R105: 20000 | S105: 20000 | T105: - | U105: 1000 | V105: 20000 | W105: - | X105: - | Y105: - | Z105: - | AA105: 360 | AB105: 3240 | AC105: 30240 | AD105: 174600 | AE105: 82800 | AF105: - | AG105: - | AH105: - | AI105: 5760 | AJ105: 5040 | AK105: 41400 | AL105: 25200 | AM105: - | AP105: - | AQ105: 360 | AR105: 3240 | AS105: 30240 | AT105: 174600 | AU105: 82800 | AV105: - | AW105: - | AX105: - | AY105: 5760 | AZ105: 5040 | BA105: 41400 | BB105: 25200 | BC105: - | BD105: 15.1 | BE105: 1725 | BF105: 60.3 | BG105: 875 | BH105: 819 | BI105: 490
P106: LIMON CAILLOUTEUX MCS-1 | R106: 7800 | S106: 7600 | T106: - | U106: 190 | V106: 740 | W106: - | X106: - | Y106: - | Z106: - | AA106: 7.6 | AB106: 68.6 | AC106: 640.5 | AD106: 3698 | AE106: 1754 | AF106: - | AG106: - | AH106: - | AI106: 122 | AJ106: 106.8 | AK106: 876.9 | AL106: 533.8 | AM106: - | AP106: - | AQ106: 7.6 | AR106: 68.6 | AS106: 640.5 | AT106: 3698 | AU106: 1754 | AV106: - | AW106: - | AX106: - | AY106: 122 | AZ106: 106.8 | BA106: 876.9 | BB106: 533.8 | BC106: - | BD106: 0.29 | BE106: 33.5 | BF106: 1.35 | BG106: 20 | BH106: 14 | BI106: 12
P107: LIMON CAILLOUTEUX MCS-2 | R107: 14000 | S107: 14000 | T107: - | U107: 360 | V107: 1400 | W107: - | X107: - | Y107: - | Z107: - | AA107: 14.4 | AB107: 129.9 | AC107: 1213 | AD107: 7002 | AE107: 3321 | AF107: - | AG107: - | AH107: - | AI107: 231 | AJ107: 202.1 | AK107: 1660 | AL107: 1011 | AM107: - | AP107: - | AQ107: 14.4 | AR107: 129.9 | AS107: 1213 | AT107: 7002 | AU107: 3321 | AV107: - | AW107: - | AX107: - | AY107: 231 | AZ107: 202.1 | BA107: 1660 | BB107: 1011 | BC107: - | BD107: 0.485 | BE107: 59.5 | BF107: 2.5 | BG107: 35 | BH107: 25 | BI107: 22.5
P108: LIMON CAILLOUTEUX MCS-3 | R108: 3400 | S108: 3300 | T108: - | U108: 84 | V108: 320 | W108: - | X108: - | Y108: - | Z108: - | AA108: 3.344 | AB108: 30.18 | AC108: 281.8 | AD108: 1627 | AE108: 771.8 | AF108: - | AG108: - | AH108: - | AI108: 53.68 | AJ108: 46.99 | AK108: 385.8 | AL108: 234.9 | AM108: - | AP108: - | AQ108: 3.344 | AR108: 30.18 | AS108: 281.8 | AT108: 1627 | AU108: 771.8 | AV108: - | AW108: - | AX108: - | AY108: 53.68 | AZ108: 46.99 | BA108: 385.8 | BB108: 234.9 | BC108: - | BD108: 0.216 | BE108: 26.2 | BF108: 1.02 | BG108: 15 | BH108: 10.53 | BI108: 9
P109: LIMON CAILLOUTEUX MCS-4 | R109: 2000 | S109: 20000 | T109: - | U109: 1000 | V109: 4600 | W109: - | X109: - | Y109: - | Z109: - | AA109: 36.49 | AB109: 328.4 | AC109: 3065 | AD109: 17690 | AE109: 8393 | AF109: - | AG109: - | AH109: - | AI109: 583.8 | AJ109: 510.8 | AK109: 4196 | AL109: 2554 | AM109: - | AP109: - | AQ109: 36.49 | AR109: 328.4 | AS109: 3065 | AT109: 17690 | AU109: 8393 | AV109: - | AW109: - | AX109: - | AY109: 583.8 | AZ109: 510.8 | BA109: 4196 | BB109: 2554 | BC109: - | BD109: 1.42 | BE109: 172.5 | BF109: 6.662 | BG109: 102 | BH109: 68.5 | BI109: 59.5
P110: LIMON CAILLOUTEUX MCS-5 | R110: 20000 | S110: 20000 | T110: - | U110: 1000 | V110: 4200 | W110: - | X110: - | Y110: - | Z110: - | AA110: 31.4 | AB110: 282.2 | AC110: 2635 | AD110: 15210 | AE110: 7214 | AF110: - | AG110: - | AH110: - | AI110: 501.8 | AJ110: 439.1 | AK110: 3607 | AL110: 2195 | AM110: - | AP110: - | AQ110: 31.4 | AR110: 282.2 | AS110: 2635 | AT110: 15210 | AU110: 7214 | AV110: - | AW110: - | AX110: - | AY110: 501.8 | AZ110: 439.1 | BA110: 3607 | BB110: 2195 | BC110: - | BD110: 1.2 | BE110: 147 | BF110: 5.75 | BG110: 87 | BH110: 57 | BI110: 49
P111: LIMON CAILLOUTEUX MCS-6 | R111: 20000 | S111: 20000 | T111: - | U111: 1000 | V111: 20000 | W111: - | X111: - | Y111: - | Z111: - | AA111: 360 | AB111: 3240 | AC111: 30240 | AD111: 174600 | AE111: 82800 | AF111: - | AG111: - | AH111: - | AI111: 5760 | AJ111: 5040 | AK111: 41400 | AL111: 25200 | AM111: - | AP111: - | AQ111: 360 | AR111: 3240 | AS111: 30240 | AT111: 174600 | AU111: 82800 | AV111: - | AW111: - | AX111: - | AY111: 5760 | AZ111: 5040 | BA111: 41400 | BB111: 25200 | BC111: - | BD111: 23 | BE111: 6000 | BF111: 110 | BG111: 8000 | BH111: 1125 | BI111: 990
P112: LIMON CAILLOUTEUX MCS-7 | R112: 20000 | S112: 20000 | T112: - | U112: 1000 | V112: 20000 | W112: - | X112: - | Y112: - | Z112: - | AA112: 360 | AB112: 3240 | AC112: 30240 | AD112: 174600 | AE112: 82800 | AF112: - | AG112: - | AH112: - | AI112: 5760 | AJ112: 5040 | AK112: 41400 | AL112: 25200 | AM112: - | AP112: - | AQ112: 360 | AR112: 3240 | AS112: 30240 | AT112: 174600 | AU112: 82800 | AV112: - | AW112: - | AX112: - | AY112: 5760 | AZ112: 5040 | BA112: 41400 | BB112: 25200 | BC112: - | BD112: 11.5 | BE112: 1400 | BF112: 55.75 | BG112: 800 | BH112: 570 | BI112: 493
P113: SABLE MCS-1 | R113: 930 | S113: 910 | T113: - | U113: 23 | V113: 90 | W113: - | X113: - | Y113: - | Z113: - | AA113: 0.92 | AB113: 8.25 | AC113: 77 | AD113: 444.6 | AE113: 210.8 | AF113: - | AG113: - | AH113: - | AI113: 14.67 | AJ113: 12.83 | AK113: 105.4 | AL113: 64.17 | AM113: - | AP113: - | AQ113: 0.92 | AR113: 8.25 | AS113: 77 | AT113: 444.6 | AU113: 210.8 | AV113: - | AW113: - | AX113: - | AY113: 14.67 | AZ113: 12.83 | BA113: 105.4 | BB113: 64.17 | BC113: - | BD113: 0.05 | BE113: 6 | BF113: 0.22 | BG113: 3.5 | BH113: 2.1 | BI113: 2
P114: SABLE MCS-2 | R114: 1600 | S114: 1600 | T114: - | U114: 41 | V114: 160 | W114: - | X114: - | Y114: - | Z114: - | AA114: 1.643 | AB114: 14.79 | AC114: 138 | AD114: 796.8 | AE114: 377.9 | AF114: - | AG114: - | AH114: - | AI114: 26.29 | AJ114: 23 | AK114: 188.9 | AL114: 115 | AM114: - | AP114: - | AQ114: 1.643 | AR114: 14.79 | AS114: 138 | AT114: 796.8 | AU114: 377.9 | AV114: - | AW114: - | AX114: - | AY114: 26.29 | AZ114: 23 | BA114: 188.9 | BB114: 115 | BC114: - | BD114: 0.1 | BE114: 12.5 | BF114: 0.45 | BG114: 6.9 | BH114: 4.5 | BI114: 4.4
P115: SABLE MCS-3 | R115: 790 | S115: 770 | T115: - | U115: 21 | V115: 76 | W115: - | X115: - | Y115: - | Z115: - | AA115: 0.773 | AB115: 6.946 | AC115: 65 | AD115: 375.3 | AE115: 178 | AF115: - | AG115: - | AH115: - | AI115: 12.38 | AJ115: 10.83 | AK115: 88.99 | AL115: 54.16 | AM115: - | AP115: - | AQ115: 0.773 | AR115: 6.946 | AS115: 65 | AT115: 375.3 | AU115: 178 | AV115: - | AW115: - | AX115: - | AY115: 12.38 | AZ115: 10.83 | BA115: 88.99 | BB115: 54.16 | BC115: - | BD115: 0.0465 | BE115: 5.55 | BF115: 0.21 | BG115: 3.15 | BH115: 2.05 | BI115: 1.9
P116: SABLE MCS-4 | R116: 6300 | S116: 6200 | T116: - | U116: 150 | V116: 610 | W116: - | X116: - | Y116: - | Z116: - | AA116: 6.2 | AB116: 56.1 | AC116: 523.7 | AD116: 3024 | AE116: 1434 | AF116: - | AG116: - | AH116: - | AI116: 99.8 | AJ116: 87.3 | AK116: 717 | AL116: 436.4 | AM116: - | AP116: - | AQ116: 6.2 | AR116: 56.1 | AS116: 523.7 | AT116: 3024 | AU116: 1434 | AV116: - | AW116: - | AX116: - | AY116: 99.8 | AZ116: 87.3 | BA116: 717 | BB116: 436.4 | BC116: - | BD116: 0.225 | BE116: 28 | BF116: 1.1 | BG116: 16.5 | BH116: 9.5 | BI116: 10
P117: SABLE MCS-5 | R117: 9900 | S117: 9700 | T117: - | U117: 240 | V117: 950 | W117: - | X117: - | Y117: - | Z117: - | AA117: 9.75 | AB117: 87.75 | AC117: 819 | AD117: 4729 | AE117: 2243 | AF117: - | AG117: - | AH117: - | AI117: 156 | AJ117: 136.5 | AK117: 1121 | AL117: 682.5 | AM117: - | AP117: - | AQ117: 9.75 | AR117: 87.75 | AS117: 819 | AT117: 4729 | AU117: 2243 | AV117: - | AW117: - | AX117: - | AY117: 156 | AZ117: 136.5 | BA117: 1121 | BB117: 682.5 | BC117: - | BD117: 0.355 | BE117: 44.5 | BF117: 1.55 | BG117: 25.5 | BH117: 14.5 | BI117: 14.5
P118: SABLE MCS-6 | R118: 20000 | S118: 20000 | T118: - | U118: 900 | V118: 3500 | W118: - | X118: - | Y118: - | Z118: - | AA118: 36 | AB118: 324 | AC118: 3024 | AD118: 17460 | AE118: 8280 | AF118: - | AG118: - | AH118: - | AI118: 576 | AJ118: 504 | AK118: 4140 | AL118: 2520 | AM118: - | AP118: - | AQ118: 36 | AR118: 324 | AS118: 3024 | AT118: 17460 | AU118: 8280 | AV118: - | AW118: - | AX118: - | AY118: 576 | AZ118: 504 | BA118: 4140 | BB118: 2520 | BC118: - | BD118: 1.5 | BE118: 170 | BF118: 6 | BG118: 90 | BH118: 65 | BI118: 48
P119: SABLE MCS-7 | R119: 22000 | S119: 20000 | T119: - | U119: 540 | V119: 2200 | W119: - | X119: - | Y119: - | Z119: - | AA119: 21.6 | AB119: 194.4 | AC119: 1914 | AD119: 10480 | AE119: 4968 | AF119: - | AG119: - | AH119: - | AI119: 345.6 | AJ119: 302.4 | AK119: 2484 | AL119: 1512 | AM119: - | AP119: - | AQ119: 21.6 | AR119: 194.4 | AS119: 1914 | AT119: 10480 | AU119: 4968 | AV119: - | AW119: - | AX119: - | AY119: 345.6 | AZ119: 302.4 | BA119: 2484 | BB119: 1512 | BC119: - | BD119: 0.71 | BE119: 83 | BF119: 2.8 | BG119: 43 | BH119: 31.5 | BI119: 23.8
O123: VSN (GRER v04 parti C) | P123: usage | R123: conc. en mg/kg ms
R124: Huile minérale EC5-35 | S124: Huile minérale EC10-40 | T124: Fraction EC 5-8 | U124: Fraction EC >8-10 | V124: Fraction EC >10-12 | W124: Fraction EC >12-16 | X124: Fraction EC >16-21 | Y124: Fraction EC >21-35 | Z124: ALI EC 5-6 | AA124: ALI EC >6-8 | AB124: ALI EC >8-10 | AC124: ALI EC >10-12 | AD124: ALI EC >12-16 | AE124: ALI EC >16-21 | AF124: ALI EC >21-35 | AG124: Arom EC 6-7 | AH124: Arom EC >7-8 | AI124: Arom EC >8-10 | AJ124: Arom EC >10-12 | AK124: Arom EC >12-16 | AL124: Arom EC >16-21 | AM124: Arom EC >21-35 | AP124: ALI EC 5-6 | AQ124: ALI EC >6-8 | AR124: ALI EC >8-10 | AS124: ALI EC >10-12 | AT124: ALI EC >12-16 | AU124: ALI EC >16-21 | AV124: ALI EC >21-35 | AW124: Arom EC 6-7 | AX124: Arom EC >7-8 | AY124: Arom EC >8-10 | AZ124: Arom EC >10-12 | BA124: Arom EC >12-16 | BB124: Arom EC >16-21 | BC124: Arom EC >21-35 | BD124: Benzène | BE124: Toluène | BF124: Ethylbenzène | BG124: Xylènes (somme) | BH124: MTBE | BI124: Naphtalène
P125: I | R125: - | S125: - | T125: 6.2 | U125: 211 | V125: 884 | W125: 8459 | X125: 481309 | Y125: 1000000 | Z125: - | AA125: - | AB125: - | AC125: - | AD125: - | AE125: - | AF125: - | AG125: - | AH125: - | AI125: - | AJ125: - | AK125: - | AL125: - | AM125: - | AP125: =Z125 -> - | AQ125: - | AR125: - | AS125: - | AT125: - | AU125: - | AV125: - | AW125: - | AX125: - | AY125: - | AZ125: - | BA125: - | BB125: - | BC125: - | BD125: 0.2 | BE125: 9.2 | BF125: 8 | BG125: 11 | BH125: 1.6 | BI125: 3.8
P126: II | R126: - | S126: - | T126: 5.8 | U126: 169 | V126: 679 | W126: 6415 | X126: 361909 | Y126: 1000000 | Z126: - | AA126: - | AB126: - | AC126: - | AD126: - | AE126: - | AF126: - | AG126: - | AH126: - | AI126: - | AJ126: - | AK126: - | AL126: - | AM126: - | AP126: - | AQ126: - | AR126: - | AS126: - | AT126: - | AU126: - | AV126: - | AW126: - | AX126: - | AY126: - | AZ126: - | BA126: - | BB126: - | BC126: - | BD126: 0.2 | BE126: 7.8 | BF126: 6.4 | BG126: 8.9 | BH126: 1.5 | BI126: 2.9
P127: III | R127: - | S127: - | T127: 6 | U127: 149 | V127: 577 | W127: 5393 | X127: 302208 | Y127: 1000000 | Z127: - | AA127: - | AB127: - | AC127: - | AD127: - | AE127: - | AF127: - | AG127: - | AH127: - | AI127: - | AJ127: - | AK127: - | AL127: - | AM127: - | AP127: - | AQ127: - | AR127: - | AS127: - | AT127: - | AU127: - | AV127: - | AW127: - | AX127: - | AY127: - | AZ127: - | BA127: - | BB127: - | BC127: - | BD127: 0.2 | BE127: 7.1 | BF127: 6 | BG127: 7.9 | BH127: 1.5 | BI127: 2.5
P128: IV | R128: - | S128: - | T128: 6 | U128: 149 | V128: 577 | W128: 5393 | X128: 302208 | Y128: 1000000 | Z128: - | AA128: - | AB128: - | AC128: - | AD128: - | AE128: - | AF128: - | AG128: - | AH128: - | AI128: - | AJ128: - | AK128: - | AL128: - | AM128: - | AP128: - | AQ128: - | AR128: - | AS128: - | AT128: - | AU128: - | AV128: - | AW128: - | AX128: - | AY128: - | AZ128: - | BA128: - | BB128: - | BC128: - | BD128: 0.2 | BE128: 7.1 | BF128: 6 | BG128: 7.9 | BH128: 1.5 | BI128: 2.5
P129: V | R129: - | S129: - | T129: 10 | U129: 601 | V129: 2792 | W129: 27541 | X129: 1000000 | Y129: 1000000 | Z129: - | AA129: - | AB129: - | AC129: - | AD129: - | AE129: - | AF129: - | AG129: - | AH129: - | AI129: - | AJ129: - | AK129: - | AL129: - | AM129: - | AP129: - | AQ129: - | AR129: - | AS129: - | AT129: - | AU129: - | AV129: - | AW129: - | AX129: - | AY129: - | AZ129: - | BA129: - | BB129: - | BC129: - | BD129: 0.21 | BE129: 22 | BF129: 23 | BG129: 30 | BH129: 2 | BI129: 12
O133: VLN (GRER v04 parti C) | P133: usage | R133: conc. en mg/kg ms
R134: Huile minérale EC5-35 | S134: Huile minérale EC10-40 | T134: Fraction EC 5-8 | U134: Fraction EC >8-10 | V134: Fraction EC >10-12 | W134: Fraction EC >12-16 | X134: Fraction EC >16-21 | Y134: Fraction EC >21-35 | Z134: ALI EC 5-6 | AA134: ALI EC >6-8 | AB134: ALI EC >8-10 | AC134: ALI EC >10-12 | AD134: ALI EC >12-16 | AE134: ALI EC >16-21 | AF134: ALI EC >21-35 | AG134: Arom EC 6-7 | AH134: Arom EC >7-8 | AI134: Arom EC >8-10 | AJ134: Arom EC >10-12 | AK134: Arom EC >12-16 | AL134: Arom EC >16-21 | AM134: Arom EC >21-35 | AP134: ALI EC 5-6 | AQ134: ALI EC >6-8 | AR134: ALI EC >8-10 | AS134: ALI EC >10-12 | AT134: ALI EC >12-16 | AU134: ALI EC >16-21 | AV134: ALI EC >21-35 | AW134: Arom EC 6-7 | AX134: Arom EC >7-8 | AY134: Arom EC >8-10 | AZ134: Arom EC >10-12 | BA134: Arom EC >12-16 | BB134: Arom EC >16-21 | BC134: Arom EC >21-35 | BD134: Benzène | BE134: Toluène | BF134: Ethylbenzène | BG134: Xylènes (somme) | BH134: MTBE | BI134: Naphtalène
P135: I | R135: - | S135: - | T135: 12.4 | U135: 422 | V135: 1768 | W135: 16918 | X135: 962618 | Y135: 1000000 | Z135: - | AA135: - | AB135: - | AC135: - | AD135: - | AE135: - | AF135: - | AG135: - | AH135: - | AI135: - | AJ135: - | AK135: - | AL135: - | AM135: - | AP135: =Z135 -> - | AQ135: - | AR135: - | AS135: - | AT135: - | AU135: - | AV135: - | AW135: - | AX135: - | AY135: - | AZ135: - | BA135: - | BB135: - | BC135: - | BD135: 1 | BE135: 77 | BF135: 41 | BG135: 48 | BH135: 6.59 | BI135: 26
P136: II | R136: - | S136: - | T136: 11.6 | U136: 338 | V136: 1358 | W136: 12830 | X136: 723818 | Y136: 1000000 | Z136: - | AA136: - | AB136: - | AC136: - | AD136: - | AE136: - | AF136: - | AG136: - | AH136: - | AI136: - | AJ136: - | AK136: - | AL136: - | AM136: - | AP136: - | AQ136: - | AR136: - | AS136: - | AT136: - | AU136: - | AV136: - | AW136: - | AX136: - | AY136: - | AZ136: - | BA136: - | BB136: - | BC136: - | BD136: 1 | BE136: 65 | BF136: 32 | BG136: 39 | BH136: 6.18 | BI136: 20
P137: III | R137: - | S137: - | T137: 12 | U137: 298 | V137: 1154 | W137: 10786 | X137: 604416 | Y137: 1000000 | Z137: - | AA137: - | AB137: - | AC137: - | AD137: - | AE137: - | AF137: - | AG137: - | AH137: - | AI137: - | AJ137: - | AK137: - | AL137: - | AM137: - | AP137: - | AQ137: - | AR137: - | AS137: - | AT137: - | AU137: - | AV137: - | AW137: - | AX137: - | AY137: - | AZ137: - | BA137: - | BB137: - | BC137: - | BD137: 1 | BE137: 59 | BF137: 30 | BG137: 34 | BH137: 6.18 | BI137: 17
P138: IV | R138: - | S138: - | T138: 12 | U138: 298 | V138: 1154 | W138: 10786 | X138: 604416 | Y138: 1000000 | Z138: - | AA138: - | AB138: - | AC138: - | AD138: - | AE138: - | AF138: - | AG138: - | AH138: - | AI138: - | AJ138: - | AK138: - | AL138: - | AM138: - | AP138: - | AQ138: - | AR138: - | AS138: - | AT138: - | AU138: - | AV138: - | AW138: - | AX138: - | AY138: - | AZ138: - | BA138: - | BB138: - | BC138: - | BD138: 1 | BE138: 59 | BF138: 30 | BG138: 34 | BH138: 6.18 | BI138: 17
P139: V | R139: - | S139: - | T139: 20 | U139: 1202 | V139: 5584 | W139: 55082 | X139: 1000000 | Y139: 1000000 | Z139: - | AA139: - | AB139: - | AC139: - | AD139: - | AE139: - | AF139: - | AG139: - | AH139: - | AI139: - | AJ139: - | AK139: - | AL139: - | AM139: - | AP139: - | AQ139: - | AR139: - | AS139: - | AT139: - | AU139: - | AV139: - | AW139: - | AX139: - | AY139: - | AZ139: - | BA139: - | BB139: - | BC139: - | BD139: 1 | BE139: 184 | BF139: 117 | BG139: 131 | BH139: 8.23 | BI139: 82
BB153: berekeningsfactor individuele fractie uit MO totaal
BB154: ec5-35 | BC154: ec10-40
AP156: TPH aliphatic (EC 5-6) | BB156: 0 | BC156: 0
AP157: TPH aliphatic (EC >6-8) | BB157: 0.09765625 | BC157: 0.1002004003
AP158: TPH aliphatic (EC >8-10) | BB158: 0.87890625 | BC158: 0.9018036026
AP159: TPH aliphatic (EC >10-12) | BB159: 8.203125 | BC159: 8.416833624
AP160: TPH aliphatic (EC >12-16) | BB160: 47.36328125 | BC160: 48.59719414
AP161: TPH aliphatic (EC >16-21) | BB161: 22.4609375 | BC161: 23.04609207
AP162: TPH aliphatic (EC >21-35) | BB162: 0 | BC162: 0
AP163: TPH aromatic (EC >6-7) | BB163: 0 | BC163: 0
AP164: TPH aromatic (EC >7-8) | BB164: 0 | BC164: 0
AP165: TPH aromatic (EC >8-10) | BB165: 1.5625 | BC165: 1.603206405
AP166: TPH aromatic (EC >10-12) | BB166: 1.3671875 | BC166: 1.402805604
AP167: TPH aromatic (EC >12-16) | BB167: 11.23046875 | BC167: 11.52304603
AP168: TPH aromatic (EC >16-21) | BB168: 6.8359375 | BC168: 7.01402802
AP169: TPH aromatic (EC >21-35) | BB169: 0 | BC169: 0

Sheet AR Sol BOF_TRA & SRA
B2: Perceptions de chantier et comparaison des résultats d'analyse (DS) pour la partie fixe du sol
B3: Projet: | C3: ='Manuel d''utilisation'!C3 -> BOF_SL_6000: Rue de la Station, 666 à 4308 Manage
B4: Type usage DS | C4: =K26 -> I | G4: MO(%): | J4: ='Manuel d''utilisation'!C10 -> 3 | P4: <2µm (%): | Q4: ='Manuel d''utilisation'!C11 -> 7 | R4: ='Manuel d''utilisation'!AU11 -> 0
B5: Identification du forage | K5: Caractéristiques organoleptiques | P5: Echantillon | Q5: MS | R5: Résultats d'analyse en mg/kg ms | BK5: Impact gravier | BM5: Résultats d'analyse en mg/kg ms après réévaluation sur base du facteur correctif (gravier)
R6: HM somme | T6: Hydrocarbures pétroliers (fractions globales/combinées) | Z6: Hydrocarbures pétroliers (analyse 'split' aliphatique/aromatique) | AP6: Hydrocarbures pétroliers calculés sur base de la répartition standard diesel | BD6: Hydrocarbures aromatiques non halogénés | BK6: Facteur correctif | BM6: HM somme | BO6: Hydrocarbures pétroliers (fractions globales/combinées) | BU6: Hydrocarbures pétroliers (analyse 'split' aliphatique/aromatique) | CJ6: Hydrocarbures pétroliers calculés sur base de la répartition standard diesel | CZ6: Hydrocarbures aromatiques non halogénés
B7: Parcelle cadastrale | C7: Code du forage | D7: X (Lambert) | E7: Y (Lambert) | F7: Refus de forage(6) | G7: Date du forage | H7: Phase d'étude(6) | I7: Terrain naturel (TN) / Remblai (R)(6) | J7: Profondeur du forage (cm-ns) | K7: Profondeur: de (cm-ns) à (cm-ns) | L7: Caractérisation(1) (6) | M7: Odeur/PID(2) | N7: Couleur suspecte(6) | O7: Test huile/eau(2) | P7: Profondeur de l'échantillon (cm-ns) | Q7: Matière sèche (%) | R7: Huile minérale EC 5-35 | S7: Huile minérale EC 10-40 | T7: Fraction EC 5-8 | U7: Fraction EC 8-10 | V7: Fraction EC 10-12 | W7: Fraction EC 12-16 | X7: Fraction EC 16-21 | Y7: Fraction EC 21-35 | Z7: Ali EC 5-6 | AA7: Ali EC 6-8 | AB7: Ali EC 8-10 | AC7: Ali EC 10-12 | AD7: Ali EC 12-16 | AE7: Ali EC 16-21 | AF7: Ali EC 21-35 | AG7: Aro EC 6-7 | AH7: Aro EC 7-8 | AI7: Aro EC 8-10 | AJ7: Aro EC 10-12 | AK7: Aro EC 12-16 | AL7: Aro EC 16-21 | AM7: Aro EC 21-35 | AO7: Nature TPH(7) (6) | AP7: Ali EC 5-6 | AQ7: Ali EC 6-8 | AR7: Ali EC 8-10 | AS7: Ali EC 10-12 | AT7: Ali EC 12-16 | AU7: Ali EC 16-21 | AV7: Ali EC 21-35 | AW7: Aro EC 6-7 | AX7: Aro EC 7-8 | AY7: Aro EC 8-10 | AZ7: Aro EC 10-12 | BA7: Aro EC 12-16 | BB7: Aro EC 16-21 | BC7: Aro EC 21-35 | BD7: Benzène | BE7: Toluène | BF7: Ethylbenzène | BG7: Xylènes (somme) | BH7: MTBE | BI7: Naphtalène | BK7: pourcentage de cailloux | BL7: pourcentage de matières fines | BM7: Huile minérale EC 5-35 | BN7: Huile minérale EC 10-40 | BO7: Fraction EC 5-8 | BP7: Fraction EC 8-10 | BQ7: Fraction EC 10-12 | BR7: Fraction EC 12-16 | BS7: Fraction EC 16-21 | BT7: Fraction EC 21-35 | BU7: Ali EC 5-6 | BV7: Ali EC 6-8 | BW7: Ali EC 8-10 | BX7: Ali EC 10-12 | BY7: Ali EC 12-16 | BZ7: Ali EC 16-21 | CA7: Ali EC 21-35 | CB7: Aro EC 6-7 | CC7: Aro EC 7-8 | CD7: Aro EC 8-10 | CE7: Aro EC 10-12 | CF7: Aro EC 12-16 | CG7: Aro EC 16-21 | CH7: Aro EC 21-35 | CJ7: Ali EC 5-6 | CK7: Ali EC 6-8 | CL7: Ali EC 8-10 | CM7: Ali EC 10-12 | CN7: Ali EC 12-16 | CO7: Ali EC 16-21 | CP7: Ali EC 21-35 | CQ7: Aro EC 6-7 | CR7: Aro EC 7-8 | CS7: Aro EC 8-10 | CT7: Aro EC 10-12 | CU7: Aro EC 12-16 | CV7: Aro EC 16-21 | CW7: Aro EC 21-35 | CY7: Benzène | CZ7: Toluène | DA7: Ethylbenzène | DB7: Xylènes (somme) | DC7: MTBE | DD7: Naphtalène
B8: Zone suspecte investiguée:
B9: 1076Z | C9: C1 | G9: 28/12/2004 | H9: EO | I9: R | J9: 420 | K9: 150-200 | L9: DI | M9: * | P9: 370-400 | S9: 100 | T9: <12 | U9: 22 | V9: 120 | W9: 800 | X9: 10000 | Y9: 7 | Z9: <12.5 | AA9: 100 | AB9: 1000 | AO9: DI | AQ9: =IF(($AO9<>"DI"),"np",IF($R9<>"",IFERROR(0.00098*($R9),"<"),IF($S9<>"",IFERROR(0.001002*($S9),"<"),""))) -> 0.1002 | AR9: =IF(($AO9<>"DI"),"np",IF($R9<>"",IFERROR(0.00879*($R9),"<"),IF($S9<>"",IFERROR(0.00901804*($S9),"<"),""))) -> 0.901804 | AS9: =IF(($AO9<>"DI"),"np",IF($R9<>"",IFERROR(0.08203*($R9),"<"),IF($S9<>"",IFERROR(0.08416834*($S9),"<"),""))) -> 8.416834 | AT9: =IF(($AO9<>"DI"),"np",IF($R9<>"",IFERROR(0.47363*($R9),"<"),IF($S9<>"",IFERROR(0.4859719*($S9),"<"),""))) -> 48.59719 | AU9: =IF(($AO9<>"DI"),"np",IF($R9<>"",IFERROR(0.22461*($R9),"<"),IF($S9<>"",IFERROR(0.2304609*($S9),"<"),""))) -> 23.04609 | AY9: =IF(($AO9<>"DI"),"np",IF($R9<>"",IFERROR(0.01563*($R9),"<"),IF($S9<>"",IFERROR(0.01603206*($S9),"<"),""))) -> 1.603206 | AZ9: =IF(($AO9<>"DI"),"np",IF($R9<>"",IFERROR(0.01367*($R9),"<"),IF($S9<>"",IFERROR(0.01402806*($S9),"<"),""))) -> 1.402806 | BA9: =IF(($AO9<>"DI"),"np",IF($R9<>"",IFERROR(0.1123*($R9),"<"),IF($S9<>"",IFERROR(0.1152305*($S9),"<"),""))) -> 11.52305 | BB9: =IF(($AO9<>"DI"),"np",IF($R9<>"",IFERROR(0.06836*($R9),"<"),IF($S9<>"",IFERROR(0.07014028*($S9),"<"),""))) -> 7.014028 | BD9: < | BE9: 7 | BF9: 1 | BG9: 0.01 | BH9: 0.01 | BI9: 2.55 | BL9: 0.2 | BM9: =IFERROR($BL9*R9,"<") -> 0 | BN9: 20 | BO9: < | BP9: 4.4 | BQ9: 24 | BR9: 160 | BS9: 2000 | BT9: 1.4 | BU9: < | BV9: 20 | BW9: 200 | BX9: 0 | BY9: 0 | BZ9: 0 | CA9: 0 | CB9: 0 | CC9: =IFERROR($BL9*AH9,"<") -> 0 | CD9: 0 | CE9: 0 | CF9: 0 | CG9: 0 | CH9: 0 | CJ9: =IFERROR($BL9*AP9,"<") -> 0 | CK9: =IF(($AO9="DI"),IFERROR($BL9*AQ9,"<"),"np") -> 0.02004 | CL9: 0.1803608 | CM9: 1.6833668 | CN9: 9.719438 | CO9: 4.609218 | CP9: =$BL9*AV9 -> 0 | CQ9: 0 | CR9: 0 | CS9: =IF(($AO9="DI"),IFERROR($BL9*AY9,"<"),"np") -> 0.3206412 | CT9: 0.2805612 | CU9: 2.30461 | CV9: 1.4028056 | CW9: =$BL9*BC9 -> 0 | CY9: =IFERROR($BL9*BD9,"<") -> < | CZ9: 1.4 | DA9: 0.2 | DB9: 0.002 | DC9: 0.002 | DD9: 0.51
R10: 100 | AO10: DI | AQ10: =IF(($AO10<>"DI"),"np",IF($R10<>"",IFERROR(0.00098*($R10),"<"),IF($S10<>"",IFERROR(0.001002*($S10),"<"),""))) -> 0.098 | AR10: =IF(($AO10<>"DI"),"np",IF($R10<>"",IFERROR(0.00879*($R10),"<"),IF($S10<>"",IFERROR(0.00901804*($S10),"<"),""))) -> 0.879 | AS10: =IF(($AO10<>"DI"),"np",IF($R10<>"",IFERROR(0.08203*($R10),"<"),IF($S10<>"",IFERROR(0.08416834*($S10),"<"),""))) -> 8.203 | AT10: =IF(($AO10<>"DI"),"np",IF($R10<>"",IFERROR(0.47363*($R10),"<"),IF($S10<>"",IFERROR(0.4859719*($S10),"<"),""))) -> 47.363 | AU10: =IF(($AO10<>"DI"),"np",IF($R10<>"",IFERROR(0.22461*($R10),"<"),IF($S10<>"",IFERROR(0.2304609*($S10),"<"),""))) -> 22.461 | AY10: =IF(($AO10<>"DI"),"np",IF($R10<>"",IFERROR(0.01563*($R10),"<"),IF($S10<>"",IFERROR(0.01603206*($S10),"<"),""))) -> 1.563 | AZ10: =IF(($AO10<>"DI"),"np",IF($R10<>"",IFERROR(0.01367*($R10),"<"),IF($S10<>"",IFERROR(0.01402806*($S10),"<"),""))) -> 1.367 | BA10: =IF(($AO10<>"DI"),"np",IF($R10<>"",IFERROR(0.1123*($R10),"<"),IF($S10<>"",IFERROR(0.1152305*($S10),"<"),""))) -> 11.23 | BB10: =IF(($AO10<>"DI"),"np",IF($R10<>"",IFERROR(0.06836*($R10),"<"),IF($S10<>"",IFERROR(0.07014028*($S10),"<"),""))) -> 6.836 | BL10: 0.2 | BM10: 20 | BN10: 0 | BO10: 0 | BP10: 0 | BQ10: 0 | BR10: 0 | BS10: 0 | BT10: 0 | BU10: 0 | BV10: 0 | BW10: 0 | BX10: 0 | BY10: 0 | BZ10: 0 | CA10: 0 | CB10: 0 | CC10: 0 | CD10: 0 | CE10: 0 | CF10: 0 | CG10: 0 | CH10: 0 | CJ10: 0 | CK10: 0.0196 | CL10: 0.1758 | CM10: 1.6406 | CN10: 9.4726 | CO10: 4.4922 | CP10: 0 | CQ10: 0 | CR10: 0 | CS10: 0.3126 | CT10: 0.2734 | CU10: 2.246 | CV10: 1.3672 | CW10: 0 | CY10: 0 | CZ10: 0 | DA10: 0 | DB10: 0 | DC10: 0 | DD10: 0
R11: <50 | AO11: DI | AQ11: < | AR11: < | AS11: < | AT11: < | AU11: < | AY11: < | AZ11: < | BA11: < | BB11: < | BL11: 0.2 | BM11: < | BN11: 0 | BO11: 0 | BP11: 0 | BQ11: 0 | BR11: 0 | BS11: 0 | BT11: 0 | BU11: 0 | BV11: 0 | BW11: 0 | BX11: 0 | BY11: 0 | BZ11: 0 | CA11: 0 | CB11: 0 | CC11: 0 | CD11: 0 | CE11: 0 | CF11: 0 | CG11: 0 | CH11: 0 | CJ11: 0 | CK11: < | CL11: < | CM11: < | CN11: < | CO11: < | CP11: 0 | CQ11: 0 | CR11: 0 | CS11: < | CT11: < | CU11: < | CV11: < | CW11: 0 | CY11: 0 | CZ11: 0 | DA11: 0 | DB11: 0 | DC11: 0 | DD11: 0
S12: <50 | AO12: DI | AQ12: < | AR12: < | AS12: < | AT12: < | AU12: < | AY12: < | AZ12: < | BA12: < | BB12: < | BL12: 0.2 | BM12: 0 | BN12: < | BO12: 0 | BP12: 0 | BQ12: 0 | BR12: 0 | BS12: 0 | BT12: 0 | BU12: 0 | BV12: 0 | BW12: 0 | BX12: 0 | BY12: 0 | BZ12: 0 | CA12: 0 | CB12: 0 | CC12: 0 | CD12: 0 | CE12: 0 | CF12: 0 | CG12: 0 | CH12: 0 | CJ12: 0 | CK12: < | CL12: < | CM12: < | CN12: < | CO12: < | CP12: 0 | CQ12: 0 | CR12: 0 | CS12: < | CT12: < | CU12: < | CV12: < | CW12: 0 | CY12: 0 | CZ12: 0 | DA12: 0 | DB12: 0 | DC12: 0 | DD12: 0
AO13: DI | BL13: 0.2 | BM13: 0 | BN13: 0 | BO13: 0 | BP13: 0 | BQ13: 0 | BR13: 0 | BS13: 0 | BT13: 0 | BU13: 0 | BV13: 0 | BW13: 0 | BX13: 0 | BY13: 0 | BZ13: 0 | CA13: 0 | CB13: 0 | CC13: 0 | CD13: 0 | CE13: 0 | CF13: 0 | CG13: 0 | CH13: 0 | CJ13: 0 | CK13: < | CL13: < | CM13: < | CN13: < | CO13: < | CP13: 0 | CQ13: 0 | CR13: 0 | CS13: < | CT13: < | CU13: < | CV13: < | CW13: 0 | CY13: 0 | CZ13: 0 | DA13: 0 | DB13: 0 | DC13: 0 | DD13: 0
AO14: DI | BL14: 0.2 | BM14: 0 | BN14: 0 | BO14: 0 | BP14: 0 | BQ14: 0 | BR14: 0 | BS14: 0 | BT14: 0 | BU14: 0 | BV14: 0 | BW14: 0 | BX14: 0 | BY14: 0 | BZ14: 0 | CA14: 0 | CB14: 0 | CC14: 0 | CD14: 0 | CE14: 0 | CF14: 0 | CG14: 0 | CH14: 0 | CJ14: 0 | CK14: < | CL14: < | CM14: < | CN14: < | CO14: < | CP14: 0 | CQ14: 0 | CR14: 0 | CS14: < | CT14: < | CU14: < | CV14: < | CW14: 0 | CY14: 0 | CZ14: 0 | DA14: 0 | DB14: 0 | DC14: 0 | DD14: 0
AO15: DI | BL15: 0.2 | BM15: 0 | BN15: 0 | BO15: 0 | BP15: 0 | BQ15: 0 | BR15: 0 | BS15: 0 | BT15: 0 | BU15: 0 | BV15: 0 | BW15: 0 | BX15: 0 | BY15: 0 | BZ15: 0 | CA15: 0 | CB15: 0 | CC15: 0 | CD15: 0 | CE15: 0 | CF15: 0 | CG15: 0 | CH15: 0 | CJ15: 0 | CK15: < | CL15: < | CM15: < | CN15: < | CO15: < | CP15: 0 | CQ15: 0 | CR15: 0 | CS15: < | CT15: < | CU15: < | CV15: < | CW15: 0 | CY15: 0 | CZ15: 0 | DA15: 0 | DB15: 0 | DC15: 0 | DD15: 0
AO16: autre ou ? | AQ16: np | AR16: np | AS16: np | AT16: np | AU16: np | AY16: np | AZ16: np | BA16: np | BB16: np | BL16: 0.2 | BM16: 0 | BN16: 0 | BO16: 0 | BP16: 0 | BQ16: 0 | BR16: 0 | BS16: 0 | BT16: 0 | BU16: 0 | BV16: 0 | BW16: 0 | BX16: 0 | BY16: 0 | BZ16: 0 | CA16: 0 | CB16: 0 | CC16: 0 | CD16: 0 | CE16: 0 | CF16: 0 | CG16: 0 | CH16: 0 | CJ16: 0 | CK16: np | CL16: np | CM16: np | CN16: np | CO16: np | CP16: 0 | CQ16: 0 | CR16: 0 | CS16: np | CT16: np | CU16: np | CV16: np | CW16: 0 | CY16: 0 | CZ16: 0 | DA16: 0 | DB16: 0 | DC16: 0 | DD16: 0
AO17: DI | BL17: 0.2 | BM17: 0 | BN17: 0 | BO17: 0 | BP17: 0 | BQ17: 0 | BR17: 0 | BS17: 0 | BT17: 0 | BU17: 0 | BV17: 0 | BW17: 0 | BX17: 0 | BY17: 0 | BZ17: 0 | CA17: 0 | CB17: 0 | CC17: 0 | CD17: 0 | CE17: 0 | CF17: 0 | CG17: 0 | CH17: 0 | CJ17: 0 | CK17: < | CL17: < | CM17: < | CN17: < | CO17: < | CP17: 0 | CQ17: 0 | CR17: 0 | CS17: < | CT17: < | CU17: < | CV17: < | CW17: 0 | CY17: 0 | CZ17: 0 | DA17: 0 | DB17: 0 | DC17: 0 | DD17: 0
AQ18: np | AR18: np | AS18: np | AT18: np | AU18: np | AY18: np | AZ18: np | BA18: np | BB18: np | BL18: 0.2 | BM18: 0 | BN18: 0 | BO18: 0 | BP18: 0 | BQ18: 0 | BR18: 0 | BS18: 0 | BT18: 0 | BU18: 0 | BV18: 0 | BW18: 0 | BX18: 0 | BY18: 0 | BZ18: 0 | CA18: 0 | CB18: 0 | CC18: 0 | CD18: 0 | CE18: 0 | CF18: 0 | CG18: 0 | CH18: 0 | CJ18: 0 | CK18: np | CL18: np | CM18: np | CN18: np | CO18: np | CP18: 0 | CQ18: 0 | CR18: 0 | CS18: np | CT18: np | CU18: np | CV18: np | CW18: 0 | CY18: 0 | CZ18: 0 | DA18: 0 | DB18: 0 | DC18: 0 | DD18: 0
B19: Autre zone suspecte:
AO20: autre ou ? | AQ20: =IF(($AO20<>"DI"),"np",IF($R20<>"",IFERROR(0.00098*($R20),"<"),IF($S20<>"",IFERROR(0.001002*($S20),"<"),""))) -> np | AR20: =IF(($AO20<>"DI"),"np",IF($R20<>"",IFERROR(0.00879*($R20),"<"),IF($S20<>"",IFERROR(0.00901804*($S20),"<"),""))) -> np | AS20: =IF(($AO20<>"DI"),"np",IF($R20<>"",IFERROR(0.08203*($R20),"<"),IF($S20<>"",IFERROR(0.08416834*($S20),"<"),""))) -> np | AT20: =IF(($AO20<>"DI"),"np",IF($R20<>"",IFERROR(0.47363*($R20),"<"),IF($S20<>"",IFERROR(0.4859719*($S20),"<"),""))) -> np | AU20: =IF(($AO20<>"DI"),"np",IF($R20<>"",IFERROR(0.22461*($R20),"<"),IF($S20<>"",IFERROR(0.2304609*($S20),"<"),""))) -> np | AY20: =IF(($AO20<>"DI"),"np",IF($R20<>"",IFERROR(0.01563*($R20),"<"),IF($S20<>"",IFERROR(0.01603206*($S20),"<"),""))) -> np | AZ20: =IF(($AO20<>"DI"),"np",IF($R20<>"",IFERROR(0.01367*($R20),"<"),IF($S20<>"",IFERROR(0.01402806*($S20),"<"),""))) -> np | BA20: =IF(($AO20<>"DI"),"np",IF($R20<>"",IFERROR(0.1123*($R20),"<"),IF($S20<>"",IFERROR(0.1152305*($S20),"<"),""))) -> np | BB20: =IF(($AO20<>"DI"),"np",IF($R20<>"",IFERROR(0.06836*($R20),"<"),IF($S20<>"",IFERROR(0.07014028*($S20),"<"),""))) -> np | BL20: 0.5 | BM20: =IFERROR($BL20*R20,"<") -> 0 | BN20: 0 | BO20: 0 | BP20: 0 | BQ20: 0 | BR20: 0 | BS20: 0 | BT20: 0 | BU20: 0 | BV20: 0 | BW20: 0 | BX20: 0 | BY20: 0 | BZ20: 0 | CA20: 0 | CB20: 0 | CC20: 0 | CD20: 0 | CE20: 0 | CF20: 0 | CG20: 0 | CH20: 0 | CJ20: =IFERROR($BL20*AP20,"<") -> 0 | CK20: =IF(($AO20="DI"),IFERROR($BL20*AQ20,"<"),"np") -> np | CL20: np | CM20: np | CN20: np | CO20: np | CP20: =$BL20*AV20 -> 0 | CQ20: 0 | CR20: 0 | CS20: =IF(($AO20="DI"),IFERROR($BL20*AY20,"<"),"np") -> np | CT20: np | CU20: np | CV20: np | CW20: =$BL20*BC20 -> 0 | CY20: =IFERROR($BL20*BD20,"<") -> 0 | CZ20: 0 | DA20: 0 | DB20: 0 | DC20: 0 | DD20: 0
AO21: autre ou ? | AQ21: =IF(($AO21<>"DI"),"np",IF($R21<>"",IFERROR(0.00098*($R21),"<"),IF($S21<>"",IFERROR(0.001002*($S21),"<"),""))) -> np | AR21: =IF(($AO21<>"DI"),"np",IF($R21<>"",IFERROR(0.00879*($R21),"<"),IF($S21<>"",IFERROR(0.00901804*($S21),"<"),""))) -> np | AS21: =IF(($AO21<>"DI"),"np",IF($R21<>"",IFERROR(0.08203*($R21),"<"),IF($S21<>"",IFERROR(0.08416834*($S21),"<"),""))) -> np | AT21: =IF(($AO21<>"DI"),"np",IF($R21<>"",IFERROR(0.47363*($R21),"<"),IF($S21<>"",IFERROR(0.4859719*($S21),"<"),""))) -> np | AU21: =IF(($AO21<>"DI"),"np",IF($R21<>"",IFERROR(0.22461*($R21),"<"),IF($S21<>"",IFERROR(0.2304609*($S21),"<"),""))) -> np | AY21: =IF(($AO21<>"DI"),"np",IF($R21<>"",IFERROR(0.01563*($R21),"<"),IF($S21<>"",IFERROR(0.01603206*($S21),"<"),""))) -> np | AZ21: =IF(($AO21<>"DI"),"np",IF($R21<>"",IFERROR(0.01367*($R21),"<"),IF($S21<>"",IFERROR(0.01402806*($S21),"<"),""))) -> np | BA21: =IF(($AO21<>"DI"),"np",IF($R21<>"",IFERROR(0.1123*($R21),"<"),IF($S21<>"",IFERROR(0.1152305*($S21),"<"),""))) -> np | BB21: =IF(($AO21<>"DI"),"np",IF($R21<>"",IFERROR(0.06836*($R21),"<"),IF($S21<>"",IFERROR(0.07014028*($S21),"<"),""))) -> np | BL21: 0.5 | BM21: =IFERROR($BL21*R21,"<") -> 0 | BN21: =IFERROR($BL21*S21,"<") -> 0 | BO21: =IFERROR($BL21*T21,"<") -> 0 | BP21: =IFERROR($BL21*U21,"<") -> 0 | BQ21: =IFERROR($BL21*V21,"<") -> 0 | BR21: =IFERROR($BL21*W21,"<") -> 0 | BS21: =IFERROR($BL21*X21,"<") -> 0 | BT21: =IFERROR($BL21*Y21,"<") -> 0 | BU21: =IFERROR($BL21*Z21,"<") -> 0 | BV21: =IFERROR($BL21*AA21,"<") -> 0 | BW21: =IFERROR($BL21*AB21,"<") -> 0 | BX21: =IFERROR($BL21*AC21,"<") -> 0 | BY21: =IFERROR($BL21*AD21,"<") -> 0 | BZ21: =IFERROR($BL21*AE21,"<") -> 0 | CA21: =IFERROR($BL21*AF21,"<") -> 0 | CB21: =IFERROR($BL21*AG21,"<") -> 0 | CC21: =IFERROR($BL21*AH21,"<") -> 0 | CD21: =IFERROR($BL21*AI21,"<") -> 0 | CE21: =IFERROR($BL21*AJ21,"<") -> 0 | CF21: =IFERROR($BL21*AK21,"<") -> 0 | CG21: =IFERROR($BL21*AL21,"<") -> 0 | CH21: =IFERROR($BL21*AM21,"<") -> 0 | CJ21: =IFERROR($BL21*AP21,"<") -> 0 | CK21: np | CL21: np | CM21: np | CN21: np | CO21: np | CP21: 0 | CQ21: 0 | CR21: 0 | CS21: np | CT21: np | CU21: np | CV21: np | CW21: =$BL21*BC21 -> 0 | CY21: =IFERROR($BL21*BD21,"<") -> 0 | CZ21: =IFERROR($BL21*BE21,"<") -> 0 | DA21: =IFERROR($BL21*BF21,"<") -> 0 | DB21: =IFERROR($BL21*BG21,"<") -> 0 | DC21: =IFERROR($BL21*BH21,"<") -> 0 | DD21: =IFERROR($BL21*BI21,"<") -> 0
B22: Autre zone suspecte:
AQ23: =IF(($AO23<>"DI"),"np",IF($R23<>"",IFERROR(0.00098*($R23),"<"),IF($S23<>"",IFERROR(0.001002*($S23),"<"),""))) -> np | AR23: =IF(($AO23<>"DI"),"np",IF($R23<>"",IFERROR(0.00879*($R23),"<"),IF($S23<>"",IFERROR(0.00901804*($S23),"<"),""))) -> np | AS23: =IF(($AO23<>"DI"),"np",IF($R23<>"",IFERROR(0.08203*($R23),"<"),IF($S23<>"",IFERROR(0.08416834*($S23),"<"),""))) -> np | AT23: =IF(($AO23<>"DI"),"np",IF($R23<>"",IFERROR(0.47363*($R23),"<"),IF($S23<>"",IFERROR(0.4859719*($S23),"<"),""))) -> np | AU23: =IF(($AO23<>"DI"),"np",IF($R23<>"",IFERROR(0.22461*($R23),"<"),IF($S23<>"",IFERROR(0.2304609*($S23),"<"),""))) -> np | AY23: =IF(($AO23<>"DI"),"np",IF($R23<>"",IFERROR(0.01563*($R23),"<"),IF($S23<>"",IFERROR(0.01603206*($S23),"<"),""))) -> np | AZ23: =IF(($AO23<>"DI"),"np",IF($R23<>"",IFERROR(0.01367*($R23),"<"),IF($S23<>"",IFERROR(0.01402806*($S23),"<"),""))) -> np | BA23: =IF(($AO23<>"DI"),"np",IF($R23<>"",IFERROR(0.1123*($R23),"<"),IF($S23<>"",IFERROR(0.1152305*($S23),"<"),""))) -> np | BB23: =IF(($AO23<>"DI"),"np",IF($R23<>"",IFERROR(0.06836*($R23),"<"),IF($S23<>"",IFERROR(0.07014028*($S23),"<"),""))) -> np | BL23: 0.5 | BM23: =IFERROR($BL23*R23,"<") -> 0 | BN23: =IFERROR($BL23*S23,"<") -> 0 | BO23: =IFERROR($BL23*T23,"<") -> 0 | BP23: =IFERROR($BL23*U23,"<") -> 0 | BQ23: =IFERROR($BL23*V23,"<") -> 0 | BR23: =IFERROR($BL23*W23,"<") -> 0 | BS23: =IFERROR($BL23*X23,"<") -> 0 | BU23: =IFERROR($BL23*Z23,"<") -> 0 | BV23: =IFERROR($BL23*AA23,"<") -> 0 | BW23: =IFERROR($BL23*AB23,"<") -> 0 | BX23: =IFERROR($BL23*AC23,"<") -> 0 | BY23: =IFERROR($BL23*AD23,"<") -> 0 | BZ23: =IFERROR($BL23*AE23,"<") -> 0 | CA23: =IFERROR($BL23*AF23,"<") -> 0 | CB23: =IFERROR($BL23*AG23,"<") -> 0 | CC23: =IFERROR($BL23*AH23,"<") -> 0 | CD23: =IFERROR($BL23*AI23,"<") -> 0 | CE23: =IFERROR($BL23*AJ23,"<") -> 0 | CF23: =IFERROR($BL23*AK23,"<") -> 0 | CG23: =IFERROR($BL23*AL23,"<") -> 0 | CH23: =IFERROR($BL23*AM23,"<") -> 0 | CJ23: =IFERROR($BL23*AP23,"<") -> 0 | CK23: =IF(($AO23="DI"),IFERROR($BL23*AQ23,"<"),"np") -> np | CL23: np | CM23: np | CN23: np | CO23: np | CP23: =$BL23*AV23 -> 0 | CQ23: 0 | CR23: 0 | CS23: =IF(($AO23="DI"),IFERROR($BL23*AY23,"<"),"np") -> np | CT23: np | CU23: np | CV23: np | CW23: =$BL23*BC23 -> 0 | CY23: =IFERROR($BL23*BD23,"<") -> 0 | CZ23: =IFERROR($BL23*BE23,"<") -> 0 | DA23: =IFERROR($BL23*BF23,"<") -> 0 | DB23: =IFERROR($BL23*BG23,"<") -> 0 | DC23: =IFERROR($BL23*BH23,"<") -> 0 | DD23: =IFERROR($BL23*BI23,"<") -> 0
AQ24: =IF(($AO24<>"DI"),"np",IF($R24<>"",IFERROR(0.00098*($R24),"<"),IF($S24<>"",IFERROR(0.001002*($S24),"<"),""))) -> np | AR24: =IF(($AO24<>"DI"),"np",IF($R24<>"",IFERROR(0.00879*($R24),"<"),IF($S24<>"",IFERROR(0.00901804*($S24),"<"),""))) -> np | AS24: =IF(($AO24<>"DI"),"np",IF($R24<>"",IFERROR(0.08203*($R24),"<"),IF($S24<>"",IFERROR(0.08416834*($S24),"<"),""))) -> np | AT24: =IF(($AO24<>"DI"),"np",IF($R24<>"",IFERROR(0.47363*($R24),"<"),IF($S24<>"",IFERROR(0.4859719*($S24),"<"),""))) -> np | AU24: =IF(($AO24<>"DI"),"np",IF($R24<>"",IFERROR(0.22461*($R24),"<"),IF($S24<>"",IFERROR(0.2304609*($S24),"<"),""))) -> np | AY24: =IF(($AO24<>"DI"),"np",IF($R24<>"",IFERROR(0.01563*($R24),"<"),IF($S24<>"",IFERROR(0.01603206*($S24),"<"),""))) -> np | AZ24: =IF(($AO24<>"DI"),"np",IF($R24<>"",IFERROR(0.01367*($R24),"<"),IF($S24<>"",IFERROR(0.01402806*($S24),"<"),""))) -> np | BA24: =IF(($AO24<>"DI"),"np",IF($R24<>"",IFERROR(0.1123*($R24),"<"),IF($S24<>"",IFERROR(0.1152305*($S24),"<"),""))) -> np | BB24: =IF(($AO24<>"DI"),"np",IF($R24<>"",IFERROR(0.06836*($R24),"<"),IF($S24<>"",IFERROR(0.07014028*($S24),"<"),""))) -> np | BL24: 0.5 | BM24: =IFERROR($BL24*R24,"<") -> 0 | BN24: 0 | BO24: 0 | BP24: 0 | BQ24: 0 | BR24: 0 | BS24: 0 | BU24: =IFERROR($BL24*Z24,"<") -> 0 | BV24: 0 | BW24: 0 | BX24: 0 | BY24: 0 | BZ24: 0 | CA24: 0 | CB24: 0 | CC24: 0 | CD24: 0 | CE24: 0 | CF24: 0 | CG24: 0 | CH24: 0 | CJ24: =IFERROR($BL24*AP24,"<") -> 0 | CK24: np | CL24: np | CM24: np | CN24: np | CO24: np | CP24: 0 | CQ24: 0 | CR24: 0 | CS24: np | CT24: np | CU24: np | CV24: np | CW24: =$BL24*BC24 -> 0 | CY24: =IFERROR($BL24*BD24,"<") -> 0 | CZ24: 0 | DA24: 0 | DB24: 0 | DC24: 0 | DD24: 0
B25: Légende | CY25: =$BL25*BD25 -> 0 | CZ25: 0 | DA25: 0 | DB25: 0 | DC25: 0 | DD25: 0
B26: Caractère gras et rouge= excède la | H26: usage DS(6) | K26: I | P26: VS(3) | R26: =INDEX(R$52:R$56,MATCH($K$26,$P$52:$P$56,0)) -> - | S26: - | T26: 6 | U26: 21 | V26: 75 | W26: 75 | X26: 650 | Y26: 650 | Z26: - | AA26: - | AB26: - | AC26: - | AD26: - | AE26: - | AF26: - | AG26: - | AH26: - | AI26: - | AJ26: - | AK26: - | AL26: - | AM26: - | AP26: =INDEX(AP$52:AP$56,MATCH($K$26,$P$52:$P$56,0)) -> - | AQ26: - | AR26: - | AS26: - | AT26: - | AU26: - | AV26: - | AW26: - | AX26: - | AY26: - | AZ26: - | BA26: - | BB26: - | BC26: - | BD26: 0.1 | BE26: 4 | BF26: 0.3 | BG26: 1 | BH26: 1.5 | BI26: 2.5 | BM26: =R26 -> - | BN26: - | BO26: 6 | BP26: 21 | BQ26: 75 | BR26: 75 | BS26: 650 | BT26: 650 | BU26: - | BV26: - | BW26: - | BX26: - | BY26: - | BZ26: - | CA26: - | CB26: - | CC26: - | CD26: - | CE26: - | CF26: - | CG26: - | CH26: - | CJ26: =AP26 -> - | CK26: - | CL26: - | CM26: - | CN26: - | CO26: - | CP26: - | CQ26: - | CR26: - | CS26: - | CT26: - | CU26: - | CV26: - | CW26: - | CY26: =BD26 -> 0.1 | CZ26: 4 | DA26: 0.3 | DB26: 1 | DC26: 1.5 | DD26: 2.5
B27: Caractère souligné = excède la | H27: usage DS(6) | K27: IV | P27: VSH(3) | R27: =INDEX(R$61:R$65,MATCH($K$27,$P$61:$P$65,0)) -> - | S27: - | T27: 6 | U27: 1330.42 | V27: 34559.43 | W27: 34592.86 | X27: 48464.75 | Y27: 48464.75 | Z27: 411.7 | AA27: - | AB27: 50010 | AC27: 50150 | AD27: 50170 | AE27: - | AF27: - | AG27: 0.7 | AH27: 125 | AI27: 406.7 | AJ27: 20030 | AK27: 20060 | AL27: 15050 | AM27: 15050 | AP27: =Z27 -> 411.7 | AQ27: - | AR27: 50010 | AS27: 50150 | AT27: 50170 | AU27: - | AV27: - | AW27: 0.7 | AX27: 125 | AY27: 406.7 | AZ27: 20030 | BA27: 20060 | BB27: 15050 | BC27: 15050 | BD27: =INDEX(BD$61:BD$65,MATCH($K$27,$P$61:$P$65,0)) -> 0.7 | BE27: 125 | BF27: 3.21 | BG27: 74.94 | BH27: 43.48 | BI27: 29.56 | BO27: 6 | BP27: 1330.42 | BQ27: 34559.43 | BR27: 34592.86 | BS27: 48464.75 | BT27: 48464.75 | BU27: 411.7 | BV27: - | BW27: 50010 | BX27: 50150 | BY27: 50170 | BZ27: - | CA27: - | CB27: 0.7 | CC27: 125 | CD27: 406.7 | CE27: 20030 | CF27: 20060 | CG27: 15050 | CH27: 15050 | CJ27: =BU27 -> 411.7 | CK27: - | CL27: 50010 | CM27: 50150 | CN27: 50170 | CO27: - | CP27: - | CQ27: 0.7 | CR27: 125 | CS27: 406.7 | CT27: 20030 | CU27: 20060 | CV27: 15050 | CW27: 15050 | CY27: 0.7 | CZ27: 125 | DA27: 3.21 | DB27: 74.94 | DC27: 43.48 | DD27: 29.56
H28: usage DS(6) | K28: III | P28: VSN(3) | R28: =INDEX(R$125:R$129,MATCH($K$28,$P$125:$P$129,0)) -> - | S28: - | T28: 6 | U28: 149 | V28: 577 | W28: 5393 | X28: 302208 | Y28: 1000000 | Z28: - | AA28: - | AB28: - | AC28: - | AD28: - | AE28: - | AF28: - | AG28: - | AH28: - | AI28: - | AJ28: - | AK28: - | AL28: - | AM28: - | AP28: =INDEX(AP$125:AP$129,MATCH($K$28,$P$125:$P$129,0)) -> - | AQ28: - | AR28: - | AS28: - | AT28: - | AU28: - | AV28: - | AW28: - | AX28: - | AY28: - | AZ28: - | BA28: - | BB28: - | BC28: - | BD28: 0.2 | BE28: 7.1 | BF28: 6 | BG28: 7.9 | BH28: 1.5 | BI28: 2.5 | BO28: 6 | BP28: 149 | BQ28: 577 | BR28: 5393 | BS28: 302208 | BT28: 1000000 | BU28: - | BV28: - | BW28: - | BX28: - | BY28: - | BZ28: - | CA28: - | CB28: - | CC28: - | CD28: - | CE28: - | CF28: - | CG28: - | CH28: - | CJ28: - | CK28: - | CL28: - | CM28: - | CN28: - | CO28: - | CP28: - | CQ28: - | CR28: - | CS28: - | CT28: - | CU28: - | CV28: - | CW28: - | CY28: 0.2 | CZ28: 7.1 | DA28: 6 | DB28: 7.9 | DC28: 1.5 | DD28: 2.5
P29: VSN-aj(3) (5) | AP29: =Z29 -> 0 | AQ29: 0 | AR29: 0 | AS29: 0 | AT29: 0 | AU29: 0 | AV29: 0 | AW29: 0 | AX29: 0 | AY29: 0 | AZ29: 0 | BA29: 0 | BB29: 0 | BC29: 0 | BO29: 0 | BP29: 0 | BQ29: 0 | BR29: 0 | BS29: 0 | BT29: 0 | BU29: 0 | BV29: 0 | BW29: 0 | BX29: 0 | BY29: 0 | BZ29: 0 | CA29: 0 | CB29: 0 | CC29: 0 | CD29: 0 | CE29: 0 | CF29: 0 | CG29: 0 | CH29: 0 | CJ29: 0 | CK29: 0 | CL29: 0 | CM29: 0 | CN29: 0 | CO29: 0 | CP29: 0 | CQ29: 0 | CR29: 0 | CS29: 0 | CT29: 0 | CU29: 0 | CV29: 0 | CW29: 0 | CY29: 0 | CZ29: 0 | DA29: 0 | DB29: 0 | DC29: 0 | DD29: 0
H30: usage DS(6) | K30: III | P30: VLN(3) | R30: =INDEX(R$135:R$139,MATCH($K$30,$P$135:$P$139,0)) -> - | S30: - | T30: 12 | U30: 298 | V30: 1154 | W30: 10786 | X30: 604416 | Y30: 1000000 | Z30: - | AA30: - | AB30: - | AC30: - | AD30: - | AE30: - | AF30: - | AG30: - | AH30: - | AI30: - | AJ30: - | AK30: - | AL30: - | AM30: - | AP30: =INDEX(AP$135:AP$139,MATCH($K$30,$P$135:$P$139,0)) -> - | AQ30: - | AR30: - | AS30: - | AT30: - | AU30: - | AV30: - | AW30: - | AX30: - | AY30: - | AZ30: - | BA30: - | BB30: - | BC30: - | BD30: 1 | BE30: 59 | BF30: 30 | BG30: 34 | BH30: 6.18 | BI30: 17 | BO30: 12 | BP30: 298 | BQ30: 1154 | BR30: 10786 | BS30: 604416 | BT30: 1000000 | BU30: - | BV30: - | BW30: - | BX30: - | BY30: - | BZ30: - | CA30: - | CB30: - | CC30: - | CD30: - | CE30: - | CF30: - | CG30: - | CH30: - | CJ30: - | CK30: - | CL30: - | CM30: - | CN30: - | CO30: - | CP30: - | CQ30: - | CR30: - | CS30: - | CT30: - | CU30: - | CV30: - | CW30: - | CY30: 1 | CZ30: 59 | DA30: 30 | DB30: 34 | DC30: 6.18 | DD30: 17
P31: VLN-aj(3) (5) | AP31: =Z31 -> 0 | AQ31: 0 | AR31: 0 | AS31: 0 | AT31: 0 | AU31: 0 | AV31: 0 | AW31: 0 | AX31: 0 | AY31: 0 | AZ31: 0 | BA31: 0 | BB31: 0 | BC31: 0 | BO31: 0 | BP31: 0 | BQ31: 0 | BR31: 0 | BS31: 0 | BT31: 0 | BU31: 0 | BV31: 0 | BW31: 0 | BX31: 0 | BY31: 0 | BZ31: 0 | CA31: 0 | CB31: 0 | CC31: 0 | CD31: 0 | CE31: 0 | CF31: 0 | CG31: 0 | CH31: 0 | CJ31: 0 | CK31: 0 | CL31: 0 | CM31: 0 | CN31: 0 | CO31: 0 | CP31: 0 | CQ31: 0 | CR31: 0 | CS31: 0 | CT31: 0 | CU31: 0 | CV31: 0 | CW31: 0 | CY31: 0 | CZ31: 0 | DA31: 0 | DB31: 0 | DC31: 0 | DD31: 0
B32: Fond pointillé = excède la | H32: usage (DS)(4) (6) | K32: III | P32: VSE(3) | R32: =INDEX(R$75:R$77,MATCH($K$32,$P$75:$P$77,0)) -> - | S32: - | T32: 105 | U32: 105 | V32: 75 | W32: 75 | X32: 650 | Y32: 650 | Z32: - | AA32: - | AB32: - | AC32: - | AD32: - | AE32: - | AF32: - | AG32: - | AH32: - | AI32: - | AJ32: - | AK32: - | AL32: - | AM32: - | AP32: =INDEX(AP$75:AP$77,MATCH($K$32,$P$75:$P$77,0)) -> - | AQ32: - | AR32: - | AS32: - | AT32: - | AU32: - | AV32: - | AW32: - | AX32: - | AY32: - | AZ32: - | BA32: - | BB32: - | BC32: - | BD32: 14 | BE32: 8.5 | BF32: 12 | BG32: 2 | BH32: 8 | BI32: 7.2 | BO32: =T32 -> 105 | BP32: 105 | BQ32: 75 | BR32: 75 | BS32: 650 | BT32: 650 | BU32: - | BV32: - | BW32: - | BX32: - | BY32: - | BZ32: - | CA32: - | CB32: - | CC32: - | CD32: - | CE32: - | CF32: - | CG32: - | CH32: - | CJ32: =BU32 -> - | CK32: - | CL32: - | CM32: - | CN32: - | CO32: - | CP32: - | CQ32: - | CR32: - | CS32: - | CT32: - | CU32: - | CV32: - | CW32: - | CY32: =BD32 -> 14 | CZ32: 8.5 | DA32: 12 | DB32: 2 | DC32: 8 | DD32: 7.2
B33: Fond jaune = excède le | H33: MCS applicable(6) | K33: LIMON MCS-2 | P33: BOF-SRA(3) | R33: =INDEX(R$85:R$119,MATCH($K$33,$P$85:$P$119,0)) -> 7800 | S33: =INDEX(S$85:S$119,MATCH($K$33,$P$85:$P$119,0)) -> 7600 | U33: =INDEX(U$85:U$119,MATCH($K$33,$P$85:$P$119,0)) -> 190 | V33: =INDEX(V$85:V$119,MATCH($K$33,$P$85:$P$119,0)) -> 740 | Z33: =INDEX(Z$85:Z$119,MATCH($K$33,$P$85:$P$119,0)) -> - | AA33: 7.625 | AB33: 68.625 | AC33: 640.5 | AD33: 3698.125 | AE33: 1753.75 | AF33: - | AG33: - | AH33: - | AI33: 122 | AJ33: 106.75 | AK33: 876.875 | AL33: 533.75 | AM33: - | AP33: - | AQ33: 7.625 | AR33: 68.625 | AS33: 640.5 | AT33: 3698.125 | AU33: 1753.75 | AV33: - | AW33: - | AX33: - | AY33: 122 | AZ33: 106.75 | BA33: 876.875 | BB33: 533.75 | BC33: - | BD33: =INDEX(BD$85:BD$119,MATCH($K$33,$P$85:$P$119,0)) -> 0.31 | BE33: 36.1 | BF33: 1.33 | BG33: 21.09 | BH33: 19 | BI33: 11.4 | BM33: =R33 -> 7800 | BN33: =S33 -> 7600 | BO33: 0 | BP33: 190 | BQ33: 740 | BR33: 0 | BS33: 0 | BT33: 0 | BU33: - | BV33: 7.625 | BW33: 68.625 | BX33: 640.5 | BY33: 3698.125 | BZ33: 1753.75 | CA33: - | CB33: - | CC33: - | CD33: 122 | CE33: 106.75 | CF33: 876.875 | CG33: 533.75 | CH33: - | CJ33: - | CK33: 7.625 | CL33: 68.625 | CM33: 640.5 | CN33: 3698.125 | CO33: 1753.75 | CP33: - | CQ33: - | CR33: - | CS33: 122 | CT33: 106.75 | CU33: 876.875 | CV33: 533.75 | CW33: - | CY33: 0.31 | CZ33: 36.1 | DA33: 1.33 | DB33: 21.09 | DC33: 19 | DD33: 11.4
B34: (1) ESS = essence; DI = diesel; HA = hydrocarbures aromatiques ; MC = mazout de chauffage ; AU = autre
B35: (2) Blanc (vide) = néant ; * = léger ; ** = moyen ; *** = fort ou valeur PID mesurée - il n'est pas nécessaire d'indiquer en même temps les perceptions organoleptiques et la réaction huile/eau qui n'est pas strictement nécessaire
B36: (3) A adapter conformément à la législation et aux paramètres spécifiques au site
B37: (4) Voir le GRER (partie D) pour l'applicabilité et les dérogations
B38: (5) A calculer selon le GRER (partie C - annexe C2)
B39: (6) Liste déroulante
B40: (7) Dans le cas de diesel ("DI"), il convient de procéder à l'évaluation (vis-a-vis des VSH ou du BOF_SRA) sur base de la "répartition standard diesel" ; dans les autres cas (polluant autre que "DI"), il n'y a pas lieu de procéder à cette évaluation
AO41: DI
H42: EO | I42: TN | L42: ESS | N42: oui | AO42: autre ou ?
F43: Oui | H43: EC | I43: R | L43: DI | N43: non
H44: PA | I44: non défini | L44: HA
H45: EF | L45: MC
H46: MON | L46: AU
H47: EI
H48: autre / non défini
O50: VS (DS) | P50: usage | R50: conc. en mg/kg ms
R51: Huile minérale EC5-35 | S51: Huile minérale EC10-40 | T51: Fraction EC 5-8 | U51: Fraction EC >8-10 | V51: Fraction EC >10-12 | W51: Fraction EC >12-16 | X51: Fraction EC >16-21 | Y51: Fraction EC >21-35 | Z51: ALI EC 5-6 | AA51: ALI EC >6-8 | AB51: ALI EC >8-10 | AC51: ALI EC >10-12 | AD51: ALI EC >12-16 | AE51: ALI EC >16-21 | AF51: ALI EC >21-35 | AG51: Arom EC 6-7 | AH51: Arom EC >7-8 | AI51: Arom EC >8-10 | AJ51: Arom EC >10-12 | AK51: Arom EC >12-16 | AL51: Arom EC >16-21 | AM51: Arom EC >21-35 | AP51: ALI EC 5-6 | AQ51: ALI EC >6-8 | AR51: ALI EC >8-10 | AS51: ALI EC >10-12 | AT51: ALI EC >12-16 | AU51: ALI EC >16-21 | AV51: ALI EC >21-35 | AW51: Arom EC 6-7 | AX51: Arom EC >7-8 | AY51: Arom EC >8-10 | AZ51: Arom EC >10-12 | BA51: Arom EC >12-16 | BB51: Arom EC >16-21 | BC51: Arom EC >21-35 | BD51: Benzène | BE51: Toluène | BF51: Ethylbenzène | BG51: Xylènes (somme) | BH51: MTBE | BI51: Naphtalène
P52: I | R52: - | S52: - | T52: 6 | U52: 21 | V52: 75 | W52: 75 | X52: 650 | Y52: 650 | Z52: - | AA52: - | AB52: - | AC52: - | AD52: - | AE52: - | AF52: - | AG52: - | AH52: - | AI52: - | AJ52: - | AK52: - | AL52: - | AM52: - | AP52: =Z52 -> - | AQ52: =AA52 -> - | AR52: - | AS52: - | AT52: - | AU52: - | AV52: - | AW52: - | AX52: - | AY52: - | AZ52: - | BA52: - | BB52: - | BC52: - | BD52: 0.1 | BE52: 4 | BF52: 0.3 | BG52: 1 | BH52: 1.5 | BI52: 2.5
P53: II | R53: - | S53: - | T53: 6 | U53: 21 | V53: 75 | W53: 75 | X53: 650 | Y53: 650 | Z53: - | AA53: - | AB53: - | AC53: - | AD53: - | AE53: - | AF53: - | AG53: - | AH53: - | AI53: - | AJ53: - | AK53: - | AL53: - | AM53: - | AP53: =Z53 -> - | AQ53: - | AR53: - | AS53: - | AT53: - | AU53: - | AV53: - | AW53: - | AX53: - | AY53: - | AZ53: - | BA53: - | BB53: - | BC53: - | BD53: 0.1 | BE53: 4 | BF53: 0.3 | BG53: 1 | BH53: 1.5 | BI53: 2.5
P54: III | R54: - | S54: - | T54: 6 | U54: 21 | V54: 75 | W54: 75 | X54: 650 | Y54: 650 | Z54: - | AA54: - | AB54: - | AC54: - | AD54: - | AE54: - | AF54: - | AG54: - | AH54: - | AI54: - | AJ54: - | AK54: - | AL54: - | AM54: - | AP54: =Z54 -> - | AQ54: - | AR54: - | AS54: - | AT54: - | AU54: - | AV54: - | AW54: - | AX54: - | AY54: - | AZ54: - | BA54: - | BB54: - | BC54: - | BD54: 0.1 | BE54: 7 | BF54: 0.3 | BG54: 2 | BH54: 1.5 | BI54: 2.5
P55: IV | R55: - | S55: - | T55: 6 | U55: 150 | V55: 580 | W55: 750 | X55: 1250 | Y55: 2100 | Z55: - | AA55: - | AB55: - | AC55: - | AD55: - | AE55: - | AF55: - | AG55: - | AH55: - | AI55: - | AJ55: - | AK55: - | AL55: - | AM55: - | AP55: =Z55 -> - | AQ55: - | AR55: - | AS55: - | AT55: - | AU55: - | AV55: - | AW55: - | AX55: - | AY55: - | AZ55: - | BA55: - | BB55: - | BC55: - | BD55: 0.2 | BE55: 7 | BF55: 3 | BG55: 8 | BH55: 1.5 | BI55: 2.5
P56: V | R56: - | S56: - | T56: 9 | U56: 600 | V56: 600 | W56: 920 | X56: 2700 | Y56: 5300 | Z56: - | AA56: - | AB56: - | AC56: - | AD56: - | AE56: - | AF56: - | AG56: - | AH56: - | AI56: - | AJ56: - | AK56: - | AL56: - | AM56: - | AP56: =Z56 -> - | AQ56: - | AR56: - | AS56: - | AT56: - | AU56: - | AV56: - | AW56: - | AX56: - | AY56: - | AZ56: - | BA56: - | BB56: - | BC56: - | BD56: 0.2 | BE56: 22 | BF56: 3 | BG56: 30 | BH56: 2 | BI56: 6.3
O59: VSH (GRER v04) | P59: usage | R59: conc. en mg/kg ms
R60: Huile minérale EC5-35 | S60: Huile minérale EC10-40 | T60: Fraction EC 5-8 | U60: Fraction EC >8-10 | V60: Fraction EC >10-12 | W60: Fraction EC >12-16 | X60: Fraction EC >16-21 | Y60: Fraction EC >21-35 | Z60: ALI EC 5-6 | AA60: ALI EC >6-8 | AB60: ALI EC >8-10 | AC60: ALI EC >10-12 | AD60: ALI EC >12-16 | AE60: ALI EC >16-21 | AF60: ALI EC >21-35 | AG60: Arom EC 6-7 | AH60: Arom EC >7-8 | AI60: Arom EC >8-10 | AJ60: Arom EC >10-12 | AK60: Arom EC >12-16 | AL60: Arom EC >16-21 | AM60: Arom EC >21-35 | AP60: ALI EC 5-6 | AQ60: ALI EC >6-8 | AR60: ALI EC >8-10 | AS60: ALI EC >10-12 | AT60: ALI EC >12-16 | AU60: ALI EC >16-21 | AV60: ALI EC >21-35 | AW60: Arom EC 6-7 | AX60: Arom EC >7-8 | AY60: Arom EC >8-10 | AZ60: Arom EC >10-12 | BA60: Arom EC >12-16 | BB60: Arom EC >16-21 | BC60: Arom EC >21-35 | BD60: Benzène | BE60: Toluène | BF60: Ethylbenzène | BG60: Xylènes (somme) | BH60: MTBE | BI60: Naphtalène
P61: I | R61: - | S61: - | T61: 953.96 | U61: 38941.65 | V61: 34559.43 | W61: 34592.86 | X61: 48464.75 | Y61: 48464.75 | Z61: - | AA61: - | AB61: 50010 | AC61: 50150 | AD61: 50170 | AE61: - | AF61: - | AG61: 143.6 | AH61: 50050 | AI61: 25680 | AJ61: 20030 | AK61: 20060 | AL61: 15050 | AM61: 15050 | AP61: =Z61 -> - | AQ61: - | AR61: 50010 | AS61: 50150 | AT61: 50170 | AU61: - | AV61: - | AW61: 143.6 | AX61: 50050 | AY61: 25680 | AZ61: 20030 | BA61: 20060 | BB61: 15050 | BC61: 15050 | BD61: 143.6 | BE61: 50050 | BF61: 1930 | BG61: 125600 | BH61: 7378 | BI61: 278100
P62: II | R62: - | S62: - | T62: 6 | U62: 24 | V62: 111.69 | W62: 1002.14 | X62: 7890.64 | Y62: 5538.72 | Z62: 36.31 | AA62: 90.83 | AB62: 21.78 | AC62: 111.6 | AD62: 8191 | AE62: 178000 | AF62: 9753 | AG62: 0.1 | AH62: 9.16 | AI62: 29.86 | AJ62: 111.9 | AK62: 328.8 | AL62: 2443 | AM62: 2758 | AP62: 36.31 | AQ62: 90.83 | AR62: 21.78 | AS62: 111.6 | AT62: 8191 | AU62: 178000 | AV62: 9753 | AW62: 0.1 | AX62: 9.16 | AY62: 29.86 | AZ62: 111.9 | BA62: 328.8 | BB62: 2443 | BC62: 2758 | BD62: 0.1 | BE62: 9.16 | BF62: 0.32 | BG62: 6.36 | BH62: 1.51 | BI62: 3.72
P63: III | R63: - | S63: - | T63: 6 | U63: 24.03 | V63: 116.43 | W63: 1726.81 | X63: 8582.4 | Y63: 9369.03 | Z63: 36.34 | AA63: 90.87 | AB63: 21.8 | AC63: 111.8 | AD63: 8757 | AE63: 194000 | AF63: 194100 | AG63: 0.1 | AH63: 9.75 | AI63: 31.57 | AJ63: 128.9 | AK63: 601 | AL63: 2657 | AM63: 2909 | AP63: 36.34 | AQ63: 90.87 | AR63: 21.8 | AS63: 111.8 | AT63: 8757 | AU63: 194000 | AV63: 194100 | AW63: 0.1 | AX63: 9.75 | AY63: 31.57 | AZ63: 128.9 | BA63: 601 | BB63: 2657 | BC63: 2909 | BD63: 0.1 | BE63: 9.75 | BF63: 0.35 | BG63: 6.45 | BH63: 2.24 | BI63: 3.72
P64: IV | R64: - | S64: - | T64: 6 | U64: 1330.42 | V64: 34559.43 | W64: 34592.86 | X64: 48464.75 | Y64: 48464.75 | Z64: 411.7 | AA64: - | AB64: 50010 | AC64: 50150 | AD64: 50170 | AE64: - | AF64: - | AG64: 0.7 | AH64: 125 | AI64: 406.7 | AJ64: 20030 | AK64: 20060 | AL64: 15050 | AM64: 15050 | AP64: 411.7 | AQ64: - | AR64: 50010 | AS64: 50150 | AT64: 50170 | AU64: - | AV64: - | AW64: 0.7 | AX64: 125 | AY64: 406.7 | AZ64: 20030 | BA64: 20060 | BB64: 15050 | BC64: 15050 | BD64: 0.7 | BE64: 125 | BF64: 3.21 | BG64: 74.94 | BH64: 43.48 | BI64: 29.56
P65: V | R65: - | S65: - | T65: 9 | U65: 1357.03 | V65: 199867.7 | W65: 208645.78 | X65: 250568.98 | Y65: 250636.97 | Z65: 422.5 | AA65: - | AB65: 195100 | AC65: 300800 | AD65: 304200 | AE65: - | AF65: - | AG65: 0.7 | AH65: 126.1 | AI65: 409.1 | AJ65: 112100 | AK65: 120400 | AL65: 91160 | AM65: 91190 | AP65: 422.5 | AQ65: - | AR65: 195100 | AS65: 300800 | AT65: 304200 | AU65: - | AV65: - | AW65: 0.7 | AX65: 126.1 | AY65: 409.1 | AZ65: 112100 | BA65: 120400 | BB65: 91160 | BC65: 91190 | BD65: 0.7 | BE65: 126.1 | BF65: 3.21 | BG65: 76.63 | BH65: 43.48 | BI65: 29.56
P66: CSAT | Z66: 626.12 | AA66: 341.22 | AB66: 187.83 | AC66: 114.41 | AD66: 50.74 | AE66: 20.98 | AF66: 2.15 | AG66: 2373.06 | AH66: 1066.04 | AI66: 1391.47 | AJ66: 841.71 | AK66: 388.02 | AL66: 137.17 | AM66: 11.05 | AP66: 626.12 | AQ66: 341.22 | AR66: 187.83 | AS66: 114.41 | AT66: 50.74 | AU66: 20.98 | AV66: 2.15 | AW66: 2373.06 | AX66: 1066.04 | AY66: 1391.47 | AZ66: 841.71 | BA66: 388.02 | BB66: 137.17 | BC66: 11.05 | BD66: 2373.06 | BE66: 1066.04 | BF66: 486 | BG66: 544.61 | BH66: 13645.95 | BI66: 597.25
R68: en gras, les valeurs dépassent la CSAT (conc. À saturation)
R69: le tiret "-" signifie que les concentrations dépassent le kg de polluant par kg de sol
R70: valeurs surlignées en gris = VS (DS) car VSH<VS
O73: VSE (GRER v04) | P73: usage | R73: conc. en mg/kg ms
R74: Huile minérale EC5-35 | S74: Huile minérale EC10-40 | T74: Fraction EC 5-8 | U74: Fraction EC >8-10 | V74: Fraction EC >10-12 | W74: Fraction EC >12-16 | X74: Fraction EC >16-21 | Y74: Fraction EC >21-35 | Z74: ALI EC 5-6 | AA74: ALI EC >6-8 | AB74: ALI EC >8-10 | AC74: ALI EC >10-12 | AD74: ALI EC >12-16 | AE74: ALI EC >16-21 | AF74: ALI EC >21-35 | AG74: Arom EC 6-7 | AH74: Arom EC >7-8 | AI74: Arom EC >8-10 | AJ74: Arom EC >10-12 | AK74: Arom EC >12-16 | AL74: Arom EC >16-21 | AM74: Arom EC >21-35 | AP74: ALI EC 5-6 | AQ74: ALI EC >6-8 | AR74: ALI EC >8-10 | AS74: ALI EC >10-12 | AT74: ALI EC >12-16 | AU74: ALI EC >16-21 | AV74: ALI EC >21-35 | AW74: Arom EC 6-7 | AX74: Arom EC >7-8 | AY74: Arom EC >8-10 | AZ74: Arom EC >10-12 | BA74: Arom EC >12-16 | BB74: Arom EC >16-21 | BC74: Arom EC >21-35 | BD74: Benzène | BE74: Toluène | BF74: Ethylbenzène | BG74: Xylènes (somme) | BH74: MTBE | BI74: Naphtalène
P75: I | R75: - | S75: - | T75: 105 | U75: 105 | V75: 75 | W75: 75 | X75: 650 | Y75: 650 | Z75: - | AA75: - | AB75: - | AC75: - | AD75: - | AE75: - | AF75: - | AG75: - | AH75: - | AI75: - | AJ75: - | AK75: - | AL75: - | AM75: - | AP75: =Z75 -> - | AQ75: =AA75 -> - | AR75: =AB75 -> - | AS75: =AC75 -> - | AT75: =AD75 -> - | AU75: =AE75 -> - | AV75: =AF75 -> - | AW75: =AG75 -> - | AX75: =AH75 -> - | AY75: =AI75 -> - | AZ75: =AJ75 -> - | BA75: =AK75 -> - | BB75: =AL75 -> - | BC75: =AM75 -> - | BD75: 11 | BE75: 6 | BF75: 7.8 | BG75: 1.9 | BH75: 6.7 | BI75: 3.7
P76: II | R76: - | S76: - | T76: 105 | U76: 105 | V76: 75 | W76: 75 | X76: 650 | Y76: 650 | Z76: - | AA76: - | AB76: - | AC76: - | AD76: - | AE76: - | AF76: - | AG76: - | AH76: - | AI76: - | AJ76: - | AK76: - | AL76: - | AM76: - | AP76: - | AQ76: - | AR76: - | AS76: - | AT76: - | AU76: - | AV76: - | AW76: - | AX76: - | AY76: - | AZ76: - | BA76: - | BB76: - | BC76: - | BD76: 6.4 | BE76: 3.6 | BF76: 4.7 | BG76: 1.1 | BH76: 4 | BI76: 3.7
P77: III | R77: - | S77: - | T77: 105 | U77: 105 | V77: 75 | W77: 75 | X77: 650 | Y77: 650 | Z77: - | AA77: - | AB77: - | AC77: - | AD77: - | AE77: - | AF77: - | AG77: - | AH77: - | AI77: - | AJ77: - | AK77: - | AL77: - | AM77: - | AP77: - | AQ77: - | AR77: - | AS77: - | AT77: - | AU77: - | AV77: - | AW77: - | AX77: - | AY77: - | AZ77: - | BA77: - | BB77: - | BC77: - | BD77: 14 | BE77: 8.5 | BF77: 12 | BG77: 2 | BH77: 8 | BI77: 7.2
O83: BOF_SRA | P83: MCS
R84: Huile minérale EC5-35 | S84: Huile minérale EC10-40 | T84: Fraction EC 5-8 | U84: Fraction EC >8-10 | V84: Fraction EC >10-12 | W84: Fraction EC >12-16 | X84: Fraction EC >16-21 | Y84: Fraction EC >21-35 | Z84: ALI EC 5-6 | AA84: ALI EC >6-8 | AB84: ALI EC >8-10 | AC84: ALI EC >10-12 | AD84: ALI EC >12-16 | AE84: ALI EC >16-21 | AF84: ALI EC >21-35 | AG84: Arom EC 6-7 | AH84: Arom EC >7-8 | AI84: Arom EC >8-10 | AJ84: Arom EC >10-12 | AK84: Arom EC >12-16 | AL84: Arom EC >16-21 | AM84: Arom EC >21-35 | AP84: ALI EC 5-6 | AQ84: ALI EC >6-8 | AR84: ALI EC >8-10 | AS84: ALI EC >10-12 | AT84: ALI EC >12-16 | AU84: ALI EC >16-21 | AV84: ALI EC >21-35 | AW84: Arom EC 6-7 | AX84: Arom EC >7-8 | AY84: Arom EC >8-10 | AZ84: Arom EC >10-12 | BA84: Arom EC >12-16 | BB84: Arom EC >16-21 | BC84: Arom EC >21-35 | BD84: Benzène | BE84: Toluène | BF84: Ethylbenzène | BG84: Xylènes (somme) | BH84: MTBE | BI84: Naphtalène
P85: LIMON MCS-1 | R85: 4000 | S85: 3900 | T85: - | U85: 100 | V85: 390 | W85: - | X85: - | Y85: - | Z85: - | AA85: 4 | AB85: 36 | AC85: 336 | AD85: 1940 | AE85: 920 | AF85: - | AG85: - | AH85: - | AI85: 64 | AJ85: 56 | AK85: 460 | AL85: 280 | AM85: - | AP85: =Z85 -> - | AQ85: =AA85 -> 4 | AR85: 36 | AS85: 336 | AT85: 1940 | AU85: 920 | AV85: - | AW85: - | AX85: - | AY85: 64 | AZ85: 56 | BA85: 460 | BB85: 280 | BC85: - | BD85: 0.162 | BE85: 19 | BF85: 0.7 | BG85: 11.1 | BH85: 10 | BI85: 6
P86: LIMON MCS-2 | R86: 7800 | S86: 7600 | T86: - | U86: 190 | V86: 740 | W86: - | X86: - | Y86: - | Z86: - | AA86: 7.625 | AB86: 68.625 | AC86: 640.5 | AD86: 3698.125 | AE86: 1753.75 | AF86: - | AG86: - | AH86: - | AI86: 122 | AJ86: 106.75 | AK86: 876.875 | AL86: 533.75 | AM86: - | AP86: =Z86 -> - | AQ86: 7.625 | AR86: 68.625 | AS86: 640.5 | AT86: 3698.125 | AU86: 1753.75 | AV86: - | AW86: - | AX86: - | AY86: 122 | AZ86: 106.75 | BA86: 876.875 | BB86: 533.75 | BC86: - | BD86: 0.31 | BE86: 36.1 | BF86: 1.33 | BG86: 21.09 | BH86: 19 | BI86: 11.4
P87: LIMON MCS-3 | R87: 2800 | S87: 2800 | T87: - | U87: 70 | V87: 270 | W87: - | X87: - | Y87: - | Z87: - | AA87: 2.8 | AB87: 25.3 | AC87: 236.3 | AD87: 1364 | AE87: 646.9 | AF87: - | AG87: - | AH87: - | AI87: 45 | AJ87: 39.4 | AK87: 323.4 | AL87: 196.9 | AM87: - | AP87: - | AQ87: 2.8 | AR87: 25.3 | AS87: 236.3 | AT87: 1364 | AU87: 646.9 | AV87: - | AW87: - | AX87: - | AY87: 45 | AZ87: 39.4 | BA87: 323.4 | BB87: 196.9 | BC87: - | BD87: 0.12 | BE87: 14 | BF87: 0.535 | BG87: 8.35 | BH87: 7.5 | BI87: 4.5
P88: LIMON MCS-4 | R88: 20000 | S88: 19000 | T88: - | U88: 490 | V88: 1900 | W88: - | X88: - | Y88: - | Z88: - | AA88: 19.9 | AB88: 179.3 | AC88: 1673 | AD88: 9662 | AE88: 4582 | AF88: - | AG88: - | AH88: - | AI88: 318.8 | AJ88: 278.9 | AK88: 2291 | AL88: 1395 | AM88: - | AP88: - | AQ88: 19.9 | AR88: 179.3 | AS88: 1673 | AT88: 9662 | AU88: 4582 | AV88: - | AW88: - | AX88: - | AY88: 318.8 | AZ88: 278.9 | BA88: 2291 | BB88: 1395 | BC88: - | BD88: 0.85 | BE88: 10 | BF88: 3.65 | BG88: 57 | BH88: 50 | BI88: 32
P89: LIMON MCS-5 | R89: 20000 | S89: 19000 | T89: - | U89: 490 | V89: 1900 | W89: - | X89: - | Y89: - | Z89: - | AA89: 19.8 | AB89: 178.2 | AC89: 1663 | AD89: 9603 | AE89: 4554 | AF89: - | AG89: - | AH89: - | AI89: 316.8 | AJ89: 277.2 | AK89: 2277 | AL89: 1386 | AM89: - | AP89: - | AQ89: 19.8 | AR89: 178.2 | AS89: 1663 | AT89: 9603 | AU89: 4554 | AV89: - | AW89: - | AX89: - | AY89: 316.8 | AZ89: 277.2 | BA89: 2277 | BB89: 1386 | BC89: - | BD89: 0.81 | BE89: 94.5 | BF89: 3.7 | BG89: 55.5 | BH89: 47 | BI89: 29.5
P90: LIMON MCS-6 | R90: 20000 | S90: 20000 | T90: - | U90: 1000 | V90: 20000 | W90: - | X90: - | Y90: - | Z90: - | AA90: 360 | AB90: 3240 | AC90: 30240 | AD90: 174600 | AE90: 82800 | AF90: - | AG90: - | AH90: - | AI90: 5760 | AJ90: 5040 | AK90: 41400 | AL90: 25200 | AM90: - | AP90: - | AQ90: 360 | AR90: 3240 | AS90: 30240 | AT90: 174600 | AU90: 82800 | AV90: - | AW90: - | AX90: - | AY90: 5760 | AZ90: 5040 | BA90: 41400 | BB90: 25200 | BC90: - | BD90: 14 | BE90: 3000 | BF90: 63 | BG90: 4000 | BH90: 800 | BI90: 540
P91: LIMON MCS-7 | R91: 20000 | S91: 20000 | T91: - | U91: 1000 | V91: 20000 | W91: - | X91: - | Y91: - | Z91: - | AA91: 360 | AB91: 3240 | AC91: 30240 | AD91: 174600 | AE91: 82800 | AF91: - | AG91: - | AH91: - | AI91: 5760 | AJ91: 5040 | AK91: 41400 | AL91: 25200 | AM91: - | AP91: - | AQ91: 360 | AR91: 3240 | AS91: 30240 | AT91: 174600 | AU91: 82800 | AV91: - | AW91: - | AX91: - | AY91: 5760 | AZ91: 5040 | BA91: 41400 | BB91: 25200 | BC91: - | BD91: 7 | BE91: 840 | BF91: 32 | BG91: 475 | BH91: 440 | BI91: 260
P92: LIMON SABLEUX MCS-1 | R92: 3200 | S92: 3100 | T92: - | U92: 80 | V92: 310 | W92: - | X92: - | Y92: - | Z92: - | AA92: 3.2 | AB92: 28.7 | AC92: 267.8 | AD92: 1546 | AE92: 733.1 | AF92: - | AG92: - | AH92: - | AI92: 51 | AJ92: 44.6 | AK92: 366.6 | AL92: 223.1 | AM92: - | AP92: - | AQ92: 3.2 | AR92: 28.7 | AS92: 267.8 | AT92: 1546 | AU92: 733.1 | AV92: - | AW92: - | AX92: - | AY92: 51 | AZ92: 44.6 | BA92: 366.6 | BB92: 223.1 | BC92: - | BD92: 0.12 | BE92: 13.5 | BF92: 0.5 | BG92: 7.68 | BH92: 7.7 | BI92: 4.5
P93: LIMON SABLEUX MCS-2 | R93: 5400 | S93: 5300 | T93: - | U93: 130 | V93: 520 | W93: - | X93: - | Y93: - | Z93: - | AA93: 5.3 | AB93: 48.1 | AC93: 448.9 | AD93: 2592 | AE93: 1229 | AF93: - | AG93: - | AH93: - | AI93: 85.5 | AJ93: 74.8 | AK93: 614.5 | AL93: 374.1 | AM93: - | AP93: - | AQ93: 5.3 | AR93: 48.1 | AS93: 448.9 | AT93: 2592 | AU93: 1229 | AV93: - | AW93: - | AX93: - | AY93: 85.5 | AZ93: 74.8 | BA93: 614.5 | BB93: 374.1 | BC93: - | BD93: 0.31 | BE93: 36.1 | BF93: 1.33 | BG93: 21.09 | BH93: 19 | BI93: 11.4
P94: LIMON SABLEUX MCS-3 | R94: 1500 | S94: 1400 | T94: - | U94: 37 | V94: 140 | W94: - | X94: - | Y94: - | Z94: - | AA94: 1.456 | AB94: 13.16 | AC94: 122.9 | AD94: 709.3 | AE94: 336.4 | AF94: - | AG94: - | AH94: - | AI94: 23.4 | AJ94: 20.49 | AK94: 168.2 | AL94: 102.4 | AM94: - | AP94: - | AQ94: 1.456 | AR94: 13.16 | AS94: 122.9 | AT94: 709.3 | AU94: 336.4 | AV94: - | AW94: - | AX94: - | AY94: 23.4 | AZ94: 20.49 | BA94: 168.2 | BB94: 102.4 | BC94: - | BD94: 0.099 | BE94: 1.1 | BF94: 0.445 | BG94: 6.68 | BH94: 6.2 | BI94: 3.8
P95: LIMON SABLEUX MCS-4 | R95: 14000 | S95: 13000 | T95: - | U95: 340 | V95: 1300 | W95: - | X95: - | Y95: - | Z95: - | AA95: 13.78 | AB95: 125.1 | AC95: 1167 | AD95: 6739 | AE95: 3195 | AF95: - | AG95: - | AH95: - | AI95: 222.3 | AJ95: 194.5 | AK95: 1598 | AL95: 972.7 | AM95: - | AP95: - | AQ95: 13.78 | AR95: 125.1 | AS95: 1167 | AT95: 6739 | AU95: 3195 | AV95: - | AW95: - | AX95: - | AY95: 222.3 | AZ95: 194.5 | BA95: 1598 | BB95: 972.7 | BC95: - | BD95: 0.585 | BE95: 69 | BF95: 2.65 | BG95: 40.2 | BH95: 36.25 | BI95: 22.5
P96: LIMON SABLEUX MCS-5 | R96: 15000 | S96: 14000 | T96: - | U96: 370 | V96: 1400 | W96: - | X96: - | Y96: - | Z96: - | AA96: 14.85 | AB96: 133.7 | AC96: 1247 | AD96: 7202 | AE96: 3415 | AF96: - | AG96: - | AH96: - | AI96: 237.6 | AJ96: 207.9 | AK96: 1708 | AL96: 1040 | AM96: - | AP96: - | AQ96: 14.85 | AR96: 133.7 | AS96: 1247 | AT96: 7202 | AU96: 3415 | AV96: - | AW96: - | AX96: - | AY96: 237.6 | AZ96: 207.9 | BA96: 1708 | BB96: 1040 | BC96: - | BD96: 0.61 | BE96: 72.5 | BF96: 2.76 | BG96: 42 | BH96: 36 | BI96: 22.75
P97: LIMON SABLEUX MCS-6 | R97: 20000 | S97: 20000 | T97: - | U97: 1000 | V97: 20000 | W97: - | X97: - | Y97: - | Z97: - | AA97: 360 | AB97: 3240 | AC97: 30240 | AD97: 174600 | AE97: 82800 | AF97: - | AG97: - | AH97: - | AI97: 5760 | AJ97: 5040 | AK97: 41400 | AL97: 25200 | AM97: - | AP97: - | AQ97: 360 | AR97: 3240 | AS97: 30240 | AT97: 174600 | AU97: 82800 | AV97: - | AW97: - | AX97: - | AY97: 5760 | AZ97: 5040 | BA97: 41400 | BB97: 25200 | BC97: - | BD97: 8.9 | BE97: 1200 | BF97: 40 | BG97: 3800 | BH97: 550 | BI97: 340
P98: LIMON SABLEUX MCS-7 | R98: 20000 | S98: 20000 | T98: - | U98: 1000 | V98: 20000 | W98: - | X98: - | Y98: - | Z98: - | AA98: 360 | AB98: 3240 | AC98: 30240 | AD98: 174600 | AE98: 82800 | AF98: - | AG98: - | AH98: - | AI98: 5760 | AJ98: 5040 | AK98: 41400 | AL98: 25200 | AM98: - | AP98: - | AQ98: 360 | AR98: 3240 | AS98: 30240 | AT98: 174600 | AU98: 82800 | AV98: - | AW98: - | AX98: - | AY98: 5760 | AZ98: 5040 | BA98: 41400 | BB98: 25200 | BC98: - | BD98: 4.65 | BE98: 550 | BF98: 20 | BG98: 290 | BH98: 290 | BI98: 160
P99: ARGILE MCS-1 | R99: 9000 | S99: 8700 | T99: - | U99: 220 | V99: 860 | W99: - | X99: - | Y99: - | Z99: - | AA99: 8.8 | AB99: 79.2 | AC99: 739.2 | AD99: 4268 | AE99: 2024 | AF99: - | AG99: - | AH99: - | AI99: 140.8 | AJ99: 123.2 | AK99: 1012 | AL99: 616 | AM99: - | AP99: - | AQ99: 8.8 | AR99: 79.2 | AS99: 739.2 | AT99: 4268 | AU99: 2024 | AV99: - | AW99: - | AX99: - | AY99: 140.8 | AZ99: 123.2 | BA99: 1012 | BB99: 616 | BC99: - | BD99: 0.33 | BE99: 37.5 | BF99: 1.5 | BG99: 22 | BH99: 16 | BI99: 12
P100: ARGILE MCS-2 | R100: 17000 | S100: 16000 | T100: - | U100: 420 | V100: 1600 | W100: - | X100: - | Y100: - | Z100: - | AA100: 16.8 | AB100: 151.3 | AC100: 1412 | AD100: 8154 | AE100: 3867 | AF100: - | AG100: - | AH100: - | AI100: 269 | AJ100: 235.4 | AK100: 1933 | AL100: 1177 | AM100: - | AP100: - | AQ100: 16.8 | AR100: 151.3 | AS100: 1412 | AT100: 8154 | AU100: 3867 | AV100: - | AW100: - | AX100: - | AY100: 269 | AZ100: 235.4 | BA100: 1933 | BB100: 1177 | BC100: - | BD100: 0.66 | BE100: 75 | BF100: 3 | BG100: 44 | BH100: 32 | BI100: 24
P101: ARGILE MCS-3 | R101: 20000 | S101: 5900 | T101: - | U101: 140 | V101: 580 | W101: - | X101: - | Y101: - | Z101: - | AA101: 5.94 | AB101: 53.46 | AC101: 499 | AD101: 2881 | AE101: 1366 | AF101: - | AG101: - | AH101: - | AI101: 95.04 | AJ101: 83.16 | AK101: 683.1 | AL101: 415.8 | AM101: - | AP101: - | AQ101: 5.94 | AR101: 53.46 | AS101: 499 | AT101: 2881 | AU101: 1366 | AV101: - | AW101: - | AX101: - | AY101: 95.04 | AZ101: 83.16 | BA101: 683.1 | BB101: 415.8 | BC101: - | BD101: 0.2295 | BE101: 28 | BF101: 1.075 | BG101: 16.25 | BH101: 11.5 | BI101: 8.8
P102: ARGILE MCS-4 | R102: 20000 | S102: 20000 | T102: - | U102: 1000 | V102: 4600 | W102: - | X102: - | Y102: - | Z102: - | AA102: 47.08 | AB102: 423.7 | AC102: 3955 | AD102: 22830 | AE102: 10830 | AF102: - | AG102: - | AH102: - | AI102: 753.3 | AJ102: 659.1 | AK102: 5414 | AL102: 3296 | AM102: - | AP102: - | AQ102: 47.08 | AR102: 423.7 | AS102: 3955 | AT102: 22830 | AU102: 10830 | AV102: - | AW102: - | AX102: - | AY102: 753.3 | AZ102: 659.1 | BA102: 5414 | BB102: 3296 | BC102: - | BD102: 1.87 | BE102: 227 | BF102: 8.905 | BG102: 132.5 | BH102: 95 | BI102: 75
P103: ARGILE MCS-5 | R103: 20000 | S103: 20000 | T103: - | U103: 1000 | V103: 4200 | W103: - | X103: - | Y103: - | Z103: - | AA103: 43.56 | AB103: 392 | AC103: 3659 | AD103: 21130 | AE103: 10020 | AF103: - | AG103: - | AH103: - | AI103: 697 | AJ103: 609.8 | AK103: 5009 | AL103: 3049 | AM103: - | AP103: - | AQ103: 43.56 | AR103: 392 | AS103: 3659 | AT103: 21130 | AU103: 10020 | AV103: - | AW103: - | AX103: - | AY103: 697 | AZ103: 609.8 | BA103: 5009 | BB103: 3049 | BC103: - | BD103: 0.33 | BE103: 37.5 | BF103: 1.5 | BG103: 22 | BH103: 16 | BI103: 12
P104: ARGILE MCS-6 | R104: 20000 | S104: 20000 | T104: - | U104: 1000 | V104: 20000 | W104: - | X104: - | Y104: - | Z104: - | AA104: 360 | AB104: 3240 | AC104: 30240 | AD104: 174600 | AE104: 82800 | AF104: - | AG104: - | AH104: - | AI104: 5760 | AJ104: 5040 | AK104: 41400 | AL104: 25200 | AM104: - | AP104: - | AQ104: 360 | AR104: 3240 | AS104: 30240 | AT104: 174600 | AU104: 82800 | AV104: - | AW104: - | AX104: - | AY104: 5760 | AZ104: 5040 | BA104: 41400 | BB104: 25200 | BC104: - | BD104: 31.5 | BE104: 6000 | BF104: 127.5 | BG104: 8000 | BH104: 1650 | BI104: 1050
P105: ARGILE MCS-7 | R105: 20000 | S105: 20000 | T105: - | U105: 1000 | V105: 20000 | W105: - | X105: - | Y105: - | Z105: - | AA105: 360 | AB105: 3240 | AC105: 30240 | AD105: 174600 | AE105: 82800 | AF105: - | AG105: - | AH105: - | AI105: 5760 | AJ105: 5040 | AK105: 41400 | AL105: 25200 | AM105: - | AP105: - | AQ105: 360 | AR105: 3240 | AS105: 30240 | AT105: 174600 | AU105: 82800 | AV105: - | AW105: - | AX105: - | AY105: 5760 | AZ105: 5040 | BA105: 41400 | BB105: 25200 | BC105: - | BD105: 15.1 | BE105: 1725 | BF105: 60.3 | BG105: 875 | BH105: 819 | BI105: 490
P106: LIMON CAILLOUTEUX MCS-1 | R106: 7800 | S106: 7600 | T106: - | U106: 190 | V106: 740 | W106: - | X106: - | Y106: - | Z106: - | AA106: 7.6 | AB106: 68.6 | AC106: 640.5 | AD106: 3698 | AE106: 1754 | AF106: - | AG106: - | AH106: - | AI106: 122 | AJ106: 106.8 | AK106: 876.9 | AL106: 533.8 | AM106: - | AP106: - | AQ106: 7.6 | AR106: 68.6 | AS106: 640.5 | AT106: 3698 | AU106: 1754 | AV106: - | AW106: - | AX106: - | AY106: 122 | AZ106: 106.8 | BA106: 876.9 | BB106: 533.8 | BC106: - | BD106: 0.29 | BE106: 33.5 | BF106: 1.35 | BG106: 20 | BH106: 14 | BI106: 12
P107: LIMON CAILLOUTEUX MCS-2 | R107: 14000 | S107: 14000 | T107: - | U107: 360 | V107: 1400 | W107: - | X107: - | Y107: - | Z107: - | AA107: 14.4 | AB107: 129.9 | AC107: 1213 | AD107: 7002 | AE107: 3321 | AF107: - | AG107: - | AH107: - | AI107: 231 | AJ107: 202.1 | AK107: 1660 | AL107: 1011 | AM107: - | AP107: - | AQ107: 14.4 | AR107: 129.9 | AS107: 1213 | AT107: 7002 | AU107: 3321 | AV107: - | AW107: - | AX107: - | AY107: 231 | AZ107: 202.1 | BA107: 1660 | BB107: 1011 | BC107: - | BD107: 0.485 | BE107: 59.5 | BF107: 2.5 | BG107: 35 | BH107: 25 | BI107: 22.5
P108: LIMON CAILLOUTEUX MCS-3 | R108: 3400 | S108: 3300 | T108: - | U108: 84 | V108: 320 | W108: - | X108: - | Y108: - | Z108: - | AA108: 3.344 | AB108: 30.18 | AC108: 281.8 | AD108: 1627 | AE108: 771.8 | AF108: - | AG108: - | AH108: - | AI108: 53.68 | AJ108: 46.99 | AK108: 385.8 | AL108: 234.9 | AM108: - | AP108: - | AQ108: 3.344 | AR108: 30.18 | AS108: 281.8 | AT108: 1627 | AU108: 771.8 | AV108: - | AW108: - | AX108: - | AY108: 53.68 | AZ108: 46.99 | BA108: 385.8 | BB108: 234.9 | BC108: - | BD108: 0.216 | BE108: 26.2 | BF108: 1.02 | BG108: 15 | BH108: 10.53 | BI108: 9
P109: LIMON CAILLOUTEUX MCS-4 | R109: 2000 | S109: 20000 | T109: - | U109: 1000 | V109: 4600 | W109: - | X109: - | Y109: - | Z109: - | AA109: 36.49 | AB109: 328.4 | AC109: 3065 | AD109: 17690 | AE109: 8393 | AF109: - | AG109: - | AH109: - | AI109: 583.8 | AJ109: 510.8 | AK109: 4196 | AL109: 2554 | AM109: - | AP109: - | AQ109: 36.49 | AR109: 328.4 | AS109: 3065 | AT109: 17690 | AU109: 8393 | AV109: - | AW109: - | AX109: - | AY109: 583.8 | AZ109: 510.8 | BA109: 4196 | BB109: 2554 | BC109: - | BD109: 1.42 | BE109: 172.5 | BF109: 6.662 | BG109: 102 | BH109: 68.5 | BI109: 59.5
P110: LIMON CAILLOUTEUX MCS-5 | R110: 20000 | S110: 20000 | T110: - | U110: 1000 | V110: 4200 | W110: - | X110: - | Y110: - | Z110: - | AA110: 31.4 | AB110: 282.2 | AC110: 2635 | AD110: 15210 | AE110: 7214 | AF110: - | AG110: - | AH110: - | AI110: 501.8 | AJ110: 439.1 | AK110: 3607 | AL110: 2195 | AM110: - | AP110: - | AQ110: 31.4 | AR110: 282.2 | AS110: 2635 | AT110: 15210 | AU110: 7214 | AV110: - | AW110: - | AX110: - | AY110: 501.8 | AZ110: 439.1 | BA110: 3607 | BB110: 2195 | BC110: - | BD110: 1.2 | BE110: 147 | BF110: 5.75 | BG110: 87 | BH110: 57 | BI110: 49
P111: LIMON CAILLOUTEUX MCS-6 | R111: 20000 | S111: 20000 | T111: - | U111: 1000 | V111: 20000 | W111: - | X111: - | Y111: - | Z111: - | AA111: 360 | AB111: 3240 | AC111: 30240 | AD111: 174600 | AE111: 82800 | AF111: - | AG111: - | AH111: - | AI111: 5760 | AJ111: 5040 | AK111: 41400 | AL111: 25200 | AM111: - | AP111: - | AQ111: 360 | AR111: 3240 | AS111: 30240 | AT111: 174600 | AU111: 82800 | AV111: - | AW111: - | AX111: - | AY111: 5760 | AZ111: 5040 | BA111: 41400 | BB111: 25200 | BC111: - | BD111: 23 | BE111: 6000 | BF111: 110 | BG111: 8000 | BH111: 1125 | BI111: 990
P112: LIMON CAILLOUTEUX MCS-7 | R112: 20000 | S112: 20000 | T112: - | U112: 1000 | V112: 20000 | W112: - | X112: - | Y112: - | Z112: - | AA112: 360 | AB112: 3240 | AC112: 30240 | AD112: 174600 | AE112: 82800 | AF112: - | AG112: - | AH112: - | AI112: 5760 | AJ112: 5040 | AK112: 41400 | AL112: 25200 | AM112: - | AP112: - | AQ112: 360 | AR112: 3240 | AS112: 30240 | AT112: 174600 | AU112: 82800 | AV112: - | AW112: - | AX112: - | AY112: 5760 | AZ112: 5040 | BA112: 41400 | BB112: 25200 | BC112: - | BD112: 11.5 | BE112: 1400 | BF112: 55.75 | BG112: 800 | BH112: 570 | BI112: 493
P113: SABLE MCS-1 | R113: 930 | S113: 910 | T113: - | U113: 23 | V113: 90 | W113: - | X113: - | Y113: - | Z113: - | AA113: 0.92 | AB113: 8.25 | AC113: 77 | AD113: 444.6 | AE113: 210.8 | AF113: - | AG113: - | AH113: - | AI113: 14.67 | AJ113: 12.83 | AK113: 105.4 | AL113: 64.17 | AM113: - | AP113: - | AQ113: 0.92 | AR113: 8.25 | AS113: 77 | AT113: 444.6 | AU113: 210.8 | AV113: - | AW113: - | AX113: - | AY113: 14.67 | AZ113: 12.83 | BA113: 105.4 | BB113: 64.17 | BC113: - | BD113: 0.05 | BE113: 6 | BF113: 0.22 | BG113: 3.5 | BH113: 2.1 | BI113: 2
P114: SABLE MCS-2 | R114: 1600 | S114: 1600 | T114: - | U114: 41 | V114: 160 | W114: - | X114: - | Y114: - | Z114: - | AA114: 1.643 | AB114: 14.79 | AC114: 138 | AD114: 796.8 | AE114: 377.9 | AF114: - | AG114: - | AH114: - | AI114: 26.29 | AJ114: 23 | AK114: 188.9 | AL114: 115 | AM114: - | AP114: - | AQ114: 1.643 | AR114: 14.79 | AS114: 138 | AT114: 796.8 | AU114: 377.9 | AV114: - | AW114: - | AX114: - | AY114: 26.29 | AZ114: 23 | BA114: 188.9 | BB114: 115 | BC114: - | BD114: 0.1 | BE114: 12.5 | BF114: 0.45 | BG114: 6.9 | BH114: 4.5 | BI114: 4.4
P115: SABLE MCS-3 | R115: 790 | S115: 770 | T115: - | U115: 21 | V115: 76 | W115: - | X115: - | Y115: - | Z115: - | AA115: 0.773 | AB115: 6.946 | AC115: 65 | AD115: 375.3 | AE115: 178 | AF115: - | AG115: - | AH115: - | AI115: 12.38 | AJ115: 10.83 | AK115: 88.99 | AL115: 54.16 | AM115: - | AP115: - | AQ115: 0.773 | AR115: 6.946 | AS115: 65 | AT115: 375.3 | AU115: 178 | AV115: - | AW115: - | AX115: - | AY115: 12.38 | AZ115: 10.83 | BA115: 88.99 | BB115: 54.16 | BC115: - | BD115: 0.0465 | BE115: 5.55 | BF115: 0.21 | BG115: 3.15 | BH115: 2.05 | BI115: 1.9
P116: SABLE MCS-4 | R116: 6300 | S116: 6200 | T116: - | U116: 150 | V116: 610 | W116: - | X116: - | Y116: - | Z116: - | AA116: 6.2 | AB116: 56.1 | AC116: 523.7 | AD116: 3024 | AE116: 1434 | AF116: - | AG116: - | AH116: - | AI116: 99.8 | AJ116: 87.3 | AK116: 717 | AL116: 436.4 | AM116: - | AP116: - | AQ116: 6.2 | AR116: 56.1 | AS116: 523.7 | AT116: 3024 | AU116: 1434 | AV116: - | AW116: - | AX116: - | AY116: 99.8 | AZ116: 87.3 | BA116: 717 | BB116: 436.4 | BC116: - | BD116: 0.225 | BE116: 28 | BF116: 1.1 | BG116: 16.5 | BH116: 9.5 | BI116: 10
P117: SABLE MCS-5 | R117: 9900 | S117: 9700 | T117: - | U117: 240 | V117: 950 | W117: - | X117: - | Y117: - | Z117: - | AA117: 9.75 | AB117: 87.75 | AC117: 819 | AD117: 4729 | AE117: 2243 | AF117: - | AG117: - | AH117: - | AI117: 156 | AJ117: 136.5 | AK117: 1121 | AL117: 682.5 | AM117: - | AP117: - | AQ117: 9.75 | AR117: 87.75 | AS117: 819 | AT117: 4729 | AU117: 2243 | AV117: - | AW117: - | AX117: - | AY117: 156 | AZ117: 136.5 | BA117: 1121 | BB117: 682.5 | BC117: - | BD117: 0.355 | BE117: 44.5 | BF117: 1.55 | BG117: 25.5 | BH117: 14.5 | BI117: 14.5
P118: SABLE MCS-6 | R118: 20000 | S118: 20000 | T118: - | U118: 900 | V118: 3500 | W118: - | X118: - | Y118: - | Z118: - | AA118: 36 | AB118: 324 | AC118: 3024 | AD118: 17460 | AE118: 8280 | AF118: - | AG118: - | AH118: - | AI118: 576 | AJ118: 504 | AK118: 4140 | AL118: 2520 | AM118: - | AP118: - | AQ118: 36 | AR118: =AB118 -> 324 | AS118: 3024 | AT118: 17460 | AU118: 8280 | AV118: - | AW118: - | AX118: - | AY118: 576 | AZ118: 504 | BA118: 4140 | BB118: 2520 | BC118: - | BD118: 1.5 | BE118: 170 | BF118: 6 | BG118: 90 | BH118: 65 | BI118: 48
P119: SABLE MCS-7 | R119: 22000 | S119: 20000 | T119: - | U119: 540 | V119: 2200 | W119: - | X119: - | Y119: - | Z119: - | AA119: 21.6 | AB119: 194.4 | AC119: 1914 | AD119: 10480 | AE119: 4968 | AF119: - | AG119: - | AH119: - | AI119: 345.6 | AJ119: 302.4 | AK119: 2484 | AL119: 1512 | AM119: - | AP119: =Z119 -> - | AQ119: =AA119 -> 21.6 | AR119: 194.4 | AS119: 1914 | AT119: 10480 | AU119: 4968 | AV119: - | AW119: - | AX119: - | AY119: 345.6 | AZ119: 302.4 | BA119: 2484 | BB119: 1512 | BC119: - | BD119: 0.71 | BE119: 83 | BF119: 2.8 | BG119: 43 | BH119: 31.5 | BI119: 23.8
O123: VSN (GRER v04 partie C) | P123: usage | R123: conc. en mg/kg ms
R124: Huile minérale EC5-35 | S124: Huile minérale EC10-40 | T124: Fraction EC 5-8 | U124: Fraction EC >8-10 | V124: Fraction EC >10-12 | W124: Fraction EC >12-16 | X124: Fraction EC >16-21 | Y124: Fraction EC >21-35 | Z124: ALI EC 5-6 | AA124: ALI EC >6-8 | AB124: ALI EC >8-10 | AC124: ALI EC >10-12 | AD124: ALI EC >12-16 | AE124: ALI EC >16-21 | AF124: ALI EC >21-35 | AG124: Arom EC 6-7 | AH124: Arom EC >7-8 | AI124: Arom EC >8-10 | AJ124: Arom EC >10-12 | AK124: Arom EC >12-16 | AL124: Arom EC >16-21 | AM124: Arom EC >21-35 | AP124: ALI EC 5-6 | AQ124: ALI EC >6-8 | AR124: ALI EC >8-10 | AS124: ALI EC >10-12 | AT124: ALI EC >12-16 | AU124: ALI EC >16-21 | AV124: ALI EC >21-35 | AW124: Arom EC 6-7 | AX124: Arom EC >7-8 | AY124: Arom EC >8-10 | AZ124: Arom EC >10-12 | BA124: Arom EC >12-16 | BB124: Arom EC >16-21 | BC124: Arom EC >21-35 | BD124: Benzène | BE124: Toluène | BF124: Ethylbenzène | BG124: Xylènes (somme) | BH124: MTBE | BI124: Naphtalène
P125: I | R125: - | S125: - | T125: 6.2 | U125: 211 | V125: 884 | W125: 8459 | X125: 481309 | Y125: 1000000 | Z125: - | AA125: - | AB125: - | AC125: - | AD125: - | AE125: - | AF125: - | AG125: - | AH125: - | AI125: - | AJ125: - | AK125: - | AL125: - | AM125: - | AP125: =Z125 -> - | AQ125: - | AR125: - | AS125: - | AT125: - | AU125: - | AV125: - | AW125: - | AX125: - | AY125: - | AZ125: - | BA125: - | BB125: - | BC125: - | BD125: 0.2 | BE125: 9.2 | BF125: 8 | BG125: 11 | BH125: 1.6 | BI125: 3.8
P126: II | R126: - | S126: - | T126: 5.8 | U126: 169 | V126: 679 | W126: 6415 | X126: 361909 | Y126: 1000000 | Z126: - | AA126: - | AB126: - | AC126: - | AD126: - | AE126: - | AF126: - | AG126: - | AH126: - | AI126: - | AJ126: - | AK126: - | AL126: - | AM126: - | AP126: - | AQ126: - | AR126: - | AS126: - | AT126: - | AU126: - | AV126: - | AW126: - | AX126: - | AY126: - | AZ126: - | BA126: - | BB126: - | BC126: - | BD126: 0.2 | BE126: 7.8 | BF126: 6.4 | BG126: 8.9 | BH126: 1.5 | BI126: 2.9
P127: III | R127: - | S127: - | T127: 6 | U127: 149 | V127: 577 | W127: 5393 | X127: 302208 | Y127: 1000000 | Z127: - | AA127: - | AB127: - | AC127: - | AD127: - | AE127: - | AF127: - | AG127: - | AH127: - | AI127: - | AJ127: - | AK127: - | AL127: - | AM127: - | AP127: - | AQ127: - | AR127: - | AS127: - | AT127: - | AU127: - | AV127: - | AW127: - | AX127: - | AY127: - | AZ127: - | BA127: - | BB127: - | BC127: - | BD127: 0.2 | BE127: 7.1 | BF127: 6 | BG127: 7.9 | BH127: 1.5 | BI127: 2.5
P128: IV | R128: - | S128: - | T128: 6 | U128: 149 | V128: 577 | W128: 5393 | X128: 302208 | Y128: 1000000 | Z128: - | AA128: - | AB128: - | AC128: - | AD128: - | AE128: - | AF128: - | AG128: - | AH128: - | AI128: - | AJ128: - | AK128: - | AL128: - | AM128: - | AP128: - | AQ128: - | AR128: - | AS128: - | AT128: - | AU128: - | AV128: - | AW128: - | AX128: - | AY128: - | AZ128: - | BA128: - | BB128: - | BC128: - | BD128: 0.2 | BE128: 7.1 | BF128: 6 | BG128: 7.9 | BH128: 1.5 | BI128: 2.5
P129: V | R129: - | S129: - | T129: 10 | U129: 601 | V129: 2792 | W129: 27541 | X129: 1000000 | Y129: 1000000 | Z129: - | AA129: - | AB129: - | AC129: - | AD129: - | AE129: - | AF129: - | AG129: - | AH129: - | AI129: - | AJ129: - | AK129: - | AL129: - | AM129: - | AP129: - | AQ129: - | AR129: - | AS129: - | AT129: - | AU129: - | AV129: - | AW129: - | AX129: - | AY129: - | AZ129: - | BA129: - | BB129: - | BC129: - | BD129: 0.21 | BE129: 22 | BF129: 23 | BG129: 30 | BH129: 2 | BI129: 12
O133: VLN (GRER v04 partie C) | P133: usage | R133: conc. en mg/kg ms
R134: Huile minérale EC5-35 | S134: Huile minérale EC10-40 | T134: Fraction EC 5-8 | U134: Fraction EC >8-10 | V134: Fraction EC >10-12 | W134: Fraction EC >12-16 | X134: Fraction EC >16-21 | Y134: Fraction EC >21-35 | Z134: ALI EC 5-6 | AA134: ALI EC >6-8 | AB134: ALI EC >8-10 | AC134: ALI EC >10-12 | AD134: ALI EC >12-16 | AE134: ALI EC >16-21 | AF134: ALI EC >21-35 | AG134: Arom EC 6-7 | AH134: Arom EC >7-8 | AI134: Arom EC >8-10 | AJ134: Arom EC >10-12 | AK134: Arom EC >12-16 | AL134: Arom EC >16-21 | AM134: Arom EC >21-35 | AP134: ALI EC 5-6 | AQ134: ALI EC >6-8 | AR134: ALI EC >8-10 | AS134: ALI EC >10-12 | AT134: ALI EC >12-16 | AU134: ALI EC >16-21 | AV134: ALI EC >21-35 | AW134: Arom EC 6-7 | AX134: Arom EC >7-8 | AY134: Arom EC >8-10 | AZ134: Arom EC >10-12 | BA134: Arom EC >12-16 | BB134: Arom EC >16-21 | BC134: Arom EC >21-35 | BD134: Benzène | BE134: Toluène | BF134: Ethylbenzène | BG134: Xylènes (somme) | BH134: MTBE | BI134: Naphtalène
P135: I | R135: - | S135: - | T135: 12.4 | U135: 422 | V135: 1768 | W135: 16918 | X135: 962618 | Y135: 1000000 | Z135: - | AA135: - | AB135: - | AC135: - | AD135: - | AE135: - | AF135: - | AG135: - | AH135: - | AI135: - | AJ135: - | AK135: - | AL135: - | AM135: - | AP135: =Z135 -> - | AQ135: - | AR135: - | AS135: - | AT135: - | AU135: - | AV135: - | AW135: - | AX135: - | AY135: - | AZ135: - | BA135: - | BB135: - | BC135: - | BD135: 1 | BE135: 77 | BF135: 41 | BG135: 48 | BH135: 6.59 | BI135: 26
P136: II | R136: - | S136: - | T136: 11.6 | U136: 338 | V136: 1358 | W136: 12830 | X136: 723818 | Y136: 1000000 | Z136: - | AA136: - | AB136: - | AC136: - | AD136: - | AE136: - | AF136: - | AG136: - | AH136: - | AI136: - | AJ136: - | AK136: - | AL136: - | AM136: - | AP136: - | AQ136: - | AR136: - | AS136: - | AT136: - | AU136: - | AV136: - | AW136: - | AX136: - | AY136: - | AZ136: - | BA136: - | BB136: - | BC136: - | BD136: 1 | BE136: 65 | BF136: 32 | BG136: 39 | BH136: 6.18 | BI136: 20
P137: III | R137: - | S137: - | T137: 12 | U137: 298 | V137: 1154 | W137: 10786 | X137: 604416 | Y137: 1000000 | Z137: - | AA137: - | AB137: - | AC137: - | AD137: - | AE137: - | AF137: - | AG137: - | AH137: - | AI137: - | AJ137: - | AK137: - | AL137: - | AM137: - | AP137: - | AQ137: - | AR137: - | AS137: - | AT137: - | AU137: - | AV137: - | AW137: - | AX137: - | AY137: - | AZ137: - | BA137: - | BB137: - | BC137: - | BD137: 1 | BE137: 59 | BF137: 30 | BG137: 34 | BH137: 6.18 | BI137: 17
P138: IV | R138: - | S138: - | T138: 12 | U138: 298 | V138: 1154 | W138: 10786 | X138: 604416 | Y138: 1000000 | Z138: - | AA138: - | AB138: - | AC138: - | AD138: - | AE138: - | AF138: - | AG138: - | AH138: - | AI138: - | AJ138: - | AK138: - | AL138: - | AM138: - | AP138: - | AQ138: - | AR138: - | AS138: - | AT138: - | AU138: - | AV138: - | AW138: - | AX138: - | AY138: - | AZ138: - | BA138: - | BB138: - | BC138: - | BD138: 1 | BE138: 59 | BF138: 30 | BG138: 34 | BH138: 6.18 | BI138: 17
P139: V | R139: - | S139: - | T139: 20 | U139: 1202 | V139: 5584 | W139: 55082 | X139: 1000000 | Y139: 1000000 | Z139: - | AA139: - | AB139: - | AC139: - | AD139: - | AE139: - | AF139: - | AG139: - | AH139: - | AI139: - | AJ139: - | AK139: - | AL139: - | AM139: - | AP139: - | AQ139: - | AR139: - | AS139: - | AT139: - | AU139: - | AV139: - | AW139: - | AX139: - | AY139: - | AZ139: - | BA139: - | BB139: - | BC139: - | BD139: 1 | BE139: 184 | BF139: 117 | BG139: 131 | BH139: 8.23 | BI139: 82

Sheet Sol Wal DS TV
B2: Perceptions de chantier et comparaison des résultats d'analyse (DS) pour la partie fixe du sol
B3: Projet: | C3: ='Manuel d''utilisation'!C3 -> BOF_SL_6000: Rue de la Station, 666 à 4308 Manage
B4: Type usage DS | C4: =K8 -> I | G4: MO(%): | J4: ='Manuel d''utilisation'!C10 -> 3 | P4: <2µm (%): | Q4: ='Manuel d''utilisation'!C11 -> 7 | T4: ='Manuel d''utilisation'!AU11 -> 0
B5: Identification du forage | K5: Caractéristiques organoleptiques | P5: Echantillon | Q5: MS | R5: Résultats d'analyse en mg/kg ms | AU5: =R5 -> Résultats d'analyse en mg/kg ms | BD5: =AU5 -> Résultats d'analyse en mg/kg ms | BT5: =BD5 -> Résultats d'analyse en mg/kg ms
R6: HM somme | T6: Hydrocarbures pétroliers (fractions globales/combinées) | Z6: Hydrocarbures pétroliers (analyse 'split' aliphatique/aromatique) | AN6: Hydrocarbures aromatiques non halogénés | AU6: Métaux/métalloïdes | BJ6: Hydrocarbures aromatiques polycycliques non halogénés | BT6: Hydrocarbures chlorés | CD6: Autres
B7: Parcelle cadastrale | C7: Code du forage | D7: X (Lambert) | E7: Y (Lambert) | F7: Refus de forage(4) | G7: Date du forage | H7: Phase d'étude(4) | I7: Terrain naturel (TN) / Remblai (R)(4) | J7: Profondeur du forage (cm-ns) | K7: Profondeur: de (cm-ns) à (cm-ns) | L7: Caractérisation(1) (4) | M7: Odeur/PID(2) | N7: Couleur suspecte(4) | O7: Test huile/eau(2) | P7: Profondeur de l'échantillon (cm-ns) | Q7: Matière sèche (%) | R7: Huile minérale EC 5-35 | S7: Huile minérale EC 10-40 | T7: Fraction EC 5-8 | U7: Fraction EC 8-10 | V7: Fraction EC 10-12 | W7: Fraction EC 12-16 | X7: Fraction EC 16-21 | Y7: Fraction EC 21-35 | Z7: Ali EC 5-6 | AA7: Ali EC 6-8 | AB7: Ali EC 8-10 | AC7: Ali EC 10-12 | AD7: Ali EC 12-16 | AE7: Ali EC 16-21 | AF7: Ali EC 21-35 | AG7: Aro EC 6-7 | AH7: Aro EC 7-8 | AI7: Aro EC 8-10 | AJ7: Aro EC 10-12 | AK7: Aro EC 12-16 | AL7: Aro EC 16-21 | AM7: Aro EC 21-35 | AN7: Benzène | AO7: Toluène | AP7: Ethylbenzène | AQ7: Xylènes (somme) | AR7: MTBE | AS7: Styrènes | AT7: Phénol | AU7: Arsenic | AV7: Cadmium | AW7: Chrome total | AX7: Chrome VI | AY7: Cuivre | AZ7: Mercure | BA7: Nickel | BB7: Plomb | BC7: Zinc | BD7: Naphtalène | BE7: Acénaphtylène | BF7: Acénaphtène | BG7: Fluorène | BH7: Phénanthrène | BI7: Anthracène | BJ7: Fluoranthène | BK7: Pyrène | BL7: Benzo(a)anthracène | BM7: Chrysène | BN7: Benzo(b)fluoranthène | BO7: Benzo(k)fluoranthène | BP7: Benzo(a)pyrène | BQ7: Dibenzo(ah)anthracène | BR7: Benzo(ghi)pérylène | BS7: Indéno(1,2,3-cd)pyrène | BT7: Dichlorométhane | BU7: Trichlorométhane | BV7: Tetrachlorométhane | BW7: Tetrachloroéthène (PCE) | BX7: Trichloroéthène (TCE) | BY7: 1,2-Dichloroéthène somme (DCE) | BZ7: Chloroéthène (VC) | CA7: 1,1,1-Trichloroéthane (1,1,1-TCA) | CB7: 1,1,2-Trichloroéthane (1,1,2-TCA) | CC7: 1,2-Dichloroéthane (1,2-DCA) | CD7: Cyanures libres
B8: NORMES: Concentrations en gras et rouge si dépassement de la norme | I8: usage DS(4) | K8: I | P8: VS(3) | R8: =INDEX(R$33:R$37,MATCH($K$8,$P$33:$P$37,0)) -> - | S8: - | T8: 6 | U8: 21 | V8: 75 | W8: 75 | X8: 650 | Y8: 650 | Z8: - | AA8: - | AB8: - | AC8: - | AD8: - | AE8: - | AF8: - | AG8: - | AH8: - | AI8: - | AJ8: - | AK8: - | AL8: - | AM8: - | AN8: 0.1 | AO8: 4 | AP8: 0.3 | AQ8: 1 | AR8: 1.5 | AS8: 0.4 | AT8: 0.3 | AU8: 30 | AV8: 1.8 | AW8: 57 | AX8: =INDEX(AX$33:AX$37,MATCH($K$8,$P$33:$P$37,0)) -> 4 | AY8: 53 | AZ8: 1.1 | BA8: 87 | BB8: 120 | BC8: 196 | BD8: 2.5 | BE8: 4.8 | BF8: 2 | BG8: 5.9 | BH8: 7.6 | BI8: 2.8 | BJ8: 6 | BK8: 6.7 | BL8: 9.5 | BM8: 1.1 | BN8: 1.7 | BO8: 1 | BP8: 0.87 | BQ8: 0.81 | BR8: 0.8 | BS8: 4.5 | BT8: 0.1 | BU8: 0.1 | BV8: 0.05 | BW8: 0.2 | BX8: 0.05 | BY8: 0.1 | BZ8: 0.1 | CA8: 1 | CB8: 0.1 | CC8: 0.1 | CD8: 2
B9: Zone suspecte investiguée: | AU9: =B9 -> Zone suspecte investiguée: | BD9: =AU9 -> Zone suspecte investiguée: | BT9: =BT20 -> Autre zone suspecte:
B10: 1076Z | C10: C1 | G10: 28/12/2004 | J10: 420 | K10: 150-200 | L10: HA | M10: * | N10: oui | P10: 370-400 | R10: <38 | S10: <38 | T10: 5 | U10: 22 | V10: 5 | W10: 76 | X10: 600 | Y10: 5 | AN10: 0.2
B20: Autre zone suspecte: | AU20: =B20 -> Autre zone suspecte: | BD20: =AU20 -> Autre zone suspecte: | BT20: =BD20 -> Autre zone suspecte:
B23: Autre zone suspecte: | AU23: =B23 -> Autre zone suspecte: | BD23: =AU23 -> Autre zone suspecte: | BT23: =BD23 -> Autre zone suspecte:
B26: Légende
B27: (1) ESS = essence; DI = diesel; HA = hydrocarbures aromatiques ; MC = mazout de chauffage ; AU = autre
B28: (2) Blanc (vide) = néant ; * = léger ; ** = moyen ; *** = fort ou valeur PID mesurée - il n'est pas nécessaire d'indiquer en même temps les perceptions organoleptiques et la réaction huile/eau qui n'est pas strictement nécessaire
B29: (3) A adapter conformément à la législation et aux paramètres spécifiques au site
B30: (4) Liste déroulante
O31: VS (DS) | P31: usage | R31: conc. en mg/kg ms
R32: Huile minérale EC5-35 | S32: Huile minérale EC10-40 | T32: Fraction EC 5-8 | U32: Fraction EC >8-10 | V32: Fraction EC >10-12 | W32: Fraction EC >12-16 | X32: Fraction EC >16-21 | Y32: Fraction EC >21-35 | Z32: ALI EC 5-6 | AA32: ALI EC >6-8 | AB32: ALI EC >8-10 | AC32: ALI EC >10-12 | AD32: ALI EC >12-16 | AE32: ALI EC >16-21 | AF32: ALI EC >21-35 | AG32: Arom EC 6-7 | AH32: Arom EC >7-8 | AI32: Arom EC >8-10 | AJ32: Arom EC >10-12 | AK32: Arom EC >12-16 | AL32: Arom EC >16-21 | AM32: Arom EC >21-35 | AN32: Benzène | AO32: Toluène | AP32: Ethylbenzène | AQ32: Xylènes (somme) | AR32: MTBE | AS32: Styrene | AT32: Phénol | AU32: Arsenic | AV32: Cadmium | AW32: Chrome total | AX32: Chrome VI | AY32: Cuivre | AZ32: Mercure | BA32: Nickel | BB32: Plomb | BC32: Zinc | BD32: Naphtalène | BE32: Acénapthylène | BF32: Acénapthène | BG32: Fluorène | BH32: Phénanthrène | BI32: Anthracène | BJ32: Fluoranthène | BK32: Pyrène | BL32: Benzo(a)anthracène | BM32: Chrysène | BN32: Benzo(b)fluoranthène | BO32: Benzo(k)fluoranthène | BP32: Benzo(a)pyrène | BQ32: Dibenzo(ah)anthracène | BR32: Benzo(ghi)pérylène | BS32: Indéno(1,2,3-cd)pyrène | BT32: Dichlorométhane | BU32: trichlorométhane | BV32: tetrachlorométhane | BW32: tetrachloroéthène (PCE) | BX32: trichloroéthène (TCE) | BY32: 1,2-Dichloroéthène somme (DCE) | BZ32: Chloroéthène (VC) | CA32: 1,1,1-trichloroéthane (1,1,1-TCA) | CB32: 1,1,2-trichloroéthane (1,1,2-TCA) | CC32: 1,2-Dichloroéthane (1,2-DCA) | CD32: Cyanures libres
P33: I | R33: - | S33: - | T33: 6 | U33: 21 | V33: 75 | W33: 75 | X33: 650 | Y33: 650 | Z33: - | AA33: - | AB33: - | AC33: - | AD33: - | AE33: - | AF33: - | AG33: - | AH33: - | AI33: - | AJ33: - | AK33: - | AL33: - | AM33: - | AN33: 0.1 | AO33: 4 | AP33: 0.3 | AQ33: 1 | AR33: 1.5 | AS33: 0.4 | AT33: 0.3 | AU33: 30 | AV33: 1.8 | AW33: 57 | AX33: 4 | AY33: 53 | AZ33: 1.1 | BA33: 87 | BB33: 120 | BC33: 196 | BD33: 2.5 | BE33: 4.8 | BF33: 2 | BG33: 5.9 | BH33: 7.6 | BI33: 2.8 | BJ33: 6 | BK33: 6.7 | BL33: 9.5 | BM33: 1.1 | BN33: 1.7 | BO33: 1 | BP33: 0.87 | BQ33: 0.81 | BR33: 0.8 | BS33: 4.5 | BT33: 0.1 | BU33: 0.1 | BV33: 0.05 | BW33: 0.2 | BX33: 0.05 | BY33: 0.1 | BZ33: 0.1 | CA33: 1 | CB33: 0.1 | CC33: 0.1 | CD33: 2
P34: II | R34: - | S34: - | T34: 6 | U34: 21 | V34: 75 | W34: 75 | X34: 650 | Y34: 650 | Z34: - | AA34: - | AB34: - | AC34: - | AD34: - | AE34: - | AF34: - | AG34: - | AH34: - | AI34: - | AJ34: - | AK34: - | AL34: - | AM34: - | AN34: 0.1 | AO34: 4 | AP34: 0.3 | AQ34: 1 | AR34: 1.5 | AS34: 0.4 | AT34: 0.3 | AU34: 30 | AV34: 1.8 | AW34: 57 | AX34: 4 | AY34: 53 | AZ34: 1.1 | BA34: 87 | BB34: 200 | BC34: 196 | BD34: 2.5 | BE34: 4.8 | BF34: 2 | BG34: 5.9 | BH34: 7.6 | BI34: 2.8 | BJ34: 6 | BK34: 6.7 | BL34: 9.5 | BM34: 1.1 | BN34: 1.7 | BO34: 1 | BP34: 0.87 | BQ34: 0.81 | BR34: 0.8 | BS34: 4.5 | BT34: 0.1 | BU34: 0.1 | BV34: 0.05 | BW34: 0.2 | BX34: 0.05 | BY34: 0.1 | BZ34: 0.1 | CA34: 1 | CB34: 0.1 | CC34: 0.1 | CD34: 2
P35: III | R35: - | S35: - | T35: 6 | U35: 21 | V35: 75 | W35: 75 | X35: 650 | Y35: 650 | Z35: - | AA35: - | AB35: - | AC35: - | AD35: - | AE35: - | AF35: - | AG35: - | AH35: - | AI35: - | AJ35: - | AK35: - | AL35: - | AM35: - | AN35: 0.1 | AO35: 7 | AP35: 0.3 | AQ35: 2 | AR35: 1.5 | AS35: 0.4 | AT35: 0.7 | AU35: 40 | AV35: 3 | AW35: 78 | AX35: 4 | AY35: 156 | AZ35: 1.75 | BA35: 146 | BB35: 200 | BC35: 415 | BD35: 2.5 | BE35: 6.3 | BF35: 4 | BG35: 9 | BH35: 13 | BI35: 2.8 | BJ35: 11.6 | BK35: 13 | BL35: 9.5 | BM35: 2.3 | BN35: 3.3 | BO35: 2 | BP35: 3.6 | BQ35: 1.8 | BR35: 1.5 | BS35: 7 | BT35: 0.1 | BU35: 0.1 | BV35: 0.05 | BW35: 0.2 | BX35: 0.05 | BY35: 0.1 | BZ35: 0.1 | CA35: 3.5 | CB35: 0.1 | CC35: 0.1 | CD35: 2
P36: IV | R36: - | S36: - | T36: 6 | U36: 150 | V36: 580 | W36: 750 | X36: 1250 | Y36: 2100 | Z36: - | AA36: - | AB36: - | AC36: - | AD36: - | AE36: - | AF36: - | AG36: - | AH36: - | AI36: - | AJ36: - | AK36: - | AL36: - | AM36: - | AN36: 0.2 | AO36: 7 | AP36: 3 | AQ36: 8 | AR36: 1.5 | AS36: 0.4 | AT36: 0.7 | AU36: 40 | AV36: 10 | AW36: 140 | AX36: 13 | AY36: 490 | AZ36: 5 | BA36: 350 | BB36: 390 | BC36: 3000 | BD36: 2.5 | BE36: 8 | BF36: 4 | BG36: 9 | BH36: 13 | BI36: 2.8 | BJ36: 23 | BK36: 15.4 | BL36: 9.5 | BM36: 9.7 | BN36: 11 | BO36: 5.3 | BP36: 9.5 | BQ36: 1.8 | BR36: 6.8 | BS36: 7 | BT36: 0.1 | BU36: 0.1 | BV36: 0.1 | BW36: 0.7 | BX36: 0.7 | BY36: 0.4 | BZ36: 0.1 | CA36: 5.5 | CB36: 0.1 | CC36: 0.2 | CD36: 2
P37: V | R37: - | S37: - | T37: 9 | U37: 600 | V37: 600 | W37: 920 | X37: 2700 | Y37: 5300 | Z37: - | AA37: - | AB37: - | AC37: - | AD37: - | AE37: - | AF37: - | AG37: - | AH37: - | AI37: - | AJ37: - | AK37: - | AL37: - | AM37: - | AN37: 0.2 | AO37: 22 | AP37: 3 | AQ37: 30 | AR37: 2 | AS37: 2 | AT37: 1.4 | AU37: 65 | AV37: 20 | AW37: 288 | AX37: 13 | AY37: 600 | AZ37: 5 | BA37: 350 | BB37: 1840 | BC37: 3000 | BD37: 6.3 | BE37: 43 | BF37: 6 | BG37: 16 | BH37: 25 | BI37: 6.9 | BJ37: 47 | BK37: 28.6 | BL37: 17.3 | BM37: 17.6 | BN37: 21 | BO37: 9.3 | BP37: 14.4 | BQ37: 3.2 | BR37: 11.1 | BS37: 12 | BT37: 0.2 | BU37: 0.1 | BV37: 0.1 | BW37: 1.2 | BX37: 0.7 | BY37: 0.5 | BZ37: 0.1 | CA37: 15 | CB37: 0.2 | CC37: 0.3 | CD37: 2
H39: EO | I39: TN | L39: Ess | N39: oui
F40: Oui | H40: EC | I40: R | L40: DI | N40: non
H41: PA | I41: non défini | L41: HA
H42: EF | L42: MC
H43: MON | L43: AU
H44: EI
H45: autre/non défini

Sheet Sol Wal RGPT
B2: Perceptions de chantier et comparaison des résultats d'analyse (RGPT) pour la partie fixe du sol
B3: Projet: | C3: ='Manuel d''utilisation'!C3 -> BOF_SL_6000: Rue de la Station, 666 à 4308 Manage
B4: Type d'usage RGPT | E4: =L7 -> III | J4: Teneur en matière organique (%) (4) (5) | P4: =+'Manuel d''utilisation'!C10 -> 3 | Q4: Teneur en argile (%) | V4: =+'Manuel d''utilisation'!C11 -> 7
B5: Identification du forage | K5: Caractéristiques organoleptiques | P5: Echantillon | Q5: Résultats d'analyse en mg/kg ms | AS5: Facteur correctif | AU5: Résultats d'analyse en mg/kg ms après réévaluation sur base du facteur correctif (gravier)
B6: Parcelle cadastrale | C6: Code du forage | D6: X (Lambert) | E6: Y (Lambert) | F6: Refus de forage(6) | G6: Date du forage | H6: Phase d'étude(6) | I6: Terrain naturel (TN) / Remblai (R)(6) | J6: Profondeur du forage (cm-mv) | K6: Profondeur: de (cm-ns) à (cm-ns) | L6: Caractérisation(1) (6) | M6: Odeur/PID(2) | N6: Test huile/eau(2) | O6: Couleur suspecte(6) | P6: Profondeur de l'échantillon (cm-ns) | Q6: Huile minérale EC 5-35 | R6: Huile minérale EC 10-40 | S6: Benzène | T6: Toluène | U6: Ethylbenzène | V6: Xylènes | W6: Naphtalène | X6: Cadmium | Y6: Chrome | Z6: Cuivre | AA6: Arsenic | AB6: Cobalt | AC6: Nickel | AD6: Plomb | AE6: Zinc | AF6: Mercure | AH6: Napthalène | AI6: Anthracène | AJ6: Phénantrène | AK6: Fluoranthène | AL6: Benzo(a)anthracène | AM6: Benzo(k)fluoranthène | AN6: Benzo(ghi)pérylène | AO6: Indéno(1,2,3-cd)pyrène | AP6: Chrysène | AQ6: Benzo(a)pyrène | AS6: Pourcentage de cailloux | AT6: Pourcentage de fractions fines | AU6: Huile minérale EC 5-35 | AV6: Huile minérale EC 10-40 | AW6: Benzène | AX6: Toluène | AY6: Ethylbenzène | AZ6: Xylènes | BA6: Naphtalène | BB6: Cadmium | BC6: Chrome | BD6: Cuivre | BE6: Arsenic | BF6: Cobalt | BG6: Nickel | BH6: Plomb | BI6: Zinc | BJ6: Mercure | BL6: Naphtalène | BM6: Anthracène | BN6: Phénantrène | BO6: Fluoranthène | BP6: Benzo(a)anthracène | BQ6: Benzo(k)fluoranthène | BR6: Benzo(ghi)pérylène | BS6: Indéno(1,2,3-cd)pyrène | BT6: Chrysène | BU6: Benzo(a)pyrène
B7: NORMES: Concentrations en gras et rouge si > à VI | I7: usage (RGPT)(6) | L7: III | O7: VI (RGPT)(3) | R7: =INDEX(R$73:R$76,MATCH($L$7,$P$73:$P$76,0)) -> 900 | S7: 0.3 | T7: 30 | U7: 16.8 | V7: 4.8 | W7: 1.44 | X7: 4 | Y7: 340 | Z7: 100 | AA7: 120 | AB7: 100 | AC7: 220 | AD7: 140 | AE7: 420 | AF7: 20 | AH7: =INDEX(AH$73:AH$76,MATCH($L$7,$P$73:$P$76,0)) -> 1.44 | AI7: 0.72 | AJ7: 19.2 | AK7: 19.2 | AL7: 5.4 | AM7: 3.6 | AN7: 3.6 | AO7: 3.6 | AP7: 1.2 | AQ7: 1.2 | AU7: =IF($P$4<=2.5,0.5*AU$29,(IF($P$4<=12.5,$P$4/5*AU$29,2.5*AU$29))) -> 0 | AV7: =R7 -> 900 | AW7: 0.3 | AX7: 30 | AY7: 16.8 | AZ7: 4.8 | BA7: 1.44 | BB7: =X7 -> 4 | BC7: 340 | BD7: 100 | BE7: 120 | BF7: 100 | BG7: 220 | BH7: 140 | BI7: 420 | BJ7: 20 | BK7: 0 | BL7: 1.44 | BM7: 0.72 | BN7: 19.2 | BO7: 19.2 | BP7: 5.4 | BQ7: 3.6 | BR7: 3.6 | BS7: 3.6 | BT7: 1.2 | BU7: 1.2
B8: NORMES: Concentrations en souligné si > à VS | I8: usage (RGPT)(6) | L8: =L7 -> III | O8: VS (RGPT)(3) | R8: =INDEX(R$58:R$61,MATCH($L$8,$P$58:$P$61,0)) -> 480 | S8: 0.15 | T8: 15 | U8: 8.4 | V8: 2.4 | W8: 0.72 | X8: 2 | Y8: 170 | Z8: 50 | AA8: 60 | AB8: 50 | AC8: 120 | AD8: 70 | AE8: 210 | AF8: 10 | AH8: =INDEX(AH$58:AH$61,MATCH($L$8,$P$58:$P$61,0)) -> 0.72 | AI8: 0.36 | AJ8: 9.6 | AK8: 9.6 | AL8: 2.7 | AM8: 1.8 | AN8: 1.8 | AO8: 1.8 | AP8: 0.6 | AQ8: 0.6 | AU8: =IF($P$4<=2.5,0.5*AU$28,(IF($P$4<=12.5,$P$4/5*AU$28,2.5*AU$28))) -> 0 | AV8: 480 | AW8: 0.15 | AX8: 15 | AY8: 8.4 | AZ8: 2.4 | BA8: 0.72 | BB8: 2 | BC8: 170 | BD8: 50 | BE8: 60 | BF8: 50 | BG8: 120 | BH8: 70 | BI8: 210 | BJ8: 10 | BK8: 0 | BL8: 0.72 | BM8: 0.36 | BN8: 9.6 | BO8: 9.6 | BP8: 2.7 | BQ8: 1.8 | BR8: 1.8 | BS8: 1.8 | BT8: 0.6 | BU8: 0.6
B9: NORMES:Concentrations en italique si > à VR | O9: VR (RGPT)(3) | R9: =R46 -> 50 | S9: 0.1 | T9: 0.2 | U9: 0.3 | V9: 0.35 | W9: 0.3 | X9: 0.8 | Y9: 35 | Z9: 17 | AA9: 19 | AB9: 10 | AC9: 9 | AD9: 30 | AE9: 62 | AF9: 0.55 | AH9: =AH46 -> 0.3 | AI9: 0.05 | AJ9: 1 | AK9: 1 | AL9: 0.5 | AM9: 0.3 | AN9: 0.3 | AO9: 0.3 | AP9: 0.1 | AQ9: 0.1 | AV9: 50 | AW9: 0.1 | AX9: 0.2 | AY9: 0.3 | AZ9: 0.35 | BA9: 0.3 | BB9: 0.8 | BC9: 35 | BD9: 17 | BE9: 19 | BF9: 10 | BG9: 9 | BH9: 30 | BI9: 62 | BJ9: 0.55 | BK9: 0 | BL9: 0.3 | BM9: 0.05 | BN9: 1 | BO9: 1 | BP9: 0.5 | BQ9: 0.3 | BR9: 0.3 | BS9: 0.3 | BT9: 0.1 | BU9: 0.1
B10: Zone suspecte investiguée:
B11: 1076Z | C11: C1 | G11: 28/12/2004 | H11: EC | I11: TN | J11: 420 | K11: 150-200 | L11: Ess | M11: * | O11: non | Q11: 1000 | R11: 2000 | S11: 0.3 | T11: 2 | U11: 401 | V11: 401 | W11: 401 | X11: 0.5 | AC11: 1 | AT11: 1 | AU11: =IFERROR(Q11*$AT11,"<") -> 1000 | AV11: 2000 | AW11: 0.3 | AX11: 2 | AY11: 401 | AZ11: 401 | BA11: 401 | BB11: 0.5 | BC11: =IFERROR(Y11*$AT11,"<") -> 0 | BD11: 0 | BE11: 0 | BF11: 0 | BG11: 1 | BH11: 0 | BI11: 0 | BJ11: 0 | BL11: 0 | BM11: =IFERROR(AI11*$AT11,"<") -> 0 | BN11: =IFERROR(AJ11*$AT11,"<") -> 0 | BO11: =IFERROR(AK11*$AT11,"<") -> 0 | BP11: =IFERROR(AL11*$AT11,"<") -> 0 | BQ11: =IFERROR(AM11*$AT11,"<") -> 0 | BR11: =IFERROR(AN11*$AT11,"<") -> 0 | BS11: =IFERROR(AO11*$AT11,"<") -> 0 | BT11: =IFERROR(AP11*$AT11,"<") -> 0 | BU11: =IFERROR(AQ11*$AT11,"<") -> 0
AU12: =IFERROR(Q12*$AT12,"<") -> 0 | AV12: =IFERROR(R12*$AT12,"<") -> 0 | AW12: =IFERROR(S12*$AT12,"<") -> 0 | AX12: =IFERROR(T12*$AT12,"<") -> 0 | AY12: =IFERROR(U12*$AT12,"<") -> 0 | AZ12: =IFERROR(V12*$AT12,"<") -> 0 | BA12: =IFERROR(W12*$AT12,"<") -> 0 | BB12: =IFERROR(X12*$AT12,"<") -> 0 | BC12: 0 | BD12: 0 | BE12: 0 | BF12: 0 | BG12: 0 | BH12: 0 | BI12: 0 | BJ12: 0 | BL12: 0 | BM12: 0 | BN12: 0 | BO12: 0 | BP12: 0 | BQ12: 0 | BR12: 0 | BS12: 0 | BT12: 0 | BU12: 0
AU13: 0 | AV13: 0 | AW13: 0 | AX13: 0 | AY13: 0 | AZ13: 0 | BA13: 0 | BC13: 0 | BD13: 0 | BE13: 0 | BF13: 0 | BG13: 0 | BH13: 0 | BI13: 0 | BJ13: 0 | BL13: 0 | BM13: 0 | BN13: 0 | BO13: 0 | BP13: 0 | BQ13: 0 | BR13: 0 | BS13: 0 | BT13: 0 | BU13: 0
AU14: 0 | AV14: 0 | AW14: 0 | AX14: 0 | AY14: 0 | AZ14: 0 | BA14: 0 | BC14: 0 | BD14: 0 | BE14: 0 | BF14: 0 | BG14: 0 | BH14: 0 | BI14: 0 | BJ14: 0 | BL14: 0 | BM14: 0 | BN14: 0 | BO14: 0 | BP14: 0 | BQ14: 0 | BR14: 0 | BS14: 0 | BT14: 0 | BU14: 0
AU15: 0 | AV15: 0 | AW15: 0 | AX15: 0 | AY15: 0 | AZ15: 0 | BA15: 0 | BC15: 0 | BD15: 0 | BE15: 0 | BF15: 0 | BG15: 0 | BH15: 0 | BI15: 0 | BJ15: 0 | BL15: 0 | BM15: 0 | BN15: 0 | BO15: 0 | BP15: 0 | BQ15: 0 | BR15: 0 | BS15: 0 | BT15: 0 | BU15: 0
AU16: 0 | AV16: 0 | AW16: 0 | AX16: 0 | AY16: 0 | AZ16: 0 | BA16: 0 | BB16: 0 | BC16: 0 | BD16: 0 | BE16: 0 | BF16: 0 | BG16: 0 | BH16: 0 | BI16: 0 | BJ16: 0 | BL16: 0 | BM16: 0 | BN16: 0 | BO16: 0 | BP16: 0 | BQ16: 0 | BR16: 0 | BS16: 0 | BT16: 0 | BU16: 0
AU17: 0 | AV17: 0 | AW17: 0 | AX17: 0 | AY17: 0 | AZ17: 0 | BA17: 0 | BB17: 0 | BC17: 0 | BD17: 0 | BE17: 0 | BF17: 0 | BG17: 0 | BH17: 0 | BI17: 0 | BJ17: 0 | BL17: 0 | BM17: 0 | BN17: 0 | BO17: 0 | BP17: 0 | BQ17: 0 | BR17: 0 | BS17: 0 | BT17: 0 | BU17: 0
AU18: 0 | AV18: 0 | AW18: 0 | AX18: 0 | AY18: 0 | AZ18: 0 | BA18: 0 | BB18: 0 | BC18: 0 | BD18: 0 | BE18: 0 | BF18: 0 | BG18: 0 | BH18: 0 | BI18: 0 | BJ18: 0 | BL18: 0 | BM18: 0 | BN18: 0 | BO18: 0 | BP18: 0 | BQ18: 0 | BR18: 0 | BS18: 0 | BT18: 0 | BU18: 0
AU19: 0 | AV19: 0 | AW19: 0 | AX19: 0 | AY19: 0 | AZ19: 0 | BA19: 0 | BB19: 0 | BC19: 0 | BD19: 0 | BE19: 0 | BF19: 0 | BG19: 0 | BH19: 0 | BI19: 0 | BJ19: 0 | BL19: 0 | BM19: 0 | BN19: 0 | BO19: 0 | BP19: 0 | BQ19: 0 | BR19: 0 | BS19: 0 | BT19: 0 | BU19: 0
AU20: 0 | AV20: 0 | AW20: 0 | AX20: 0 | AY20: 0 | AZ20: 0 | BA20: 0 | BB20: 0 | BC20: 0 | BD20: 0 | BE20: 0 | BF20: 0 | BG20: 0 | BH20: 0 | BI20: 0 | BJ20: 0 | BL20: 0 | BM20: 0 | BN20: 0 | BO20: 0 | BP20: 0 | BQ20: 0 | BR20: 0 | BS20: 0 | BT20: 0 | BU20: 0
B21: Autre zone suspecte:
B22: 1076V | C22: F201 | G22: 2012-05-03 | J22: 450 | K22: 230-400 | L22: Ess | M22: ** | P22: 370-400 | Q22: 401 | R22: 751 | S22: 0.11 | T22: 2 | U22: 401 | V22: 401 | W22: 401 | AT22: 0.5 | AU22: =IFERROR(Q22*$AT22,"<") -> 200.5 | AV22: 375.5 | AW22: 0.055 | AX22: 1 | AY22: 200.5 | AZ22: 200.5 | BA22: 200.5 | BB22: 0 | BL22: 0 | BM22: =IFERROR(AI22*$AT22,"<") -> 0 | BN22: 0 | BO22: 0 | BP22: 0 | BQ22: 0 | BR22: 0 | BS22: 0 | BT22: 0 | BU22: 0
AU23: 0 | AV23: 0 | AW23: 0 | AX23: 0 | AY23: 0 | AZ23: 0 | BA23: 0 | BB23: 0 | BL23: 0 | BM23: 0 | BN23: 0 | BO23: 0 | BP23: 0 | BQ23: 0 | BR23: 0 | BS23: 0 | BT23: 0 | BU23: 0
B24: Autre zone suspecte:
AU25: =R25*$AT$26 -> 0 | AW25: =S25*$AT$26 -> 0 | AX25: 0 | AY25: 0 | AZ25: 0 | BA25: 0 | BB25: =IFERROR(X25*$AT25,"<") -> 0 | BL25: =IFERROR(AH25*$AT25,"<") -> 0 | BM25: =IFERROR(AI25*$AT25,"<") -> 0 | BN25: =IFERROR(AJ25*$AT25,"<") -> 0 | BO25: =IFERROR(AK25*$AT25,"<") -> 0 | BP25: =IFERROR(AL25*$AT25,"<") -> 0 | BQ25: =IFERROR(AM25*$AT25,"<") -> 0 | BR25: =IFERROR(AN25*$AT25,"<") -> 0 | BS25: =IFERROR(AO25*$AT25,"<") -> 0 | BT25: =IFERROR(AP25*$AT25,"<") -> 0 | BU25: =IFERROR(AQ25*$AT25,"<") -> 0
AU26: =R26*$AT$26 -> 0 | AW26: 0 | AX26: 0 | AY26: 0 | AZ26: 0 | BA26: 0 | BB26: 0 | BL26: 0 | BM26: 0 | BN26: 0 | BO26: 0 | BP26: 0 | BQ26: 0 | BR26: 0 | BS26: 0 | BT26: 0 | BU26: 0
B27: Légende
B29: (1) ESS = essence; DI = diesel; HA = hydrocarbures aromatiques ; MC = mazout de chauffage ; AU = autre
B30: (2) Blanc (vide) = néant ; * = léger ; ** = moyen ; *** = fort ou valeur PID mesurée - il n'est pas nécessaire d'indiquer en même temps les perceptions organoleptiques et la réaction huile/eau qui n'est pas strictement nécessaire
B31: (3) A adapter conformément à la législation et aux paramètres spécifiques au site
B32: (4) Une teneur en matière organique non représentative (analyse réalisée sur un échantillon pollué) ne sera pas prise en compte dans le calcul de la moyenne
B33: (5) La norme (VS ou VI) sera automatiquement recalculée sur base de la MO (pour une MO comprise entre 2,5 et 12,5%)
B34: (6) Liste déroulante
H36: EO | I36: TN | L36: Ess | O36: oui
F37: Oui | H37: EC | I37: R | L37: DI | O37: non
H38: PA | I38: non défini | L38: HA
H39: EF | L39: MC
H40: MON | L40: AU
H41: EI
H42: autre/non défini
N44: VR (RGPT) | P44: affectation
R45: Huile minérale EC10-40 | S45: Benzène | T45: Toluène | U45: Ethylbenzène | V45: Xylènes | W45: Naphtalène | X45: Cd | Y45: Cr | Z45: Cu | AA45: As | AB45: Co | AC45: Ni | AD45: Pb | AE45: Zn | AF45: Hg | AH45: HAP Classe I napthalène | AI45: HAP Classe II Anthracène | AJ45: HAP Classe III Phénantrène | AK45: HAP Classe III Fluoranthène | AL45: HAP Classe IV benzo(a)anthracène | AM45: HAP Classe V benzo(k)fluoranthène | AN45: HAP Classe V Benzo(gho)pérylène | AO45: HAP Classe V Indéno(1,2,3-cd)pyrène | AP45: HAP Classe VI Chrysène | AQ45: HAP Classe VI Benzo(a)pyrène
P46: I-IV | R46: 50 | S46: 0.1 | T46: 0.2 | U46: 0.3 | V46: 0.35 | W46: 0.3 | X46: 0.8 | Y46: 35 | Z46: 17 | AA46: 19 | AB46: 10 | AC46: 9 | AD46: 30 | AE46: 62 | AF46: 0.55 | AH46: 0.3 | AI46: 0.05 | AJ46: 1 | AK46: 1 | AL46: 0.5 | AM46: 0.3 | AN46: 0.3 | AO46: 0.3 | AP46: 0.1 | AQ46: 0.1
N50: VS (RGPT) | P50: affectation
R51: Huile minérale EC10-40 | S51: Benzène | T51: Toluène | U51: Ethylbenzène | V51: Xylènes | W51: Naphtalène | X51: Cd | Y51: Cr | Z51: Cu | AA51: As | AB51: Co | AC51: Ni | AD51: Pb | AE51: Zn | AF51: Hg | AH51: HAP Classe I napthalène | AI51: HAP Classe II Anthracène | AJ51: HAP Classe III Phénantrène | AK51: HAP Classe III Fluoranthène | AL51: HAP Classe IV benzo(a)anthracène | AM51: HAP Classe V benzo(k)fluoranthène | AN51: HAP Classe V Benzo(gho)pérylène | AO51: HAP Classe V Indéno(1,2,3-cd)pyrène | AP51: HAP Classe VI Chrysène | AQ51: HAP Classe VI Benzo(a)pyrène
P52: I | R52: 1000 | S52: 1.5 | T52: 100 | U52: 45 | V52: 55 | W52: 90 | X52: 8 | Y52: 230 | Z52: 210 | AA52: 100 | AB52: 100 | AC52: 150 | AD52: 1150 | AE52: 680 | AF52: 15 | AH52: 90 | AI52: 18 | AJ52: 65 | AK52: 65 | AL52: 125 | AM52: 18 | AN52: 18 | AO52: 18 | AP52: 1 | AQ52: 1
P53: II | R53: 800 | S53: 0.25 | T53: 25 | U53: 18 | V53: 30 | W53: 2.5 | X53: 3 | Y53: 150 | Z53: 200 | AA53: 55 | AB53: 50 | AC53: 150 | AD53: 150 | AE53: 500 | AF53: 7 | AH53: 2.5 | AI53: 18 | AJ53: 30 | AK53: 30 | AL53: 125 | AM53: 18 | AN53: 18 | AO53: 18 | AP53: 1 | AQ53: 1
P54: III | R54: 800 | S54: 0.25 | T54: 25 | U54: 14 | V54: 4 | W54: 1.2 | X54: 2 | Y54: 170 | Z54: 50 | AA54: 60 | AB54: 50 | AC54: 120 | AD54: 70 | AE54: 210 | AF54: 10 | AH54: 1.2 | AI54: 0.6 | AJ54: 16 | AK54: 16 | AL54: 4.5 | AM54: 3 | AN54: 3 | AO54: 3 | AP54: 1 | AQ54: 1
P55: IV | R55: 500 | S55: 0.2 | T55: 0.4 | U55: 0.6 | V55: 0.7 | W55: 0.6 | X55: 1 | Y55: 65 | Z55: 50 | AA55: 22 | AB55: 20 | AC55: 40 | AD55: 70 | AE55: 150 | AF55: 1.6 | AH55: 0.6 | AI55: 0.15 | AJ55: 2 | AK55: 2 | AL55: 1.2 | AM55: 2.4 | AN55: 2.4 | AO55: 2.4 | AP55: 1 | AQ55: 1
P57: apres correction mat. org. | T57: %MO: | U57: =$P$4 -> 3
P58: I | R58: =IF($P$4<=2.5,0.5*R52,(IF($P$4<=12.5,$P$4/5*R52,2.5*R52))) -> 600 | S58: 0.9 | T58: 60 | U58: 27 | V58: 33 | W58: 54 | X58: =X52 -> 8 | Y58: =Y52 -> 230 | Z58: 210 | AA58: 100 | AB58: 100 | AC58: 150 | AD58: 1150 | AE58: 680 | AF58: 15 | AH58: =IF($P$4<=2.5,0.5*AH52,(IF($P$4<=12.5,$P$4/5*AH52,2.5*AH52))) -> 54 | AI58: 10.8 | AJ58: 39 | AK58: 39 | AL58: 75 | AM58: 10.8 | AN58: 10.8 | AO58: 10.8 | AP58: 0.6 | AQ58: 0.6
P59: II | R59: =IF($P$4<=2.5,0.5*R53,(IF($P$4<=12.5,$P$4/5*R53,2.5*R53))) -> 480 | S59: 0.15 | T59: 15 | U59: 10.8 | V59: 18 | W59: 1.5 | X59: =X53 -> 3 | Y59: 150 | Z59: 200 | AA59: 55 | AB59: 50 | AC59: 150 | AD59: 150 | AE59: 500 | AF59: 7 | AH59: =IF($P$4<=2.5,0.5*AH53,(IF($P$4<=12.5,$P$4/5*AH53,2.5*AH53))) -> 1.5 | AI59: 10.8 | AJ59: 18 | AK59: 18 | AL59: 75 | AM59: 10.8 | AN59: 10.8 | AO59: 10.8 | AP59: 0.6 | AQ59: 0.6
P60: III | R60: 480 | S60: 0.15 | T60: 15 | U60: 8.4 | V60: 2.4 | W60: 0.72 | X60: =X54 -> 2 | Y60: 170 | Z60: 50 | AA60: 60 | AB60: 50 | AC60: 120 | AD60: 70 | AE60: 210 | AF60: 10 | AH60: =IF($P$4<=2.5,0.5*AH54,(IF($P$4<=12.5,$P$4/5*AH54,2.5*AH54))) -> 0.72 | AI60: 0.36 | AJ60: 9.6 | AK60: 9.6 | AL60: 2.7 | AM60: 1.8 | AN60: 1.8 | AO60: 1.8 | AP60: 0.6 | AQ60: 0.6
P61: IV | R61: 300 | S61: 0.12 | T61: 0.24 | U61: 0.36 | V61: 0.42 | W61: 0.36 | X61: =X55 -> 1 | Y61: 65 | Z61: 50 | AA61: 22 | AB61: 20 | AC61: 40 | AD61: 70 | AE61: 150 | AF61: 1.6 | AH61: =IF($P$4<=2.5,0.5*AH55,(IF($P$4<=12.5,$P$4/5*AH55,2.5*AH55))) -> 0.36 | AI61: 0.09 | AJ61: 1.2 | AK61: 1.2 | AL61: 0.72 | AM61: 1.44 | AN61: 1.44 | AO61: 1.44 | AP61: 0.6 | AQ61: 0.6
N65: VI (RGPT) | P65: affectation
R66: Huile minérale EC10-40 | S66: Benzène | T66: Toluène | U66: Ethylbenzène | V66: Xylènes | W66: Naphtalène | X66: Cd | Y66: Cr | Z66: Cu | AA66: As | AB66: Co | AC66: Ni | AD66: Pb | AE66: Zn | AF66: Hg | AH66: HAP Classe I napthalène | AI66: HAP Classe II Anthracène | AJ66: HAP Classe III Phénantrène | AK66: HAP Classe III Fluoranthène | AL66: HAP Classe IV benzo(a)anthracène | AM66: HAP Classe V benzo(k)fluoranthène | AN66: HAP Classe V Benzo(gho)pérylène | AO66: HAP Classe V Indéno(1,2,3-cd)pyrène | AP66: HAP Classe VI Chrysène | AQ66: HAP Classe VI Benzo(a)pyrène
P67: I | R67: 2000 | S67: 3 | T67: 200 | U67: 90 | V67: 110 | W67: 180 | X67: 16 | Y67: 460 | Z67: 420 | AA67: 200 | AB67: 200 | AC67: 300 | AD67: 2300 | AE67: 1360 | AF67: 30 | AH67: 180 | AI67: 36 | AJ67: 130 | AK67: 130 | AL67: 250 | AM67: 36 | AN67: 36 | AO67: 36 | AP67: 2 | AQ67: 2
P68: II | R68: 1500 | S68: 0.5 | T68: 50 | U68: 36 | V68: 60 | W68: 5 | X68: 6 | Y68: 300 | Z68: 400 | AA68: 110 | AB68: 100 | AC68: 300 | AD68: 300 | AE68: 1000 | AF68: 15 | AH68: 5 | AI68: 36 | AJ68: 60 | AK68: 60 | AL68: 250 | AM68: 36 | AN68: 36 | AO68: 36 | AP68: 2 | AQ68: 2
P69: III | R69: 1500 | S69: 0.5 | T69: 50 | U69: 28 | V69: 8 | W69: 2.4 | X69: 4 | Y69: 340 | Z69: 100 | AA69: 120 | AB69: 100 | AC69: 220 | AD69: 140 | AE69: 420 | AF69: 20 | AH69: 2.4 | AI69: 1.2 | AJ69: 32 | AK69: 32 | AL69: 9 | AM69: 6 | AN69: 6 | AO69: 6 | AP69: 2 | AQ69: 2
P70: IV | R70: 1000 | S70: 0.4 | T70: 0.8 | U70: 1.2 | V70: 1.4 | W70: 1.2 | X70: 2 | Y70: 130 | Z70: 100 | AA70: 45 | AB70: 40 | AC70: 80 | AD70: 140 | AE70: 300 | AF70: 3.1 | AH70: 1.2 | AI70: 0.3 | AJ70: 4 | AK70: 4 | AL70: 2.4 | AM70: 4.8 | AN70: 4.8 | AO70: 4.8 | AP70: 2 | AQ70: 2
P72: apres correction mat. org. | T72: %MO: | U72: =$P$4 -> 3
P73: I | R73: =IF($P$4<=2.5,0.5*R67,(IF($P$4<=12.5,$P$4/5*R67,2.5*R67))) -> 1200 | S73: 1.8 | T73: 120 | U73: 54 | V73: 66 | W73: 108 | X73: =X67 -> 16 | Y73: =Y67 -> 460 | Z73: 420 | AA73: 200 | AB73: 200 | AC73: 300 | AD73: 2300 | AE73: 1360 | AF73: 30 | AH73: =IF($P$4<=2.5,0.5*AH67,(IF($P$4<=12.5,$P$4/5*AH67,2.5*AH67))) -> 108 | AI73: 21.6 | AJ73: 78 | AK73: 78 | AL73: 150 | AM73: 21.6 | AN73: 21.6 | AO73: 21.6 | AP73: 1.2 | AQ73: 1.2
P74: II | R74: =IF($P$4<=2.5,0.5*R68,(IF($P$4<=12.5,$P$4/5*R68,2.5*R68))) -> 900 | S74: 0.3 | T74: 30 | U74: 21.6 | V74: 36 | W74: 3 | X74: =X68 -> 6 | Y74: 300 | Z74: 400 | AA74: 110 | AB74: 100 | AC74: 300 | AD74: 300 | AE74: 1000 | AF74: 15 | AH74: =IF($P$4<=2.5,0.5*AH68,(IF($P$4<=12.5,$P$4/5*AH68,2.5*AH68))) -> 3 | AI74: 21.6 | AJ74: 36 | AK74: 36 | AL74: 150 | AM74: 21.6 | AN74: 21.6 | AO74: 21.6 | AP74: 1.2 | AQ74: 1.2
P75: III | R75: =IF($P$4<=2.5,0.5*R69,(IF($P$4<=12.5,$P$4/5*R69,2.5*R69))) -> 900 | S75: 0.3 | T75: 30 | U75: 16.8 | V75: 4.8 | W75: 1.44 | X75: =X69 -> 4 | Y75: 340 | Z75: 100 | AA75: 120 | AB75: 100 | AC75: 220 | AD75: 140 | AE75: 420 | AF75: 20 | AH75: =IF($P$4<=2.5,0.5*AH69,(IF($P$4<=12.5,$P$4/5*AH69,2.5*AH69))) -> 1.44 | AI75: 0.72 | AJ75: 19.2 | AK75: 19.2 | AL75: 5.4 | AM75: 3.6 | AN75: 3.6 | AO75: 3.6 | AP75: 1.2 | AQ75: 1.2
P76: IV | R76: =IF($P$4<=2.5,0.5*R70,(IF($P$4<=12.5,$P$4/5*R70,2.5*R70))) -> 600 | S76: 0.24 | T76: 0.48 | U76: 0.72 | V76: 0.84 | W76: 0.72 | X76: =X70 -> 2 | Y76: 130 | Z76: 100 | AA76: 45 | AB76: 40 | AC76: 80 | AD76: 140 | AE76: 300 | AF76: 3.1 | AH76: =IF($P$4<=2.5,0.5*AH70,(IF($P$4<=12.5,$P$4/5*AH70,2.5*AH70))) -> 0.72 | AI76: 0.18 | AJ76: 2.4 | AK76: 2.4 | AL76: 1.44 | AM76: 2.88 | AN76: 2.88 | AO76: 2.88 | AP76: 1.2 | AQ76: 1.2

Sheet Eau Wal DS TE
B2: Perceptions de chantier et comparaison des résultats d'analyse (DS) pour l'eau souterraine
B3: Projet: | C3: ='Manuel d''utilisation'!C3 -> BOF_SL_6000: Rue de la Station, 666 à 4308 Manage
B4: Identification du piézomètre | H4: Mesures de chantier | U4: Résultats d'analyse en µg/l | AV4: Remarques (couleur, turbidité, limpidité, …)
T5: HM somme | V5: Hydrocarbures pétroliers (fractions globales/combinées) | AB5: Hydrocarbures pétroliers (analyse 'split' aliphatique/aromatique) | AP5: BTEXN/MTBE
B6: Parcelle cadastrale | C6: Code du piézomètre | D6: X (Lambert) | E6: Y (Lambert) | F6: Profondeur de l'ouvrage (cm-ns)(5) | G6: Profondeur de la crépine: de (cm-ns) à (cm-ns) | H6: Date | I6: Phase d'étude(4) | J6: Niveau d’eau par rapport au sommet du piézomètre (cm-ns)(1) | K6: Quantité prélevée avant échantilllonnage (litre) | L6: Piézomètre bien ou mal alimenté(4) | M6: Zone de captage (I, IIa, IIb)(4) | N6: Nappe exploitable ou non-exploitable(4) | O6: Température (°C) | P6: Ec (µS/cm) | Q6: Odeur: type(4) | R6: Odeur: intensité(4) | S6: pH | T6: Huile minérale EC 5-35 | U6: Huile minérale EC 10-40 | V6: Fraction EC 5-8 | W6: Fraction EC 8-10 | X6: Fraction EC 10-12 | Y6: Fraction EC 12-16 | Z6: Fraction EC 16-21 | AA6: Fraction EC 21-35 | AB6: Ali EC 5-6 | AC6: Ali EC 6-8 | AD6: Ali EC 8-10 | AE6: Ali EC 10-12 | AF6: Ali EC 12-16 | AG6: Ali EC 16-21 | AH6: Ali EC 21-35 | AI6: Aro EC 6-7 | AJ6: Aro EC 7-8 | AK6: Aro EC 8-10 | AL6: Aro EC 10-12 | AM6: Aro EC 12-16 | AN6: Aro EC 16-21 | AO6: Aro EC 21-35 | AP6: Benzène | AQ6: Toluène | AR6: Ethylbenzène | AS6: Xylènes (total) | AT6: MTBE | AU6: Naphtalène
B7: NORMES: Concentrations en gras et rouge si dépassement de la norme | N7: VSnappe | V7: 60 | W7: 200 | X7: 200 | Y7: 200 | Z7: 300 | AA7: 300 | AP7: 10 | AQ7: 700 | AR7: 300 | AS7: 500 | AT7: 300 | AU7: 60
B8: Zone suspecte investiguée:
B9: 456e | C9: P1 | F9: 450 | G9: 200-400 | H9: 2006-06-07 | I9: EO | J9: 2.4 | K9: 6 | L9: bien | M9: IIb | N9: Exploit. | Q9: DI | R9: + | S9: 6.27 | V9: 62 | W9: 100 | AP9: 20 | AQ9: 600 | AR9: 2.5 | AS9: 9 | AT9: 40 | AU9: -0.05
B17: Autre zone suspecte:
B23: Autre zone suspecte:
B29: Légende
S30: VLnappe | V30: 120 | W30: 400 | X30: 400 | Y30: 400 | Z30: 600 | AA30: 600 | AP30: 40 | AQ30: 5850 | AR30: 1520 | AS30: 2175 | AT30: 1235 | AU30: 410
S31: VSnappe/volatisation | AB31: 8464 | AC31: 5578 | AD31: 189.7 | AE31: 126.7 | AF31: 29.12 | AG31: 21.76 | AH31: 0.2175 | AI31: 255.4 | AJ31: 19770 | AK31: 6294 | AL31: 21360 | AM31: 55060 | AN31: 105900 | AO31: 916000 | AP31: 255.4 | AQ31: 19770 | AR31: 517.8 | AS31: 7245 | AT31: 57510 | AU31: 596.2
H33: typeprofil | L33: LIMON MCS-1 | S33: eq. eau BOF-SRA (annexe 5) (3) | T33: =INDEX(T$61:T$95,MATCH($L$33,$S$61:$S$95,0)) -> 6276.631849 | U33: =INDEX(U$61:U$95,MATCH($L$33,$S$61:$S$95,0)) -> 4629.441849 | AB33: =INDEX(AB$61:AB$95,MATCH($L$33,$S$61:$S$95,0)) -> 0 | AC33: 35.36 | AD33: 43.83 | AE33: 19.7 | AF33: 0.4404 | AG33: 0.001449 | AK33: =INDEX(AK$61:AK$95,MATCH($L$33,$S$61:$S$95,0)) -> 1568 | AL33: =INDEX(AL$61:AL$95,MATCH($L$33,$S$61:$S$95,0)) -> 871.7 | AM33: =INDEX(AM$61:AM$95,MATCH($L$33,$S$61:$S$95,0)) -> 3361 | AN33: =INDEX(AN$61:AN$95,MATCH($L$33,$S$61:$S$95,0)) -> 376.6 | AP33: =INDEX(AP$61:AP$95,MATCH($L$33,$S$61:$S$95,0)) -> 63.53 | AQ33: 4887 | AR33: 124.6 | AS33: 2020 | AT33: 15100 | AU33: 157.8
B35: (1) S'il y a une couche surnageante, il convient d'en mentionner les parties supérieure et inférieure
B36: (3) A adapter conformément à la législation et aux paramètres spécifiques au site
B37: (4) Liste déroulante
B38: (5) Si différente de la profondeur de la base de la crépine
I40: EO
I41: EC | K41: data validation
I42: PA | L42: bien | M42: I | N42: Exploit. | Q42: Ess | R42: -
I43: EF | L43: mal | M43: IIa | N43: Non Expl. | Q43: DI | R43: +
I44: MON | L44: insuffisam. | M44: IIb | N44: non défini | Q44: HA | R44: ++
I45: EI | L45: non défini | M45: hors zone | Q45: MC
I46: autre/non défini | Q46: AU
N59: Dir annexe 5 | T59: conc. En µg/l
T60: Huile minérale EC5-35 | U60: Huile minérale EC10-40 | V60: Fraction EC 5-8 | W60: Fraction EC >8-10 | X60: Fraction EC >10-12 | Y60: Fraction EC >12-16 | Z60: Fraction EC >16-21 | AA60: Fraction EC >21-35 | AB60: ALI EC 5-6 | AC60: ALI EC >6-8 | AD60: ALI EC >8-10 | AE60: ALI EC >10-12 | AF60: ALI EC >12-16 | AG60: ALI EC >16-21 | AH60: ALI EC >21-35 | AI60: Arom EC 6-7 | AJ60: Arom EC >7-8 | AK60: Arom EC >8-10 | AL60: Arom EC >10-12 | AM60: Arom EC >12-16 | AN60: Arom EC >16-21 | AO60: Arom EC >21-35 | AP60: Benzène | AQ60: Toluène | AR60: Ethylbenzène | AS60: Xylènes (total) | AT60: MTBE | AU60: Naphtalène
S61: LIMON MCS-1 | T61: 6276.631849 | U61: 4629.441849 | AC61: 35.36 | AD61: 43.83 | AE61: 19.7 | AF61: 0.4404 | AG61: 0.001449 | AK61: 1568 | AL61: 871.7 | AM61: 3361 | AN61: 376.6 | AP61: 63.53 | AQ61: 4887 | AR61: 124.6 | AS61: 2020 | AT61: 15100 | AU61: 157.8
S62: LIMON MCS-2 | T62: 8560.441849 | U62: 5419.741849 | AC62: 67.18 | AD62: 83.52 | AE62: 19.7 | AF62: 0.4404 | AG62: 0.001449 | AK62: 2990 | AL62: 1662 | AM62: 3361 | AN62: 376.6 | AP62: 122 | AQ62: 9286 | AR62: 236.8 | AS62: 3838 | AT62: 28690 | AU62: 299.9
S63: LIMON MCS-3 | T63: 4702.591849 | U63: 3544.041849 | AC63: 24.75 | AD63: 30.8 | AE63: 19.7 | AF63: 0.4404 | AG63: 0.001449 | AK63: 1103 | AL63: 613.3 | AM63: 2534 | AN63: 376.6 | AP63: 47.06 | AQ63: 3601 | AR63: 95.26 | AS63: 1520 | AT63: 11330 | AU63: 118.4
S64: LIMON MCS-4 | T64: 16305.94185 | U64: 8098.741849 | AC64: 175.9 | AD64: 218.3 | AE64: 19.7 | AF64: 0.4404 | AG64: 0.001449 | AK64: 7813 | AL64: 4341 | AM64: 3361 | AN64: 376.6 | AP64: 333.3 | AQ64: 2572 | AR64: 649.9 | AS64: 10370 | AT64: 75510 | AU64: 841.8
S65: LIMON MCS-5 | T65: 16227.74185 | U65: 8072.741849 | AC65: 175 | AD65: 217 | AE65: 19.7 | AF65: 0.4404 | AG65: 0.001449 | AK65: 7763 | AL65: 4315 | AM65: 3361 | AN65: 376.6 | AP65: 317.7 | AQ65: 24310 | AR65: 658.8 | AS65: 10100 | AT65: 70980 | AU65: 776
S66: LIMON MCS-6 | T66: 59285.94185 | U66: 18247.74185 | AC66: 3129 | AD66: 249.2 | AE66: 19.7 | AF66: 0.4404 | AG66: 0.001449 | AK66: 37660 | AL66: 14490 | AM66: 3361 | AN66: 376.6 | AP66: 5490 | AQ66: 303100 | AR66: 11220 | AS66: 96190 | AT66: 1208000 | AU66: 14200
S67: LIMON MCS-7 | T67: 59285.94185 | U67: 18247.74185 | AC67: 3129 | AD67: 249.2 | AE67: 19.7 | AF67: 0.4404 | AG67: 0.001449 | AK67: 37660 | AL67: 14490 | AM67: 3361 | AN67: 376.6 | AP67: 2745 | AQ67: 216100 | AR67: 5698 | AS67: 86450 | AT67: 664500 | AU67: 6839
S68: LIMON SABLEUX MCS-1 | T68: 4878.971849 | U68: 3673.541849 | AC68: 25.47 | AD68: 31.96 | AE68: 19.7 | AF68: 0.4404 | AG68: 0.001449 | AK68: 1148 | AL68: 637.8 | AM68: 2639 | AN68: 376.6 | AP68: 43.22 | AQ68: 3188 | AR68: 81.72 | AS68: 1283 | AT68: 10810 | AU68: 108.8
S69: LIMON SABLEUX MCS-2 | T69: 6847.501849 | U69: 4827.741849 | AC69: 42.19 | AD69: 53.57 | AE69: 19.7 | AF69: 0.4404 | AG69: 0.001449 | AK69: 1924 | AL69: 1070 | AM69: 3361 | AN69: 376.6 | AP69: 122 | AQ69: 9286 | AR69: 236.8 | AS69: 3838 | AT69: 28690 | AU69: 299.9
S70: LIMON SABLEUX MCS-3 | T70: 2307.711849 | U70: 1754.761849 | AC70: 11.59 | AD70: 14.66 | AE70: 17.62 | AF70: 0.4404 | AG70: 0.001449 | AK70: 526.7 | AL70: 293 | AM70: 1210 | AN70: 233.7 | AP70: 35.66 | AQ70: 259.8 | AR70: 72.73 | AS70: 1116 | AT70: 8700 | AU70: 91.86
S71: LIMON SABLEUX MCS-4 | T71: 11790.74185 | U71: 6538.741849 | AC71: 109.7 | AD71: 139.3 | AE71: 19.7 | AF71: 0.4404 | AG71: 0.001449 | AK71: 5003 | AL71: 2781 | AM71: 3361 | AN71: 376.6 | AP71: 210.7 | AQ71: 16300 | AR71: 433.1 | AS71: 6717 | AT71: 50870 | AU71: 543.9
S72: LIMON SABLEUX MCS-5 | T72: 12345.74185 | U72: 6730.741849 | AC72: 118.2 | AD72: 148.8 | AE72: 19.7 | AF72: 0.4404 | AG72: 0.001449 | AK72: 5348 | AL72: 2973 | AM72: 3361 | AN72: 376.6 | AP72: 219.7 | AQ72: 17120 | AR72: 451.1 | AS72: 7018 | AT72: 50520 | AU72: 549.9
S73: LIMON SABLEUX MCS-6 | T73: 59022.94185 | U73: 18247.74185 | AC73: 2866 | AD73: 249.2 | AE73: 19.7 | AF73: 0.4404 | AG73: 0.001449 | AK73: 37660 | AL73: 14490 | AM73: 3361 | AN73: 376.6 | AP73: 3206 | AQ73: 283400 | AR73: 6538 | AS73: 96190 | AT73: 771800 | AU73: 8219
S74: LIMON SABLEUX MCS-7 | T74: 59022.94185 | U74: 18247.74185 | AC74: 2866 | AD74: 249.2 | AE74: 19.7 | AF74: 0.4404 | AG74: 0.001449 | AK74: 37660 | AL74: 14490 | AM74: 3361 | AN74: 376.6 | AP74: 1675 | AQ74: 129900 | AR74: 3269 | AS74: 48460 | AT74: 407000 | AU74: 3868
S75: ARGILE MCS-1 | T75: 6979.091849 | U75: 4869.741849 | AC75: 47.02 | AD75: 56.33 | AE75: 19.7 | AF75: 0.4404 | AG75: 0.001449 | AK75: 2006 | AL75: 1112 | AM75: 3361 | AN75: 376.6 | AP75: 79.64 | AQ75: 5815 | AR75: 159.1 | AS75: 2385 | AT75: 17550 | AU75: 183.3
S76: ARGILE MCS-2 | T76: 9912.101849 | U76: 5882.741849 | AC76: 89.76 | AD76: 107.6 | AE76: 19.7 | AF76: 0.4404 | AG76: 0.001449 | AK76: 3832 | AL76: 2125 | AM76: 3361 | AN76: 376.6 | AP76: 159.3 | AQ76: 11630 | AR76: 318.2 | AS76: 4771 | AT76: 35100 | AU76: 366.7
S77: ARGILE MCS-3 | T77: 5672.401849 | U77: 4248.641849 | AC77: 31.74 | AD77: 38.02 | AE77: 19.7 | AF77: 0.4404 | AG77: 0.001449 | AK77: 1354 | AL77: 750.9 | AM77: 3101 | AN77: 376.6 | AP77: 55.38 | AQ77: 4342 | AR77: 114 | AS77: 1762 | AT77: 12620 | AU77: 134.4
S78: ARGILE MCS-4 | T78: 20939.54185 | U78: 9708.741849 | AC78: 251.6 | AD78: 249.2 | AE78: 19.7 | AF78: 0.4404 | AG78: 0.001449 | AK78: 10730 | AL78: 5951 | AM78: 3361 | AN78: 376.6 | AP78: 451.3 | AQ78: 35200 | AR78: 944.5 | AS78: 14370 | AT78: 104200 | AU78: 1146
S79: ARGILE MCS-5 | T79: 19673.64185 | U79: 9263.741849 | AC79: 232.7 | AD79: 249.2 | AE79: 19.7 | AF79: 0.4404 | AG79: 0.001449 | AK79: 9928 | AL79: 5506 | AM79: 3361 | AN79: 376.6 | AP79: 400.6 | AQ79: 31790 | AR79: 837.9 | AS79: 13010 | AT79: 86660 | AU79: 924.3
S80: ARGILE MCS-6 | T80: 58080.94185 | U80: 18247.74185 | AC80: 1924 | AD80: 249.2 | AE80: 19.7 | AF80: 0.4404 | AG80: 0.001449 | AK80: 37660 | AL80: 14490 | AM80: 3361 | AN80: 376.6 | AP80: 7602 | AQ80: 303100 | AR80: 13520 | AS80: 96190 | AT80: 1810000 | AU80: 16040
S81: ARGILE MCS-7 | T81: 58080.94185 | U81: 18247.74185 | AC81: 1924 | AD81: 249.2 | AE81: 19.7 | AF81: 0.4404 | AG81: 0.001449 | AK81: 37660 | AL81: 14490 | AM81: 3361 | AN81: 376.6 | AP81: 3644 | AQ81: 267500 | AR81: 6395 | AS81: 94870 | AT81: 898400 | AU81: 7486
S82: LIMON CAILLOUTEUX MCS-1 | T82: 5342.081849 | U82: 4007.041849 | AC82: 29.47 | AD82: 35.57 | AE82: 19.7 | AF82: 0.4404 | AG82: 0.001449 | AK82: 1270 | AL82: 704.3 | AM82: 2906 | AN82: 376.6 | AP82: 52.04 | AQ82: 3836 | AR82: 105.3 | AS82: 1596 | AT82: 12290 | AU82: 134
S83: LIMON CAILLOUTEUX MCS-2 | T83: 7617.931849 | U83: 5090.741849 | AC83: 55.84 | AD83: 67.35 | AE83: 19.7 | AF83: 0.4404 | AG83: 0.001449 | AK83: 2404 | AL83: 1333 | AM83: 3361 | AN83: 376.6 | AP83: 87.03 | AQ83: 6813 | AR83: 195.1 | AS83: 2793 | AT83: 21950 | AU83: 251.2
S84: LIMON CAILLOUTEUX MCS-3 | T84: 2441.891849 | U84: 1854.571849 | AC84: 12.97 | AD84: 15.65 | AE84: 18.63 | AF84: 0.4404 | AG84: 0.001449 | AK84: 558.7 | AL84: 309.9 | AM84: 1279 | AN84: 246.6 | AP84: 38.76 | AQ84: 3000 | AR84: 79.59 | AS84: 1197 | AT84: 9246 | AU84: 100.5
S85: LIMON CAILLOUTEUX MCS-4 | T85: 13514.54185 | U85: 7126.741849 | AC85: 141.5 | AD85: 170.3 | AE85: 19.7 | AF85: 0.4404 | AG85: 0.001449 | AK85: 6076 | AL85: 3369 | AM85: 3361 | AN85: 376.6 | AP85: 254.8 | AQ85: 19750 | AR85: 519.8 | AS85: 8138 | AT85: 60150 | AU85: 664.3
S86: LIMON CAILLOUTEUX MCS-5 | T86: 12143.84185 | U86: 6653.741849 | AC86: 121.8 | AD86: 146.3 | AE86: 19.7 | AF86: 0.4404 | AG86: 0.001449 | AK86: 5222 | AL86: 2896 | AM86: 3361 | AN86: 376.6 | AP86: 215.3 | AQ86: 16830 | AR86: 448.7 | AS86: 6942 | AT86: 50050 | AU86: 547.1
S87: LIMON CAILLOUTEUX MCS-6 | T87: 57552.94185 | U87: 18247.74185 | AC87: 1396 | AD87: 249.2 | AE87: 19.7 | AF87: 0.4404 | AG87: 0.001449 | AK87: 37660 | AL87: 14490 | AM87: 3361 | AN87: 376.6 | AP87: 4127 | AQ87: 303100 | AR87: 8583 | AS87: 96190 | AT87: 987800 | AU87: 11050
S88: LIMON CAILLOUTEUX MCS-7 | T88: 57552.94185 | U88: 18247.74185 | AC88: 1396 | AD88: 249.2 | AE88: 19.7 | AF88: 0.4404 | AG88: 0.001449 | AK88: 37660 | AL88: 14490 | AM88: 3361 | AN88: 376.6 | AP88: 2064 | AQ88: 160300 | AR88: 4350 | AS88: 63830 | AT88: 500500 | AU88: 5504
S89: SABLE MCS-1 | T89: 1228.896849 | U89: 933.591849 | AC89: 6.222 | AD89: 7.783 | AE89: 9.35 | AF89: 0.4404 | AG89: 0.001449 | AK89: 281.3 | AL89: 156 | AM89: 643.7 | AN89: 124.1 | AP89: 16.97 | AQ89: 1285 | AR89: 31.91 | AS89: 519.6 | AT89: 4119 | AU89: 41.21
S90: SABLE MCS-2 | T90: 2202.161849 | U90: 1673.101849 | AC90: 11.11 | AD90: 13.95 | AE90: 16.76 | AF90: 0.4404 | AG90: 0.001449 | AK90: 504 | AL90: 279.6 | AM90: 1154 | AN90: 222.3 | AP90: 33.93 | AQ90: 2677 | AR90: 65.27 | AS90: 1024 | AT90: 8827 | AU90: 90.66
S91: SABLE MCS-3 | T91: 1037.313849 | U91: 788.133849 | AC91: 5.228 | AD91: 6.552 | AE91: 7.892 | AF91: 0.4404 | AG91: 0.001449 | AK91: 237.4 | AL91: 131.7 | AM91: 543.4 | AN91: 104.7 | AP91: 15.78 | AQ91: 1189 | AR91: 30.46 | AS91: 467.6 | AT91: 4021 | AU91: 39.15
S92: SABLE MCS-4 | T92: 6827.591849 | U92: 4818.741849 | AC92: 41.93 | AD92: 52.92 | AE92: 19.7 | AF92: 0.4404 | AG92: 0.001449 | AK92: 1914 | AL92: 1061 | AM92: 3361 | AN92: 376.6 | AP92: 76.35 | AQ92: 5997 | AR92: 159.5 | AS92: 2449 | AT92: 18630 | AU92: 206
S93: SABLE MCS-5 | T93: 8556.461849 | U93: 5416.741849 | AC93: 65.94 | AD93: 82.78 | AE93: 19.7 | AF93: 0.4404 | AG93: 0.001449 | AK93: 2991 | AL93: 1659 | AM93: 3361 | AN93: 376.6 | AP93: 120.5 | AQ93: 9531 | AR93: 224.8 | AS93: 3786 | AT93: 28440 | AU93: 298.8
S94: SABLE MCS-6 | T94: 21427.44185 | U94: 9884.741849 | AC94: 243.5 | AD94: 249.2 | AE94: 19.7 | AF94: 0.4404 | AG94: 0.001449 | AK94: 11050 | AL94: 6127 | AM94: 3361 | AN94: 376.6 | AP94: 509 | AQ94: 36410 | AR94: 870.3 | AS94: 13360 | AT94: 127500 | AU94: 989
S95: SABLE MCS-7 | T95: 14390.24185 | U95: 7433.741849 | AC95: 146.1 | AD95: 183.4 | AE95: 19.7 | AF95: 0.4404 | AG95: 0.001449 | AK95: 6627 | AL95: 3676 | AM95: 3361 | AN95: 376.6 | AP95: 240.9 | AQ95: 17780 | AR95: 406.1 | AS95: 6383 | AT95: 61790 | AU95: 490.4

Sheet AR Eau BOF_TRA & SRA
B2: Perceptions de chantier et comparaison des résultats d'analyse (DS) pour l'eau souterraine
B3: Projet: | C3: ='Manuel d''utilisation'!C3 -> BOF_SL_6000: Rue de la Station, 666 à 4308 Manage
B4: Identification du piézomètre | H4: Mesures de chantier | U4: Résultats d'analyse en µg/l | AV4: Remarques (couleur, turbidité, limpidité, …)
T5: HM somme | V5: Hydrocarbures pétroliers (fractions globales/combinées) | AB5: Hydrocarbures pétroliers (analyse 'split' aliphatique/aromatique) | AP5: BTEXN/MTBE
B6: Parcelle cadastrale | C6: Code du piézomètre | D6: X (Lambert) | E6: Y (Lambert) | F6: Profondeur de l'ouvrage (cm-ns)(5) | G6: Profondeur de la crépine: de (cm-ns) à (cm-ns) | H6: Date | I6: Phase d'étude(4) | J6: Niveau d’eau par rapport au sommet du piézomètre (cm-ns)(1) | K6: Quantité prélevée avant échantilllonnage (litre) | L6: Piézomètre bien ou mal alimenté(4) | M6: Zone de captage (I, IIa, IIb)(4) | N6: Nappe exploitable ou non-exploitable(4) | O6: Température (°C) | P6: Ec (µS/cm) | Q6: Odeur: type(4) | R6: Odeur: intensité(4) | S6: pH | T6: Huile minérale EC 5-35 | U6: Huile minérale EC 10-40 | V6: Fraction EC 5-8 | W6: Fraction EC 8-10 | X6: Fraction EC 10-12 | Y6: Fraction EC 12-16 | Z6: Fraction EC 16-21 | AA6: Fraction EC 21-35 | AB6: Ali EC 5-6 | AC6: Ali EC 6-8 | AD6: Ali EC 8-10 | AE6: Ali EC 10-12 | AF6: Ali EC 12-16 | AG6: Ali EC 16-21 | AH6: Ali EC 21-35 | AI6: Aro EC 6-7 | AJ6: Aro EC 7-8 | AK6: Aro EC 8-10 | AL6: Aro EC 10-12 | AM6: Aro EC 12-16 | AN6: Aro EC 16-21 | AO6: Aro EC 21-35 | AP6: Benzène | AQ6: Toluène | AR6: Ethylbenzène | AS6: Xylènes (total) | AT6: MTBE | AU6: Naphtalène
B7: Zone suspecte investiguée:
B8: 456e | C8: P1 | F8: 450 | G8: 200-400 | H8: 2006-06-07 | I8: EO | J8: 2.4 | L8: bien | M8: IIb | N8: Exploit. | Q8: DI | R8: + | S8: 6.27 | V8: 62 | W8: 100 | AP8: 12 | AQ8: 800 | AR8: 2.5 | AS8: 9 | AT8: 40 | AU8: -0.05
B16: Autre zone suspecte:
B22: Autre zone suspecte:
B28: Légende
B29: Caractère gras et rouge= excède la | S29: VSnappe | V29: 60 | W29: 200 | X29: 200 | Y29: 200 | Z29: 300 | AA29: 300 | AP29: 10 | AQ29: 700 | AR29: 300 | AS29: 500 | AT29: 300 | AU29: 60
O30: VLnappe | V30: 120 | W30: 400 | X30: 400 | Y30: 400 | Z30: 600 | AA30: 600 | AP30: 40 | AQ30: 5850 | AR30: 1520 | AS30: 2175 | AT30: 1235 | AU30: 410
O31: VSnappe/volatilisation | AB31: 8464 | AC31: 5578 | AD31: 189.7 | AE31: 126.7 | AF31: 29.12 | AG31: 21.76 | AH31: 0.2175 | AI31: 255.4 | AJ31: 19770 | AK31: 6294 | AL31: 21360 | AM31: 55060 | AN31: 105900 | AO31: 916000 | AP31: 255.4 | AQ31: 19770 | AR31: 517.8 | AS31: 7245 | AT31: 57510 | AU31: 596.2
B33: Fond jaune = excède le | H33: Profil type(4) | L33: LIMON MCS-1 | O33: Concent équil. eau BOF-SRA (ann. 5) (3) | T33: =INDEX(T$61:T$95,MATCH($L$33,$S$61:$S$95,0)) -> 6276.631849 | U33: 4629.441849 | V33: - | W33: - | X33: - | Y33: - | Z33: - | AA33: - | AB33: - | AC33: 35.36 | AD33: 43.83 | AE33: 19.7 | AF33: 0.4404 | AG33: 0.001449 | AH33: - | AI33: - | AJ33: - | AK33: 1568 | AL33: 871.7 | AM33: 3361 | AN33: 376.6 | AO33: - | AP33: 63.53 | AQ33: 4887 | AR33: 124.6 | AS33: 2020 | AT33: 15100 | AU33: 157.8
B35: (1) S'il y a une couche surnageante, il convient d'en mentionner les parties supérieure et inférieure
B36: (3) A adapter conformément à la législation et aux paramètres spécifiques au site
B37: (4) Liste déroulante
B38: (5) Si différente de la profondeur de la base de la crépine
I40: EO
I41: EC | K41: data validation
I42: PA | L42: bien | M42: I | N42: Exploit. | Q42: Ess | R42: -
I43: EF | L43: mal | M43: IIa | N43: Non Expl. | Q43: DI | R43: +
I44: MON | L44: insuffisam. | M44: IIb | N44: non défini | Q44: HA | R44: ++
I45: EI | L45: non défini | M45: hors zone | Q45: MC
I46: autre/non défini | Q46: AU
N59: Dir annexe 5 | T59: conc. En µg/l
T60: Huile minérale EC5-35 | U60: Huile minérale EC10-40 | V60: Fraction EC 5-8 | W60: Fraction EC >8-10 | X60: Fraction EC >10-12 | Y60: Fraction EC >12-16 | Z60: Fraction EC >16-21 | AA60: Fraction EC >21-35 | AB60: ALI EC 5-6 | AC60: ALI EC >6-8 | AD60: ALI EC >8-10 | AE60: ALI EC >10-12 | AF60: ALI EC >12-16 | AG60: ALI EC >16-21 | AH60: ALI EC >21-35 | AI60: Arom EC 6-7 | AJ60: Arom EC >7-8 | AK60: Arom EC >8-10 | AL60: Arom EC >10-12 | AM60: Arom EC >12-16 | AN60: Arom EC >16-21 | AO60: Arom EC >21-35 | AP60: Benzène | AQ60: Toluène | AR60: Ethylbenzène | AS60: Xylènes (total) | AT60: MTBE | AU60: Naphtalène
S61: LIMON MCS-1 | T61: 6276.631849 | U61: 4629.441849 | V61: - | W61: - | X61: - | Y61: - | Z61: - | AA61: - | AB61: - | AC61: 35.36 | AD61: 43.83 | AE61: 19.7 | AF61: 0.4404 | AG61: 0.001449 | AH61: - | AI61: - | AJ61: - | AK61: 1568 | AL61: 871.7 | AM61: 3361 | AN61: 376.6 | AO61: - | AP61: 63.53 | AQ61: 4887 | AR61: 124.6 | AS61: 2020 | AT61: 15100 | AU61: 157.8
S62: LIMON MCS-2 | T62: 8560.441849 | U62: 5419.741849 | V62: - | W62: - | X62: - | Y62: - | Z62: - | AA62: - | AB62: - | AC62: 67.18 | AD62: 83.52 | AE62: 19.7 | AF62: 0.4404 | AG62: 0.001449 | AH62: - | AI62: - | AJ62: - | AK62: 2990 | AL62: 1662 | AM62: 3361 | AN62: 376.6 | AO62: - | AP62: 122 | AQ62: 9286 | AR62: 236.8 | AS62: 3838 | AT62: 28690 | AU62: 299.9
S63: LIMON MCS-3 | T63: 4702.591849 | U63: 3544.041849 | V63: - | W63: - | X63: - | Y63: - | Z63: - | AA63: - | AB63: - | AC63: 24.75 | AD63: 30.8 | AE63: 19.7 | AF63: 0.4404 | AG63: 0.001449 | AH63: - | AI63: - | AJ63: - | AK63: 1103 | AL63: 613.3 | AM63: 2534 | AN63: 376.6 | AO63: - | AP63: 47.06 | AQ63: 3601 | AR63: 95.26 | AS63: 1520 | AT63: 11330 | AU63: 118.4
S64: LIMON MCS-4 | T64: 16305.94185 | U64: 8098.741849 | V64: - | W64: - | X64: - | Y64: - | Z64: - | AA64: - | AB64: - | AC64: 175.9 | AD64: 218.3 | AE64: 19.7 | AF64: 0.4404 | AG64: 0.001449 | AH64: - | AI64: - | AJ64: - | AK64: 7813 | AL64: 4341 | AM64: 3361 | AN64: 376.6 | AO64: - | AP64: 333.3 | AQ64: 2572 | AR64: 649.9 | AS64: 10370 | AT64: 75510 | AU64: 841.8
S65: LIMON MCS-5 | T65: 16227.74185 | U65: 8072.741849 | V65: - | W65: - | X65: - | Y65: - | Z65: - | AA65: - | AB65: - | AC65: 175 | AD65: 217 | AE65: 19.7 | AF65: 0.4404 | AG65: 0.001449 | AH65: - | AI65: - | AJ65: - | AK65: 7763 | AL65: 4315 | AM65: 3361 | AN65: 376.6 | AO65: - | AP65: 317.7 | AQ65: 24310 | AR65: 658.8 | AS65: 10100 | AT65: 70980 | AU65: 776
S66: LIMON MCS-6 | T66: 59285.94185 | U66: 18247.74185 | V66: - | W66: - | X66: - | Y66: - | Z66: - | AA66: - | AB66: - | AC66: 3129 | AD66: 249.2 | AE66: 19.7 | AF66: 0.4404 | AG66: 0.001449 | AH66: - | AI66: - | AJ66: - | AK66: 37660 | AL66: 14490 | AM66: 3361 | AN66: 376.6 | AO66: - | AP66: 5490 | AQ66: 303100 | AR66: 11220 | AS66: 96190 | AT66: 1208000 | AU66: 14200
S67: LIMON MCS-7 | T67: 59285.94185 | U67: 18247.74185 | V67: - | W67: - | X67: - | Y67: - | Z67: - | AA67: - | AB67: - | AC67: 3129 | AD67: 249.2 | AE67: 19.7 | AF67: 0.4404 | AG67: 0.001449 | AH67: - | AI67: - | AJ67: - | AK67: 37660 | AL67: 14490 | AM67: 3361 | AN67: 376.6 | AO67: - | AP67: 2745 | AQ67: 216100 | AR67: 5698 | AS67: 86450 | AT67: 664500 | AU67: 6839
S68: LIMON SABLEUX MCS-1 | T68: 4878.971849 | U68: 3673.541849 | V68: - | W68: - | X68: - | Y68: - | Z68: - | AA68: - | AB68: - | AC68: 25.47 | AD68: 31.96 | AE68: 19.7 | AF68: 0.4404 | AG68: 0.001449 | AH68: - | AI68: - | AJ68: - | AK68: 1148 | AL68: 637.8 | AM68: 2639 | AN68: 376.6 | AO68: - | AP68: 43.22 | AQ68: 3188 | AR68: 81.72 | AS68: 1283 | AT68: 10810 | AU68: 108.8
S69: LIMON SABLEUX MCS-2 | T69: 6847.501849 | U69: 4827.741849 | V69: - | W69: - | X69: - | Y69: - | Z69: - | AA69: - | AB69: - | AC69: 42.19 | AD69: 53.57 | AE69: 19.7 | AF69: 0.4404 | AG69: 0.001449 | AH69: - | AI69: - | AJ69: - | AK69: 1924 | AL69: 1070 | AM69: 3361 | AN69: 376.6 | AO69: - | AP69: 122 | AQ69: 9286 | AR69: 236.8 | AS69: 3838 | AT69: 28690 | AU69: 299.9
S70: LIMON SABLEUX MCS-3 | T70: 2307.711849 | U70: 1754.761849 | V70: - | W70: - | X70: - | Y70: - | Z70: - | AA70: - | AB70: - | AC70: 11.59 | AD70: 14.66 | AE70: 17.62 | AF70: 0.4404 | AG70: 0.001449 | AH70: - | AI70: - | AJ70: - | AK70: 526.7 | AL70: 293 | AM70: 1210 | AN70: 233.7 | AO70: - | AP70: 35.66 | AQ70: 259.8 | AR70: 72.73 | AS70: 1116 | AT70: 8700 | AU70: 91.86
S71: LIMON SABLEUX MCS-4 | T71: 11790.74185 | U71: 6538.741849 | V71: - | W71: - | X71: - | Y71: - | Z71: - | AA71: - | AB71: - | AC71: 109.7 | AD71: 139.3 | AE71: 19.7 | AF71: 0.4404 | AG71: 0.001449 | AH71: - | AI71: - | AJ71: - | AK71: 5003 | AL71: 2781 | AM71: 3361 | AN71: 376.6 | AO71: - | AP71: 210.7 | AQ71: 16300 | AR71: 433.1 | AS71: 6717 | AT71: 50870 | AU71: 543.9
S72: LIMON SABLEUX MCS-5 | T72: 12345.74185 | U72: 6730.741849 | V72: - | W72: - | X72: - | Y72: - | Z72: - | AA72: - | AB72: - | AC72: 118.2 | AD72: 148.8 | AE72: 19.7 | AF72: 0.4404 | AG72: 0.001449 | AH72: - | AI72: - | AJ72: - | AK72: 5348 | AL72: 2973 | AM72: 3361 | AN72: 376.6 | AO72: - | AP72: 219.7 | AQ72: 17120 | AR72: 451.1 | AS72: 7018 | AT72: 50520 | AU72: 549.9
S73: LIMON SABLEUX MCS-6 | T73: 59022.94185 | U73: 18247.74185 | V73: - | W73: - | X73: - | Y73: - | Z73: - | AA73: - | AB73: - | AC73: 2866 | AD73: 249.2 | AE73: 19.7 | AF73: 0.4404 | AG73: 0.001449 | AH73: - | AI73: - | AJ73: - | AK73: 37660 | AL73: 14490 | AM73: 3361 | AN73: 376.6 | AO73: - | AP73: 3206 | AQ73: 283400 | AR73: 6538 | AS73: 96190 | AT73: 771800 | AU73: 8219
S74: LIMON SABLEUX MCS-7 | T74: 59022.94185 | U74: 18247.74185 | V74: - | W74: - | X74: - | Y74: - | Z74: - | AA74: - | AB74: - | AC74: 2866 | AD74: 249.2 | AE74: 19.7 | AF74: 0.4404 | AG74: 0.001449 | AH74: - | AI74: - | AJ74: - | AK74: 37660 | AL74: 14490 | AM74: 3361 | AN74: 376.6 | AO74: - | AP74: 1675 | AQ74: 129900 | AR74: 3269 | AS74: 48460 | AT74: 407000 | AU74: 3868
S75: ARGILE MCS-1 | T75: 6979.091849 | U75: 4869.741849 | V75: - | W75: - | X75: - | Y75: - | Z75: - | AA75: - | AB75: - | AC75: 47.02 | AD75: 56.33 | AE75: 19.7 | AF75: 0.4404 | AG75: 0.001449 | AH75: - | AI75: - | AJ75: - | AK75: 2006 | AL75: 1112 | AM75: 3361 | AN75: 376.6 | AO75: - | AP75: 79.64 | AQ75: 5815 | AR75: 159.1 | AS75: 2385 | AT75: 17550 | AU75: 183.3
S76: ARGILE MCS-2 | T76: 9912.101849 | U76: 5882.741849 | V76: - | W76: - | X76: - | Y76: - | Z76: - | AA76: - | AB76: - | AC76: 89.76 | AD76: 107.6 | AE76: 19.7 | AF76: 0.4404 | AG76: 0.001449 | AH76: - | AI76: - | AJ76: - | AK76: 3832 | AL76: 2125 | AM76: 3361 | AN76: 376.6 | AO76: - | AP76: 159.3 | AQ76: 11630 | AR76: 318.2 | AS76: 4771 | AT76: 35100 | AU76: 366.7
S77: ARGILE MCS-3 | T77: 5672.401849 | U77: 4248.641849 | V77: - | W77: - | X77: - | Y77: - | Z77: - | AA77: - | AB77: - | AC77: 31.74 | AD77: 38.02 | AE77: 19.7 | AF77: 0.4404 | AG77: 0.001449 | AH77: - | AI77: - | AJ77: - | AK77: 1354 | AL77: 750.9 | AM77: 3101 | AN77: 376.6 | AO77: - | AP77: 55.38 | AQ77: 4342 | AR77: 114 | AS77: 1762 | AT77: 12620 | AU77: 134.4
S78: ARGILE MCS-4 | T78: 20939.54185 | U78: 9708.741849 | V78: - | W78: - | X78: - | Y78: - | Z78: - | AA78: - | AB78: - | AC78: 251.6 | AD78: 249.2 | AE78: 19.7 | AF78: 0.4404 | AG78: 0.001449 | AH78: - | AI78: - | AJ78: - | AK78: 10730 | AL78: 5951 | AM78: 3361 | AN78: 376.6 | AO78: - | AP78: 451.3 | AQ78: 35200 | AR78: 944.5 | AS78: 14370 | AT78: 104200 | AU78: 1146
S79: ARGILE MCS-5 | T79: 19673.64185 | U79: 9263.741849 | V79: - | W79: - | X79: - | Y79: - | Z79: - | AA79: - | AB79: - | AC79: 232.7 | AD79: 249.2 | AE79: 19.7 | AF79: 0.4404 | AG79: 0.001449 | AH79: - | AI79: - | AJ79: - | AK79: 9928 | AL79: 5506 | AM79: 3361 | AN79: 376.6 | AO79: - | AP79: 400.6 | AQ79: 31790 | AR79: 837.9 | AS79: 13010 | AT79: 86660 | AU79: 924.3
S80: ARGILE MCS-6 | T80: 58080.94185 | U80: 18247.74185 | V80: - | W80: - | X80: - | Y80: - | Z80: - | AA80: - | AB80: - | AC80: 1924 | AD80: 249.2 | AE80: 19.7 | AF80: 0.4404 | AG80: 0.001449 | AH80: - | AI80: - | AJ80: - | AK80: 37660 | AL80: 14490 | AM80: 3361 | AN80: 376.6 | AO80: - | AP80: 7602 | AQ80: 303100 | AR80: 13520 | AS80: 96190 | AT80: 1810000 | AU80: 16040
S81: ARGILE MCS-7 | T81: 58080.94185 | U81: 18247.74185 | V81: - | W81: - | X81: - | Y81: - | Z81: - | AA81: - | AB81: - | AC81: 1924 | AD81: 249.2 | AE81: 19.7 | AF81: 0.4404 | AG81: 0.001449 | AH81: - | AI81: - | AJ81: - | AK81: 37660 | AL81: 14490 | AM81: 3361 | AN81: 376.6 | AO81: - | AP81: 3644 | AQ81: 267500 | AR81: 6395 | AS81: 94870 | AT81: 898400 | AU81: 7486
S82: LIMON CAILLOUTEUX MCS-1 | T82: 5342.081849 | U82: 4007.041849 | V82: - | W82: - | X82: - | Y82: - | Z82: - | AA82: - | AB82: - | AC82: 29.47 | AD82: 35.57 | AE82: 19.7 | AF82: 0.4404 | AG82: 0.001449 | AH82: - | AI82: - | AJ82: - | AK82: 1270 | AL82: 704.3 | AM82: 2906 | AN82: 376.6 | AO82: - | AP82: 52.04 | AQ82: 3836 | AR82: 105.3 | AS82: 1596 | AT82: 12290 | AU82: 134
S83: LIMON CAILLOUTEUX MCS-2 | T83: 7617.931849 | U83: 5090.741849 | V83: - | W83: - | X83: - | Y83: - | Z83: - | AA83: - | AB83: - | AC83: 55.84 | AD83: 67.35 | AE83: 19.7 | AF83: 0.4404 | AG83: 0.001449 | AH83: - | AI83: - | AJ83: - | AK83: 2404 | AL83: 1333 | AM83: 3361 | AN83: 376.6 | AO83: - | AP83: 87.03 | AQ83: 6813 | AR83: 195.1 | AS83: 2793 | AT83: 21950 | AU83: 251.2
S84: LIMON CAILLOUTEUX MCS-3 | T84: 2441.891849 | U84: 1854.571849 | V84: - | W84: - | X84: - | Y84: - | Z84: - | AA84: - | AB84: - | AC84: 12.97 | AD84: 15.65 | AE84: 18.63 | AF84: 0.4404 | AG84: 0.001449 | AH84: - | AI84: - | AJ84: - | AK84: 558.7 | AL84: 309.9 | AM84: 1279 | AN84: 246.6 | AO84: - | AP84: 38.76 | AQ84: 3000 | AR84: 79.59 | AS84: 1197 | AT84: 9246 | AU84: 100.5
S85: LIMON CAILLOUTEUX MCS-4 | T85: 13514.54185 | U85: 7126.741849 | V85: - | W85: - | X85: - | Y85: - | Z85: - | AA85: - | AB85: - | AC85: 141.5 | AD85: 170.3 | AE85: 19.7 | AF85: 0.4404 | AG85: 0.001449 | AH85: - | AI85: - | AJ85: - | AK85: 6076 | AL85: 3369 | AM85: 3361 | AN85: 376.6 | AO85: - | AP85: 254.8 | AQ85: 19750 | AR85: 519.8 | AS85: 8138 | AT85: 60150 | AU85: 664.3
S86: LIMON CAILLOUTEUX MCS-5 | T86: 12143.84185 | U86: 6653.741849 | V86: - | W86: - | X86: - | Y86: - | Z86: - | AA86: - | AB86: - | AC86: 121.8 | AD86: 146.3 | AE86: 19.7 | AF86: 0.4404 | AG86: 0.001449 | AH86: - | AI86: - | AJ86: - | AK86: 5222 | AL86: 2896 | AM86: 3361 | AN86: 376.6 | AO86: - | AP86: 215.3 | AQ86: 16830 | AR86: 448.7 | AS86: 6942 | AT86: 50050 | AU86: 547.1
S87: LIMON CAILLOUTEUX MCS-6 | T87: 57552.94185 | U87: 18247.74185 | V87: - | W87: - | X87: - | Y87: - | Z87: - | AA87: - | AB87: - | AC87: 1396 | AD87: 249.2 | AE87: 19.7 | AF87: 0.4404 | AG87: 0.001449 | AH87: - | AI87: - | AJ87: - | AK87: 37660 | AL87: 14490 | AM87: 3361 | AN87: 376.6 | AO87: - | AP87: 4127 | AQ87: 303100 | AR87: 8583 | AS87: 96190 | AT87: 987800 | AU87: 11050
S88: LIMON CAILLOUTEUX MCS-7 | T88: 57552.94185 | U88: 18247.74185 | V88: - | W88: - | X88: - | Y88: - | Z88: - | AA88: - | AB88: - | AC88: 1396 | AD88: 249.2 | AE88: 19.7 | AF88: 0.4404 | AG88: 0.001449 | AH88: - | AI88: - | AJ88: - | AK88: 37660 | AL88: 14490 | AM88: 3361 | AN88: 376.6 | AO88: - | AP88: 2064 | AQ88: 160300 | AR88: 4350 | AS88: 63830 | AT88: 500500 | AU88: 5504
S89: SABLE MCS-1 | T89: 1228.896849 | U89: 933.591849 | V89: - | W89: - | X89: - | Y89: - | Z89: - | AA89: - | AB89: - | AC89: 6.222 | AD89: 7.783 | AE89: 9.35 | AF89: 0.4404 | AG89: 0.001449 | AH89: - | AI89: - | AJ89: - | AK89: 281.3 | AL89: 156 | AM89: 643.7 | AN89: 124.1 | AO89: - | AP89: 16.97 | AQ89: 1285 | AR89: 31.91 | AS89: 519.6 | AT89: 4119 | AU89: 41.21
S90: SABLE MCS-2 | T90: 2202.161849 | U90: 1673.101849 | V90: - | W90: - | X90: - | Y90: - | Z90: - | AA90: - | AB90: - | AC90: 11.11 | AD90: 13.95 | AE90: 16.76 | AF90: 0.4404 | AG90: 0.001449 | AH90: - | AI90: - | AJ90: - | AK90: 504 | AL90: 279.6 | AM90: 1154 | AN90: 222.3 | AO90: - | AP90: 33.93 | AQ90: 2677 | AR90: 65.27 | AS90: 1024 | AT90: 8827 | AU90: 90.66
S91: SABLE MCS-3 | T91: 1037.313849 | U91: 788.133849 | V91: - | W91: - | X91: - | Y91: - | Z91: - | AA91: - | AB91: - | AC91: 5.228 | AD91: 6.552 | AE91: 7.892 | AF91: 0.4404 | AG91: 0.001449 | AH91: - | AI91: - | AJ91: - | AK91: 237.4 | AL91: 131.7 | AM91: 543.4 | AN91: 104.7 | AO91: - | AP91: 15.78 | AQ91: 1189 | AR91: 30.46 | AS91: 467.6 | AT91: 4021 | AU91: 39.15
S92: SABLE MCS-4 | T92: 6827.591849 | U92: 4818.741849 | V92: - | W92: - | X92: - | Y92: - | Z92: - | AA92: - | AB92: - | AC92: 41.93 | AD92: 52.92 | AE92: 19.7 | AF92: 0.4404 | AG92: 0.001449 | AH92: - | AI92: - | AJ92: - | AK92: 1914 | AL92: 1061 | AM92: 3361 | AN92: 376.6 | AO92: - | AP92: 76.35 | AQ92: 5997 | AR92: 159.5 | AS92: 2449 | AT92: 18630 | AU92: 206
S93: SABLE MCS-5 | T93: 8556.461849 | U93: 5416.741849 | V93: - | W93: - | X93: - | Y93: - | Z93: - | AA93: - | AB93: - | AC93: 65.94 | AD93: 82.78 | AE93: 19.7 | AF93: 0.4404 | AG93: 0.001449 | AH93: - | AI93: - | AJ93: - | AK93: 2991 | AL93: 1659 | AM93: 3361 | AN93: 376.6 | AO93: - | AP93: 120.5 | AQ93: 9531 | AR93: 224.8 | AS93: 3786 | AT93: 28440 | AU93: 298.8
S94: SABLE MCS-6 | T94: 21427.44185 | U94: 9884.741849 | V94: - | W94: - | X94: - | Y94: - | Z94: - | AA94: - | AB94: - | AC94: 243.5 | AD94: 249.2 | AE94: 19.7 | AF94: 0.4404 | AG94: 0.001449 | AH94: - | AI94: - | AJ94: - | AK94: 11050 | AL94: 6127 | AM94: 3361 | AN94: 376.6 | AO94: - | AP94: 509 | AQ94: 36410 | AR94: 870.3 | AS94: 13360 | AT94: 127500 | AU94: 989
S95: SABLE MCS-7 | T95: 14390.24185 | U95: 7433.741849 | V95: - | W95: - | X95: - | Y95: - | Z95: - | AA95: - | AB95: - | AC95: 146.1 | AD95: 183.4 | AE95: 19.7 | AF95: 0.4404 | AG95: 0.001449 | AH95: - | AI95: - | AJ95: - | AK95: 6627 | AL95: 3676 | AM95: 3361 | AN95: 376.6 | AO95: - | AP95: 240.9 | AQ95: 17780 | AR95: 406.1 | AS95: 6383 | AT95: 61790 | AU95: 490.4

Sheet Eau Wal DS TV
B2: Perceptions de chantier et comparaison des résultats d'analyse (DS) pour l'eau souterraine
B3: Projet: | C3: ='Manuel d''utilisation'!C3 -> BOF_SL_6000: Rue de la Station, 666 à 4308 Manage
B4: Identification du piézomètre | H4: Mesures de chantier | T4: Résultats d'analyse en µg/l | CG4: Remarques (couleur, turbidité, limpidité, …)
T5: HM somme | V5: Hydrocarbures pétroliers (fractions globales/combinées) | AB5: Hydrocarbures pétroliers (analyse 'split' aliphatique/aromatique) | AP5: BTEXS/MTBE/Phénol | AW5: Métaux/métalloïdes | BL5: Hydrocarbures aromatiques polycycliques non halogénés | BV5: Hydrocarbures chlorés | CF5: Autres
B6: Parcelle cadastrale | C6: Code du piézomètre | D6: X (Lambert) | E6: Y (Lambert) | F6: Profondeur de l'ouvrage (cm-ns)(4) | G6: Prof. de la crépine: de (cm-ns) à (cm-ns) | H6: Date | I6: Phase d'étude(3) | J6: Niveau d’eau par rapport au sommet du piézomètre (cm-ns)(1) | K6: Quantité prélevée avant échantilllonnage (litre) | L6: Piézomètre bien ou mal alimenté(3) | M6: Zone de captage (I, IIa, IIb)(3) | N6: Nappe exploitable ou non-exploitable(3) | O6: Température (°C) | P6: Ec (µS/cm) | Q6: Odeur : type(3) | R6: Odeur : intensité(3) | S6: pH | T6: Huile minérale EC 5-35 | U6: Huile minérale EC 10-40 | V6: Fraction EC 5-8 | W6: Fraction EC 8-10 | X6: Fraction EC 10-12 | Y6: Fraction EC 12-16 | Z6: Fraction EC 16-21 | AA6: Fraction EC 21-35 | AB6: Ali EC 5-6 | AC6: Ali EC 6-8 | AD6: Ali EC 8-10 | AE6: Ali EC 10-12 | AF6: Ali EC 12-16 | AG6: Ali EC 16-21 | AH6: Ali EC 21-35 | AI6: Aro EC 6-7 | AJ6: Aro EC 7-8 | AK6: Aro EC 8-10 | AL6: Aro EC 10-12 | AM6: Aro EC 12-16 | AN6: Aro EC 16-21 | AO6: Aro EC 21-35 | AP6: Benzène | AQ6: Toluène | AR6: Ethylbenzène | AS6: Xylènes (total) | AT6: MTBE | AU6: Styrènes | AV6: Phénol | AW6: Arsenic | AX6: Cadmium | AY6: Chrome total | AZ6: Chrome VI | BA6: Cuivre | BB6: Mercure | BC6: Nickel | BD6: Plomb | BE6: Zinc | BF6: Naphtalène | BG6: Acénaphtylène | BH6: Acénaphtène | BI6: Fluorène | BJ6: Phénanthrène | BK6: Anthracène | BL6: Fluoranthène | BM6: Pyrène | BN6: Benzo(a)anthracène | BO6: Chrysène | BP6: Benzo(b)fluoranthène | BQ6: Benzo(k)fluoranthène | BR6: Benzo(a)pyrène | BS6: Dibenzo(ah)anthracène | BT6: Benzo(ghi)pérylène | BU6: Indéno(1,2,3-cd)pyrène | BV6: Dichlorométhane | BW6: Trichlorométhane | BX6: Tetrachlorométhane | BY6: Tetrachloroéthène (PCE) | BZ6: Trichloroéthène (TCE) | CA6: 1,2-Dichloroéthène somme (DCE) | CB6: Chloroéthène (VC) | CC6: 1,1,1-Trichloroéthane (1,1,1-TCA) | CD6: 1,1,2-Trichloroéthane (1,1,2-TCA) | CE6: 1,2-Dichloroéthane (1,2-DCA) | CF6: Cyanures libres
B7: NORMES: Concentrations en gras et rouge si dépassement de la norme | N7: VSnappe | V7: 60 | W7: 200 | X7: 200 | Y7: 200 | Z7: 300 | AA7: 300 | AP7: 10 | AQ7: 700 | AR7: 300 | AS7: 500 | AT7: 300 | AU7: 20 | AV7: 120 | AW7: 10 | AX7: 5 | AY7: 50 | AZ7: 9 | BA7: 100 | BB7: 1 | BC7: 20 | BD7: 10 | BE7: 200 | BF7: 60 | BG7: 70 | BH7: 180 | BI7: 120 | BJ7: 120 | BK7: 75 | BL7: 4 | BM7: 90 | BN7: 7 | BO7: 1.5 | BP7: 1.5 | BQ7: 0.8 | BR7: 0.7 | BS7: 0.7 | BT7: 0.3 | BU7: 0.22 | BV7: 20 | BW7: 200 | BX7: 2 | BY7: 40 | BZ7: 70 | CA7: 50 | CB7: 5 | CC7: 500 | CD7: 12 | CE7: 30 | CF7: 70
B8: Zone suspecte investiguée:
B9: 456e | C9: P1 | G9: 200-400 | H9: 2006-06-07 | I9: EC | J9: 2.4 | L9: bien | M9: hors zone | N9: non défini | Q9: DI | R9: ++ | S9: 6.27 | AQ9: 68 | AR9: 2.5 | AS9: 9 | AT9: 40 | AV9: -0.05
B17: Autre zone suspecte:
B23: Autre zone suspecte:
B29: Légende
B31: (1) S'il y a une couche surnageante, il convient d'en mentionner les parties supérieure et inférieure
B32: (3) Liste déroulante
B33: (4) Si différente de la profondeur de la base de la crépine
H37: data validation
I38: EO | K38: data validation
I39: EC | L39: bien | M39: I | N39: Exploit. | Q39: Ess | R39: -
I40: PA | L40: mal | M40: IIa | N40: Non Expl. | Q40: DI | R40: +
I41: EF | L41: insuffisam. | M41: IIb | N41: non défini | Q41: HA | R41: ++
I42: MON | L42: non défini | M42: hors zone | Q42: MC
I43: EI | Q43: AU
I44: autre/non défini

Sheet Eau Wal RGPT
B2: Perceptions de chantier et comparaison des résultats d'analyse (RGPT) pour l'eau souterraine
B3: Projet: | C3: ='Manuel d''utilisation'!C3 -> BOF_SL_6000: Rue de la Station, 666 à 4308 Manage
B4: Identification du piézomètre | H4: Mesures de chantier | S4: Résultats d'analyse en µg/l | AK4: Remarques (couleur, turbidité, limpidité, …)
B5: Parcelle cadastrale | C5: Code du piézomètre | D5: X (Lambert) | E5: Y (Lambert) | F5: Profondeur de l'ouvrage (cm-ns)(5) | G5: Prof. de la crépine: de (cm-ns) à (cm-ns) | H5: Date | I5: Niveau d’eau par rapport au sommet du piézomètre (cm-ns)(1) | J5: Quantité prélevée avant échantilllonnage (litre) | K5: Zone de captage (I, IIa, IIb)(4) | L5: Piézomètre bien ou mal alimenté(4) | M5: Nappe exploitable ou non-exploitable(4) | N5: Température (°C) | O5: Ec (µS/cm) | P5: Odeur : type(4) | Q5: Odeur : intensité(4) | R5: pH | S5: Huile minérale EC 5-35 | T5: Huile minérale EC 10-40 | U5: Benzène | V5: Toluène | W5: Ethylbenzène | X5: Xylènes | Y5: MTBE | Z5: Naphtalène | AA5: Napthalène | AB5: Anthracène | AC5: Phénantrène | AD5: Fluoranthène | AE5: Benzo(a)anthracène | AF5: Benzo(k)fluoranthène | AG5: Benzo(ghi)pérylène | AH5: Indéno(1,2,3-cd)pyrène | AI5: Chrysène | AJ5: Benzo(a)pyrène
B6: NORMES: Concentrations en gras et rouge si > à VI | N6: VI (RGPT) | T6: 500 | U6: 120 | V6: 5500 | W6: 3400 | X6: 3300 | Y6: 300 | Z6: 125 | AA6: 125 | AB6: 8 | AC6: 30 | AD6: 30 | AE6: 7 | AF6: 500 | AG6: 500 | AH6: 500 | AI6: 50 | AJ6: 50
B7: NORMES: Concentrations en souligné si > à VR | N7: VR (RGPT) | T7: 50 | U7: 10 | V7: 20 | W7: 50 | X7: 20 | Z7: 14 | AA7: 14 | AB7: 0.2 | AC7: 7 | AD7: 7 | AE7: 0.5 | AF7: 0.05 | AG7: 0.05 | AH7: 0.05 | AI7: 0.005 | AJ7: 0.005
B8: Zone suspecte investiguée:
B9: 456e | C9: P1 | G9: 200-400 | H9: 2006-06-07 | I9: 2.4 | K9: IIa | L9: bien | M9: Exploit. | P9: Ess | Q9: + | R9: 6.27 | S9: 400 | T9: 600 | U9: 130 | V9: 2000 | W9: 5000 | X9: 4000 | Y9: 500 | Z9: -0.05 | AA9: -0.05 | AB9: -0.05 | AC9: -0.05 | AD9: -0.05 | AE9: -0.05 | AF9: -0.05 | AG9: -0.05 | AH9: -0.05 | AI9: -0.05 | AJ9: -0.05
B17: Autre zone suspecte:
B25: Autre zone suspecte:
B33: Légende
B34: (1) S'il y a une couche surnageante, il convient d'en mentionner les parties supérieure et inférieure
B35: (3) A adapter conformément à la législation et aux paramètres spécifiques au site
B36: (4) Liste déroulante
B37: (5) Si différente de la profondeur de la base de la crépine
K40: data validation
K41: I | L41: bien | M41: Exploit. | P41: Ess | Q41: -
K42: IIa | L42: mal | M42: Non Expl. | P42: DI | Q42: +
K43: IIb | L43: insuffisam. | M43: non défini | P43: HA | Q43: ++
K44: hors zone | L44: non défini | P44: MC
P45: AU

Sheet Air du sol
B2: Observations de terrain comparaison des résultats d'analyse de l'air du sol
B3: Projet: | C3: ='Manuel d''utilisation'!C3 -> BOF_SL_6000: Rue de la Station, 666 à 4308 Manage
C4: Données relatives à l'échantillonnage | L4: Résultats d'analyse (µg/tube) | Z4: Concentrations calculées (mg/Nm3)
B5: Date de l'échantillonnage | C5: Point d'échantillonnage | D5: Début (xx:xx) | E5: Fin (xx:xx) | F5: Durée de l'échantillonnage (min) | G5: Débit (ml/min) | H5: Volume pompé via le CA (litre) | I5: Température (1) (°C) | J5: Pression (1) (HPa) | K5: Volume pompé via le CA (Nm³) | L5: TPH aliphatique EC >5-6 | M5: TPH aliphatique EC >6-8 | N5: TPH aliphatique EC >8-10 | O5: TPH aliphatique EC >10-12 | P5: TPH aliphatique EC >12-16 | Q5: TPH aromatique EC >8-10 | R5: TPH aromatique EC >10-12 | S5: TPH aromatique EC >12-16 | T5: Benzène | U5: Toluène | V5: Ethylbenzène | W5: Xylènes | X5: Naphthalène | Y5: MTBE | Z5: TPH aliphatique EC 5-6 | AA5: TPH aliphatique EC >6-8 | AB5: TPH aliphatique EC >8-10 | AC5: TPH aliphatique EC >10-12 | AD5: TPH aliphatique EC >12-16 | AE5: TPH aromatique EC >8-10 | AF5: TPH aromatique EC >10-12 | AG5: TPH aromatique EC >12-16 | AH5: Benzène | AI5: Toluène | AJ5: Ethyl-benzène | AK5: Xylènes | AL5: Naphthalène | AM5: MTBE
B6: 2015-12-17 | C6: BL1 | D6: 15:20:00 | E6: 15:40:00 | F6: =MINUTE(E6-D6) -> 20 | G6: 106.16 | H6: =(F6)*G6/1000 -> 2.1232 | I6: 10 | J6: 1000 | K6: =+H6/1000*273/(273+I6)*J6/1013 -> 0.002021890686 | L6: 50000 | M6: 50000 | N6: 50000 | O6: 50000 | P6: 50000 | Q6: 50000 | R6: 50000 | S6: 50000 | T6: 1000 | U6: 1000 | V6: 1000 | W6: 1000 | X6: 1000 | Y6: 1000 | Z6: =IF(ISBLANK(L6),"",+L6/$K6/1000) -> 24729.32901 | AA6: 24729.32901 | AB6: 24729.32901 | AC6: 24729.32901 | AD6: 24729.32901 | AE6: 24729.32901 | AF6: 24729.32901 | AG6: 24729.32901 | AH6: 494.5865802 | AI6: 494.5865802 | AJ6: 494.5865802 | AK6: 494.5865802 | AL6: 494.5865802 | AM6: 494.5865802
B7: 2016-03-10 | C7: BL2 | D7: 16:20:00 | E7: 16:40:00 | F7: 20 | G7: 107.16 | H7: 2.1432 | I7: 10 | J7: 800 | K7: 0.001632749103 | L7: 50000 | M7: 50000 | N7: 50000 | O7: 50000 | P7: 50000 | Q7: 50000 | R7: 50000 | S7: 50000 | T7: 1000 | U7: 1000 | V7: 1000 | W7: 1000 | X7: 1000 | Y7: 1000 | Z7: =IF(ISBLANK(L7),"",+L7/$K7/1000) -> 30623.19858 | AA7: =IF(ISBLANK(M7),"",+M7/$K7/1000) -> 30623.19858 | AB7: =IF(ISBLANK(N7),"",+N7/$K7/1000) -> 30623.19858 | AC7: =IF(ISBLANK(O7),"",+O7/$K7/1000) -> 30623.19858 | AD7: =IF(ISBLANK(P7),"",+P7/$K7/1000) -> 30623.19858 | AE7: =IF(ISBLANK(Q7),"",+Q7/$K7/1000) -> 30623.19858 | AF7: =IF(ISBLANK(R7),"",+R7/$K7/1000) -> 30623.19858 | AG7: =IF(ISBLANK(S7),"",+S7/$K7/1000) -> 30623.19858 | AH7: =IF(ISBLANK(T7),"",+T7/$K7/1000) -> 612.4639716 | AI7: =IF(ISBLANK(U7),"",+U7/$K7/1000) -> 612.4639716 | AJ7: =IF(ISBLANK(V7),"",+V7/$K7/1000) -> 612.4639716 | AK7: =IF(ISBLANK(W7),"",+W7/$K7/1000) -> 612.4639716 | AL7: =IF(ISBLANK(X7),"",+X7/$K7/1000) -> 612.4639716 | AM7: =IF(ISBLANK(Y7),"",+Y7/$K7/1000) -> 612.4639716
B8: 2016-04-29 | C8: BL1 | D8: 17:00:00 | E8: 17:40:00 | F8: 40 | G8: 108.16 | H8: 4.3264 | I8: 14 | J8: 900 | K8: 0.003656288734 | L8: 50000 | M8: 50000 | N8: 50000 | O8: 50000 | P8: 50000 | Q8: 50000 | R8: 50000 | S8: 50000 | T8: 1000 | U8: 1000 | V8: 1000 | W8: 1000 | X8: 1000 | Y8: 1000 | Z8: 13675.0688 | AA8: 13675.0688 | AB8: 13675.0688 | AC8: 13675.0688 | AD8: 13675.0688 | AE8: 13675.0688 | AF8: 13675.0688 | AG8: 13675.0688 | AH8: 273.501376 | AI8: 273.501376 | AJ8: 273.501376 | AK8: 273.501376 | AL8: 273.501376 | AM8: 273.501376
B9: 2016-08-05 | C9: BL2 | D9: 18:00:00 | E9: 18:40:00 | F9: 40 | G9: 109.16 | H9: 4.3664 | I9: 20 | J9: 900 | K9: 0.003614528131 | L9: 50000 | M9: 50000 | N9: 50000 | O9: 50000 | P9: 50000 | Q9: 50000 | R9: 50000 | S9: 50000 | T9: 1000 | U9: 1000 | V9: 1000 | W9: 1000 | X9: 1000 | Y9: 1000 | Z9: 13833.06429 | AA9: 13833.06429 | AB9: 13833.06429 | AC9: 13833.06429 | AD9: 13833.06429 | AE9: 13833.06429 | AF9: 13833.06429 | AG9: 13833.06429 | AH9: 276.6612857 | AI9: 276.6612857 | AJ9: 276.6612857 | AK9: 276.6612857 | AL9: 276.6612857 | AM9: 276.6612857
B10: 2017-02-07 | C10: BL1 | D10: 19:00:00 | E10: 19:40:00 | F10: 40 | G10: 110.16 | H10: 4.4064 | I10: 10 | J10: 600 | K10: 0.002517688146 | L10: 50000 | M10: 50000 | N10: 50000 | O10: 50000 | P10: 50000 | Q10: 50000 | R10: 50000 | S10: 50000 | T10: 1000 | U10: 1000 | V10: 1000 | W10: 1000 | X10: 1000 | Y10: 1000 | Z10: 19859.48898 | AA10: 19859.48898 | AB10: 19859.48898 | AC10: 19859.48898 | AD10: 19859.48898 | AE10: 19859.48898 | AF10: 19859.48898 | AG10: 19859.48898 | AH10: 397.1897797 | AI10: 397.1897797 | AJ10: 397.1897797 | AK10: 397.1897797 | AL10: 397.1897797 | AM10: 397.1897797
B11: 2017-06-16 | C11: BL2 | D11: 20:00:00 | E11: 20:40:00 | F11: 40 | G11: 111.16 | H11: 4.4464 | I11: 10 | J11: 900 | K11: 0.003810814465 | L11: 50000 | M11: 50000 | N11: 50000 | O11: 50000 | P11: 50000 | Q11: 50000 | R11: 50000 | S11: 50000 | T11: 1000 | U11: 1000 | V11: 1000 | W11: 1000 | X11: 1000 | Y11: 1000 | Z11: 13120.55479 | AA11: 13120.55479 | AB11: 13120.55479 | AC11: 13120.55479 | AD11: 13120.55479 | AE11: 13120.55479 | AF11: 13120.55479 | AG11: 13120.55479 | AH11: 262.4110959 | AI11: 262.4110959 | AJ11: 262.4110959 | AK11: 262.4110959 | AL11: 262.4110959 | AM11: 262.4110959
Z12: =IF(ISBLANK(L12),"",+L12/$K12/1000) -> 
B16: (1) Ces paramètres sont mesurés au niveau de et lors de la mesure du volume
B19: Comparaison des mesures de l'air du sol aux valeurs de screening pour l'air du sol conformément à l'annexe 8 de la Directive (comparaison par MCS)
B20: Projet: | C20: ='Manuel d''utilisation'!C3 -> BOF_SL_6000: Rue de la Station, 666 à 4308 Manage
C21: Données relatives à l'échantillonnage | L21: Résultats d'analyse (µg/tube) | Z21: Concentrations calculées (mg/Nm3)
B22: Date de l'échantillonnage | C22: Point d'échantillonnage | D22: Début (xx:xx) | E22: Fin (xx:xx) | F22: Durée de l'échantillonnage (min) | G22: Débit (ml/min) | H22: Volume pompé via le CA (litre) | I22: Température (1) (°C) | J22: Pression (1) (HPa) | K22: Volume pompé via le CA (Nm³) | L22: TPH aliphatique EC >5-6 | M22: TPH aliphatique EC >6-8 | N22: TPH aliphatique EC >8-10 | O22: TPH aliphatique EC >10-12 | P22: TPH aliphatique EC >12-16 | Q22: TPH aromatique EC >8-10 | R22: TPH aromatique EC >10-12 | S22: TPH aromatique EC >12-16 | T22: Benzène | U22: Toluène | V22: Ethylbenzène | W22: Xylènes | X22: Naphthalène | Y22: MTBE | Z22: TPH aliphatique EC 5-6 | AA22: TPH aliphatique EC >6-8 | AB22: TPH aliphatique EC >8-10 | AC22: TPH aliphatique EC >10-12 | AD22: TPH aliphatique EC >12-16 | AE22: TPH aromatique EC >8-10 | AF22: TPH aromatique EC >10-12 | AG22: TPH aromatique EC >12-16 | AH22: Benzène | AI22: Toluène | AJ22: Ethyl-benzène | AK22: Xylènes | AL22: Naphthalène | AM22: MTBE
B23: MCS 1 : (2) | C23: A-air1
B24: 2015-12-17 | C24: BL1 | D24: 15:20:00 | E24: 15:40:00 | F24: =MINUTE(E24-D24) -> 20 | G24: 106.16 | H24: =(F24)*G24/1000 -> 2.1232 | I24: 10 | J24: 1000 | K24: =+H24/1000*273/(273+I24)*J24/1013 -> 0.002021890686 | L24: 10000000 | M24: 10000000 | N24: 10000000 | O24: 10000000 | P24: 5 | Q24: 6 | R24: 7 | S24: 8 | T24: 50000 | U24: 50000 | V24: 50000 | W24: 50000 | X24: 50000 | Y24: 50000 | Z24: =IF(ISBLANK(L24),"",+L24/$K24/1000) -> 4945865.802 | AA24: =IF(ISBLANK(M24),"",+M24/$K24/1000) -> 4945865.802 | AB24: 4945865.802 | AC24: 4945865.802 | AD24: 2.472932901 | AE24: 2.967519481 | AF24: 3.462106061 | AG24: 3.956692642 | AH24: =IF(ISBLANK(T24),"",+T24/$K24/1000) -> 24729.32901 | AI24: 24729.32901 | AJ24: 24729.32901 | AK24: 24729.32901 | AL24: 24729.32901 | AM24: 24729.32901
B25: 2016-03-10 | C25: BL2 | D25: 16:20:00 | E25: 16:40:00 | F25: =MINUTE(E25-D25) -> 20 | G25: 107.16 | H25: =(F25)*G25/1000 -> 2.1432 | I25: 10 | J25: 800 | K25: =+H25/1000*273/(273+I25)*J25/1013 -> 0.001632749103 | L25: 1 | M25: 100 | N25: 1000 | O25: 10000 | P25: 100000 | Q25: 1000000 | R25: 50000 | S25: 50000 | T25: 50000 | U25: 50000 | V25: 50000 | W25: 50000 | X25: 50000 | Y25: 50000 | Z25: 0.6124639716 | AA25: =IF(ISBLANK(M25),"",+M25/$K25/1000) -> 61.24639716 | AB25: 612.4639716 | AC25: 6124.639716 | AD25: 61246.39716 | AE25: 612463.9716 | AF25: 30623.19858 | AG25: 30623.19858 | AH25: 30623.19858 | AI25: 30623.19858 | AJ25: 30623.19858 | AK25: 30623.19858 | AL25: 30623.19858 | AM25: 30623.19858
B26: 2016-03-10 | C26: BL2 | D26: 16:20:00 | E26: 16:40:00 | F26: =MINUTE(E26-D26) -> 20 | G26: 107.16 | H26: =(F26)*G26/1000 -> 2.1432 | I26: 10 | J26: 800 | K26: =+H26/1000*273/(273+I26)*J26/1013 -> 0.001632749103 | L26: 50000 | M26: 50000 | N26: 50000 | O26: 50000 | P26: 50000 | Q26: 50000 | R26: 50000 | S26: 50000 | T26: 1000 | U26: 1000 | V26: 1000 | W26: 1000 | X26: 1000 | Y26: 1000 | Z26: 30623.19858 | AA26: 30623.19858 | AB26: 30623.19858 | AC26: 30623.19858 | AD26: 30623.19858 | AE26: 30623.19858 | AF26: 30623.19858 | AG26: 30623.19858 | AH26: 612.4639716 | AI26: 612.4639716 | AJ26: 612.4639716 | AK26: 612.4639716 | AL26: 612.4639716 | AM26: 612.4639716
AA27: =IF(ISBLANK(M27),"",+M27/$K27/1000) -> 
Z32: =IF(ISBLANK(L32),"",+L32/$K32/1000) -> 
B33: Valeurs de screening BOFAS pour l'air du sol : annexe 8 de la Directive (en mg/Nm3) | Z33: =INDEX(Z$62:Z$73,MATCH($C$23,$AN$62:$AN$73,0)) -> 95000 | AA33: 95000 | AB33: 5000 | AC33: 5000 | AD33: 5000 | AE33: 1050 | AF33: 1050 | AG33: 1050 | AH33: 18.15 | AI33: 1653 | AJ33: 52.5 | AK33: 735 | AL33: 4.15 | AM33: 370
B35: MCS 2 : (2) | C35: A-air1
B36: 2016-04-29 | C36: BL1 | D36: 17:00:00 | E36: 17:40:00 | F36: =MINUTE(E36-D36) -> 40 | G36: 108.16 | H36: =(F36)*G36/1000 -> 4.3264 | I36: 14 | J36: 900 | K36: =+H36/1000*273/(273+I36)*J36/1013 -> 0.003656288734 | L36: 50000 | M36: 1 | N36: 50000 | O36: 50000 | P36: 50000 | Q36: 50000 | R36: 50000 | S36: 50000 | T36: 50000 | U36: 50000 | V36: 50000 | W36: 50000 | X36: 50000 | Y36: 50000 | Z36: =IF(ISBLANK(L36),"",+L36/$K36/1000) -> 13675.0688 | AA36: =IF(ISBLANK(M36),"",+M36/$K36/1000) -> 0.273501376 | AB36: 13675.0688 | AC36: 13675.0688 | AD36: 13675.0688 | AE36: 13675.0688 | AF36: 13675.0688 | AG36: 13675.0688 | AH36: 13675.0688 | AI36: 13675.0688 | AJ36: 13675.0688 | AK36: 13675.0688 | AL36: 13675.0688 | AM36: 13675.0688
B37: 2016-08-05 | C37: BL2 | D37: 18:00:00 | E37: 18:40:00 | F37: =MINUTE(E37-D37) -> 40 | G37: 109.16 | H37: =(F37)*G37/1000 -> 4.3664 | I37: 20 | J37: 900 | K37: =+H37/1000*273/(273+I37)*J37/1013 -> 0.003614528131 | L37: 50000 | M37: 50000 | N37: 50000 | O37: 50000 | P37: 50000 | Q37: 50000 | R37: 50000 | S37: 50000 | T37: 50000 | U37: 50000 | V37: 50000 | W37: 50000 | X37: 50000 | Y37: 50000 | Z37: =IF(ISBLANK(L37),"",+L37/$K37/1000) -> 13833.06429 | AA37: =IF(ISBLANK(M37),"",+M37/$K37/1000) -> 13833.06429 | AB37: 13833.06429 | AC37: 13833.06429 | AD37: 13833.06429 | AE37: 13833.06429 | AF37: 13833.06429 | AG37: 13833.06429 | AH37: 13833.06429 | AI37: 13833.06429 | AJ37: 13833.06429 | AK37: 13833.06429 | AL37: 13833.06429 | AM37: 13833.06429
Z38: =IF(ISBLANK(L38),"",+L38/$K38/1000) ->  | AA38: =IF(ISBLANK(M38),"",+M38/$K38/1000) ->  | AB38: =IF(ISBLANK(N38),"",+N38/$K38/1000) ->  | AC38: =IF(ISBLANK(O38),"",+O38/$K38/1000) ->  | AD38: =IF(ISBLANK(P38),"",+P38/$K38/1000) ->  | AE38: =IF(ISBLANK(Q38),"",+Q38/$K38/1000) ->  | AF38: =IF(ISBLANK(R38),"",+R38/$K38/1000) ->  | AG38: =IF(ISBLANK(S38),"",+S38/$K38/1000) ->  | AH38: =IF(ISBLANK(T38),"",+T38/$K38/1000) ->  | AI38: =IF(ISBLANK(U38),"",+U38/$K38/1000) ->  | AJ38: =IF(ISBLANK(V38),"",+V38/$K38/1000) ->  | AK38: =IF(ISBLANK(W38),"",+W38/$K38/1000) ->  | AL38: =IF(ISBLANK(X38),"",+X38/$K38/1000) ->  | AM38: =IF(ISBLANK(Y38),"",+Y38/$K38/1000) -> 
Z44: =IF(ISBLANK(L44),"",+L44/$K44/1000) -> 
B45: Valeurs de screening BOFAS pour l'air du sol : annexe 8 de la Directive (en mg/Nm3) | Z45: =INDEX(Z$62:Z$73,MATCH($C$35,$AN$62:$AN$73,0)) -> 95000 | AA45: =INDEX(AA$62:AA$73,MATCH($C$35,$AN$62:$AN$73,0)) -> 95000 | AB45: 5000 | AC45: 5000 | AD45: 5000 | AE45: 1050 | AF45: 1050 | AG45: 1050 | AH45: 18.15 | AI45: 1653 | AJ45: 52.5 | AK45: 735 | AL45: 4.15 | AM45: 370
B47: MCS 3 : (2) | C47: A-air1
B48: 2016-04-29 | C48: BL1 | D48: 17:00:00 | E48: 17:40:00 | F48: 40 | G48: 108.16 | H48: 4.3264 | I48: 14 | J48: 900 | K48: 0.003656288734 | L48: 50000 | M48: 50000 | N48: 50000 | O48: 50000 | P48: 50000 | Q48: 50000 | R48: 50000 | S48: 50000 | T48: 50000 | U48: 50000 | V48: 50000 | W48: 50000 | X48: 50000 | Y48: 50000 | Z48: =IF(ISBLANK(L48),"",+L48/$K48/1000) -> 13675.0688 | AA48: =IF(ISBLANK(M48),"",+M48/$K48/1000) -> 13675.0688 | AB48: 13675.0688 | AC48: 13675.0688 | AD48: 13675.0688 | AE48: 13675.0688 | AF48: 13675.0688 | AG48: 13675.0688 | AH48: 13675.0688 | AI48: 13675.0688 | AJ48: 13675.0688 | AK48: 13675.0688 | AL48: 13675.0688 | AM48: 13675.0688
B49: 2016-08-05 | C49: BL2 | D49: 18:00:00 | E49: 18:40:00 | F49: 40 | G49: 109.16 | H49: 4.3664 | I49: 20 | J49: 900 | K49: 0.003614528131 | L49: 50000 | M49: 50000 | N49: 50000 | O49: 50000 | P49: 50000 | Q49: 50000 | R49: 50000 | S49: 50000 | T49: 50000 | U49: 50000 | V49: 50000 | W49: 50000 | X49: 50000 | Y49: 50000 | Z49: =IF(ISBLANK(L49),"",+L49/$K49/1000) -> 13833.06429 | AA49: =IF(ISBLANK(M49),"",+M49/$K49/1000) -> 13833.06429 | AB49: =IF(ISBLANK(N49),"",+N49/$K49/1000) -> 13833.06429 | AC49: =IF(ISBLANK(O49),"",+O49/$K49/1000) -> 13833.06429 | AD49: =IF(ISBLANK(P49),"",+P49/$K49/1000) -> 13833.06429 | AE49: =IF(ISBLANK(Q49),"",+Q49/$K49/1000) -> 13833.06429 | AF49: =IF(ISBLANK(R49),"",+R49/$K49/1000) -> 13833.06429 | AG49: =IF(ISBLANK(S49),"",+S49/$K49/1000) -> 13833.06429 | AH49: =IF(ISBLANK(T49),"",+T49/$K49/1000) -> 13833.06429 | AI49: =IF(ISBLANK(U49),"",+U49/$K49/1000) -> 13833.06429 | AJ49: =IF(ISBLANK(V49),"",+V49/$K49/1000) -> 13833.06429 | AK49: =IF(ISBLANK(W49),"",+W49/$K49/1000) -> 13833.06429 | AL49: =IF(ISBLANK(X49),"",+X49/$K49/1000) -> 13833.06429 | AM49: =IF(ISBLANK(Y49),"",+Y49/$K49/1000) -> 13833.06429
B57: Valeurs de screening BOFAS pour l'air du sol : annexe 8 de la Directive (en mg/Nm3) | Z57: =INDEX(Z$62:Z$73,MATCH($C$47,$AN$62:$AN$73,0)) -> 95000 | AA57: =INDEX(AA$62:AA$73,MATCH($C$47,$AN$62:$AN$73,0)) -> 95000 | AB57: 5000 | AC57: 5000 | AD57: 5000 | AE57: 1050 | AF57: 1050 | AG57: 1050 | AH57: 18.15 | AI57: 1653 | AJ57: 52.5 | AK57: 735 | AL57: 4.15 | AM57: 370
B59: (1) Ces paramètres sont mesurés au niveau de et lors de la mesure du volume
B60: (2) Liste déroulante
Z61: TPH aliphatic EC >5-6 | AA61: TPH aliphatic EC >6-8 | AB61: TPH aliphatic EC >8-10 | AC61: TPH aliphatic EC >10-12 | AD61: TPH aliphatic EC >12-16 | AE61: TPH aromatic EC >8-10 | AF61: TPH aromatic EC >10-12 | AG61: TPH aromatic EC >12-16 | AH61: Benzene | AI61: Toluene | AJ61: Ethyl-benzeen | AK61: Xylene | AL61: Naphthalene | AM61: MTBE | AN61: CSM
Z62: 95000 | AA62: 95000 | AB62: 5000 | AC62: 5000 | AD62: 5000 | AE62: 1050 | AF62: 1050 | AG62: 1050 | AH62: 18.15 | AI62: 1653 | AJ62: 52.5 | AK62: 735 | AL62: 4.15 | AM62: 370 | AN62: A-air1
C63: A-air1 | Z63: 175000 | AA63: 175000 | AB63: 9500 | AC63: 9500 | AD63: 9500 | AE63: 1950 | AF63: 1950 | AG63: 1950 | AH63: 34.3 | AI63: 3150 | AJ63: 98 | AK63: 1400 | AL63: 7.9 | AM63: 720 | AN63: A-air2
C64: A-air2 | Z64: 320000 | AA64: 320000 | AB64: 175000 | AC64: 175000 | AD64: 175000 | AE64: 3600 | AF64: 3600 | AG64: 3600 | AH64: 62.5 | AI64: 5900 | AJ64: 192 | AK64: 2560 | AL64: 15 | AM64: 1350 | AN64: A-air3
C65: A-air3 | Z65: 4100000 | AA65: 4100000 | AB65: 225000 | AC65: 225000 | AD65: 225000 | AE65: 44000 | AF65: 44000 | AG65: 44000 | AH65: 775 | AI65: 72000 | AJ65: 2350 | AK65: 32500 | AL65: 182.5 | AM65: 16600 | AN65: A-air4
C66: A-air4 | Z66: 8098000 | AA66: 8098000 | AB66: 450000 | AC66: 450000 | AD66: 450000 | AE66: 88000 | AF66: 88000 | AG66: 88000 | AH66: 1550 | AI66: 142500 | AJ66: 4650 | AK66: 64000 | AL66: 365 | AM66: 33250 | AN66: A-air5
C67: A-air5 | Z67: 20250000 | AA67: 20250000 | AB67: 1110000 | AC67: 1110000 | AD67: 1110000 | AE67: 222000 | AF67: 222000 | AG67: 222000 | AH67: 3890 | AI67: 360000 | AJ67: 11700 | AK67: 161500 | AL67: 912 | AM67: 79000 | AN67: A-air7
C68: A-air7 | Z68: 28000 | AA68: 28000 | AB68: 1400 | AC68: 1400 | AD68: 1400 | AE68: 300 | AF68: 300 | AG68: 300 | AH68: 4.955 | AI68: 447 | AJ68: 13.7 | AK68: 187.5 | AL68: 1.07 | AM68: 112.5 | AN68: Z-air1
C69: Z-air1 | Z69: 54000 | AA69: 54000 | AB69: 2900 | AC69: 2900 | AD69: 2900 | AE69: 580 | AF69: 580 | AG69: 580 | AH69: 10 | AI69: 920 | AJ69: 29.25 | AK69: 410 | AL69: 2.4 | AM69: 222.5 | AN69: Z-air2
C70: Z-air2 | Z70: 89000 | AA70: 89000 | AB70: 4650 | AC70: 4650 | AD70: 4650 | AE70: 935 | AF70: 935 | AG70: 935 | AH70: 16.25 | AI70: 1500 | AJ70: 47.5 | AK70: 700 | AL70: 3.85 | AM70: 356 | AN70: Z-air3
C71: Z-air3 | Z71: 393500 | AA71: 393500 | AB71: 23000 | AC71: 23000 | AD71: 23000 | AE71: 4600 | AF71: 4600 | AG71: 4600 | AH71: 68.5 | AI71: 6040 | AJ71: 172.5 | AK71: 2320 | AL71: 12.75 | AM71: 1650 | AN71: Z-air4
C72: Z-air4 | Z72: 885000 | AA72: 885000 | AB72: 48000 | AC72: 48000 | AD72: 48000 | AE72: 9700 | AF72: 9700 | AG72: 9700 | AH72: 145 | AI72: 12730 | AJ72: 360 | AK72: 4850 | AL72: 26.5 | AM72: 3450 | AN72: Z-air5
C73: Z-air5 | Z73: 2300000 | AA73: 2300000 | AB73: 124000 | AC73: 124000 | AD73: 124000 | AE73: 24750 | AF73: 24750 | AG73: 24750 | AH73: 375 | AI73: 32500 | AJ73: 898 | AK73: 12500 | AL73: 69 | AM73: 8900 | AN73: Z-air7
C74: Z-air7
Z76: Valeurs de screening BOFAS pour l'air du sol : annexe 8 de la Directive (en mg/Nm3)
Z78: Texture du sol | AC78: LIMON | AI78: SABLE
Z79: Type de bâtiment | AC79: basement (cave) | AF79: slab-on-grade (dalle de sol) | AI79: basement (cave) | AL79: slab-on-grade (dalle de sol)
Z80: Prof. piézair sous la base du récepteur | AC80: 2 m-bc * | AD80: 3 m-bc * | AE80: 5 m-bc * | AF80: 1 m-ns ** | AG80: 2 m-ns ** | AH80: 5 m-ns ** | AI80: 2 m-bc * | AJ80: 3 m-bc * | AK80: 5 m-bc * | AL80: 1 m-ns ** | AM80: 2 m-ns ** | AN80: 5 m-ns **
Z81: Modéle Conceptuel du Site (MCS) | AC81: A-air1 | AD81: A-air2 | AE81: A-air3 | AF81: A-air4 | AG81: A-air5 | AH81: A-air7 | AI81: Z-air1 | AJ81: Z-air2 | AK81: Z-air3 | AL81: Z-air4 | AM81: Z-air5 | AN81: Z-air7
Z82: B | AC82: 18.15 | AD82: 34.3 | AE82: 62.5 | AF82: 775 | AG82: 1550 | AH82: 3890 | AI82: 4.955 | AJ82: 10 | AK82: 16.25 | AL82: 68.5 | AM82: 145 | AN82: 375
Z83: T | AC83: 1653 | AD83: 3150 | AE83: 5900 | AF83: 72000 | AG83: 142500 | AH83: 360000 | AI83: 447 | AJ83: 920 | AK83: 1500 | AL83: 6040 | AM83: 12730 | AN83: 32500
Z84: E | AC84: 52.5 | AD84: 98 | AE84: 192 | AF84: 2350 | AG84: 4650 | AH84: 11700 | AI84: 13.7 | AJ84: 29.25 | AK84: 47.5 | AL84: 172.5 | AM84: 360 | AN84: 898
Z85: X | AC85: 735 | AD85: 1400 | AE85: 2560 | AF85: 32500 | AG85: 64000 | AH85: 161500 | AI85: 187.5 | AJ85: 410 | AK85: 700 | AL85: 2320 | AM85: 4850 | AN85: 12500
Z86: N | AC86: 4.15 | AD86: 7.9 | AE86: 15 | AF86: 182.5 | AG86: 365 | AH86: 912 | AI86: 1.07 | AJ86: 2.4 | AK86: 3.85 | AL86: 12.75 | AM86: 26.5 | AN86: 69
Z87: MTBE | AC87: 370 | AD87: 720 | AE87: 1350 | AF87: 16600 | AG87: 33250 | AH87: 79000 | AI87: 112.5 | AJ87: 222.5 | AK87: 356 | AL87: 1650 | AM87: 3450 | AN87: 8900
Z89: Aliphates
Z90: EC 5-6 | AC90: 95000 | AD90: 175000 | AE90: 320000 | AF90: 4100000 | AG90: 8098000 | AH90: 20250000 | AI90: 28000 | AJ90: 54000 | AK90: 89000 | AL90: 393500 | AM90: 885000 | AN90: 2300000
Z91: EC 6-8 | AC91: 95000 | AD91: 175000 | AE91: 340000 | AF91: 4100000 | AG91: 8098000 | AH91: 20250000 | AI91: 28000 | AJ91: 54000 | AK91: 89000 | AL91: 393500 | AM91: 885000 | AN91: 2300000
Z92: EC 8-10 | AC92: 5000 | AD92: 9500 | AE92: 17500 | AF92: 225000 | AG92: 450000 | AH92: 1110000 | AI92: 1400 | AJ92: 2900 | AK92: 4650 | AL92: 23000 | AM92: 48000 | AN92: 124000
Z93: EC 10-12 | AC93: 5000 | AD93: 9500 | AE93: 17500 | AF93: 225000 | AG93: 450000 | AH93: 1110000 | AI93: 1400 | AJ93: 2900 | AK93: 4650 | AL93: 23000 | AM93: 48000 | AN93: 124000
Z94: EC 12-16 | AC94: 5000 | AD94: 9500 | AE94: 17500 | AF94: 225000 | AG94: 450000 | AH94: 1110000 | AI94: 1400 | AJ94: 2900 | AK94: 4650 | AL94: 23000 | AM94: 48000 | AN94: 124000
Z96: Aromates
Z97: EC 8-10 | AC97: 1050 | AD97: 1950 | AE97: 3600 | AF97: 44000 | AG97: 88000 | AH97: 222000 | AI97: 300 | AJ97: 580 | AK97: 935 | AL97: 4600 | AM97: 9700 | AN97: 24750
Z98: EC 10-12 | AC98: 1050 | AD98: 1950 | AE98: 3600 | AF98: 44000 | AG98: 88000 | AH98: 222000 | AI98: 300 | AJ98: 580 | AK98: 935 | AL98: 4600 | AM98: 9700 | AN98: 24750
Z99: EC 12-16 | AC99: 1050 | AD99: 1950 | AE99: 3600 | AF99: 44000 | AG99: 88000 | AH99: 222000 | AI99: 300 | AJ99: 580 | AK99: 935 | AL99: 4600 | AM99: 9700 | AN99: 24750
Z101: Source : annexe 8 de la Directive BOFAS
Z102: * : distance entre le piézair et la base de la cave (basement)
Z103: ** : distance entre le piézair et la base du bâtiment (slab-on-grade)

Sheet Sol Forages Contrôle IS
B2: Perceptions de chantier et comparaison des résultats d'analyse (DS) pour la partie fixe du sol après les travaux d'assainissement In Situ
B3: Projet: | C3: ='Manuel d''utilisation'!C3 -> BOF_SL_6000: Rue de la Station, 666 à 4308 Manage
B4: Type usage DS | C4: =K26 -> V | G4: Teneur en matière organique (%) | J4: ='Manuel d''utilisation'!C10 -> 3 | P4: Teneur en argile (%) | R4: ='Manuel d''utilisation'!C11 -> 7 | T4: ='Manuel d''utilisation'!AU11 -> 0
B5: Identification du forage | K5: Caractéristiques organoleptiques | P5: Echantillon | Q5: MS | R5: Résultats d'analyse en mg/kg ms | BK5: Impact gravier | BM5: Résultats d'analyse en mg/kg ms après réévaluation sur base du facteur correctif (gravier)
R6: HM somme | T6: Hydrocarbures pétroliers (fractions globales/combinées) | Z6: Hydrocarbures pétroliers (analyse 'split' aliphatique/aromatique) | AP6: Hydrocarbures pétroliers calculés sur base de la répartition standard diesel | BD6: Hydrocarbures aromatiques non halogénés | BK6: Facteur correctif | BM6: HM somme | BO6: Hydrocarbures pétroliers (fractions globales/combinées) | BU6: Hydrocarbures pétroliers (analyse 'split' aliphatique/aromatique) | CJ6: Hydrocarbures pétroliers calculés sur base de la répartition standard diesel | CZ6: Hydrocarbures aromatiques non halogénés
B7: Parcelle cadastrale | C7: Code du forage | D7: X (Lambert) | E7: Y (Lambert) | F7: Refus de forage(6) | G7: Date du forage | H7: Phase d'étude(6) | I7: Terrain naturel (TN) / Remblai (R)(6) | J7: Profondeur du forage (cm-ns) | K7: Profondeur: de (cm-ns) à (cm-ns) | L7: Caractérisation(1) (6) | M7: Odeur/PID(2) | N7: Couleur suspecte(6) | O7: Test huile/eau(2) | P7: Profondeur de l'échantillon (cm-ns) | Q7: Matière sèche (%) | R7: Huile minérale EC 5-35 | S7: Huile minérale EC 10-40 | T7: Fraction EC 5-8 | U7: Fraction EC 8-10 | V7: Fraction EC 10-12 | W7: Fraction EC 12-16 | X7: Fraction EC 16-21 | Y7: Fraction EC 21-35 | Z7: Ali EC 5-6 | AA7: Ali EC 6-8 | AB7: Ali EC 8-10 | AC7: Ali EC 10-12 | AD7: Ali EC 12-16 | AE7: Ali EC 16-21 | AF7: Ali EC 21-35 | AG7: Aro EC 6-7 | AH7: Aro EC 7-8 | AI7: Aro EC 8-10 | AJ7: Aro EC 10-12 | AK7: Aro EC 12-16 | AL7: Aro EC 16-21 | AM7: Aro EC 21-35 | AO7: Nature TPH(7) (6) | AP7: Ali EC 5-6 | AQ7: Ali EC 6-8 | AR7: Ali EC 8-10 | AS7: Ali EC 10-12 | AT7: Ali EC 12-16 | AU7: Ali EC 16-21 | AV7: Ali EC 21-35 | AW7: Aro EC 6-7 | AX7: Aro EC 7-8 | AY7: Aro EC 8-10 | AZ7: Aro EC 10-12 | BA7: Aro EC 12-16 | BB7: Aro EC 16-21 | BC7: Aro EC 21-35 | BD7: Benzène | BE7: Toluène | BF7: Ethylbenzène | BG7: Xylènes (somme) | BH7: MTBE | BI7: Naphtalène | BK7: Pourcentage de cailloux | BL7: Pourcentage de fractions fines | BM7: Huile minérale EC 5-35 | BN7: Huile minérale EC 10-40 | BO7: Fraction EC 5-8 | BP7: Fraction EC 8-10 | BQ7: Fraction EC 10-12 | BR7: Fraction EC 12-16 | BS7: Fraction EC 16-21 | BT7: Fraction EC 21-35 | BU7: Ali EC 5-6 | BV7: Ali EC 6-8 | BW7: Ali EC 8-10 | BX7: Ali EC 10-12 | BY7: Ali EC 12-16 | BZ7: Ali EC 16-21 | CA7: Ali EC 21-35 | CB7: Aro EC 6-7 | CC7: Aro EC 7-8 | CD7: Aro EC 8-10 | CE7: Aro EC 10-12 | CF7: Aro EC 12-16 | CG7: Aro EC 16-21 | CH7: Aro EC 21-35 | CJ7: Ali EC 5-6 | CK7: Ali EC 6-8 | CL7: Ali EC 8-10 | CM7: Ali EC 10-12 | CN7: Ali EC 12-16 | CO7: Ali EC 16-21 | CP7: Ali EC 21-35 | CQ7: Aro EC 6-7 | CR7: Aro EC 7-8 | CS7: Aro EC 8-10 | CT7: Aro EC 10-12 | CU7: Aro EC 12-16 | CV7: Aro EC 16-21 | CW7: Aro EC 21-35 | CY7: Benzène | CZ7: Toluène | DA7: Ethylbenzène | DB7: Xylènes (somme) | DC7: MTBE | DD7: Naphtalène
B8: Zone suspecte investiguée:
B9: 1076Z | C9: C1 | G9: 28/12/2004 | H9: EO | I9: R | J9: 420 | K9: 150-200 | L9: DI | M9: * | N9: oui | P9: 370-400 | R9: 100 | S9: 100 | T9: <12 | U9: 22 | V9: 120 | W9: 800 | X9: 10000 | Y9: 7 | Z9: <12.5 | AA9: 100 | AB9: 1000 | AO9: DI | AQ9: =IF(($AO9<>"DI"),"np",IF($R9<>"",IFERROR(0.00098*($R9),"<"),IF($S9<>"",IFERROR(0.001002*($S9),"<"),""))) -> 0.098 | AR9: =IF(($AO9<>"DI"),"np",IF($R9<>"",IFERROR(0.00879*($R9),"<"),IF($S9<>"",IFERROR(0.00901804*($S9),"<"),""))) -> 0.879 | AS9: =IF(($AO9<>"DI"),"np",IF($R9<>"",IFERROR(0.08203*($R9),"<"),IF($S9<>"",IFERROR(0.08416834*($S9),"<"),""))) -> 8.203 | AT9: =IF(($AO9<>"DI"),"np",IF($R9<>"",IFERROR(0.47363*($R9),"<"),IF($S9<>"",IFERROR(0.4859719*($S9),"<"),""))) -> 47.363 | AU9: =IF(($AO9<>"DI"),"np",IF($R9<>"",IFERROR(0.22461*($R9),"<"),IF($S9<>"",IFERROR(0.2304609*($S9),"<"),""))) -> 22.461 | AY9: =IF(($AO9<>"DI"),"np",IF($R9<>"",IFERROR(0.01563*($R9),"<"),IF($S9<>"",IFERROR(0.01603206*($S9),"<"),""))) -> 1.563 | AZ9: =IF(($AO9<>"DI"),"np",IF($R9<>"",IFERROR(0.01367*($R9),"<"),IF($S9<>"",IFERROR(0.01402806*($S9),"<"),""))) -> 1.367 | BA9: =IF(($AO9<>"DI"),"np",IF($R9<>"",IFERROR(0.1123*($R9),"<"),IF($S9<>"",IFERROR(0.1152305*($S9),"<"),""))) -> 11.23 | BB9: =IF(($AO9<>"DI"),"np",IF($R9<>"",IFERROR(0.06836*($R9),"<"),IF($S9<>"",IFERROR(0.07014028*($S9),"<"),""))) -> 6.836 | BD9: < | BE9: 7 | BF9: 1 | BG9: 0.01 | BH9: 0.01 | BI9: 2.55 | BL9: 0.2 | BM9: =IFERROR($BL9*R9,"<") -> 20 | BN9: 20 | BO9: < | BP9: 4.4 | BQ9: 24 | BR9: 160 | BS9: 2000 | BT9: 1.4 | BU9: < | BV9: 20 | BW9: 200 | BX9: 0 | BY9: 0 | BZ9: 0 | CA9: 0 | CB9: 0 | CC9: =IFERROR($BL9*AH9,"<") -> 0 | CD9: 0 | CE9: 0 | CF9: 0 | CG9: 0 | CH9: 0 | CJ9: =IFERROR($BL9*AP9,"<") -> 0 | CK9: =IF(($AO9="DI"),IFERROR($BL9*AQ9,"<"),"np") -> 0.0196 | CL9: 0.1758 | CM9: 1.6406 | CN9: 9.4726 | CO9: 4.4922 | CP9: =$BL9*AV9 -> 0 | CQ9: 0 | CR9: 0 | CS9: =IF(($AO9="DI"),IFERROR($BL9*AY9,"<"),"np") -> 0.3126 | CT9: 0.2734 | CU9: 2.246 | CV9: 1.3672 | CW9: =$BL9*BC9 -> 0 | CY9: =IFERROR($BL9*BD9,"<") -> < | CZ9: 1.4 | DA9: 0.2 | DB9: 0.002 | DC9: 0.002 | DD9: 0.51
AO10: autre ou ? | AQ10: =IF(($AO10<>"DI"),"np",IF($R10<>"",IFERROR(0.00098*($R10),"<"),IF($S10<>"",IFERROR(0.001002*($S10),"<"),""))) -> np | AR10: =IF(($AO10<>"DI"),"np",IF($R10<>"",IFERROR(0.00879*($R10),"<"),IF($S10<>"",IFERROR(0.00901804*($S10),"<"),""))) -> np | AS10: =IF(($AO10<>"DI"),"np",IF($R10<>"",IFERROR(0.08203*($R10),"<"),IF($S10<>"",IFERROR(0.08416834*($S10),"<"),""))) -> np | AT10: =IF(($AO10<>"DI"),"np",IF($R10<>"",IFERROR(0.47363*($R10),"<"),IF($S10<>"",IFERROR(0.4859719*($S10),"<"),""))) -> np | AU10: =IF(($AO10<>"DI"),"np",IF($R10<>"",IFERROR(0.22461*($R10),"<"),IF($S10<>"",IFERROR(0.2304609*($S10),"<"),""))) -> np | AY10: =IF(($AO10<>"DI"),"np",IF($R10<>"",IFERROR(0.01563*($R10),"<"),IF($S10<>"",IFERROR(0.01603206*($S10),"<"),""))) -> np | AZ10: =IF(($AO10<>"DI"),"np",IF($R10<>"",IFERROR(0.01367*($R10),"<"),IF($S10<>"",IFERROR(0.01402806*($S10),"<"),""))) -> np | BA10: =IF(($AO10<>"DI"),"np",IF($R10<>"",IFERROR(0.1123*($R10),"<"),IF($S10<>"",IFERROR(0.1152305*($S10),"<"),""))) -> np | BB10: =IF(($AO10<>"DI"),"np",IF($R10<>"",IFERROR(0.06836*($R10),"<"),IF($S10<>"",IFERROR(0.07014028*($S10),"<"),""))) -> np | BL10: 0.2 | BM10: 0 | BN10: 0 | BO10: 0 | BP10: 0 | BQ10: 0 | BR10: 0 | BS10: 0 | BT10: 0 | BU10: 0 | BV10: 0 | BW10: 0 | BX10: 0 | BY10: 0 | BZ10: 0 | CA10: 0 | CB10: 0 | CC10: 0 | CD10: 0 | CE10: 0 | CF10: 0 | CG10: 0 | CH10: 0 | CJ10: 0 | CK10: np | CL10: np | CM10: np | CN10: np | CO10: np | CP10: 0 | CQ10: 0 | CR10: 0 | CS10: np | CT10: np | CU10: np | CV10: np | CW10: 0 | CY10: 0 | CZ10: 0 | DA10: 0 | DB10: 0 | DC10: 0 | DD10: 0
AO11: autre ou ? | AQ11: np | AR11: np | AS11: np | AT11: np | AU11: np | AY11: np | AZ11: np | BA11: np | BB11: np | BL11: 0.2 | BM11: 0 | BN11: 0 | BO11: 0 | BP11: 0 | BQ11: 0 | BR11: 0 | BS11: 0 | BT11: 0 | BU11: 0 | BV11: 0 | BW11: 0 | BX11: 0 | BY11: 0 | BZ11: 0 | CA11: 0 | CB11: 0 | CC11: 0 | CD11: 0 | CE11: 0 | CF11: 0 | CG11: 0 | CH11: 0 | CJ11: 0 | CK11: np | CL11: np | CM11: np | CN11: np | CO11: np | CP11: 0 | CQ11: 0 | CR11: 0 | CS11: np | CT11: np | CU11: np | CV11: np | CW11: 0 | CY11: 0 | CZ11: 0 | DA11: 0 | DB11: 0 | DC11: 0 | DD11: 0
AO12: autre ou ? | AQ12: np | AR12: np | AS12: np | AT12: np | AU12: np | AY12: np | AZ12: np | BA12: np | BB12: np | BL12: 0.2 | BM12: 0 | BN12: 0 | BO12: 0 | BP12: 0 | BQ12: 0 | BR12: 0 | BS12: 0 | BT12: 0 | BU12: 0 | BV12: 0 | BW12: 0 | BX12: 0 | BY12: 0 | BZ12: 0 | CA12: 0 | CB12: 0 | CC12: 0 | CD12: 0 | CE12: 0 | CF12: 0 | CG12: 0 | CH12: 0 | CJ12: 0 | CK12: np | CL12: np | CM12: np | CN12: np | CO12: np | CP12: 0 | CQ12: 0 | CR12: 0 | CS12: np | CT12: np | CU12: np | CV12: np | CW12: 0 | CY12: 0 | CZ12: 0 | DA12: 0 | DB12: 0 | DC12: 0 | DD12: 0
AO13: DI | BL13: 0.2 | BM13: 0 | BN13: 0 | BO13: 0 | BP13: 0 | BQ13: 0 | BR13: 0 | BS13: 0 | BT13: 0 | BU13: 0 | BV13: 0 | BW13: 0 | BX13: 0 | BY13: 0 | BZ13: 0 | CA13: 0 | CB13: 0 | CC13: 0 | CD13: 0 | CE13: 0 | CF13: 0 | CG13: 0 | CH13: 0 | CJ13: 0 | CK13: < | CL13: < | CM13: < | CN13: < | CO13: < | CP13: 0 | CQ13: 0 | CR13: 0 | CS13: < | CT13: < | CU13: < | CV13: < | CW13: 0 | CY13: 0 | CZ13: 0 | DA13: 0 | DB13: 0 | DC13: 0 | DD13: 0
AO14: DI | BL14: 0.2 | BM14: 0 | BN14: 0 | BO14: 0 | BP14: 0 | BQ14: 0 | BR14: 0 | BS14: 0 | BT14: 0 | BU14: 0 | BV14: 0 | BW14: 0 | BX14: 0 | BY14: 0 | BZ14: 0 | CA14: 0 | CB14: 0 | CC14: 0 | CD14: 0 | CE14: 0 | CF14: 0 | CG14: 0 | CH14: 0 | CJ14: 0 | CK14: < | CL14: < | CM14: < | CN14: < | CO14: < | CP14: 0 | CQ14: 0 | CR14: 0 | CS14: < | CT14: < | CU14: < | CV14: < | CW14: 0 | CY14: 0 | CZ14: 0 | DA14: 0 | DB14: 0 | DC14: 0 | DD14: 0
AO15: DI | BL15: 0.2 | BM15: 0 | BN15: 0 | BO15: 0 | BP15: 0 | BQ15: 0 | BR15: 0 | BS15: 0 | BT15: 0 | BU15: 0 | BV15: 0 | BW15: 0 | BX15: 0 | BY15: 0 | BZ15: 0 | CA15: 0 | CB15: 0 | CC15: 0 | CD15: 0 | CE15: 0 | CF15: 0 | CG15: 0 | CH15: 0 | CJ15: 0 | CK15: < | CL15: < | CM15: < | CN15: < | CO15: < | CP15: 0 | CQ15: 0 | CR15: 0 | CS15: < | CT15: < | CU15: < | CV15: < | CW15: 0 | CY15: 0 | CZ15: 0 | DA15: 0 | DB15: 0 | DC15: 0 | DD15: 0
AO16: autre ou ? | AQ16: np | AR16: np | AS16: np | AT16: np | AU16: np | AY16: np | AZ16: np | BA16: np | BB16: np | BL16: 0.2 | BM16: 0 | BN16: 0 | BO16: 0 | BP16: 0 | BQ16: 0 | BR16: 0 | BS16: 0 | BT16: 0 | BU16: 0 | BV16: 0 | BW16: 0 | BX16: 0 | BY16: 0 | BZ16: 0 | CA16: 0 | CB16: 0 | CC16: 0 | CD16: 0 | CE16: 0 | CF16: 0 | CG16: 0 | CH16: 0 | CJ16: 0 | CK16: np | CL16: np | CM16: np | CN16: np | CO16: np | CP16: 0 | CQ16: 0 | CR16: 0 | CS16: np | CT16: np | CU16: np | CV16: np | CW16: 0 | CY16: 0 | CZ16: 0 | DA16: 0 | DB16: 0 | DC16: 0 | DD16: 0
AO17: DI | BL17: 0.2 | BM17: 0 | BN17: 0 | BO17: 0 | BP17: 0 | BQ17: 0 | BR17: 0 | BS17: 0 | BT17: 0 | BU17: 0 | BV17: 0 | BW17: 0 | BX17: 0 | BY17: 0 | BZ17: 0 | CA17: 0 | CB17: 0 | CC17: 0 | CD17: 0 | CE17: 0 | CF17: 0 | CG17: 0 | CH17: 0 | CJ17: 0 | CK17: < | CL17: < | CM17: < | CN17: < | CO17: < | CP17: 0 | CQ17: 0 | CR17: 0 | CS17: < | CT17: < | CU17: < | CV17: < | CW17: 0 | CY17: 0 | CZ17: 0 | DA17: 0 | DB17: 0 | DC17: 0 | DD17: 0
AQ18: np | AR18: np | AS18: np | AT18: np | AU18: np | AY18: np | AZ18: np | BA18: np | BB18: np | BL18: 0.2 | BM18: 0 | BN18: 0 | BO18: 0 | BP18: 0 | BQ18: 0 | BR18: 0 | BS18: 0 | BT18: 0 | BU18: 0 | BV18: 0 | BW18: 0 | BX18: 0 | BY18: 0 | BZ18: 0 | CA18: 0 | CB18: 0 | CC18: 0 | CD18: 0 | CE18: 0 | CF18: 0 | CG18: 0 | CH18: 0 | CJ18: 0 | CK18: np | CL18: np | CM18: np | CN18: np | CO18: np | CP18: 0 | CQ18: 0 | CR18: 0 | CS18: np | CT18: np | CU18: np | CV18: np | CW18: 0 | CY18: 0 | CZ18: 0 | DA18: 0 | DB18: 0 | DC18: 0 | DD18: 0
B19: Autre zone suspecte:
AO20: autre ou ? | AQ20: np | AR20: np | AS20: np | AT20: np | AU20: np | AY20: np | AZ20: np | BA20: np | BB20: np | BL20: 0.5 | BM20: =IFERROR($BL20*R20,"<") -> 0 | BN20: =IFERROR($BL20*S20,"<") -> 0 | BO20: =IFERROR($BL20*T20,"<") -> 0 | BP20: =IFERROR($BL20*U20,"<") -> 0 | BQ20: =IFERROR($BL20*V20,"<") -> 0 | BR20: =IFERROR($BL20*W20,"<") -> 0 | BS20: =IFERROR($BL20*X20,"<") -> 0 | BT20: =IFERROR($BL20*Y20,"<") -> 0 | BU20: =IFERROR($BL20*Z20,"<") -> 0 | BV20: =IFERROR($BL20*AA20,"<") -> 0 | BW20: =IFERROR($BL20*AB20,"<") -> 0 | BX20: =IFERROR($BL20*AC20,"<") -> 0 | BY20: =IFERROR($BL20*AD20,"<") -> 0 | BZ20: =IFERROR($BL20*AE20,"<") -> 0 | CA20: =IFERROR($BL20*AF20,"<") -> 0 | CB20: =IFERROR($BL20*AG20,"<") -> 0 | CC20: =IFERROR($BL20*AH20,"<") -> 0 | CD20: =IFERROR($BL20*AI20,"<") -> 0 | CE20: =IFERROR($BL20*AJ20,"<") -> 0 | CF20: =IFERROR($BL20*AK20,"<") -> 0 | CG20: =IFERROR($BL20*AL20,"<") -> 0 | CH20: =IFERROR($BL20*AM20,"<") -> 0 | CJ20: =IFERROR($BL20*AP20,"<") -> 0 | CK20: =IF(($AO20="DI"),IFERROR($BL20*AQ20,"<"),"np") -> np | CL20: np | CM20: np | CN20: np | CO20: np | CP20: =$BL20*AV20 -> 0 | CQ20: 0 | CR20: 0 | CS20: =IF(($AO20="DI"),IFERROR($BL20*AY20,"<"),"np") -> np | CT20: np | CU20: np | CV20: np | CW20: =$BL20*BC20 -> 0 | CY20: =IFERROR($BL20*BD20,"<") -> 0 | CZ20: =IFERROR($BL20*BE20,"<") -> 0 | DA20: =IFERROR($BL20*BF20,"<") -> 0 | DB20: =IFERROR($BL20*BG20,"<") -> 0 | DC20: =IFERROR($BL20*BH20,"<") -> 0 | DD20: =IFERROR($BL20*BI20,"<") -> 0
AO21: autre ou ? | AQ21: np | AR21: np | AS21: np | AT21: np | AU21: np | AY21: np | AZ21: np | BA21: np | BB21: np | BL21: 0.5 | BM21: =IFERROR($BL21*R21,"<") -> 0 | BN21: 0 | BO21: 0 | BP21: 0 | BQ21: 0 | BR21: 0 | BS21: 0 | BT21: 0 | BU21: 0 | BV21: 0 | BW21: 0 | BX21: 0 | BY21: 0 | BZ21: 0 | CA21: 0 | CB21: 0 | CC21: 0 | CD21: 0 | CE21: 0 | CF21: 0 | CG21: 0 | CH21: 0 | CJ21: =IFERROR($BL21*AP21,"<") -> 0 | CK21: np | CL21: np | CM21: np | CN21: np | CO21: np | CP21: 0 | CQ21: 0 | CR21: 0 | CS21: np | CT21: np | CU21: np | CV21: np | CW21: =$BL21*BC21 -> 0 | CY21: =IFERROR($BL21*BD21,"<") -> 0 | CZ21: 0 | DA21: 0 | DB21: 0 | DC21: 0 | DD21: 0
B22: Autre zone suspecte:
AQ23: np | AR23: np | AS23: np | AT23: np | AU23: np | AY23: np | AZ23: np | BA23: np | BB23: np | BL23: 0.5 | BM23: =IFERROR($BL23*R23,"<") -> 0 | BN23: =IFERROR($BL23*S23,"<") -> 0 | BO23: =IFERROR($BL23*T23,"<") -> 0 | BP23: =IFERROR($BL23*U23,"<") -> 0 | BQ23: =IFERROR($BL23*V23,"<") -> 0 | BR23: =IFERROR($BL23*W23,"<") -> 0 | BS23: =IFERROR($BL23*X23,"<") -> 0 | BU23: =IFERROR($BL23*Z23,"<") -> 0 | BV23: =IFERROR($BL23*AA23,"<") -> 0 | BW23: =IFERROR($BL23*AB23,"<") -> 0 | BX23: =IFERROR($BL23*AC23,"<") -> 0 | BY23: =IFERROR($BL23*AD23,"<") -> 0 | BZ23: =IFERROR($BL23*AE23,"<") -> 0 | CA23: =IFERROR($BL23*AF23,"<") -> 0 | CB23: =IFERROR($BL23*AG23,"<") -> 0 | CC23: =IFERROR($BL23*AH23,"<") -> 0 | CD23: =IFERROR($BL23*AI23,"<") -> 0 | CE23: =IFERROR($BL23*AJ23,"<") -> 0 | CF23: =IFERROR($BL23*AK23,"<") -> 0 | CG23: =IFERROR($BL23*AL23,"<") -> 0 | CH23: =IFERROR($BL23*AM23,"<") -> 0 | CJ23: =IFERROR($BL23*AP23,"<") -> 0 | CK23: =IF(($AO23="DI"),IFERROR($BL23*AQ23,"<"),"np") -> np | CL23: np | CM23: np | CN23: np | CO23: np | CP23: =$BL23*AV23 -> 0 | CQ23: 0 | CR23: 0 | CS23: =IF(($AO23="DI"),IFERROR($BL23*AY23,"<"),"np") -> np | CT23: np | CU23: np | CV23: np | CW23: =$BL23*BC23 -> 0 | CY23: =IFERROR($BL23*BD23,"<") -> 0 | CZ23: =IFERROR($BL23*BE23,"<") -> 0 | DA23: =IFERROR($BL23*BF23,"<") -> 0 | DB23: =IFERROR($BL23*BG23,"<") -> 0 | DC23: =IFERROR($BL23*BH23,"<") -> 0 | DD23: =IFERROR($BL23*BI23,"<") -> 0
AQ24: np | AR24: np | AS24: np | AT24: np | AU24: np | AY24: np | AZ24: np | BA24: np | BB24: np | BL24: 0.5 | BM24: =IFERROR($BL24*R24,"<") -> 0 | BN24: 0 | BO24: 0 | BP24: 0 | BQ24: 0 | BR24: 0 | BS24: 0 | BU24: =IFERROR($BL24*Z24,"<") -> 0 | BV24: 0 | BW24: 0 | BX24: 0 | BY24: 0 | BZ24: 0 | CA24: 0 | CB24: 0 | CC24: 0 | CD24: 0 | CE24: 0 | CF24: 0 | CG24: 0 | CH24: 0 | CJ24: =IFERROR($BL24*AP24,"<") -> 0 | CK24: np | CL24: np | CM24: np | CN24: np | CO24: np | CP24: 0 | CQ24: 0 | CR24: 0 | CS24: np | CT24: np | CU24: np | CV24: np | CW24: =$BL24*BC24 -> 0 | CY24: =IFERROR($BL24*BD24,"<") -> 0 | CZ24: 0 | DA24: 0 | DB24: 0 | DC24: 0 | DD24: 0
B25: Légende | CY25: =$BL25*BD25 -> 0 | CZ25: 0 | DA25: 0 | DB25: 0 | DC25: 0 | DD25: 0
B26: Caractère gras et rouge= excède la | H26: usage DS(6) | K26: V | P26: VS(3) | R26: =INDEX(R$54:R$58,MATCH($K$26,$P$54:$P$58,0)) -> - | S26: - | T26: 9 | U26: 600 | V26: 600 | W26: 920 | X26: 2700 | Y26: 5300 | Z26: - | AA26: - | AB26: - | AC26: - | AD26: - | AE26: - | AF26: - | AG26: - | AH26: - | AI26: - | AJ26: - | AK26: - | AL26: - | AM26: - | AP26: =INDEX(AP$54:AP$58,MATCH($K$26,$P$54:$P$58,0)) -> - | AQ26: - | AR26: - | AS26: - | AT26: - | AU26: - | AV26: - | AW26: - | AX26: - | AY26: - | AZ26: - | BA26: - | BB26: - | BC26: - | BD26: 0.2 | BE26: 22 | BF26: 3 | BG26: 30 | BH26: 2 | BI26: 6.3 | BM26: =R26 -> - | BN26: - | BO26: 9 | BP26: 600 | BQ26: 600 | BR26: 920 | BS26: 2700 | BT26: 5300 | BU26: - | BV26: - | BW26: - | BX26: - | BY26: - | BZ26: - | CA26: - | CB26: - | CC26: - | CD26: - | CE26: - | CF26: - | CG26: - | CH26: - | CJ26: =AP26 -> - | CK26: - | CL26: - | CM26: - | CN26: - | CO26: - | CP26: - | CQ26: - | CR26: - | CS26: - | CT26: - | CU26: - | CV26: - | CW26: - | CY26: =BD26 -> 0.2 | CZ26: 22 | DA26: 3 | DB26: 30 | DC26: 2 | DD26: 6.3
B27: Caractère Souligné = excède la | H27: usage DS(6) | K27: IV | P27: VSH(3) | R27: =INDEX(R$63:R$67,MATCH($K$27,$P$63:$P$67,0)) -> - | S27: - | T27: 6 | U27: 1330.42 | V27: 34559.43 | W27: 34592.86 | X27: 48464.75 | Y27: 48464.75 | Z27: 411.7 | AA27: - | AB27: 50010 | AC27: 50150 | AD27: 50170 | AE27: - | AF27: - | AG27: 0.7 | AH27: 125 | AI27: 406.7 | AJ27: 20030 | AK27: 20060 | AL27: 15050 | AM27: 15050 | AP27: =Z27 -> 411.7 | AQ27: - | AR27: 50010 | AS27: 50150 | AT27: 50170 | AU27: - | AV27: - | AW27: 0.7 | AX27: 125 | AY27: 406.7 | AZ27: 20030 | BA27: 20060 | BB27: 15050 | BC27: 15050 | BD27: =INDEX(BD$63:BD$67,MATCH($K$27,$P$63:$P$67,0)) -> 0.7 | BE27: 125 | BF27: 3.21 | BG27: 74.94 | BH27: 43.48 | BI27: 29.56 | BO27: 6 | BP27: 1330.42 | BQ27: 34559.43 | BR27: 34592.86 | BS27: 48464.75 | BT27: 48464.75 | BU27: 411.7 | BV27: - | BW27: 50010 | BX27: 50150 | BY27: 50170 | BZ27: - | CA27: - | CB27: 0.7 | CC27: 125 | CD27: 406.7 | CE27: 20030 | CF27: 20060 | CG27: 15050 | CH27: 15050 | CJ27: =BU27 -> 411.7 | CK27: - | CL27: 50010 | CM27: 50150 | CN27: 50170 | CO27: - | CP27: - | CQ27: 0.7 | CR27: 125 | CS27: 406.7 | CT27: 20030 | CU27: 20060 | CV27: 15050 | CW27: 15050 | CY27: 0.7 | CZ27: 125 | DA27: 3.21 | DB27: 74.94 | DC27: 43.48 | DD27: 29.56
H28: usage DS(6) | K28: III | P28: VSN(3) | R28: =INDEX(R$127:R$131,MATCH($K$28,$P$127:$P$131,0)) -> 0 | S28: 0 | T28: 6 | U28: 149 | V28: 577 | W28: 5393 | X28: 302208 | Y28: 1000000 | Z28: 0 | AA28: 0 | AB28: 0 | AC28: 0 | AD28: 0 | AE28: 0 | AF28: 0 | AG28: 0 | AH28: 0 | AI28: 0 | AJ28: 0 | AK28: 0 | AL28: 0 | AM28: 0 | AP28: =INDEX(AP$127:AP$131,MATCH($K$28,$P$127:$P$131,0)) -> 0 | AQ28: 0 | AR28: 0 | AS28: 0 | AT28: 0 | AU28: 0 | AV28: 0 | AW28: 0 | AX28: 0 | AY28: 0 | AZ28: 0 | BA28: 0 | BB28: 0 | BC28: 0 | BD28: 0.2 | BE28: 7.1 | BF28: 6 | BG28: 7.9 | BH28: 1.5 | BI28: 2.5 | BO28: 6 | BP28: 149 | BQ28: 577 | BR28: 5393 | BS28: 302208 | BT28: 1000000 | BU28: 0 | BV28: 0 | BW28: 0 | BX28: 0 | BY28: 0 | BZ28: 0 | CA28: 0 | CB28: 0 | CC28: 0 | CD28: 0 | CE28: 0 | CF28: 0 | CG28: 0 | CH28: 0 | CJ28: 0 | CK28: 0 | CL28: 0 | CM28: 0 | CN28: 0 | CO28: 0 | CP28: 0 | CQ28: 0 | CR28: 0 | CS28: 0 | CT28: 0 | CU28: 0 | CV28: 0 | CW28: 0 | CY28: 0.2 | CZ28: 7.1 | DA28: 6 | DB28: 7.9 | DC28: 1.5 | DD28: 2.5
P29: VSN-aj(3) (5) | AP29: =Z29 -> 0 | AQ29: 0 | AR29: 0 | AS29: 0 | AT29: 0 | AU29: 0 | AV29: 0 | AW29: 0 | AX29: 0 | AY29: 0 | AZ29: 0 | BA29: 0 | BB29: 0 | BC29: 0 | BO29: 0 | BP29: 0 | BQ29: 0 | BR29: 0 | BS29: 0 | BT29: 0 | BU29: 0 | BV29: 0 | BW29: 0 | BX29: 0 | BY29: 0 | BZ29: 0 | CA29: 0 | CB29: 0 | CC29: 0 | CD29: 0 | CE29: 0 | CF29: 0 | CG29: 0 | CH29: 0 | CJ29: 0 | CK29: 0 | CL29: 0 | CM29: 0 | CN29: 0 | CO29: 0 | CP29: 0 | CQ29: 0 | CR29: 0 | CS29: 0 | CT29: 0 | CU29: 0 | CV29: 0 | CW29: 0 | CY29: 0 | CZ29: 0 | DA29: 0 | DB29: 0 | DC29: 0 | DD29: 0
H30: usage DS(6) | K30: III | P30: VLN(3) | R30: =INDEX(R$137:R$141,MATCH($K$30,$P$137:$P$141,0)) -> 0 | S30: 0 | T30: 12 | U30: 298 | V30: 1154 | W30: 10786 | X30: 604416 | Y30: 1000000 | Z30: 0 | AA30: 0 | AB30: 0 | AC30: 0 | AD30: 0 | AE30: 0 | AF30: 0 | AG30: 0 | AH30: 0 | AI30: 0 | AJ30: 0 | AK30: 0 | AL30: 0 | AM30: 0 | AP30: =INDEX(AP$137:AP$141,MATCH($K$30,$P$137:$P$141,0)) -> 0 | AQ30: 0 | AR30: 0 | AS30: 0 | AT30: 0 | AU30: 0 | AV30: 0 | AW30: 0 | AX30: 0 | AY30: 0 | AZ30: 0 | BA30: 0 | BB30: 0 | BC30: 0 | BD30: 1 | BE30: 59 | BF30: 30 | BG30: 34 | BH30: 6.18 | BI30: 17 | BO30: 12 | BP30: 298 | BQ30: 1154 | BR30: 10786 | BS30: 604416 | BT30: 1000000 | BU30: 0 | BV30: 0 | BW30: 0 | BX30: 0 | BY30: 0 | BZ30: 0 | CA30: 0 | CB30: 0 | CC30: 0 | CD30: 0 | CE30: 0 | CF30: 0 | CG30: 0 | CH30: 0 | CJ30: 0 | CK30: 0 | CL30: 0 | CM30: 0 | CN30: 0 | CO30: 0 | CP30: 0 | CQ30: 0 | CR30: 0 | CS30: 0 | CT30: 0 | CU30: 0 | CV30: 0 | CW30: 0 | CY30: 1 | CZ30: 59 | DA30: 30 | DB30: 34 | DC30: 6.18 | DD30: 17
P31: VLN-aj(3) (5) | AP31: =Z31 -> 0 | AQ31: 0 | AR31: 0 | AS31: 0 | AT31: 0 | AU31: 0 | AV31: 0 | AW31: 0 | AX31: 0 | AY31: 0 | AZ31: 0 | BA31: 0 | BB31: 0 | BC31: 0 | BO31: 0 | BP31: 0 | BQ31: 0 | BR31: 0 | BS31: 0 | BT31: 0 | BU31: 0 | BV31: 0 | BW31: 0 | BX31: 0 | BY31: 0 | BZ31: 0 | CA31: 0 | CB31: 0 | CC31: 0 | CD31: 0 | CE31: 0 | CF31: 0 | CG31: 0 | CH31: 0 | CJ31: 0 | CK31: 0 | CL31: 0 | CM31: 0 | CN31: 0 | CO31: 0 | CP31: 0 | CQ31: 0 | CR31: 0 | CS31: 0 | CT31: 0 | CU31: 0 | CV31: 0 | CW31: 0 | CY31: 0 | CZ31: 0 | DA31: 0 | DB31: 0 | DC31: 0 | DD31: 0
B32: Fond jaune = excède le | J32: MCS applicable(6) | K32: LIMON MCS-1 | P32: BOF-SRA(3) | R32: =INDEX(R$87:R$121,MATCH($K$32,$P$87:$P$121,0)) -> 4000 | S32: =INDEX(S$87:S$121,MATCH($K$32,$P$87:$P$121,0)) -> 3900 | U32: =INDEX(U$87:U$121,MATCH($K$32,$P$87:$P$121,0)) -> 100 | V32: =INDEX(V$87:V$121,MATCH($K$32,$P$87:$P$121,0)) -> 390 | Z32: =INDEX(Z$87:Z$121,MATCH($K$32,$P$87:$P$121,0)) -> - | AA32: 4 | AB32: 36 | AC32: 336 | AD32: 1940 | AE32: 920 | AF32: - | AG32: - | AH32: - | AI32: 64 | AJ32: 56 | AK32: 460 | AL32: 280 | AM32: - | AP32: - | AQ32: 4 | AR32: 36 | AS32: 336 | AT32: 1940 | AU32: 920 | AV32: - | AW32: - | AX32: - | AY32: 64 | AZ32: 56 | BA32: 460 | BB32: 280 | BC32: - | BD32: =INDEX(BD$87:BD$121,MATCH($K$32,$P$87:$P$121,0)) -> 0.162 | BE32: 19 | BF32: 0.7 | BG32: 11.1 | BH32: 10 | BI32: 6 | BM32: =R32 -> 4000 | BN32: =S32 -> 3900 | BO32: 0 | BP32: 100 | BQ32: 390 | BR32: 0 | BS32: 0 | BT32: 0 | BU32: - | BV32: 4 | BW32: 36 | BX32: 336 | BY32: 1940 | BZ32: 920 | CA32: - | CB32: - | CC32: - | CD32: 64 | CE32: 56 | CF32: 460 | CG32: 280 | CH32: - | CJ32: - | CK32: 4 | CL32: 36 | CM32: 336 | CN32: 1940 | CO32: 920 | CP32: - | CQ32: - | CR32: - | CS32: 64 | CT32: 56 | CU32: 460 | CV32: 280 | CW32: - | CY32: 0.162 | CZ32: 19 | DA32: 0.7 | DB32: 11.1 | DC32: 10 | DD32: 6
H33: usage (DS)(4) (6) | K33: III | P33: VSE(3) | R33: =INDEX(R$77:R$79,MATCH($K$33,$P$77:$P$79,0)) -> - | S33: - | T33: 105 | U33: 105 | V33: 75 | W33: 75 | X33: 650 | Y33: 650 | Z33: - | AA33: - | AB33: - | AC33: - | AD33: - | AE33: - | AF33: - | AG33: - | AH33: - | AI33: - | AJ33: - | AK33: - | AL33: - | AM33: - | AP33: =INDEX(AP$77:AP$79,MATCH($K$33,$P$77:$P$79,0)) -> - | AQ33: - | AR33: - | AS33: - | AT33: - | AU33: - | AV33: - | AW33: - | AX33: - | AY33: - | AZ33: - | BA33: - | BB33: - | BC33: - | BD33: 14 | BE33: 8.5 | BF33: 12 | BG33: 2 | BH33: 8 | BI33: 7.2 | BO33: 105 | BP33: 105 | BQ33: 75 | BR33: 75 | BS33: 650 | BT33: 650 | BU33: - | BV33: - | BW33: - | BX33: - | BY33: - | BZ33: - | CA33: - | CB33: - | CC33: - | CD33: - | CE33: - | CF33: - | CG33: - | CH33: - | CJ33: - | CK33: - | CL33: - | CM33: - | CN33: - | CO33: - | CP33: - | CQ33: - | CR33: - | CS33: - | CT33: - | CU33: - | CV33: - | CW33: - | CY33: 14 | CZ33: 8.5 | DA33: 12 | DB33: 2 | DC33: 8 | DD33: 7.2
B36: (1) ESS = essence; DI = diesel; HA = hydrocarbures aromatiques ; MC = mazout de chauffage ; AU = autre
B37: (2) Blanc (vide) = néant ; * = léger ; ** = moyen ; *** = fort ou valeur PID mesurée - il n'est pas nécessaire d'indiquer en même temps les perceptions organoleptiques et la réaction huile/eau qui n'est pas strictement nécessaire
B38: (3) A adapter conformément à la législation et aux paramètres spécifiques au site
B39: (4) Voir le GRER (partie D) pour l'applicabilité et les dérogations
B40: (5) A calculer selon le GRER (partie C - annexe C2)
B41: (6) Liste déroulante
B42: (7) Dans le cas de diesel ("DI"), il convient de procéder à l'évaluation (vis-a-vis des VSH ou du BOF_SRA) sur base de la "répartition standard diesel" ; dans les autres cas (polluant autre que "DI"), il n'y a pas lieu de procéder à cette évaluation
AO43: DI
H44: EO | I44: TN | L44: Ess | N44: oui | AO44: autre ou ?
F45: Oui | H45: EC | I45: R | L45: DI | N45: non
H46: PA | I46: non défini | L46: HA
H47: EF | L47: MC
H48: MON | L48: AU
H49: EI
H50: autre/non défini
O52: VS (DS) | P52: usage | R52: conc. en mg/kg ms
R53: Huile minérale EC5-35 | S53: Huile minérale EC10-40 | T53: Fraction EC 5-8 | U53: Fraction EC >8-10 | V53: Fraction EC >10-12 | W53: Fraction EC >12-16 | X53: Fraction EC >16-21 | Y53: Fraction EC >21-35 | Z53: ALI EC 5-6 | AA53: ALI EC >6-8 | AB53: ALI EC >8-10 | AC53: ALI EC >10-12 | AD53: ALI EC >12-16 | AE53: ALI EC >16-21 | AF53: ALI EC >21-35 | AG53: Arom EC 6-7 | AH53: Arom EC >7-8 | AI53: Arom EC >8-10 | AJ53: Arom EC >10-12 | AK53: Arom EC >12-16 | AL53: Arom EC >16-21 | AM53: Arom EC >21-35 | AP53: ALI EC 5-6 | AQ53: ALI EC >6-8 | AR53: ALI EC >8-10 | AS53: ALI EC >10-12 | AT53: ALI EC >12-16 | AU53: ALI EC >16-21 | AV53: ALI EC >21-35 | AW53: Arom EC 6-7 | AX53: Arom EC >7-8 | AY53: Arom EC >8-10 | AZ53: Arom EC >10-12 | BA53: Arom EC >12-16 | BB53: Arom EC >16-21 | BC53: Arom EC >21-35 | BD53: Benzène | BE53: Toluène | BF53: Ethylbenzène | BG53: Xylènes (somme) | BH53: MTBE | BI53: Naphtalène
P54: I | R54: - | S54: - | T54: 6 | U54: 21 | V54: 75 | W54: 75 | X54: 650 | Y54: 650 | Z54: - | AA54: - | AB54: - | AC54: - | AD54: - | AE54: - | AF54: - | AG54: - | AH54: - | AI54: - | AJ54: - | AK54: - | AL54: - | AM54: - | AP54: =Z54 -> - | AQ54: =AA54 -> - | AR54: - | AS54: - | AT54: - | AU54: - | AV54: - | AW54: - | AX54: - | AY54: - | AZ54: - | BA54: - | BB54: - | BC54: - | BD54: 0.1 | BE54: 4 | BF54: 0.3 | BG54: 1 | BH54: 1.5 | BI54: 2.5
P55: II | R55: - | S55: - | T55: 6 | U55: 21 | V55: 75 | W55: 75 | X55: 650 | Y55: 650 | Z55: - | AA55: - | AB55: - | AC55: - | AD55: - | AE55: - | AF55: - | AG55: - | AH55: - | AI55: - | AJ55: - | AK55: - | AL55: - | AM55: - | AP55: =Z55 -> - | AQ55: - | AR55: - | AS55: - | AT55: - | AU55: - | AV55: - | AW55: - | AX55: - | AY55: - | AZ55: - | BA55: - | BB55: - | BC55: - | BD55: 0.1 | BE55: 4 | BF55: 0.3 | BG55: 1 | BH55: 1.5 | BI55: 2.5
P56: III | R56: - | S56: - | T56: 6 | U56: 21 | V56: 75 | W56: 75 | X56: 650 | Y56: 650 | Z56: - | AA56: - | AB56: - | AC56: - | AD56: - | AE56: - | AF56: - | AG56: - | AH56: - | AI56: - | AJ56: - | AK56: - | AL56: - | AM56: - | AP56: =Z56 -> - | AQ56: - | AR56: - | AS56: - | AT56: - | AU56: - | AV56: - | AW56: - | AX56: - | AY56: - | AZ56: - | BA56: - | BB56: - | BC56: - | BD56: 0.1 | BE56: 7 | BF56: 0.3 | BG56: 2 | BH56: 1.5 | BI56: 2.5
P57: IV | R57: - | S57: - | T57: 6 | U57: 150 | V57: 580 | W57: 750 | X57: 1250 | Y57: 2100 | Z57: - | AA57: - | AB57: - | AC57: - | AD57: - | AE57: - | AF57: - | AG57: - | AH57: - | AI57: - | AJ57: - | AK57: - | AL57: - | AM57: - | AP57: =Z57 -> - | AQ57: - | AR57: - | AS57: - | AT57: - | AU57: - | AV57: - | AW57: - | AX57: - | AY57: - | AZ57: - | BA57: - | BB57: - | BC57: - | BD57: 0.2 | BE57: 7 | BF57: 3 | BG57: 8 | BH57: 1.5 | BI57: 2.5
P58: V | R58: - | S58: - | T58: 9 | U58: 600 | V58: 600 | W58: 920 | X58: 2700 | Y58: 5300 | Z58: - | AA58: - | AB58: - | AC58: - | AD58: - | AE58: - | AF58: - | AG58: - | AH58: - | AI58: - | AJ58: - | AK58: - | AL58: - | AM58: - | AP58: =Z58 -> - | AQ58: - | AR58: - | AS58: - | AT58: - | AU58: - | AV58: - | AW58: - | AX58: - | AY58: - | AZ58: - | BA58: - | BB58: - | BC58: - | BD58: 0.2 | BE58: 22 | BF58: 3 | BG58: 30 | BH58: 2 | BI58: 6.3
O61: VSH (GRER04) | P61: usage | R61: conc. en mg/kg ms
R62: Huile minérale EC5-35 | S62: Huile minérale EC10-40 | T62: Fraction EC 5-8 | U62: Fraction EC >8-10 | V62: Fraction EC >10-12 | W62: Fraction EC >12-16 | X62: Fraction EC >16-21 | Y62: Fraction EC >21-35 | Z62: ALI EC 5-6 | AA62: ALI EC >6-8 | AB62: ALI EC >8-10 | AC62: ALI EC >10-12 | AD62: ALI EC >12-16 | AE62: ALI EC >16-21 | AF62: ALI EC >21-35 | AG62: Arom EC 6-7 | AH62: Arom EC >7-8 | AI62: Arom EC >8-10 | AJ62: Arom EC >10-12 | AK62: Arom EC >12-16 | AL62: Arom EC >16-21 | AM62: Arom EC >21-35 | AP62: ALI EC 5-6 | AQ62: ALI EC >6-8 | AR62: ALI EC >8-10 | AS62: ALI EC >10-12 | AT62: ALI EC >12-16 | AU62: ALI EC >16-21 | AV62: ALI EC >21-35 | AW62: Arom EC 6-7 | AX62: Arom EC >7-8 | AY62: Arom EC >8-10 | AZ62: Arom EC >10-12 | BA62: Arom EC >12-16 | BB62: Arom EC >16-21 | BC62: Arom EC >21-35 | BD62: Benzène | BE62: Toluène | BF62: Ethylbenzène | BG62: Xylènes (somme) | BH62: MTBE | BI62: Naphtalène
P63: I | R63: - | S63: - | T63: 953.96 | U63: 38941.65 | V63: 34559.43 | W63: 34592.86 | X63: 48464.75 | Y63: 48464.75 | Z63: - | AA63: - | AB63: 50010 | AC63: 50150 | AD63: 50170 | AE63: - | AF63: - | AG63: 143.6 | AH63: 50050 | AI63: 25680 | AJ63: 20030 | AK63: 20060 | AL63: 15050 | AM63: 15050 | AP63: =Z63 -> - | AQ63: - | AR63: 50010 | AS63: 50150 | AT63: 50170 | AU63: - | AV63: - | AW63: 143.6 | AX63: 50050 | AY63: 25680 | AZ63: 20030 | BA63: 20060 | BB63: 15050 | BC63: 15050 | BD63: 143.6 | BE63: 50050 | BF63: 1930 | BG63: 125600 | BH63: 7378 | BI63: 278100
P64: II | R64: - | S64: - | T64: 6 | U64: 24 | V64: 111.69 | W64: 1002.14 | X64: 7890.64 | Y64: 5538.72 | Z64: 36.31 | AA64: 90.83 | AB64: 21.78 | AC64: 111.6 | AD64: 8191 | AE64: 178000 | AF64: 9753 | AG64: 0.1 | AH64: 9.16 | AI64: 29.86 | AJ64: 111.9 | AK64: 328.8 | AL64: 2443 | AM64: 2758 | AP64: 36.31 | AQ64: 90.83 | AR64: 21.78 | AS64: 111.6 | AT64: 8191 | AU64: 178000 | AV64: 9753 | AW64: 0.1 | AX64: 9.16 | AY64: 29.86 | AZ64: 111.9 | BA64: 328.8 | BB64: 2443 | BC64: 2758 | BD64: 0.1 | BE64: 9.16 | BF64: 0.32 | BG64: 6.36 | BH64: 1.51 | BI64: 3.72
P65: III | R65: - | S65: - | T65: 6 | U65: 24.03 | V65: 116.43 | W65: 1726.81 | X65: 8582.4 | Y65: 9369.03 | Z65: 36.34 | AA65: 90.87 | AB65: 21.8 | AC65: 111.8 | AD65: 8757 | AE65: 194000 | AF65: 194100 | AG65: 0.1 | AH65: 9.75 | AI65: 31.57 | AJ65: 128.9 | AK65: 601 | AL65: 2657 | AM65: 2909 | AP65: 36.34 | AQ65: 90.87 | AR65: 21.8 | AS65: 111.8 | AT65: 8757 | AU65: 194000 | AV65: 194100 | AW65: 0.1 | AX65: 9.75 | AY65: 31.57 | AZ65: 128.9 | BA65: 601 | BB65: 2657 | BC65: 2909 | BD65: 0.1 | BE65: 9.75 | BF65: 0.35 | BG65: 6.45 | BH65: 2.24 | BI65: 3.72
P66: IV | R66: - | S66: - | T66: 6 | U66: 1330.42 | V66: 34559.43 | W66: 34592.86 | X66: 48464.75 | Y66: 48464.75 | Z66: 411.7 | AA66: - | AB66: 50010 | AC66: 50150 | AD66: 50170 | AE66: - | AF66: - | AG66: 0.7 | AH66: 125 | AI66: 406.7 | AJ66: 20030 | AK66: 20060 | AL66: 15050 | AM66: 15050 | AP66: 411.7 | AQ66: - | AR66: 50010 | AS66: 50150 | AT66: 50170 | AU66: - | AV66: - | AW66: 0.7 | AX66: 125 | AY66: 406.7 | AZ66: 20030 | BA66: 20060 | BB66: 15050 | BC66: 15050 | BD66: 0.7 | BE66: 125 | BF66: 3.21 | BG66: 74.94 | BH66: 43.48 | BI66: 29.56
P67: V | R67: - | S67: - | T67: 9 | U67: 1357.03 | V67: 199867.7 | W67: 208645.78 | X67: 250568.98 | Y67: 250636.97 | Z67: 422.5 | AA67: - | AB67: 195100 | AC67: 300800 | AD67: 304200 | AE67: - | AF67: - | AG67: 0.7 | AH67: 126.1 | AI67: 409.1 | AJ67: 112100 | AK67: 120400 | AL67: 91160 | AM67: 91190 | AP67: 422.5 | AQ67: - | AR67: 195100 | AS67: 300800 | AT67: 304200 | AU67: - | AV67: - | AW67: 0.7 | AX67: 126.1 | AY67: 409.1 | AZ67: 112100 | BA67: 120400 | BB67: 91160 | BC67: 91190 | BD67: 0.7 | BE67: 126.1 | BF67: 3.21 | BG67: 76.63 | BH67: 43.48 | BI67: 29.56
P68: CSAT | Z68: 626.12 | AA68: 341.22 | AB68: 187.83 | AC68: 114.41 | AD68: 50.74 | AE68: 20.98 | AF68: 2.15 | AG68: 2373.06 | AH68: 1066.04 | AI68: 1391.47 | AJ68: 841.71 | AK68: 388.02 | AL68: 137.17 | AM68: 11.05 | AP68: 626.12 | AQ68: 341.22 | AR68: 187.83 | AS68: 114.41 | AT68: 50.74 | AU68: 20.98 | AV68: 2.15 | AW68: 2373.06 | AX68: 1066.04 | AY68: 1391.47 | AZ68: 841.71 | BA68: 388.02 | BB68: 137.17 | BC68: 11.05 | BD68: 2373.06 | BE68: 1066.04 | BF68: 486 | BG68: 544.61 | BH68: 13645.95 | BI68: 597.25
R70: en gras, les valeurs dépassent la CSAT (conc. À saturation)
R71: le tiret "-" signifie que les concentrations dépassent le kg de polluant par kg de sol
R72: valeurs surlignées en gris = VS (DS) car VSH<VS
O75: VSE (GRER04) | P75: usage | R75: conc. en mg/kg ms
R76: Huile minérale EC5-35 | S76: Huile minérale EC10-40 | T76: Fraction EC 5-8 | U76: Fraction EC >8-10 | V76: Fraction EC >10-12 | W76: Fraction EC >12-16 | X76: Fraction EC >16-21 | Y76: Fraction EC >21-35 | Z76: ALI EC 5-6 | AA76: ALI EC >6-8 | AB76: ALI EC >8-10 | AC76: ALI EC >10-12 | AD76: ALI EC >12-16 | AE76: ALI EC >16-21 | AF76: ALI EC >21-35 | AG76: Arom EC 6-7 | AH76: Arom EC >7-8 | AI76: Arom EC >8-10 | AJ76: Arom EC >10-12 | AK76: Arom EC >12-16 | AL76: Arom EC >16-21 | AM76: Arom EC >21-35 | AP76: ALI EC 5-6 | AQ76: ALI EC >6-8 | AR76: ALI EC >8-10 | AS76: ALI EC >10-12 | AT76: ALI EC >12-16 | AU76: ALI EC >16-21 | AV76: ALI EC >21-35 | AW76: Arom EC 6-7 | AX76: Arom EC >7-8 | AY76: Arom EC >8-10 | AZ76: Arom EC >10-12 | BA76: Arom EC >12-16 | BB76: Arom EC >16-21 | BC76: Arom EC >21-35 | BD76: Benzène | BE76: Toluène | BF76: Ethylbenzène | BG76: Xylènes (somme) | BH76: MTBE | BI76: Naphtalène
P77: I | R77: - | S77: - | T77: 105 | U77: 105 | V77: 75 | W77: 75 | X77: 650 | Y77: 650 | Z77: - | AA77: - | AB77: - | AC77: - | AD77: - | AE77: - | AF77: - | AG77: - | AH77: - | AI77: - | AJ77: - | AK77: - | AL77: - | AM77: - | AP77: =Z77 -> - | AQ77: =AA77 -> - | AR77: =AB77 -> - | AS77: =AC77 -> - | AT77: =AD77 -> - | AU77: =AE77 -> - | AV77: =AF77 -> - | AW77: =AG77 -> - | AX77: =AH77 -> - | AY77: =AI77 -> - | AZ77: =AJ77 -> - | BA77: =AK77 -> - | BB77: =AL77 -> - | BC77: =AM77 -> - | BD77: 11 | BE77: 6 | BF77: 7.8 | BG77: 1.9 | BH77: 6.7 | BI77: 3.7
P78: II | R78: - | S78: - | T78: 105 | U78: 105 | V78: 75 | W78: 75 | X78: 650 | Y78: 650 | Z78: - | AA78: - | AB78: - | AC78: - | AD78: - | AE78: - | AF78: - | AG78: - | AH78: - | AI78: - | AJ78: - | AK78: - | AL78: - | AM78: - | AP78: - | AQ78: - | AR78: - | AS78: - | AT78: - | AU78: - | AV78: - | AW78: - | AX78: - | AY78: - | AZ78: - | BA78: - | BB78: - | BC78: - | BD78: 6.4 | BE78: 3.6 | BF78: 4.7 | BG78: 1.1 | BH78: 4 | BI78: 3.7
P79: III | R79: - | S79: - | T79: 105 | U79: 105 | V79: 75 | W79: 75 | X79: 650 | Y79: 650 | Z79: - | AA79: - | AB79: - | AC79: - | AD79: - | AE79: - | AF79: - | AG79: - | AH79: - | AI79: - | AJ79: - | AK79: - | AL79: - | AM79: - | AP79: - | AQ79: - | AR79: - | AS79: - | AT79: - | AU79: - | AV79: - | AW79: - | AX79: - | AY79: - | AZ79: - | BA79: - | BB79: - | BC79: - | BD79: 14 | BE79: 8.5 | BF79: 12 | BG79: 2 | BH79: 8 | BI79: 7.2
O85: BOF_SRA | P85: MCS
R86: Huile minérale EC5-35 | S86: Huile minérale EC10-40 | T86: Fraction EC 5-8 | U86: Fraction EC >8-10 | V86: Fraction EC >10-12 | W86: Fraction EC >12-16 | X86: Fraction EC >16-21 | Y86: Fraction EC >21-35 | Z86: ALI EC 5-6 | AA86: ALI EC >6-8 | AB86: ALI EC >8-10 | AC86: ALI EC >10-12 | AD86: ALI EC >12-16 | AE86: ALI EC >16-21 | AF86: ALI EC >21-35 | AG86: Arom EC 6-7 | AH86: Arom EC >7-8 | AI86: Arom EC >8-10 | AJ86: Arom EC >10-12 | AK86: Arom EC >12-16 | AL86: Arom EC >16-21 | AM86: Arom EC >21-35 | AP86: ALI EC 5-6 | AQ86: ALI EC >6-8 | AR86: ALI EC >8-10 | AS86: ALI EC >10-12 | AT86: ALI EC >12-16 | AU86: ALI EC >16-21 | AV86: ALI EC >21-35 | AW86: Arom EC 6-7 | AX86: Arom EC >7-8 | AY86: Arom EC >8-10 | AZ86: Arom EC >10-12 | BA86: Arom EC >12-16 | BB86: Arom EC >16-21 | BC86: Arom EC >21-35 | BD86: Benzène | BE86: Toluène | BF86: Ethylbenzène | BG86: Xylènes (somme) | BH86: MTBE | BI86: Naphtalène
P87: LIMON MCS-1 | R87: 4000 | S87: 3900 | T87: - | U87: 100 | V87: 390 | W87: - | X87: - | Y87: - | Z87: - | AA87: 4 | AB87: 36 | AC87: 336 | AD87: 1940 | AE87: 920 | AF87: - | AG87: - | AH87: - | AI87: 64 | AJ87: 56 | AK87: 460 | AL87: 280 | AM87: - | AP87: =Z87 -> - | AQ87: =AA87 -> 4 | AR87: 36 | AS87: 336 | AT87: 1940 | AU87: 920 | AV87: - | AW87: - | AX87: - | AY87: 64 | AZ87: 56 | BA87: 460 | BB87: 280 | BC87: - | BD87: 0.162 | BE87: 19 | BF87: 0.7 | BG87: 11.1 | BH87: 10 | BI87: 6
P88: LIMON MCS-2 | R88: 7800 | S88: 7600 | T88: - | U88: 190 | V88: 740 | W88: - | X88: - | Y88: - | Z88: - | AA88: 7.625 | AB88: 68.625 | AC88: 640.5 | AD88: 3698.125 | AE88: 1753.75 | AF88: - | AG88: - | AH88: - | AI88: 122 | AJ88: 106.75 | AK88: 876.875 | AL88: 533.75 | AM88: - | AP88: =Z88 -> - | AQ88: 7.625 | AR88: 68.625 | AS88: 640.5 | AT88: 3698.125 | AU88: 1753.75 | AV88: - | AW88: - | AX88: - | AY88: 122 | AZ88: 106.75 | BA88: 876.875 | BB88: 533.75 | BC88: - | BD88: 0.31 | BE88: 36.1 | BF88: 1.33 | BG88: 21.09 | BH88: 19 | BI88: 11.4
P89: LIMON MCS-3 | R89: 2800 | S89: 2800 | T89: - | U89: 70 | V89: 270 | W89: - | X89: - | Y89: - | Z89: - | AA89: 2.8 | AB89: 25.3 | AC89: 236.3 | AD89: 1364 | AE89: 646.9 | AF89: - | AG89: - | AH89: - | AI89: 45 | AJ89: 39.4 | AK89: 323.4 | AL89: 196.9 | AM89: - | AP89: - | AQ89: 2.8 | AR89: 25.3 | AS89: 236.3 | AT89: 1364 | AU89: 646.9 | AV89: - | AW89: - | AX89: - | AY89: 45 | AZ89: 39.4 | BA89: 323.4 | BB89: 196.9 | BC89: - | BD89: 0.12 | BE89: 14 | BF89: 0.535 | BG89: 8.35 | BH89: 7.5 | BI89: 4.5
P90: LIMON MCS-4 | R90: 20000 | S90: 19000 | T90: - | U90: 490 | V90: 1900 | W90: - | X90: - | Y90: - | Z90: - | AA90: 19.9 | AB90: 179.3 | AC90: 1673 | AD90: 9662 | AE90: 4582 | AF90: - | AG90: - | AH90: - | AI90: 318.8 | AJ90: 278.9 | AK90: 2291 | AL90: 1395 | AM90: - | AP90: - | AQ90: 19.9 | AR90: 179.3 | AS90: 1673 | AT90: 9662 | AU90: 4582 | AV90: - | AW90: - | AX90: - | AY90: 318.8 | AZ90: 278.9 | BA90: 2291 | BB90: 1395 | BC90: - | BD90: 0.85 | BE90: 10 | BF90: 3.65 | BG90: 57 | BH90: 50 | BI90: 32
P91: LIMON MCS-5 | R91: 20000 | S91: 19000 | T91: - | U91: 490 | V91: 1900 | W91: - | X91: - | Y91: - | Z91: - | AA91: 19.8 | AB91: 178.2 | AC91: 1663 | AD91: 9603 | AE91: 4554 | AF91: - | AG91: - | AH91: - | AI91: 316.8 | AJ91: 277.2 | AK91: 2277 | AL91: 1386 | AM91: - | AP91: - | AQ91: 19.8 | AR91: 178.2 | AS91: 1663 | AT91: 9603 | AU91: 4554 | AV91: - | AW91: - | AX91: - | AY91: 316.8 | AZ91: 277.2 | BA91: 2277 | BB91: 1386 | BC91: - | BD91: 0.81 | BE91: 94.5 | BF91: 3.7 | BG91: 55.5 | BH91: 47 | BI91: 29.5
P92: LIMON MCS-6 | R92: 20000 | S92: 20000 | T92: - | U92: 1000 | V92: 20000 | W92: - | X92: - | Y92: - | Z92: - | AA92: 360 | AB92: 3240 | AC92: 30240 | AD92: 174600 | AE92: 82800 | AF92: - | AG92: - | AH92: - | AI92: 5760 | AJ92: 5040 | AK92: 41400 | AL92: 25200 | AM92: - | AP92: - | AQ92: 360 | AR92: 3240 | AS92: 30240 | AT92: 174600 | AU92: 82800 | AV92: - | AW92: - | AX92: - | AY92: 5760 | AZ92: 5040 | BA92: 41400 | BB92: 25200 | BC92: - | BD92: 14 | BE92: 3000 | BF92: 63 | BG92: 4000 | BH92: 800 | BI92: 540
P93: LIMON MCS-7 | R93: 20000 | S93: 20000 | T93: - | U93: 1000 | V93: 20000 | W93: - | X93: - | Y93: - | Z93: - | AA93: 360 | AB93: 3240 | AC93: 30240 | AD93: 174600 | AE93: 82800 | AF93: - | AG93: - | AH93: - | AI93: 5760 | AJ93: 5040 | AK93: 41400 | AL93: 25200 | AM93: - | AP93: - | AQ93: 360 | AR93: 3240 | AS93: 30240 | AT93: 174600 | AU93: 82800 | AV93: - | AW93: - | AX93: - | AY93: 5760 | AZ93: 5040 | BA93: 41400 | BB93: 25200 | BC93: - | BD93: 7 | BE93: 840 | BF93: 32 | BG93: 475 | BH93: 440 | BI93: 260
P94: LIMON SABLEUX MCS-1 | R94: 3200 | S94: 3100 | T94: - | U94: 80 | V94: 310 | W94: - | X94: - | Y94: - | Z94: - | AA94: 3.2 | AB94: 28.7 | AC94: 267.8 | AD94: 1546 | AE94: 733.1 | AF94: - | AG94: - | AH94: - | AI94: 51 | AJ94: 44.6 | AK94: 366.6 | AL94: 223.1 | AM94: - | AP94: - | AQ94: 3.2 | AR94: 28.7 | AS94: 267.8 | AT94: 1546 | AU94: 733.1 | AV94: - | AW94: - | AX94: - | AY94: 51 | AZ94: 44.6 | BA94: 366.6 | BB94: 223.1 | BC94: - | BD94: 0.12 | BE94: 13.5 | BF94: 0.5 | BG94: 7.68 | BH94: 7.7 | BI94: 4.5
P95: LIMON SABLEUX MCS-2 | R95: 5400 | S95: 5300 | T95: - | U95: 130 | V95: 520 | W95: - | X95: - | Y95: - | Z95: - | AA95: 5.3 | AB95: 48.1 | AC95: 448.9 | AD95: 2592 | AE95: 1229 | AF95: - | AG95: - | AH95: - | AI95: 85.5 | AJ95: 74.8 | AK95: 614.5 | AL95: 374.1 | AM95: - | AP95: - | AQ95: 5.3 | AR95: 48.1 | AS95: 448.9 | AT95: 2592 | AU95: 1229 | AV95: - | AW95: - | AX95: - | AY95: 85.5 | AZ95: 74.8 | BA95: 614.5 | BB95: 374.1 | BC95: - | BD95: 0.31 | BE95: 36.1 | BF95: 1.33 | BG95: 21.09 | BH95: 19 | BI95: 11.4
P96: LIMON SABLEUX MCS-3 | R96: 1500 | S96: 1400 | T96: - | U96: 37 | V96: 140 | W96: - | X96: - | Y96: - | Z96: - | AA96: 1.456 | AB96: 13.16 | AC96: 122.9 | AD96: 709.3 | AE96: 336.4 | AF96: - | AG96: - | AH96: - | AI96: 23.4 | AJ96: 20.49 | AK96: 168.2 | AL96: 102.4 | AM96: - | AP96: - | AQ96: 1.456 | AR96: 13.16 | AS96: 122.9 | AT96: 709.3 | AU96: 336.4 | AV96: - | AW96: - | AX96: - | AY96: 23.4 | AZ96: 20.49 | BA96: 168.2 | BB96: 102.4 | BC96: - | BD96: 0.099 | BE96: 1.1 | BF96: 0.445 | BG96: 6.68 | BH96: 6.2 | BI96: 3.8
P97: LIMON SABLEUX MCS-4 | R97: 14000 | S97: 13000 | T97: - | U97: 340 | V97: 1300 | W97: - | X97: - | Y97: - | Z97: - | AA97: 13.78 | AB97: 125.1 | AC97: 1167 | AD97: 6739 | AE97: 3195 | AF97: - | AG97: - | AH97: - | AI97: 222.3 | AJ97: 194.5 | AK97: 1598 | AL97: 972.7 | AM97: - | AP97: - | AQ97: 13.78 | AR97: 125.1 | AS97: 1167 | AT97: 6739 | AU97: 3195 | AV97: - | AW97: - | AX97: - | AY97: 222.3 | AZ97: 194.5 | BA97: 1598 | BB97: 972.7 | BC97: - | BD97: 0.585 | BE97: 69 | BF97: 2.65 | BG97: 40.2 | BH97: 36.25 | BI97: 22.5
P98: LIMON SABLEUX MCS-5 | R98: 15000 | S98: 14000 | T98: - | U98: 370 | V98: 1400 | W98: - | X98: - | Y98: - | Z98: - | AA98: 14.85 | AB98: 133.7 | AC98: 1247 | AD98: 7202 | AE98: 3415 | AF98: - | AG98: - | AH98: - | AI98: 237.6 | AJ98: 207.9 | AK98: 1708 | AL98: 1040 | AM98: - | AP98: - | AQ98: 14.85 | AR98: 133.7 | AS98: 1247 | AT98: 7202 | AU98: 3415 | AV98: - | AW98: - | AX98: - | AY98: 237.6 | AZ98: 207.9 | BA98: 1708 | BB98: 1040 | BC98: - | BD98: 0.61 | BE98: 72.5 | BF98: 2.76 | BG98: 42 | BH98: 36 | BI98: 22.75
P99: LIMON SABLEUX MCS-6 | R99: 20000 | S99: 20000 | T99: - | U99: 1000 | V99: 20000 | W99: - | X99: - | Y99: - | Z99: - | AA99: 360 | AB99: 3240 | AC99: 30240 | AD99: 174600 | AE99: 82800 | AF99: - | AG99: - | AH99: - | AI99: 5760 | AJ99: 5040 | AK99: 41400 | AL99: 25200 | AM99: - | AP99: - | AQ99: 360 | AR99: 3240 | AS99: 30240 | AT99: 174600 | AU99: 82800 | AV99: - | AW99: - | AX99: - | AY99: 5760 | AZ99: 5040 | BA99: 41400 | BB99: 25200 | BC99: - | BD99: 8.9 | BE99: 1200 | BF99: 40 | BG99: 3800 | BH99: 550 | BI99: 340
P100: LIMON SABLEUX MCS-7 | R100: 20000 | S100: 20000 | T100: - | U100: 1000 | V100: 20000 | W100: - | X100: - | Y100: - | Z100: - | AA100: 360 | AB100: 3240 | AC100: 30240 | AD100: 174600 | AE100: 82800 | AF100: - | AG100: - | AH100: - | AI100: 5760 | AJ100: 5040 | AK100: 41400 | AL100: 25200 | AM100: - | AP100: - | AQ100: 360 | AR100: 3240 | AS100: 30240 | AT100: 174600 | AU100: 82800 | AV100: - | AW100: - | AX100: - | AY100: 5760 | AZ100: 5040 | BA100: 41400 | BB100: 25200 | BC100: - | BD100: 4.65 | BE100: 550 | BF100: 20 | BG100: 290 | BH100: 290 | BI100: 160
P101: ARGILE MCS-1 | R101: 9000 | S101: 8700 | T101: - | U101: 220 | V101: 860 | W101: - | X101: - | Y101: - | Z101: - | AA101: 8.8 | AB101: 79.2 | AC101: 739.2 | AD101: 4268 | AE101: 2024 | AF101: - | AG101: - | AH101: - | AI101: 140.8 | AJ101: 123.2 | AK101: 1012 | AL101: 616 | AM101: - | AP101: - | AQ101: 8.8 | AR101: 79.2 | AS101: 739.2 | AT101: 4268 | AU101: 2024 | AV101: - | AW101: - | AX101: - | AY101: 140.8 | AZ101: 123.2 | BA101: 1012 | BB101: 616 | BC101: - | BD101: 0.33 | BE101: 37.5 | BF101: 1.5 | BG101: 22 | BH101: 16 | BI101: 12
P102: ARGILE MCS-2 | R102: 17000 | S102: 16000 | T102: - | U102: 420 | V102: 1600 | W102: - | X102: - | Y102: - | Z102: - | AA102: 16.8 | AB102: 151.3 | AC102: 1412 | AD102: 8154 | AE102: 3867 | AF102: - | AG102: - | AH102: - | AI102: 269 | AJ102: 235.4 | AK102: 1933 | AL102: 1177 | AM102: - | AP102: - | AQ102: 16.8 | AR102: 151.3 | AS102: 1412 | AT102: 8154 | AU102: 3867 | AV102: - | AW102: - | AX102: - | AY102: 269 | AZ102: 235.4 | BA102: 1933 | BB102: 1177 | BC102: - | BD102: 0.66 | BE102: 75 | BF102: 3 | BG102: 44 | BH102: 32 | BI102: 24
P103: ARGILE MCS-3 | R103: 20000 | S103: 5900 | T103: - | U103: 140 | V103: 580 | W103: - | X103: - | Y103: - | Z103: - | AA103: 5.94 | AB103: 53.46 | AC103: 499 | AD103: 2881 | AE103: 1366 | AF103: - | AG103: - | AH103: - | AI103: 95.04 | AJ103: 83.16 | AK103: 683.1 | AL103: 415.8 | AM103: - | AP103: - | AQ103: 5.94 | AR103: 53.46 | AS103: 499 | AT103: 2881 | AU103: 1366 | AV103: - | AW103: - | AX103: - | AY103: 95.04 | AZ103: 83.16 | BA103: 683.1 | BB103: 415.8 | BC103: - | BD103: 0.2295 | BE103: 28 | BF103: 1.075 | BG103: 16.25 | BH103: 11.5 | BI103: 8.8
P104: ARGILE MCS-4 | R104: 20000 | S104: 20000 | T104: - | U104: 1000 | V104: 4600 | W104: - | X104: - | Y104: - | Z104: - | AA104: 47.08 | AB104: 423.7 | AC104: 3955 | AD104: 22830 | AE104: 10830 | AF104: - | AG104: - | AH104: - | AI104: 753.3 | AJ104: 659.1 | AK104: 5414 | AL104: 3296 | AM104: - | AP104: - | AQ104: 47.08 | AR104: 423.7 | AS104: 3955 | AT104: 22830 | AU104: 10830 | AV104: - | AW104: - | AX104: - | AY104: 753.3 | AZ104: 659.1 | BA104: 5414 | BB104: 3296 | BC104: - | BD104: 1.87 | BE104: 227 | BF104: 8.905 | BG104: 132.5 | BH104: 95 | BI104: 75
P105: ARGILE MCS-5 | R105: 20000 | S105: 20000 | T105: - | U105: 1000 | V105: 4200 | W105: - | X105: - | Y105: - | Z105: - | AA105: 43.56 | AB105: 392 | AC105: 3659 | AD105: 21130 | AE105: 10020 | AF105: - | AG105: - | AH105: - | AI105: 697 | AJ105: 609.8 | AK105: 5009 | AL105: 3049 | AM105: - | AP105: - | AQ105: 43.56 | AR105: 392 | AS105: 3659 | AT105: 21130 | AU105: 10020 | AV105: - | AW105: - | AX105: - | AY105: 697 | AZ105: 609.8 | BA105: 5009 | BB105: 3049 | BC105: - | BD105: 0.33 | BE105: 37.5 | BF105: 1.5 | BG105: 22 | BH105: 16 | BI105: 12
P106: ARGILE MCS-6 | R106: 20000 | S106: 20000 | T106: - | U106: 1000 | V106: 20000 | W106: - | X106: - | Y106: - | Z106: - | AA106: 360 | AB106: 3240 | AC106: 30240 | AD106: 174600 | AE106: 82800 | AF106: - | AG106: - | AH106: - | AI106: 5760 | AJ106: 5040 | AK106: 41400 | AL106: 25200 | AM106: - | AP106: - | AQ106: 360 | AR106: 3240 | AS106: 30240 | AT106: 174600 | AU106: 82800 | AV106: - | AW106: - | AX106: - | AY106: 5760 | AZ106: 5040 | BA106: 41400 | BB106: 25200 | BC106: - | BD106: 31.5 | BE106: 6000 | BF106: 127.5 | BG106: 8000 | BH106: 1650 | BI106: 1050
P107: ARGILE MCS-7 | R107: 20000 | S107: 20000 | T107: - | U107: 1000 | V107: 20000 | W107: - | X107: - | Y107: - | Z107: - | AA107: 360 | AB107: 3240 | AC107: 30240 | AD107: 174600 | AE107: 82800 | AF107: - | AG107: - | AH107: - | AI107: 5760 | AJ107: 5040 | AK107: 41400 | AL107: 25200 | AM107: - | AP107: - | AQ107: 360 | AR107: 3240 | AS107: 30240 | AT107: 174600 | AU107: 82800 | AV107: - | AW107: - | AX107: - | AY107: 5760 | AZ107: 5040 | BA107: 41400 | BB107: 25200 | BC107: - | BD107: 15.1 | BE107: 1725 | BF107: 60.3 | BG107: 875 | BH107: 819 | BI107: 490
P108: LIMON CAILLOUTEUX MCS-1 | R108: 7800 | S108: 7600 | T108: - | U108: 190 | V108: 740 | W108: - | X108: - | Y108: - | Z108: - | AA108: 7.6 | AB108: 68.6 | AC108: 640.5 | AD108: 3698 | AE108: 1754 | AF108: - | AG108: - | AH108: - | AI108: 122 | AJ108: 106.8 | AK108: 876.9 | AL108: 533.8 | AM108: - | AP108: - | AQ108: 7.6 | AR108: 68.6 | AS108: 640.5 | AT108: 3698 | AU108: 1754 | AV108: - | AW108: - | AX108: - | AY108: 122 | AZ108: 106.8 | BA108: 876.9 | BB108: 533.8 | BC108: - | BD108: 0.29 | BE108: 33.5 | BF108: 1.35 | BG108: 20 | BH108: 14 | BI108: 12
P109: LIMON CAILLOUTEUX MCS-2 | R109: 14000 | S109: 14000 | T109: - | U109: 360 | V109: 1400 | W109: - | X109: - | Y109: - | Z109: - | AA109: 14.4 | AB109: 129.9 | AC109: 1213 | AD109: 7002 | AE109: 3321 | AF109: - | AG109: - | AH109: - | AI109: 231 | AJ109: 202.1 | AK109: 1660 | AL109: 1011 | AM109: - | AP109: - | AQ109: 14.4 | AR109: 129.9 | AS109: 1213 | AT109: 7002 | AU109: 3321 | AV109: - | AW109: - | AX109: - | AY109: 231 | AZ109: 202.1 | BA109: 1660 | BB109: 1011 | BC109: - | BD109: 0.485 | BE109: 59.5 | BF109: 2.5 | BG109: 35 | BH109: 25 | BI109: 22.5
P110: LIMON CAILLOUTEUX MCS-3 | R110: 3400 | S110: 3300 | T110: - | U110: 84 | V110: 320 | W110: - | X110: - | Y110: - | Z110: - | AA110: 3.344 | AB110: 30.18 | AC110: 281.8 | AD110: 1627 | AE110: 771.8 | AF110: - | AG110: - | AH110: - | AI110: 53.68 | AJ110: 46.99 | AK110: 385.8 | AL110: 234.9 | AM110: - | AP110: - | AQ110: 3.344 | AR110: 30.18 | AS110: 281.8 | AT110: 1627 | AU110: 771.8 | AV110: - | AW110: - | AX110: - | AY110: 53.68 | AZ110: 46.99 | BA110: 385.8 | BB110: 234.9 | BC110: - | BD110: 0.216 | BE110: 26.2 | BF110: 1.02 | BG110: 15 | BH110: 10.53 | BI110: 9
P111: LIMON CAILLOUTEUX MCS-4 | R111: 2000 | S111: 20000 | T111: - | U111: 1000 | V111: 4600 | W111: - | X111: - | Y111: - | Z111: - | AA111: 36.49 | AB111: 328.4 | AC111: 3065 | AD111: 17690 | AE111: 8393 | AF111: - | AG111: - | AH111: - | AI111: 583.8 | AJ111: 510.8 | AK111: 4196 | AL111: 2554 | AM111: - | AP111: - | AQ111: 36.49 | AR111: 328.4 | AS111: 3065 | AT111: 17690 | AU111: 8393 | AV111: - | AW111: - | AX111: - | AY111: 583.8 | AZ111: 510.8 | BA111: 4196 | BB111: 2554 | BC111: - | BD111: 1.42 | BE111: 172.5 | BF111: 6.662 | BG111: 102 | BH111: 68.5 | BI111: 59.5
P112: LIMON CAILLOUTEUX MCS-5 | R112: 20000 | S112: 20000 | T112: - | U112: 1000 | V112: 4200 | W112: - | X112: - | Y112: - | Z112: - | AA112: 31.4 | AB112: 282.2 | AC112: 2635 | AD112: 15210 | AE112: 7214 | AF112: - | AG112: - | AH112: - | AI112: 501.8 | AJ112: 439.1 | AK112: 3607 | AL112: 2195 | AM112: - | AP112: - | AQ112: 31.4 | AR112: 282.2 | AS112: 2635 | AT112: 15210 | AU112: 7214 | AV112: - | AW112: - | AX112: - | AY112: 501.8 | AZ112: 439.1 | BA112: 3607 | BB112: 2195 | BC112: - | BD112: 1.2 | BE112: 147 | BF112: 5.75 | BG112: 87 | BH112: 57 | BI112: 49
P113: LIMON CAILLOUTEUX MCS-6 | R113: 20000 | S113: 20000 | T113: - | U113: 1000 | V113: 20000 | W113: - | X113: - | Y113: - | Z113: - | AA113: 360 | AB113: 3240 | AC113: 30240 | AD113: 174600 | AE113: 82800 | AF113: - | AG113: - | AH113: - | AI113: 5760 | AJ113: 5040 | AK113: 41400 | AL113: 25200 | AM113: - | AP113: - | AQ113: 360 | AR113: 3240 | AS113: 30240 | AT113: 174600 | AU113: 82800 | AV113: - | AW113: - | AX113: - | AY113: 5760 | AZ113: 5040 | BA113: 41400 | BB113: 25200 | BC113: - | BD113: 23 | BE113: 6000 | BF113: 110 | BG113: 8000 | BH113: 1125 | BI113: 990
P114: LIMON CAILLOUTEUX MCS-7 | R114: 20000 | S114: 20000 | T114: - | U114: 1000 | V114: 20000 | W114: - | X114: - | Y114: - | Z114: - | AA114: 360 | AB114: 3240 | AC114: 30240 | AD114: 174600 | AE114: 82800 | AF114: - | AG114: - | AH114: - | AI114: 5760 | AJ114: 5040 | AK114: 41400 | AL114: 25200 | AM114: - | AP114: - | AQ114: 360 | AR114: 3240 | AS114: 30240 | AT114: 174600 | AU114: 82800 | AV114: - | AW114: - | AX114: - | AY114: 5760 | AZ114: 5040 | BA114: 41400 | BB114: 25200 | BC114: - | BD114: 11.5 | BE114: 1400 | BF114: 55.75 | BG114: 800 | BH114: 570 | BI114: 493
P115: SABLE MCS-1 | R115: 930 | S115: 910 | T115: - | U115: 23 | V115: 90 | W115: - | X115: - | Y115: - | Z115: - | AA115: 0.92 | AB115: 8.25 | AC115: 77 | AD115: 444.6 | AE115: 210.8 | AF115: - | AG115: - | AH115: - | AI115: 14.67 | AJ115: 12.83 | AK115: 105.4 | AL115: 64.17 | AM115: - | AP115: - | AQ115: 0.92 | AR115: 8.25 | AS115: 77 | AT115: 444.6 | AU115: 210.8 | AV115: - | AW115: - | AX115: - | AY115: 14.67 | AZ115: 12.83 | BA115: 105.4 | BB115: 64.17 | BC115: - | BD115: 0.05 | BE115: 6 | BF115: 0.22 | BG115: 3.5 | BH115: 2.1 | BI115: 2
P116: SABLE MCS-2 | R116: 1600 | S116: 1600 | T116: - | U116: 41 | V116: 160 | W116: - | X116: - | Y116: - | Z116: - | AA116: 1.643 | AB116: 14.79 | AC116: 138 | AD116: 796.8 | AE116: 377.9 | AF116: - | AG116: - | AH116: - | AI116: 26.29 | AJ116: 23 | AK116: 188.9 | AL116: 115 | AM116: - | AP116: - | AQ116: 1.643 | AR116: 14.79 | AS116: 138 | AT116: 796.8 | AU116: 377.9 | AV116: - | AW116: - | AX116: - | AY116: 26.29 | AZ116: 23 | BA116: 188.9 | BB116: 115 | BC116: - | BD116: 0.1 | BE116: 12.5 | BF116: 0.45 | BG116: 6.9 | BH116: 4.5 | BI116: 4.4
P117: SABLE MCS-3 | R117: 790 | S117: 770 | T117: - | U117: 21 | V117: 76 | W117: - | X117: - | Y117: - | Z117: - | AA117: 0.773 | AB117: 6.946 | AC117: 65 | AD117: 375.3 | AE117: 178 | AF117: - | AG117: - | AH117: - | AI117: 12.38 | AJ117: 10.83 | AK117: 88.99 | AL117: 54.16 | AM117: - | AP117: - | AQ117: 0.773 | AR117: 6.946 | AS117: 65 | AT117: 375.3 | AU117: 178 | AV117: - | AW117: - | AX117: - | AY117: 12.38 | AZ117: 10.83 | BA117: 88.99 | BB117: 54.16 | BC117: - | BD117: 0.0465 | BE117: 5.55 | BF117: 0.21 | BG117: 3.15 | BH117: 2.05 | BI117: 1.9
P118: SABLE MCS-4 | R118: 6300 | S118: 6200 | T118: - | U118: 150 | V118: 610 | W118: - | X118: - | Y118: - | Z118: - | AA118: 6.2 | AB118: 56.1 | AC118: 523.7 | AD118: 3024 | AE118: 1434 | AF118: - | AG118: - | AH118: - | AI118: 99.8 | AJ118: 87.3 | AK118: 717 | AL118: 436.4 | AM118: - | AP118: - | AQ118: 6.2 | AR118: 56.1 | AS118: 523.7 | AT118: 3024 | AU118: 1434 | AV118: - | AW118: - | AX118: - | AY118: 99.8 | AZ118: 87.3 | BA118: 717 | BB118: 436.4 | BC118: - | BD118: 0.225 | BE118: 28 | BF118: 1.1 | BG118: 16.5 | BH118: 9.5 | BI118: 10
P119: SABLE MCS-5 | R119: 9900 | S119: 9700 | T119: - | U119: 240 | V119: 950 | W119: - | X119: - | Y119: - | Z119: - | AA119: 9.75 | AB119: 87.75 | AC119: 819 | AD119: 4729 | AE119: 2243 | AF119: - | AG119: - | AH119: - | AI119: 156 | AJ119: 136.5 | AK119: 1121 | AL119: 682.5 | AM119: - | AP119: - | AQ119: 9.75 | AR119: 87.75 | AS119: 819 | AT119: 4729 | AU119: 2243 | AV119: - | AW119: - | AX119: - | AY119: 156 | AZ119: 136.5 | BA119: 1121 | BB119: 682.5 | BC119: - | BD119: 0.355 | BE119: 44.5 | BF119: 1.55 | BG119: 25.5 | BH119: 14.5 | BI119: 14.5
P120: SABLE MCS-6 | R120: 20000 | S120: 20000 | T120: - | U120: 900 | V120: 3500 | W120: - | X120: - | Y120: - | Z120: - | AA120: 36 | AB120: 324 | AC120: 3024 | AD120: 17460 | AE120: 8280 | AF120: - | AG120: - | AH120: - | AI120: 576 | AJ120: 504 | AK120: 4140 | AL120: 2520 | AM120: - | AP120: - | AQ120: 36 | AR120: =AB120 -> 324 | AS120: 3024 | AT120: 17460 | AU120: 8280 | AV120: - | AW120: - | AX120: - | AY120: 576 | AZ120: 504 | BA120: 4140 | BB120: 2520 | BC120: - | BD120: 1.5 | BE120: 170 | BF120: 6 | BG120: 90 | BH120: 65 | BI120: 48
P121: SABLE MCS-7 | R121: 22000 | S121: 20000 | T121: - | U121: 540 | V121: 2200 | W121: - | X121: - | Y121: - | Z121: - | AA121: 21.6 | AB121: 194.4 | AC121: 1914 | AD121: 10480 | AE121: 4968 | AF121: - | AG121: - | AH121: - | AI121: 345.6 | AJ121: 302.4 | AK121: 2484 | AL121: 1512 | AM121: - | AP121: =Z121 -> - | AQ121: =AA121 -> 21.6 | AR121: 194.4 | AS121: 1914 | AT121: 10480 | AU121: 4968 | AV121: - | AW121: - | AX121: - | AY121: 345.6 | AZ121: 302.4 | BA121: 2484 | BB121: 1512 | BC121: - | BD121: 0.71 | BE121: 83 | BF121: 2.8 | BG121: 43 | BH121: 31.5 | BI121: 23.8
O125: VSN (GRER v04 parti C) | P125: usage | R125: conc. en mg/kg ms
R126: Huile minérale EC5-35 | S126: Huile minérale EC10-40 | T126: Fraction EC 5-8 | U126: Fraction EC >8-10 | V126: Fraction EC >10-12 | W126: Fraction EC >12-16 | X126: Fraction EC >16-21 | Y126: Fraction EC >21-35 | Z126: ALI EC 5-6 | AA126: ALI EC >6-8 | AB126: ALI EC >8-10 | AC126: ALI EC >10-12 | AD126: ALI EC >12-16 | AE126: ALI EC >16-21 | AF126: ALI EC >21-35 | AG126: Arom EC 6-7 | AH126: Arom EC >7-8 | AI126: Arom EC >8-10 | AJ126: Arom EC >10-12 | AK126: Arom EC >12-16 | AL126: Arom EC >16-21 | AM126: Arom EC >21-35 | AP126: ALI EC 5-6 | AQ126: ALI EC >6-8 | AR126: ALI EC >8-10 | AS126: ALI EC >10-12 | AT126: ALI EC >12-16 | AU126: ALI EC >16-21 | AV126: ALI EC >21-35 | AW126: Arom EC 6-7 | AX126: Arom EC >7-8 | AY126: Arom EC >8-10 | AZ126: Arom EC >10-12 | BA126: Arom EC >12-16 | BB126: Arom EC >16-21 | BC126: Arom EC >21-35 | BD126: Benzène | BE126: Toluène | BF126: Ethylbenzène | BG126: Xylènes (somme) | BH126: MTBE | BI126: Naphtalène
P127: I | T127: 6.2 | U127: 211 | V127: 884 | W127: 8459 | X127: 481309 | Y127: 1000000 | AP127: =Z127 -> 0 | AQ127: 0 | AR127: 0 | AS127: 0 | AT127: 0 | AU127: 0 | AV127: 0 | AW127: 0 | AX127: 0 | AY127: 0 | AZ127: 0 | BA127: 0 | BB127: 0 | BC127: 0 | BD127: 0.2 | BE127: 9.2 | BF127: 8 | BG127: 11 | BH127: 1.6 | BI127: 3.8
P128: II | T128: 5.8 | U128: 169 | V128: 679 | W128: 6415 | X128: 361909 | Y128: 1000000 | AP128: 0 | AQ128: 0 | AR128: 0 | AS128: 0 | AT128: 0 | AU128: 0 | AV128: 0 | AW128: 0 | AX128: 0 | AY128: 0 | AZ128: 0 | BA128: 0 | BB128: 0 | BC128: 0 | BD128: 0.2 | BE128: 7.8 | BF128: 6.4 | BG128: 8.9 | BH128: 1.5 | BI128: 2.9
P129: III | T129: 6 | U129: 149 | V129: 577 | W129: 5393 | X129: 302208 | Y129: 1000000 | AP129: 0 | AQ129: 0 | AR129: 0 | AS129: 0 | AT129: 0 | AU129: 0 | AV129: 0 | AW129: 0 | AX129: 0 | AY129: 0 | AZ129: 0 | BA129: 0 | BB129: 0 | BC129: 0 | BD129: 0.2 | BE129: 7.1 | BF129: 6 | BG129: 7.9 | BH129: 1.5 | BI129: 2.5
P130: IV | T130: 6 | U130: 149 | V130: 577 | W130: 5393 | X130: 302208 | Y130: 1000000 | AP130: 0 | AQ130: 0 | AR130: 0 | AS130: 0 | AT130: 0 | AU130: 0 | AV130: 0 | AW130: 0 | AX130: 0 | AY130: 0 | AZ130: 0 | BA130: 0 | BB130: 0 | BC130: 0 | BD130: 0.2 | BE130: 7.1 | BF130: 6 | BG130: 7.9 | BH130: 1.5 | BI130: 2.5
P131: V | T131: 10 | U131: 601 | V131: 2792 | W131: 27541 | X131: 1000000 | Y131: 1000000 | AP131: 0 | AQ131: 0 | AR131: 0 | AS131: 0 | AT131: 0 | AU131: 0 | AV131: 0 | AW131: 0 | AX131: 0 | AY131: 0 | AZ131: 0 | BA131: 0 | BB131: 0 | BC131: 0 | BD131: 0.21 | BE131: 22 | BF131: 23 | BG131: 30 | BH131: 2 | BI131: 12
O135: VLN (GRER v04 parti C) | P135: usage | R135: conc. en mg/kg ms
R136: Huile minérale EC5-35 | S136: Huile minérale EC10-40 | T136: Fraction EC 5-8 | U136: Fraction EC >8-10 | V136: Fraction EC >10-12 | W136: Fraction EC >12-16 | X136: Fraction EC >16-21 | Y136: Fraction EC >21-35 | Z136: ALI EC 5-6 | AA136: ALI EC >6-8 | AB136: ALI EC >8-10 | AC136: ALI EC >10-12 | AD136: ALI EC >12-16 | AE136: ALI EC >16-21 | AF136: ALI EC >21-35 | AG136: Arom EC 6-7 | AH136: Arom EC >7-8 | AI136: Arom EC >8-10 | AJ136: Arom EC >10-12 | AK136: Arom EC >12-16 | AL136: Arom EC >16-21 | AM136: Arom EC >21-35 | AP136: ALI EC 5-6 | AQ136: ALI EC >6-8 | AR136: ALI EC >8-10 | AS136: ALI EC >10-12 | AT136: ALI EC >12-16 | AU136: ALI EC >16-21 | AV136: ALI EC >21-35 | AW136: Arom EC 6-7 | AX136: Arom EC >7-8 | AY136: Arom EC >8-10 | AZ136: Arom EC >10-12 | BA136: Arom EC >12-16 | BB136: Arom EC >16-21 | BC136: Arom EC >21-35 | BD136: Benzène | BE136: Toluène | BF136: Ethylbenzène | BG136: Xylènes (somme) | BH136: MTBE | BI136: Naphtalène
P137: I | T137: 12.4 | U137: 422 | V137: 1768 | W137: 16918 | X137: 962618 | Y137: 1000000 | AP137: =Z137 -> 0 | AQ137: 0 | AR137: 0 | AS137: 0 | AT137: 0 | AU137: 0 | AV137: 0 | AW137: 0 | AX137: 0 | AY137: 0 | AZ137: 0 | BA137: 0 | BB137: 0 | BC137: 0 | BD137: 1 | BE137: 77 | BF137: 41 | BG137: 48 | BH137: 6.59 | BI137: 26
P138: II | T138: 11.6 | U138: 338 | V138: 1358 | W138: 12830 | X138: 723818 | Y138: 1000000 | AP138: 0 | AQ138: 0 | AR138: 0 | AS138: 0 | AT138: 0 | AU138: 0 | AV138: 0 | AW138: 0 | AX138: 0 | AY138: 0 | AZ138: 0 | BA138: 0 | BB138: 0 | BC138: 0 | BD138: 1 | BE138: 65 | BF138: 32 | BG138: 39 | BH138: 6.18 | BI138: 20
P139: III | T139: 12 | U139: 298 | V139: 1154 | W139: 10786 | X139: 604416 | Y139: 1000000 | AP139: 0 | AQ139: 0 | AR139: 0 | AS139: 0 | AT139: 0 | AU139: 0 | AV139: 0 | AW139: 0 | AX139: 0 | AY139: 0 | AZ139: 0 | BA139: 0 | BB139: 0 | BC139: 0 | BD139: 1 | BE139: 59 | BF139: 30 | BG139: 34 | BH139: 6.18 | BI139: 17
P140: IV | T140: 12 | U140: 298 | V140: 1154 | W140: 10786 | X140: 604416 | Y140: 1000000 | AP140: 0 | AQ140: 0 | AR140: 0 | AS140: 0 | AT140: 0 | AU140: 0 | AV140: 0 | AW140: 0 | AX140: 0 | AY140: 0 | AZ140: 0 | BA140: 0 | BB140: 0 | BC140: 0 | BD140: 1 | BE140: 59 | BF140: 30 | BG140: 34 | BH140: 6.18 | BI140: 17
P141: V | T141: 20 | U141: 1202 | V141: 5584 | W141: 55082 | X141: 1000000 | Y141: 1000000 | AP141: 0 | AQ141: 0 | AR141: 0 | AS141: 0 | AT141: 0 | AU141: 0 | AV141: 0 | AW141: 0 | AX141: 0 | AY141: 0 | AZ141: 0 | BA141: 0 | BB141: 0 | BC141: 0 | BD141: 1 | BE141: 184 | BF141: 117 | BG141: 131 | BH141: 8.23 | BI141: 82

Sheet Eau Monitoring post-TA
B2: Perceptions de chantier et comparaison des résultats d'analyse (DS) pour le monitoring de l'eau souterraine après les travaux d'assainissement
B3: Projet : | C3: ='Manuel d''utilisation'!C3 -> BOF_SL_6000: Rue de la Station, 666 à 4308 Manage
B4: Identification du piézomètre | H4: Mesures de chantier | T4: Résultats d'analyse en µg/l | AU4: Remarques (couleur, turbidité, limpidité, …)
S5: HM somme | U5: Hydrocarbures pétroliers (fractions globales/combinées) | AA5: Hydrocarbures pétroliers (analyse 'split' aliphatique/aromatique) | AO5: BTEXN/MTBE
B6: Parcelle cadastrale | C6: Code du piézomètre | D6: X (Lambert) | E6: Y (Lambert) | F6: Profondeur de l'ouvrage (cm-ns)(5) | G6: Prof. de la crépine : de (cm-ns) à (cm-ns) | H6: Date | I6: Niveau d’eau par rapport au sommet du piézomètre (cm-ns)(1) | J6: Quantité prélevée avant échantilllonnage (litre) | K6: Piézomètre bien ou mal alimenté(4) | L6: Zone de captage (I, IIa, IIb)(4) | M6: Nappe exploitable ou non-exploitable(4) | N6: Température (°C) | O6: Ec (µS/cm) | P6: Odeur : type(4) | Q6: Odeur : intensité(4) | R6: pH | S6: Huile minérale EC 5-35 | T6: Huile minérale EC 10-40 | U6: Fraction EC 5-8 | V6: Fraction EC 8-10 | W6: Fraction EC 10-12 | X6: Fraction EC 12-16 | Y6: Fraction EC 16-21 | Z6: Fraction EC 21-35 | AA6: Ali EC 5-6 | AB6: Ali EC 6-8 | AC6: Ali EC 8-10 | AD6: Ali EC 10-12 | AE6: Ali EC 12-16 | AF6: Ali EC 16-21 | AG6: Ali EC 21-35 | AH6: Aro EC 6-7 | AI6: Aro EC 7-8 | AJ6: Aro EC 8-10 | AK6: Aro EC 10-12 | AL6: Aro EC 12-16 | AM6: Aro EC 16-21 | AN6: Aro EC 21-35 | AO6: Benzène | AP6: Toluène | AQ6: Ethylbenzène | AR6: Xylènes (total) | AS6: MTBE | AT6: Naphtalène
B7: NORMES: Concentrations en gras et rouge si dépassement de la VSnappe | P7: VSnappe | U7: 60 | V7: 200 | W7: 200 | X7: 200 | Y7: 300 | Z7: 300 | AO7: 10 | AP7: 700 | AQ7: 300 | AR7: 500 | AS7: 300 | AT7: 60
B8: NORMES: Concentrations en souligné si dépassement des objectifs d'assainissement | P8: OA
B9: NORMES:Concentrations en italique si dépassement de la valeur-limite de monitoring | P9: VL de monitoring
B10: Source:
B11: 456e | C11: P1 | G11: 200-400 | H11: 2006-06-07 | I11: 2.4 | K11: bien | L11: IIa | M11: non défini | N11: 15 | P11: DI | Q11: + | R11: 6.27 | U11: 61 | AP11: 68 | AQ11: 2.5 | AR11: 9 | AS11: 40 | AT11: -0.05
AP12: 68 | AQ12: 2.5 | AR12: 9 | AS12: 40 | AT12: -0.05
AP13: 68 | AQ13: 2.5 | AR13: 9 | AS13: 40 | AT13: -0.05
AP14: 68 | AQ14: 2.5 | AR14: 9 | AS14: 40 | AT14: -0.05
AP15: 68 | AQ15: 2.5 | AR15: 9 | AS15: 40 | AT15: -0.05
AP16: 68 | AQ16: 2.5 | AR16: 9 | AS16: 40 | AT16: -0.05
AP17: 68 | AQ17: 2.5 | AR17: 9 | AS17: 40 | AT17: -0.05
AP18: 68 | AQ18: 2.5 | AR18: 9 | AS18: 40 | AT18: -0.05
B19: Amont:
B25: Aval:
B31: Légende
B33: (1) S'il y a une couche surnageante, il convient d'en mentionner les parties supérieure et inférieure
B34: (3) A adapter conformément à la législation et aux paramètres spécifiques au site
B35: (4) Liste déroulante
B36: (5) Si différente de la profondeur de la base de la crépine
J37: data validation
K38: bien | L38: I | M38: Exploit. | P38: Ess | Q38: -
K39: mal | L39: IIa | M39: Non Expl. | P39: DI | Q39: +
K40: insuffisam. | L40: IIb | M40: non défini | P40: HA | Q40: ++
K41: non défini | L41: hors zone | P41: MC
P42: AU

Sheet Histlog (hidden)
A1: versie | B1: naam | C1: goedgekeurd | D1: datum | E1: opmerking
A2: 2.0 | B2: LV | C2: EG | D2: 2020-04-06 | E2: version 2.0 définitive BOFAS 3
B3: YVM | D3: 2020-03-30 | E3: histlog complété
A4: 1.3 | B4: YV | D4: 2020-03-27 | E4: Dernières corrections avant lay-out BOFAS 3
A5: 1.2 | B5: YVM | D5: 2020-03-25 | E5: Conditional formatting, perméabilité (2 unités),
A6: 1.1 | B6: YV | D6: 2020-03-23 | E6: Adaptation BOF-SRA, formules granulométrie, ajout hydrogéologie
A7: 1 | B7: GM | C7: EG | D7: 2019-09-27 | E7: Version définitive BOFAS 3
A8: 0.3 | B8: LV | D8: 2019-09-13 | E8: referenties rechtzetten ism yvon + pagina-uitlijning
A9: 0.2 | B9: TL | D9: 2019-09-12 | E9: traducation
A10: 0.1 | B10: LV | D10: 2019-09-11 | E10: lay-out BOFAS 3 + nazicht referenties
